Workbook

Sheet Notes (hidden)
B2: Could diasble saving to prevent a user from being stuck with a fatal error if they manage to completely break the tool somehow
C3: Would automatically make the workbook open to the Introduction sheet everytime and prevent saving in a broken state if that somehow occurs
B6: Permanently hide | G6: UI Worksheets | L6: Remaining Tasks
C7: Calculation | H7: Introduction | M7: Enable Workbook Protection
C8: Total Commodity Output | H8: Analysis Type | M8: Clean up code | O8: (Remember to change all "xlSheetHidden" to "xlSheetVeryHidden")
C9: Total Final Uses | H9: Analysis Level | M9: Input Validation/Error Catching | Q9: (Recently added Input Validation, need to fully vet)
C10: Default Weights | H10: Select Industries | N10: Upon fatal error conduct reset of workbook, if error there close without saving
C11: Requirements 15 Ind | H11: Environmental Weights | M11: UI Design
C12: Requirements 71 Ind | H12: Review Inputs | N12: Determine appropriate aesthetic
C13: Requirements 402 Ind | H13: Output Results | N13: Format Output | P13: Make it easy to see the largest outputs, smallest - Add ability to sort columns (filter)
C14: Exports_Imports | H14: Environmental Results | N14: Lock Scrolling where appropriate (Set view area in VBA)
C15: Value Added | H15: Downstream Analysis Results | N15: Help text/instructions
C16: 402 Env Data | H16: Export Results | N16: links to relevant documents (if applicable)
C17: 71 Env Data | N17: Standardize navigation button placement
C18: 15 Env Data | G18: Delete | N18: Warnings for reset button
C19: CauseEffectCalculation | H19: Environmental Data | M19: Add "Read Me" sheet for anyone using developer tools (sheet should be hidden)
C20: Import Req 402 | H20: Fin Use Adj | M20: Suppress standard Solver output and use solver completion status to generate custom message depending on value
C21: Import Req 71 | H21: Review Input | N21: If error or no feasible solution found, notify user and do not unhide results
C22: Import Req 15 | M22: Optimize code by making some calculations write to an array instead of calculation sheets.
C23: 2012 Exports_Imports | N23: Current use of calculation sheets is to allow for easy debugging
C24: 2012 Value Added | N24: Won't work for solver calculations as those require cell references
C25: 2012 Total Commodity Output | M25: How to handle zeros in requirements matrix/total output
C26: 2012 Total Final Uses | G26: Not selectable
C27: 2012 Requirements 15 Ind | H27: Secondary smelting and alloying of aluminum | M27: Make 2012 base for two year calculations
C28: 2012 Requirements 71 Ind | H28: Federal electric utilities | M28: Report which industry produces the largest drop
C29: 2012 Requirements 402 Ind | H29: State and local government passenger transit
C30: 2012 Import Req 402 | H30: State and local government electric utilities | M30: Move buttons to fill in default values to sheet specific module, may be able to speed up fill procedure
C31: 2012 Import Req 71 | M31: Optimize clean up of check boxes to speed up reset and sheet building
C32: 2012 Import Req 15 | G32: Input values differ by analysis, need conditional instructions | M32: Make sure if total industry analysis is used and both data years are selected that the 2012 analysis is pulling the correct values.
C33: Inflation | H33: analysis values should be final output
H34: for the industry selected. If looking at
H35: downstream analysis values should be
H36: the drop in output for the selected industry
H37: (allow negative values to indicate increase in
H38: output)

Sheet Introduction
A1: Manufacturing Cost Guide
X2: 0
A4: Progress Panel | F4: Welcome to MCG 2.0
A6: This panel will keep track of where you are in the | F6: This tool executes economic input-output analysis to examine industry supply chains. It provides estimates of value added and measures of impact throughout a selected industry’s supply chain. It answers questions about how industries supply each other and where in the supply chain impacts occur. The tool facilitates examining upstream supply chains and to a limited extent downstream supply chains at an industry level perspective. Although this is based on a static model, it allows flexibility in examining different industries and magnitudes of an industry (e.g., total industry output vs. a portion thereof). Results are provided for multiple years; thus, a user could compare supply chains between years. Results can also be calculated at varying levels of granularity. For instance a user might be interested in the supply chain for all of manufacturing or they might be interested in a subsector of manufacturing such as automobile parts. The tool facilitates both of these levels of granularity. The results can aid governments, planners, and practitioners in rapidly and cost-effectively understanding potential outcomes of policy decisions, infrastructure projects, efficiency improvements, and supply chain disruptions.
A7: analysis. It is not a navigation pane and clicking
A8: on a step in this, or any similar pane, will not move
A9: the user through the tool.
A11: As you progress, previous sheets will be hidden
A12: and the current sheet will be bolded. The analysis
A13: has the following steps:
A15: 1. Select Analysis Type
A17: 2. Select Analysis Level
A19: 3. Select Industries
A21: 4. (Optional) Set Negative Externality Weights
A23: 5. Review Inputs
A25: 6. Results

Sheet Analysis Type (hidden)
A1: Select Analysis Type
X2: 0
X3: FALSE
A4: Instructions:
A5: Select one of the available three analysis types described below. You may also opt to include an environmental analysis looking at environmental impacts as defined in the United States Environmentally Exteneded Input Output tables from
A6: Cite USEEIO. Click on Submit Once all selections have been made. These selections will be preserved unless you click on Reset or, for this screen only, Back. Selections made on subsequent screens will be preserved unless a change to
A7: analysis type is made on this screen.
A8: Progress Pane
G9: Select One of the Following
A10: 1. Select Analysis Type
G11: Total Industry Output - The user selects one or more industries, and the results represent the total output, value added, and/or negative externalities associated with the selected
A12: 2. Select Analysis Level | G12: industries and their supply chain, both for goods and services.
A14: 3. Select Industries
G15: User Defined Industry Output - The user selects one or more industries along with a dollar value for each industry. The results represent the output, value added, and/or negative
A16: 4. (Optional) Set Negative Externality Weights | G16: externalities associated with the dollar value of industry demand.
A18: 5. Review Inputs
G19: Downstream Analysis - The user selects a combination of industries and a dollar value, typically representing a disruption. The first industry would be the industry that is unable
A20: 6. Results | G20: to deliver the total needed goods/services. The second industry is the one that does not receive the goods/services. The user selected dollar value represents the level of disruption
G21: or the amount that goes undelivered. The results represent the direct and indirect losses that might occur downstream as a result of the disruption.
A22: Links:
G23: The Following is Optional
G25: Negative Externality Results - An optional analysis that will calculate negative externality measures associated based on USEEIO data based on any updated Total Output values
G26: from any of the above analysis options

Sheet Analysis Level (hidden)
A1: Select Analysis Level
X2: 0
X3: FALSE
A4: Instructions: | X4: FALSE
A5: Select one of the analysis levels described below and at least one of the two data years available. Click on Submit once all selections have been made. These selections will be preserved unless you click on Reset, which will reset all selctions
A6: and return you to the Introduction screen. All selections you have made from subsequent screens will be preserved unless you select a new analysis level or alter the data year selection on this screen.
A8: Progress Pane
G9: Select One of the Following Options
A10: 1. Select Analysis Type
G11: Total Industry Aggregation - The analysis will use a broad-level of aggregation for U.S. economic activity consisting of 15 total industry categories.
A12: 2. Select Analysis Level
A14: 3. Select Industries | G14: Sector Aggregation - The analysis will use a mid-level of aggregation for U.S. economic activity consisting of 71 total industry categories.
A16: 4. (Optional) Set Negative Externality Weights
G17: Subsector Aggregation - The analysis will use a detailed-level of aggregation for U.S. economic activity consisting of 402 total industry categories.
A18: 5. Review Inputs
G19: Select at Least One of the Following Options
A20: 6. Results
G21: 2012 BEA Data - The analysis will use BEA data from 2012
A22: Links:
G24: Most Recent Year Data - The analysis will use BEA data from 2023 (For Total or Sector Aggregation) or 2017 (For Subsector Aggregation)

Sheet Select Industries (hidden)
A1: Select Industries
A4: Instructions:
A5: Select the industries you would like to include in your analysis. The analysis will zero out the total final uses except for the selected industries then alter the non-zero total final uses in an attempt to
A6: set the total commodity output for the selected industries equal to the values of total commodity output for the relevant data year (2012 or Most Recent Year (MRY)).
A7: Note: If using a subsector analysis level some items will not be selectable due to a mismatch between the industries listed in the total final uses and those in the output rows. | AD7: 0
A8: Progress Pane | G8: NAICS Code | H8: Industry | I8: Enter Dollar Amount | K8: Affected Industry | AD8: 0
K9: Construction | Z9: 0
A10: 1. Select Analysis Type | Z10: 0
Z11: 0
A12: 2. Select Analysis Level | Z12: 0
Z13: 0
A14: 3. Select Industries | Z14: 0
Z15: 0
A16: 4. (Optional) Set Negative Externality Weights | Z16: 0
Z17: 0
A18: 5. Review Inputs | Z18: 0
Z19: 0
A20: 6. Results | Z20: 0
Z21: 0
A22: Links: | Z22: 0
Z23: 0
Z24: 0
Z25: 0
Z26: 0
Z27: 0
Z28: 0
A29: Image | Z29: 0
Z30: 0
Z31: 0
Z32: 0
Z33: 0
Z34: 0
Z35: 0
Z36: 0
Z37: 0
Z38: 0
Z39: 0
Z40: 0
Z41: 0
Z42: 0
Z43: 0
Z44: 0
Z45: 0
Z46: 0
Z47: 0
Z48: 0
Z49: 0
Z50: 0
Z51: 0
Z52: 0
Z53: 0
Z54: 0
Z55: 0
Z56: 0
Z57: 0
Z58: 0
Z59: 0
Z60: 0
Z61: 0
Z62: 0
Z63: 0
Z64: 0
Z65: 0
Z66: 0
Z67: 0
Z68: 0
Z69: 0
Z70: 0
Z71: 0
Z72: 0
Z73: 0
Z74: 0
Z75: 0
Z76: 0
Z77: 0
Z78: 0
Z79: 0
Z80: 0
Z81: 0
Z82: 0
Z83: 0
Z84: 0
Z85: 0
Z86: 0
Z87: 0
Z88: 0
Z89: 0
Z90: 0
Z91: 0
Z92: 0
Z93: 0
Z94: 0
Z95: 0
Z96: 0
Z97: 0
Z98: 0
Z99: 0
Z100: 0
Z101: 0
Z102: 0
Z103: 0
Z104: 0
Z105: 0
Z106: 0
Z107: 0
Z108: 0
Z109: 0
Z110: 0
Z111: 0
Z112: 0
Z113: 0
Z114: 0
Z115: 0
Z116: 0
Z117: 0
Z118: 0
Z119: 0
Z120: 0
Z121: 0
Z122: 0
Z123: 0
Z124: 0
Z125: 0
Z126: 0
Z127: 0
Z128: 0
Z129: 0
Z130: 0
Z131: 0
Z132: 0
Z133: 0
Z134: 0
Z135: 0
Z136: 0
Z137: 0
Z138: 0
Z139: 0
Z140: 0
Z141: 0
Z142: 0
Z143: 0
Z144: 0
Z145: 0
Z146: 0
Z147: 0
Z148: 0
Z149: 0
Z150: 0
Z151: 0
Z152: 0
Z153: 0
Z154: 0
Z155: 0
Z156: 0
Z157: 0
Z158: 0
Z159: 0
Z160: 0
Z161: 0
Z162: 0
Z163: 0
Z164: 0
Z165: 0
Z166: 0
Z167: 0
Z168: 0
Z169: 0
Z170: 0
Z171: 0
Z172: 0
Z173: 0
Z174: 0
Z175: 0
Z176: 0
Z177: 0
Z178: 0
Z179: 0
Z180: 0
Z181: 0
Z182: 0
Z183: 0
Z184: 0
Z185: 0
Z186: 0
Z187: 0
Z188: 0
Z189: 0
Z190: 0
Z191: 0
Z192: 0
Z193: 0
Z194: 0
Z195: 0
Z196: 0
Z197: 0
Z198: 0
Z199: 0
Z200: 0
Z201: 0
Z202: 0
... 208 more rows

Sheet Weighting (hidden)
A1: Set Negative Externality Weights
A4: Instructions:
A5: Enter the weighting you would like to use for each negative externality measure. Default weights are provided based on NIST's BEES App. The zero weights in the defaults are for measures that were not present in the
A6: original USEEIO at the time that the weights were originally solicited. You may also enter custom weights directly into the table. Note that individual weights must be between zero and one, inlcusive on the bounds and the
A7: sum of the weights must equal one. If you would like to restore the default values click the Restore Defualts button.
A8: Progress Pane | G8: Measure | H8: Units | I8: Weight
G9: Acidification Potential | H9: kg SO2 eq | I9: 0.03092783505
A10: 1. Select Analysis Type | G10: Commercial Construction and Demolition Debris | H10: kg | I10: 0
G11: Commercial Municipal Solid Waste | H11: kg | I11: 0
A12: 2. Select Analysis Level | G12: Commercial RCRA Hazardous Waste | H12: kg | I12: 0
G13: Energy Use | H13: MJ | I13: 0.1030927835
A14: 3. Select Industries | G14: Eutrophication Potential | H14: kg N eq | I14: 0.0618556701
G15: Freshwater Ecotoxicity Potential | H15: CTUe | I15: 0.07216494845
A16: 4. (Optional) Set Negative Externality Weights | G16: Freshwater withdrawals | H16: kg | I16: 0.0824742268
G17: Greenhouse Gases | H17: kg CO2 eq | I17: 0.2989690722
A18: 5. Review Inputs | G18: Hazardous Air Pollutants | H18: kg | I18: 0
G19: Human Health - Cancer | H19: CTUh | I19: 0.0824742268
A20: 6. Results | G20: Human Health - Noncancer | H20: CTUh | I20: 0.05154639175
G21: Human Health - Respiratory Effects | H21: kg PM2.5 eq | I21: 0.09278350515
A22: Links: | G22: Human Health Toxicity | H22: CTUh | I22: 0
G23: Jobs Supported | H23: jobs | I23: 0
G24: Land use | H24: m2*yr | I24: 0.0618556701
G25: Minerals and Metals Use | H25: kg | I25: 0
G26: Nonrenewable Energy Use | H26: MJ | I26: 0
G27: Ozone Depletion | H27: kg CFC-11 eq | I27: 0.0206185567
G28: Pesticides | H28: kg | I28: 0
G29: Renewable Energy Use | H29: MJ | I29: 0
G30: Smog Formation Potential | H30: kg O3 eq | I30: 0.0412371134
G31: Sum of weights | H31: None | I31: =SUM(I9:I30) -> 1

Sheet Review Inputs (hidden)
A1: Review Inputs
A4: Instructions:
A5: This sheet provides all inputs for the present analysis for review. Hitting run will perform the analysis and open new sheets containing the results. Going back from this sheet will hide and
A6: clear the results sheets, necessitating a rerun to make them visible again. You may navigate between the results sheets and this one using the tabs located at the bottom of the worksheet.
A7: Please note that the analysis may take a few minutes if running the subsector analysis, especially if using both data years and the negative externality calculation option.
A8: Progress Pane | G8: Analysis Type | H8: Total Industry Analysis | K8: Measure | L8: Weight
G9: Negative Externality Analysis | H9: Selected | K9: Acidification Potential | L9: 0.03092783505
A10: 1. Select Analysis Type | G10: Analysis Level | H10: Total Manufacturing | K10: Commercial Construction and Demolition Debris | L10: 0
G11: Data Year | H11: 2023 | K11: Commercial Municipal Solid Waste | L11: 0
A12: 2. Select Analysis Level | K12: Commercial RCRA Hazardous Waste | L12: 0
G13: Selected Industries | K13: Energy Use | L13: 0.1030927835
A14: 3. Select Industries | K14: Eutrophication Potential | L14: 0.0618556701
K15: Freshwater Ecotoxicity Potential | L15: 0.07216494845
A16: 4. (Optional) Set Negative Externality Weights | K16: Freshwater withdrawals | L16: 0.0824742268
K17: Greenhouse Gases | L17: 0.2989690722
A18: 5. Review Inputs | K18: Hazardous Air Pollutants | L18: 0
K19: Human Health - Cancer | L19: 0.0824742268
A20: 6. Results | K20: Human Health - Noncancer | L20: 0.05154639175
K21: Human Health - Respiratory Effects | L21: 0.09278350515
K22: Human Health Toxicity | L22: 0
K23: Jobs Supported | L23: 0
K24: Land use | L24: 0.0618556701
K25: Minerals and Metals Use | L25: 0
K26: Nonrenewable Energy Use | L26: 0
K27: Ozone Depletion | L27: 0.0206185567
K28: Pesticides | L28: 0
K29: Renewable Energy Use | L29: 0
K30: Smog Formation Potential | L30: 0.0412371134

Sheet Output Results (hidden)
A1: Economic Results
A4: Instructions:
A5: This sheet presents the results for the Target Output analysis. Results include the Total Output for each industry based on the final values obtained in the Solver analysis, the value added, and the value of imports and exports. Value added and exports are calculated using the fraction of the calculated
A6: total output value over the original total output multiplied by the value added or export values for the relevant year (2012 or Most Recent Year). Imports are cacluclated using the import matrix. Value are not adjusted for inflation, i.e. the 2012 results are in 2012 dolars and the MRY results are in 2023
A7: dollars for the Total Industry and Sector analysis levels and in 2017 dollars for the Subsector analysis level.
A8: Progress Pane | G8: Industry | H8: 2023 Output | I8: 2023 Value Added | J8: 2023 Imports | K8: 2012 Output | L8: 2012 Value Added | M8: 2012 Imports | O8: Industry | P8: 2023 Exports | Q8: 2012 Exports
A10: 1. Select Analysis Type
A12: 2. Select Analysis Level
A14: 3. Select Industries
A16: 4. (Optional) Set Negative Externality Weights
A18: 5. Review Inputs
A20: 6. Results

Sheet Downstream Analysis Results (hidden)
A1: Economic Results
A4: Instructions:
A5: This sheet presents the results for the Downstream Analysis. The industry responsible for the largest drop in output for the affected industry due to the user selected drop in total final uses is presented above the tables. The new values for Total Output, Value Added, Imports and Exports are given, as well as
A6: the change in Total Final Output. Value added and exports are calculated using total output value over the original total output multiplied by the value added or export values for the relevant year (2012 or Most Recent Year). Imports are cacluclated using the import matrix. Values are not adjusted for inflation,
A7: i.e. the 2012 results are in 2012 dolars and the MRY results are in 2023 dollars for the Total Industry and Sector analysis levels and in 2017 dollars for the Subsector analysis level.
A8: Progress Pane | H8: 2023 Most Influential Industry | L8: 2012 Most Influential Industry
H9: Manufacturing | L9: Wood products
A10: 1. Select Analysis Type
G11: Industry | H11: 2023 Output | I11: 2023 Change in Output | J11: 2023 Value Added | K11: 2023 Imports | L11: 2012 Output | M11: 2012 Change in Output | N11: 2021 Value Added | O11: 2012 Imports | Q11: Industry | R11: 2023 Exports | S11: 2012 Exports
A12: 2. Select Analysis Level
A14: 3. Select Industries
A16: 4. (Optional) Set Negative Externality Weights
A18: 5. Review Inputs
A20: 6. Results

Sheet Neg Ext Results (hidden)
A1: Negative Externality Results
A4: Instructions:
A5: This sheet presents the negative externality results of the analysis. Column headings indicate the measure of interest with all values being the unweighted impact of each industry. The Weighted Total column presents the negative externality impact of all categories calculated as follows. First, the
A6: calculated total output is multiplied by the relevant entry in the USEEIO table for each measure. This value is then divided by the total impact for the meaure from the USEEIO to obtain the fraction of the total impact that the industry is responsible for. The fractional impact is multiplied by the negative
A7: externality weight for the measure created a weighted value for it. All of these weighted values are then summed to produce the Weighted Total. The USEEIO data is presented in 2012 values so, if using MRY, the dollar values have all been adjusted for inflation to 2023 dollars.
A8: Progress Pane: | G8: Industry | H8: 2023 Acidification Potential (kg SO2 eq) | I8: 2023 Commercial Construction and Demolition Debris (kg) | J8: 2023 Commercial Municipal Solid Waste (kg) | K8: 2023 Commercial RCRA Hazardous Waste (kg) | L8: 2023 Energy Use (MJ) | M8: 2023 Eutrophication Potential (kg N eq) | N8: 2023 Freshwater Ecotoxicity Potential (CTUe) | O8: 2023 Freshwater Withdrawals (kg) | P8: 2023 Greenhouse Gases (kg CO2 eq) | Q8: 2023 Hazardous Air Pollutants (kg) | R8: 2023 Human Health - Cancer (CTUh) | S8: 2023 Human Health - Noncancer (CTUh) | T8: 2023 Human Health - Respiratory Effects (kg PM2.5 eq) | U8: 2023 Human Health Toxicity (CTUh) | V8: 2023 Jobs Supported (jobs) | W8: 2023 Land Use (m2-yr) | X8: 2023 Minerals and Metals Use (kg) | Y8: 2023 Nonrenewable Energy Use (MJ) | Z8: 2023 Ozone Depletion (kg CFC-11 eq) | AA8: 2023 Pesticides (kg) | AB8: 2023 Renewable Energy Use (MJ) | AC8: 2023 Smog Formation Potential (kg O3 eq) | AD8: 2023 Weighted Total (unitless) | AE8: 2012 Acidification Potential (kg SO2 eq) | AF8: 2012 Commercial Construction and Demolition Debris (kg) | AG8: 2012 Commercial Municipal Solid Waste (kg) | AH8: 2012 Commercial RCRA Hazardous Waste (kg) | AI8: 2012 Energy Use (MJ) | AJ8: 2012 Eutrophication Potential (kg N eq) | AK8: 2012 Freshwater Ecotoxicity Potential (CTUe) | AL8: 2012 Freshwater withdrawals (kg) | AM8: 2012 Greenhouse Gases (kg CO2 eq) | AN8: 2012 Hazardous Air Pollutants (kg) | AO8: 2012 Human Health - Cancer (CTUh) | AP8: 2012 Human Health - Noncancer (CTUh) | AQ8: 2012 Human Health - Respiratory Effects (kg PM2.5 eq) | AR8: 2012 Human Health Toxicity (CTUh) | AS8: 2012 Jobs Supported (jobs) | AT8: 2012 Land use (m2*yr) | AU8: 2012 Minerals and Metals Use (kg) | AV8: 2012 Nonrenewable Energy Use (MJ) | AW8: 2012 Ozone Depletion (kg CFC-11) | AX8: 2012 Pesticides (kg) | AY8: 2012 Renewable Energy Use (MJ) | AZ8: 2012 Smog Formation Potential (kg O3 eq) | BA8: 2012 Weighted Total (unitless)
A9: 1. Select Analysis Type
A11: 2. Select Analysis Level
A13: 3. Select Industries
A15: 4. (Optional) Set Negative Externality Weights
A17: 5. Review Inputs
A19: 6. Results

Sheet Export Import Results (hidden)
A1: Industry | B1: MRY Exports | C1: 2012 Exports
J2: Results for
K3: Secondary smelting and alloying of aluminum
K4: Federal electric utilities
K5: State and local government passenger transit
K6: State and local government electric utilities
J7: Not shown as there are no rows in the the Use table associated with them
J9: 402 Only: Results for
K10: Scrap
K11: Used and secondhand goods
K12: Noncomparable imports
K13: Rest of the world adjustment
J14: Always zero as the calculation for new levels is O'/O and the above do not produce output per the
K15: Req * Fin Use = Output
J16: calculation
J18: 71 and 15 Only: Results for
K19: Scrap, used and secondhand goods
K20: Noncomparable imports and rest-of-the-world adjustment [1]
J21: Always zero as the calculation for new levels is O'/O and the above do not produce output per the
K22: Req * Fin Use = Output
J23: calculation
J25: Rename sheet

Sheet Review Input (hidden)
A1: Oilseed farming | B1: Oilseed farming
A2: Grain farming | B2: Grain farming
A3: Vegetable and melon farming | B3: Vegetable and melon farming
A4: Fruit and tree nut farming | B4: Fruit and tree nut farming
A5: Greenhouse, nursery, and floriculture production | B5: Greenhouse, nursery, and floriculture production
A6: Other crop farming | B6: Other crop farming
A7: Dairy cattle and milk production | B7: Dairy cattle and milk production
A8: Beef cattle ranching and farming, including feedlots and dual-purpose ranching and farming | B8: Beef cattle ranching and farming, including feedlots and dual-purpose ranching and farming
A9: Poultry and egg production | B9: Poultry and egg production
A10: Animal production, except cattle and poultry and eggs | B10: Animal production, except cattle and poultry and eggs
A11: Forestry and logging | B11: Forestry and logging
A12: Fishing, hunting and trapping | B12: Fishing, hunting and trapping
A13: Support activities for agriculture and forestry | B13: Support activities for agriculture and forestry
A14: Oil and gas extraction | B14: Oil and gas extraction
A15: Coal mining | B15: Coal mining
A16: Copper, nickel, lead, and zinc mining | B16: Copper, nickel, lead, and zinc mining
A17: Iron, gold, silver, and other metal ore mining | B17: Iron, gold, silver, and other metal ore mining
A18: Stone mining and quarrying | B18: Stone mining and quarrying
A19: Other nonmetallic mineral mining and quarrying | B19: Other nonmetallic mineral mining and quarrying
A20: Drilling oil and gas wells | B20: Drilling oil and gas wells
A21: Other support activities for mining | B21: Other support activities for mining
A22: Electric power generation, transmission, and distribution | B22: Electric power generation, transmission, and distribution
A23: Natural gas distribution | B23: Natural gas distribution
A24: Water, sewage and other systems | B24: Water, sewage and other systems
A25: Health care structures | B25: Health care structures
A26: Educational and vocational structures | B26: Educational and vocational structures
A27: Nonresidential maintenance and repair | B27: Nonresidential maintenance and repair
A28: Residential maintenance and repair | B28: Residential maintenance and repair
A29: Office and commercial structures | B29: Office and commercial structures
A30: Multifamily residential structures | B30: Multifamily residential structures
A31: Other residential structures | B31: Other residential structures
A32: Manufacturing structures | B32: Manufacturing structures
A33: Other nonresidential structures | B33: Other nonresidential structures
A34: Power and communication structures | B34: Power and communication structures
A35: Single-family residential structures | B35: Single-family residential structures
A36: Transportation structures and highways and streets | B36: Transportation structures and highways and streets
A37: Sawmills and wood preservation | B37: Sawmills and wood preservation
A38: Veneer, plywood, and engineered wood product manufacturing | B38: Veneer, plywood, and engineered wood product manufacturing
A39: Millwork | B39: Millwork
A40: All other wood product manufacturing | B40: All other wood product manufacturing
A41: Clay product and refractory manufacturing | B41: Clay product and refractory manufacturing
A42: Glass and glass product manufacturing | B42: Glass and glass product manufacturing
A43: Cement manufacturing | B43: Cement manufacturing
A44: Ready-mix concrete manufacturing | B44: Ready-mix concrete manufacturing
A45: Concrete pipe, brick, and block manufacturing | B45: Concrete pipe, brick, and block manufacturing
A46: Other concrete product manufacturing | B46: Other concrete product manufacturing
A47: Lime and gypsum product manufacturing | B47: Lime and gypsum product manufacturing
A48: Abrasive product manufacturing | B48: Abrasive product manufacturing
A49: Cut stone and stone product manufacturing | B49: Cut stone and stone product manufacturing
A50: Ground or treated mineral and earth manufacturing | B50: Ground or treated mineral and earth manufacturing
A51: Mineral wool manufacturing | B51: Mineral wool manufacturing
A52: Miscellaneous nonmetallic mineral products | B52: Miscellaneous nonmetallic mineral products
A53: Iron and steel mills and ferroalloy manufacturing | B53: Iron and steel mills and ferroalloy manufacturing
A54: Steel product manufacturing from purchased steel | B54: Steel product manufacturing from purchased steel
A55: Secondary smelting and alloying of aluminum | B55: Alumina refining and primary aluminum production
A56: Alumina refining and primary aluminum production | B56: Aluminum product manufacturing from purchased aluminum
A57: Aluminum product manufacturing from purchased aluminum | B57: Nonferrous metal (except aluminum) smelting and refining
A58: Nonferrous metal (except aluminum) smelting and refining | B58: Copper rolling, drawing, extruding and alloying
A59: Copper rolling, drawing, extruding and alloying | B59: Nonferrous metal (except copper and aluminum) rolling, drawing, extruding and alloying
A60: Nonferrous metal (except copper and aluminum) rolling, drawing, extruding and alloying | B60: Ferrous metal foundries
A61: Ferrous metal foundries | B61: Nonferrous metal foundries
A62: Nonferrous metal foundries | B62: Custom roll forming
A63: Custom roll forming | B63: All other forging, stamping, and sintering
A64: All other forging, stamping, and sintering | B64: Metal crown, closure, and other metal stamping (except automotive)
A65: Metal crown, closure, and other metal stamping (except automotive) | B65: Cutlery and handtool manufacturing
A66: Cutlery and handtool manufacturing | B66: Plate work and fabricated structural product manufacturing
A67: Plate work and fabricated structural product manufacturing | B67: Ornamental and architectural metal products manufacturing
A68: Ornamental and architectural metal products manufacturing | B68: Power boiler and heat exchanger manufacturing
A69: Power boiler and heat exchanger manufacturing | B69: Metal tank (heavy gauge) manufacturing
A70: Metal tank (heavy gauge) manufacturing | B70: Metal can, box, and other metal container (light gauge) manufacturing
A71: Metal can, box, and other metal container (light gauge) manufacturing | B71: Hardware manufacturing
A72: Hardware manufacturing | B72: Spring and wire product manufacturing
A73: Spring and wire product manufacturing | B73: Machine shops
A74: Machine shops | B74: Turned product and screw, nut, and bolt manufacturing
A75: Turned product and screw, nut, and bolt manufacturing | B75: Coating, engraving, heat treating and allied activities
A76: Coating, engraving, heat treating and allied activities | B76: Plumbing fixture fitting and trim manufacturing
A77: Plumbing fixture fitting and trim manufacturing | B77: Valve and fittings other than plumbing
A78: Valve and fittings other than plumbing | B78: Ball and roller bearing manufacturing
A79: Ball and roller bearing manufacturing | B79: Fabricated pipe and pipe fitting manufacturing
A80: Fabricated pipe and pipe fitting manufacturing | B80: Ammunition, arms, ordnance, and accessories manufacturing
A81: Ammunition, arms, ordnance, and accessories manufacturing | B81: Other fabricated metal manufacturing
A82: Other fabricated metal manufacturing | B82: Farm machinery and equipment manufacturing
A83: Farm machinery and equipment manufacturing | B83: Lawn and garden equipment manufacturing
A84: Lawn and garden equipment manufacturing | B84: Construction machinery manufacturing
A85: Construction machinery manufacturing | B85: Mining and oil and gas field machinery manufacturing
A86: Mining and oil and gas field machinery manufacturing | B86: Semiconductor machinery manufacturing
A87: Semiconductor machinery manufacturing | B87: Other industrial machinery manufacturing
A88: Other industrial machinery manufacturing | B88: Optical instrument and lens manufacturing
A89: Optical instrument and lens manufacturing | B89: Photographic and photocopying equipment manufacturing
A90: Photographic and photocopying equipment manufacturing | B90: Other commercial and service industry machinery manufacturing
A91: Other commercial and service industry machinery manufacturing | B91: Heating equipment (except warm air furnaces) manufacturing
A92: Heating equipment (except warm air furnaces) manufacturing | B92: Air conditioning, refrigeration, and warm air heating equipment manufacturing
A93: Air conditioning, refrigeration, and warm air heating equipment manufacturing | B93: Industrial and commercial fan and blower and air purification equipment manufacturing
A94: Industrial and commercial fan and blower and air purification equipment manufacturing | B94: Industrial mold manufacturing
A95: Industrial mold manufacturing | B95: Special tool, die, jig, and fixture manufacturing
A96: Special tool, die, jig, and fixture manufacturing | B96: Machine tool manufacturing
A97: Machine tool manufacturing | B97: Cutting and machine tool accessory, rolling mill, and other metalworking machinery manufacturing
A98: Cutting and machine tool accessory, rolling mill, and other metalworking machinery manufacturing | B98: Turbine and turbine generator set units manufacturing
A99: Turbine and turbine generator set units manufacturing | B99: Speed changer, industrial high-speed drive, and gear manufacturing
A100: Speed changer, industrial high-speed drive, and gear manufacturing | B100: Mechanical power transmission equipment manufacturing
A101: Mechanical power transmission equipment manufacturing | B101: Other engine equipment manufacturing
A102: Other engine equipment manufacturing | B102: Air and gas compressor manufacturing
A103: Air and gas compressor manufacturing | B103: Measuring, dispensing, and other pumping equipment manufacturing
A104: Measuring, dispensing, and other pumping equipment manufacturing | B104: Material handling equipment manufacturing
A105: Material handling equipment manufacturing | B105: Power-driven handtool manufacturing
A106: Power-driven handtool manufacturing | B106: Packaging machinery manufacturing
A107: Packaging machinery manufacturing | B107: Industrial process furnace and oven manufacturing
A108: Industrial process furnace and oven manufacturing | B108: Other general purpose machinery manufacturing
A109: Other general purpose machinery manufacturing | B109: Fluid power process machinery
A110: Fluid power process machinery | B110: Electronic computer manufacturing
A111: Electronic computer manufacturing | B111: Computer storage device manufacturing
A112: Computer storage device manufacturing | B112: Computer terminals and other computer peripheral equipment manufacturing
A113: Computer terminals and other computer peripheral equipment manufacturing | B113: Telephone apparatus manufacturing
A114: Telephone apparatus manufacturing | B114: Broadcast and wireless communications equipment
A115: Broadcast and wireless communications equipment | B115: Other communications equipment manufacturing
A116: Other communications equipment manufacturing | B116: Semiconductor and related device manufacturing
A117: Semiconductor and related device manufacturing | B117: Printed circuit assembly (electronic assembly) manufacturing
A118: Printed circuit assembly (electronic assembly) manufacturing | B118: Other electronic component manufacturing
A119: Other electronic component manufacturing | B119: Electromedical and electrotherapeutic apparatus manufacturing
A120: Electromedical and electrotherapeutic apparatus manufacturing | B120: Search, detection, and navigation instruments manufacturing
A121: Search, detection, and navigation instruments manufacturing | B121: Automatic environmental control manufacturing
A122: Automatic environmental control manufacturing | B122: Industrial process variable instruments manufacturing
A123: Industrial process variable instruments manufacturing | B123: Totalizing fluid meter and counting device manufacturing
A124: Totalizing fluid meter and counting device manufacturing | B124: Electricity and signal testing instruments manufacturing
A125: Electricity and signal testing instruments manufacturing | B125: Analytical laboratory instrument manufacturing
A126: Analytical laboratory instrument manufacturing | B126: Irradiation apparatus manufacturing
A127: Irradiation apparatus manufacturing | B127: Watch, clock, and other measuring and controlling device manufacturing
A128: Watch, clock, and other measuring and controlling device manufacturing | B128: Audio and video equipment manufacturing
A129: Audio and video equipment manufacturing | B129: Manufacturing and reproducing magnetic and optical media
A130: Manufacturing and reproducing magnetic and optical media | B130: Electric lamp bulb and part manufacturing
A131: Electric lamp bulb and part manufacturing | B131: Lighting fixture manufacturing
A132: Lighting fixture manufacturing | B132: Small electrical appliance manufacturing
A133: Small electrical appliance manufacturing | B133: Major household appliance manufacturing
A134: Major household appliance manufacturing | B134: Power, distribution, and specialty transformer manufacturing
A135: Power, distribution, and specialty transformer manufacturing | B135: Motor and generator manufacturing
A136: Motor and generator manufacturing | B136: Switchgear and switchboard apparatus manufacturing
A137: Switchgear and switchboard apparatus manufacturing | B137: Relay and industrial control manufacturing
A138: Relay and industrial control manufacturing | B138: Storage battery manufacturing
A139: Storage battery manufacturing | B139: Primary battery manufacturing
A140: Primary battery manufacturing | B140: Communication and energy wire and cable manufacturing
A141: Communication and energy wire and cable manufacturing | B141: Wiring device manufacturing
A142: Wiring device manufacturing | B142: Carbon and graphite product manufacturing
A143: Carbon and graphite product manufacturing | B143: All other miscellaneous electrical equipment and component manufacturing
A144: All other miscellaneous electrical equipment and component manufacturing | B144: Automobile manufacturing
A145: Automobile manufacturing | B145: Light truck and utility vehicle manufacturing
A146: Light truck and utility vehicle manufacturing | B146: Heavy duty truck manufacturing
A147: Heavy duty truck manufacturing | B147: Motor vehicle body manufacturing
A148: Motor vehicle body manufacturing | B148: Truck trailer manufacturing
A149: Truck trailer manufacturing | B149: Motor home manufacturing
A150: Motor home manufacturing | B150: Travel trailer and camper manufacturing
A151: Travel trailer and camper manufacturing | B151: Motor vehicle gasoline engine and engine parts manufacturing
A152: Motor vehicle gasoline engine and engine parts manufacturing | B152: Motor vehicle electrical and electronic equipment manufacturing
A153: Motor vehicle electrical and electronic equipment manufacturing | B153: Motor vehicle transmission and power train parts manufacturing
A154: Motor vehicle transmission and power train parts manufacturing | B154: Motor vehicle seating and interior trim manufacturing
A155: Motor vehicle seating and interior trim manufacturing | B155: Motor vehicle metal stamping
A156: Motor vehicle metal stamping | B156: Other motor vehicle parts manufacturing
A157: Other motor vehicle parts manufacturing | B157: Motor vehicle steering, suspension component (except spring), and brake systems manufacturing
A158: Motor vehicle steering, suspension component (except spring), and brake systems manufacturing | B158: Aircraft manufacturing
A159: Aircraft manufacturing | B159: Aircraft engine and engine parts manufacturing
A160: Aircraft engine and engine parts manufacturing | B160: Other aircraft parts and auxiliary equipment manufacturing
A161: Other aircraft parts and auxiliary equipment manufacturing | B161: Guided missile and space vehicle manufacturing
A162: Guided missile and space vehicle manufacturing | B162: Propulsion units and parts for space vehicles and guided missiles
A163: Propulsion units and parts for space vehicles and guided missiles | B163: Railroad rolling stock manufacturing
A164: Railroad rolling stock manufacturing | B164: Ship building and repairing
A165: Ship building and repairing | B165: Boat building
A166: Boat building | B166: Motorcycle, bicycle, and parts manufacturing
A167: Motorcycle, bicycle, and parts manufacturing | B167: Military armored vehicle, tank, and tank component manufacturing
A168: Military armored vehicle, tank, and tank component manufacturing | B168: All other transportation equipment manufacturing
A169: All other transportation equipment manufacturing | B169: Wood kitchen cabinet and countertop manufacturing
A170: Wood kitchen cabinet and countertop manufacturing | B170: Upholstered household furniture manufacturing
A171: Upholstered household furniture manufacturing | B171: Nonupholstered wood household furniture manufacturing
A172: Nonupholstered wood household furniture manufacturing | B172: Institutional furniture manufacturing
A173: Institutional furniture manufacturing | B173: Other household nonupholstered furniture
A174: Other household nonupholstered furniture | B174: Showcase, partition, shelving, and locker manufacturing
A175: Showcase, partition, shelving, and locker manufacturing | B175: Office furniture and custom architectural woodwork and millwork manufacturing
A176: Office furniture and custom architectural woodwork and millwork manufacturing | B176: Other furniture related product manufacturing
A177: Other furniture related product manufacturing | B177: Surgical and medical instrument manufacturing
A178: Surgical and medical instrument manufacturing | B178: Surgical appliance and supplies manufacturing
A179: Surgical appliance and supplies manufacturing | B179: Dental equipment and supplies manufacturing
A180: Dental equipment and supplies manufacturing | B180: Ophthalmic goods manufacturing
A181: Ophthalmic goods manufacturing | B181: Dental laboratories
A182: Dental laboratories | B182: Jewelry and silverware manufacturing
A183: Jewelry and silverware manufacturing | B183: Sporting and athletic goods manufacturing
A184: Sporting and athletic goods manufacturing | B184: Doll, toy, and game manufacturing
A185: Doll, toy, and game manufacturing | B185: Office supplies (except paper) manufacturing
A186: Office supplies (except paper) manufacturing | B186: Sign manufacturing
A187: Sign manufacturing | B187: All other miscellaneous manufacturing
A188: All other miscellaneous manufacturing | B188: Dog and cat food manufacturing
A189: Dog and cat food manufacturing | B189: Other animal food manufacturing
A190: Other animal food manufacturing | B190: Flour milling and malt manufacturing
A191: Flour milling and malt manufacturing | B191: Wet corn milling
A192: Wet corn milling | B192: Fats and oils refining and blending
A193: Fats and oils refining and blending | B193: Soybean and other oilseed processing
A194: Soybean and other oilseed processing | B194: Breakfast cereal manufacturing
A195: Breakfast cereal manufacturing | B195: Sugar and confectionery product manufacturing
A196: Sugar and confectionery product manufacturing | B196: Frozen food manufacturing
A197: Frozen food manufacturing | B197: Fruit and vegetable canning, pickling, and drying
A198: Fruit and vegetable canning, pickling, and drying | B198: Cheese manufacturing
A199: Cheese manufacturing | B199: Dry, condensed, and evaporated dairy product manufacturing
A200: Dry, condensed, and evaporated dairy product manufacturing | B200: Fluid milk and butter manufacturing
... 202 more rows

Sheet Calculation (hidden)

Sheet NegExtCalc (hidden)

Sheet CauseEffectCalculation (hidden)

Sheet Neg Ext Data (hidden)
C1: impact potential/acid/kg so2-eq | D1: impact potential/eutr/kg n eq | E1: impact potential/etox/ctue | F1: impact potential/gcc/kg co2 eq | G1: impact potential/hnc/ctuh | H1: impact potential/hrsp/kg pm2.5 eq | I1: impact potential/hc/ctuh | J1: impact potential/ozon/kg cfc11-eq | K1: impact potential/smog/kg o3 eq | L1: resource use/enrg/mj | M1: resource use/land/m2*a | N1: resource use/watr/m3 | O1: 2017 Output | Q1: 402 Industries | R1: impact potential/acid/kg so2-eq | S1: impact potential/eutr/kg n eq | T1: impact potential/etox/ctue | U1: impact potential/gcc/kg co2 eq | V1: impact potential/hnc/ctuh | W1: impact potential/hrsp/kg pm2.5 eq | X1: impact potential/hc/ctuh | Y1: impact potential/ozon/kg cfc11-eq | Z1: impact potential/smog/kg o3 eq | AA1: resource use/enrg/mj | AB1: resource use/land/m2*a | AC1: resource use/watr/m3 | AD1: 402 Industries | AF1: Output | AG1: impact potential/acid/kg so2-eq | AH1: impact potential/eutr/kg n eq | AI1: impact potential/etox/ctue | AJ1: impact potential/gcc/kg co2 eq | AK1: impact potential/hnc/ctuh | AL1: impact potential/hrsp/kg pm2.5 eq | AM1: impact potential/hc/ctuh | AN1: impact potential/ozon/kg cfc11-eq | AO1: impact potential/smog/kg o3 eq | AP1: resource use/enrg/mj | AQ1: resource use/land/m2*a | AR1: resource use/watr/m3 | AT1: 71 Industries | AU1: impact potential/acid/kg so2-eq | AV1: impact potential/eutr/kg n eq | AW1: impact potential/etox/ctue | AX1: impact potential/gcc/kg co2 eq | AY1: impact potential/hnc/ctuh | AZ1: impact potential/hrsp/kg pm2.5 eq | BA1: impact potential/hc/ctuh | BB1: impact potential/ozon/kg cfc11-eq | BC1: impact potential/smog/kg o3 eq | BD1: resource use/enrg/mj | BE1: resource use/land/m2*a | BF1: resource use/watr/m3 | BH1: 15 Industries | BI1: impact potential/acid/kg so2-eq | BJ1: impact potential/eutr/kg n eq | BK1: impact potential/etox/ctue | BL1: impact potential/gcc/kg co2 eq | BM1: impact potential/hnc/ctuh | BN1: impact potential/hrsp/kg pm2.5 eq | BO1: impact potential/hc/ctuh | BP1: impact potential/ozon/kg cfc11-eq | BQ1: impact potential/smog/kg o3 eq | BR1: resource use/enrg/mj | BS1: resource use/land/m2*a | BT1: resource use/watr/m3
A2: 1111A0 | B2: 1111A0 | C2: 0.003037769658 | D2: 0.01112208034 | E2: 31.60883647 | F2: 0.5588163215 | G2: 2.309489545e-09 | H2: 0.007638306324 | I2: 9.245300766e-11 | J2: 0 | K2: 0.02238909505 | L2: 0 | M2: 2.239058936 | N2: 0.002513352447 | O2: 37922 | Q2: 1111A0 | R2: 0.003037769658 | S2: 0.01112208034 | T2: 31.60883647 | U2: 0.5588163215 | V2: 2.309489545e-09 | W2: 0.007638306324 | X2: 9.245300766e-11 | Y2: 0 | Z2: 0.02238909505 | AA2: 0 | AB2: 2.239058936 | AC2: 0.002513352447 | AD2: 1111A0 | AE2: Oilseed farming | AF2: 37922 | AG2: =R2*$AF2 -> 115.198301 | AH2: =S2*$AF2 -> 421.7715305 | AI2: =T2*$AF2 -> 1198670.297 | AJ2: =U2*$AF2 -> 21191.43254 | AK2: =V2*$AF2 -> 8.758046253e-05 | AL2: =W2*$AF2 -> 289.6598524 | AM2: =X2*$AF2 -> 3.506002956e-06 | AN2: =Y2*$AF2 -> 0 | AO2: =Z2*$AF2 -> 849.0392624 | AP2: =AA2*$AF2 -> 0 | AQ2: =AB2*$AF2 -> 84909.59297 | AR2: =AC2*$AF2 -> 95.31135149 | AT2: 111CA | AU2: =SUM(AG2:AG11)/SUM($AF2:$AF11) -> 0.01530691698 | AV2: =SUM(AH2:AH11)/SUM($AF2:$AF11) -> 0.007388415042 | AW2: =SUM(AI2:AI11)/SUM($AF2:$AF11) -> 9.346906295 | AX2: 1.518081989 | AY2: 1.243804314e-09 | AZ2: 0.003830600197 | BA2: 2.522470154e-10 | BB2: 4.465409535e-07 | BC2: 0.02921224891 | BD2: 0.0005268206066 | BE2: 12.56568352 | BF2: 0.4229745183 | BG2: 11 | BH2: 11 | BI2: =SUM(AG2:AG14)/SUM($AF$2:$AF$14) -> 0.01342356141 | BJ2: =SUM(AH2:AH14)/SUM($AF$2:$AF$14) -> 0.006477894147 | BK2: 8.211179647 | BL2: 1.33784738 | BM2: 1.119918789e-09 | BN2: 0.003384861098 | BO2: 2.318454189e-10 | BP2: 4.298401475e-07 | BQ2: 0.02668661543 | BR2: 0.0006919266129 | BS2: 15.57830716 | BT2: 0.3758973394
A3: 1111B0 | B3: 1111B0 | C3: 0.02006853568 | D3: 0.03245800719 | E3: 12.61506802 | F3: 1.978520319 | G3: 1.19682482e-09 | H3: 0.009975565762 | I3: 4.898875015e-10 | J3: 2.108436874e-09 | K3: 0.0554041903 | L3: 0 | M3: 10.75139414 | N3: 0.4607680359 | O3: 57259 | Q3: 1111B0 | R3: 0.02006853568 | S3: 0.03245800719 | T3: 12.61506802 | U3: 1.978520319 | V3: 1.19682482e-09 | W3: 0.009975565762 | X3: 4.898875015e-10 | Y3: 2.108436874e-09 | Z3: 0.0554041903 | AA3: 0 | AB3: 10.75139414 | AC3: 0.4607680359 | AD3: 1111B0 | AE3: Grain farming | AF3: 57259 | AG3: 1149.104284 | AH3: 1858.513034 | AI3: 722326.18 | AJ3: 113288.095 | AK3: 6.852899238e-05 | AL3: 571.19092 | AM3: 2.805046845e-05 | AN3: 0.000120726987 | AO3: 3172.388532 | AP3: 0 | AQ3: 615614.077 | AR3: 26383.11697 | AT3: 113FF | AU3: =SUM(AG12:AG14)/SUM($AF$12:$AF$14) -> 0.001201839063 | AV3: =SUM(AH12:AH14)/SUM($AF$12:$AF$14) -> 0.0005692204292 | AW3: 0.8410707002 | AX3: 0.168244899 | AY3: 3.159843027e-10 | AZ3: 0.0004923114418 | BA3: 9.945265627e-11 | BB3: 3.214630488e-07 | BC3: 0.01029693755 | BD3: 0.001763354546 | BE3: 35.12822658 | BF3: 0.07039782698 | BH3: 21 | BI3: =SUM(AG15:AG22)/SUM($AF$15:$AF$22) -> 0.001322227477 | BJ3: =SUM(AH15:AH22)/SUM($AF$15:$AF$22) -> 0.0002244080213 | BK3: 0.001080504835 | BL3: 0.4318711155 | BM3: 2.094645574e-09 | BN3: 0.0003268333985 | BO3: 3.296441684e-10 | BP3: 1.014421184e-08 | BQ3: 0.0547660528 | BR3: 84.76689134 | BS3: 0.3254171366 | BT3: 0.00754017111
A4: 111200 | B4: 111200 | C4: 0.007174222089 | D4: 0.006304500564 | E4: 28.396543 | F4: 0.4571676199 | G4: 5.663017728e-09 | H4: 0.001689258132 | I4: 1.221808963e-10 | J4: 7.327267917e-06 | K4: 0.02145849084 | L4: 0.003225479256 | M4: 1.835182202 | N4: 0.5913347868 | O4: 18582 | Q4: 111200 | R4: 0.007174222089 | S4: 0.006304500564 | T4: 28.396543 | U4: 0.4571676199 | V4: 5.663017728e-09 | W4: 0.001689258132 | X4: 1.221808963e-10 | Y4: 7.327267917e-06 | Z4: 0.02145849084 | AA4: 0.003225479256 | AB4: 1.835182202 | AC4: 0.5913347868 | AD4: 111200 | AE4: Vegetable and melon farming | AF4: 18582 | AG4: 133.3113949 | AH4: 117.1502295 | AI4: 527664.5621 | AJ4: 8495.088712 | AK4: 0.0001052301954 | AL4: 31.38979461 | AM4: 2.270365416e-06 | AN4: 0.1361552924 | AO4: 398.7416768 | AP4: 59.93585553 | AQ4: 34101.35568 | AR4: 10988.18301 | AT4: 211 | AU4: =AG15/$AF$15 -> 0.002182246416 | AV4: =AH15/$AF$15 -> 0.0003617964342 | AW4: 0.001719625068 | AX4: =AJ15/$AF$15 -> 0.4432375664 | AY4: 3.736379985e-09 | AZ4: 0.0001035298054 | BA4: 6.010560364e-10 | BB4: 1.840569697e-08 | BC4: 0.09768305914 | BD4: 116.6669071 | BE4: 0.6212425476 | BF4: 0.003299332848 | BG4: 21 | BH4: 22 | BI4: =SUM(AG23:AG25)/SUM($AF$23:$AF$25) -> 0.01305465423 | BJ4: =SUM(AH23:AH25)/SUM($AF$23:$AF$25) -> 0.007863899365 | BK4: 0.009371712303 | BL4: 4.787645123 | BM4: 5.437159893e-10 | BN4: 0.001122039384 | BO4: 7.947904778e-11 | BP4: 8.842475198e-08 | BQ4: 0.1109097355 | BR4: 33.18271821 | BS4: 0.00577717337 | BT4: 0.3404639066
A5: 111300 | B5: 111300 | C5: 0.003655648947 | D5: 0.0002754164703 | E5: 20.71881532 | F5: 0.2860052933 | G5: 1.198322353e-09 | H5: 0.001168209014 | I5: 1.635452294e-10 | J5: 1.289248467e-06 | K5: 0.01826279419 | L5: 0 | M5: 2.056669596 | N5: 0.4561717454 | O5: 29731 | Q5: 111300 | R5: 0.003655648947 | S5: 0.0002754164703 | T5: 20.71881532 | U5: 0.2860052933 | V5: 1.198322353e-09 | W5: 0.001168209014 | X5: 1.635452294e-10 | Y5: 1.289248467e-06 | Z5: 0.01826279419 | AA5: 0 | AB5: 2.056669596 | AC5: 0.4561717454 | AD5: 111300 | AE5: Fruit and tree nut farming | AF5: 29731 | AG5: 108.6860988 | AH5: 8.188407078 | AI5: 615991.0984 | AJ5: 8503.223374 | AK5: 3.562732187e-05 | AL5: 34.73202221 | AM5: 4.862363214e-06 | AN5: 0.03833064618 | AO5: 542.971134 | AP5: 0 | AQ5: 61146.84376 | AR5: 13562.44216 | AT5: 212 | AU5: =SUM(AG16:AG20)/SUM($AF$16:$AF$20) -> 0.0008851729082 | AV5: =SUM(AH16:AH20)/SUM($AF$16:$AF$20) -> 0.0001795605227 | AW5: =SUM(AI16:AI20)/SUM($AF$16:$AF$20) -> 0.0007149143112 | AX5: =SUM(AJ16:AJ20)/SUM($AF$16:$AF$20) -> 0.8632174316 | AY5: 7.437969723e-11 | AZ5: 0.001332588188 | BA5: 3.321592682e-11 | BB5: 3.504043761e-09 | BC5: 0.0196749286 | BD5: 122.83626 | BE5: 0.03589448641 | BF5: 0.02413357731 | BH5: 23 | BI5: =SUM(AG26:AG37)/SUM($AF$26:$AF$37) -> 0.000361324021 | BJ5: =SUM(AH26:AH37)/SUM($AF$26:$AF$37) -> 5.148812447e-05 | BK5: 0.0001785737063 | BL5: 0.1428308298 | BM5: 1.163683375e-10 | BN5: 0.0004712706974 | BO5: 7.792470443e-11 | BP5: 8.541053579e-09 | BQ5: 0.01309793897 | BR5: 0 | BS5: 0.0002869081964 | BT5: 0.0003728829753
A6: 111400 | B6: 111400 | C6: 0.0009609551771 | D6: 0.0001186903851 | E6: 0.000683275684 | F6: 0.7163612439 | G6: 6.076402145e-10 | H6: 0.0001394221363 | I6: 2.535348137e-10 | J6: 7.886852851e-10 | K6: 0.03813613388 | L6: 0 | M6: 0.8609323823 | N6: 0.04680084425 | O6: 19868 | Q6: 111400 | R6: 0.0009609551771 | S6: 0.0001186903851 | T6: 0.000683275684 | U6: 0.7163612439 | V6: 6.076402145e-10 | W6: 0.0001394221363 | X6: 2.535348137e-10 | Y6: 7.886852851e-10 | Z6: 0.03813613388 | AA6: 0 | AB6: 0.8609323823 | AC6: 0.04680084425 | AD6: 111400 | AE6: Greenhouse, nursery, and floriculture production | AF6: 19868 | AG6: 19.09225746 | AH6: 2.358140571 | AI6: 13.57532129 | AJ6: 14232.66519 | AK6: 1.207259578e-05 | AL6: 2.770039005 | AM6: 5.037229679e-06 | AN6: 1.566959924e-05 | AO6: 757.6887079 | AP6: 0 | AQ6: 17105.00457 | AR6: 929.8391736 | AT6: 213 | AU6: =SUM(AG21:AG22)/SUM($AF$21:$AF$22) -> 8.798002687e-05 | AV6: =SUM(AH21:AH22)/SUM($AF$21:$AF$22) -> 9.399717105e-06 | AW6: 0.0001924162244 | AX6: 0.1033377063 | AY6: 5.856084006e-10 | AZ6: 9.986300476e-06 | BA6: 5.334027586e-11 | BB6: 3.187875479e-11 | BC6: 0.002660325004 | BD6: 0.2151628049 | BE6: 0.0002822774544 | BF6: 0.003313647441 | BH6: 31G | BI6: =SUM(AG38:AG269)/SUM($AF$38:$AF$269) -> 0.0004058558518 | BJ6: =SUM(AH38:AH269)/SUM($AF$38:$AF$269) -> 0.0002018012235 | BK6: 0.001155985102 | BL6: 0.126352688 | BM6: 1.857831129e-10 | BN6: 7.603983155e-05 | BO6: 1.82236309e-11 | BP6: 2.308727885e-07 | BQ6: 0.006223012352 | BR6: 1.06098368 | BS6: 0.00139197266 | BT6: 0.004535089555
A7: 111900 | B7: 111900 | C7: 0.005891038071 | D7: 0.005383607919 | E7: 23.78666688 | F7: 1.083857337 | G7: 5.575960235e-09 | H7: 0.01608405424 | I7: 1.192185187e-09 | J7: 2.408182839e-09 | K7: 0.04554218753 | L7: 0.005868687363 | M7: 15.96727029 | N7: 3.553047525 | O7: 24875 | Q7: 111900 | R7: 0.005891038071 | S7: 0.005383607919 | T7: 23.78666688 | U7: 1.083857337 | V7: 5.575960235e-09 | W7: 0.01608405424 | X7: 1.192185187e-09 | Y7: 2.408182839e-09 | Z7: 0.04554218753 | AA7: 0.005868687363 | AB7: 15.96727029 | AC7: 3.553047525 | AD7: 111900 | AE7: Other crop farming | AF7: 24875 | AG7: 146.539572 | AH7: 133.917247 | AI7: 591693.3387 | AJ7: 26960.95125 | AK7: 0.0001387020108 | AL7: 400.0908493 | AM7: 2.965560653e-05 | AN7: 5.990354813e-05 | AO7: 1132.861915 | AP7: 145.9835982 | AQ7: 397185.8485 | AR7: 88382.05719 | AT7: 22 | AU7: =SUM(AG23:AG25)/SUM($AF$23:$AF$25) -> 0.01305465423 | AV7: =SUM(AH23:AH25)/SUM($AF$23:$AF$25) -> 0.007863899365 | AW7: 0.009371712303 | AX7: 4.787645123 | AY7: 5.437159893e-10 | AZ7: 0.001122039384 | BA7: 7.947904778e-11 | BB7: 8.842475198e-08 | BC7: 0.1109097355 | BD7: =SUM(AP23:AP25)/SUM($AF$23:$AF$25) -> 33.18271821 | BE7: 0.00577717337 | BF7: 0.3404639066 | BG7: 22 | BH7: 42 | BI7: =SUM(AG270:AG280)/SUM($AF$270:$AF$280) -> 4.147645873e-06 | BJ7: =SUM(AH270:AH280)/SUM($AF$270:$AF$280) -> 1.460881906e-06 | BK7: 2.289941288e-05 | BL7: 0.004018865473 | BM7: 3.142962405e-12 | BN7: 2.198913908e-06 | BO7: 1.035271508e-12 | BP7: 9.882707622e-09 | BQ7: 0.0005263856427 | BR7: 0.0002345762464 | BS7: 0.0001895003043 | BT7: 0.0002989734924
A8: 112120 | B8: 112120 | C8: 0.01977371275 | D8: 0.001722716624 | E8: 0.000321092347 | F8: 2.530155429 | G8: 2.163036045e-10 | H8: 0.0007640087102 | I8: 1.425023591e-10 | J8: 0 | K8: 0.02607177576 | L8: 0 | M8: 3.859420405 | N8: 0.05870190411 | O8: 38106 | Q8: 112120 | R8: 0.01977371275 | S8: 0.001722716624 | T8: 0.000321092347 | U8: 2.530155429 | V8: 2.163036045e-10 | W8: 0.0007640087102 | X8: 1.425023591e-10 | Y8: 0 | Z8: 0.02607177576 | AA8: 0 | AB8: 3.859420405 | AC8: 0.05870190411 | AD8: 112120 | AE8: Dairy cattle and milk production | AF8: 38106 | AG8: 753.4970982 | AH8: 65.64583968 | AI8: 12.23554497 | AJ8: 96414.10278 | AK8: 8.242465152e-06 | AL8: 29.11331591 | AM8: 5.430194896e-06 | AN8: 0 | AO8: 993.4910869 | AP8: 0 | AQ8: 147067.0739 | AR8: 2236.894758 | AT8: 23 | AU8: =SUM(AG26:AG37)/SUM($AF$26:$AF$37) -> 0.000361324021 | AV8: =SUM(AH26:AH37)/SUM($AF$26:$AF$37) -> 5.148812447e-05 | AW8: 0.0001785737063 | AX8: 0.1428308298 | AY8: 1.163683375e-10 | AZ8: 0.0004712706974 | BA8: 7.792470443e-11 | BB8: 8.541053579e-09 | BC8: 0.01309793897 | BD8: =SUM(AP26:AP37)/SUM($AF$26:$AF$37) -> 0 | BE8: 0.0002869081964 | BF8: 0.0003728829753 | BG8: 23 | BH8: 44RT | BI8: =SUM(AG281:AG289)/SUM($AF$281:$AF$289) -> 1.313296439e-06 | BJ8: =SUM(AH281:AH289)/SUM($AF$281:$AF$289) -> 1.61866113e-07 | BK8: 1.469690132e-06 | BL8: 0.005320191175 | BM8: 3.33068314e-12 | BN8: 1.840376204e-07 | BO8: 4.622959288e-13 | BP8: 1.659265692e-08 | BQ8: 5.785111931e-05 | BR8: 0 | BS8: 0.001997173871 | BT8: 0.0003994791755
A9: 1121A0 | B9: 1121A0 | C9: 0.01659633266 | D9: 0.001592481 | E9: 0.0004118754542 | F9: 2.911778293 | G9: 2.774793476e-10 | H9: 0.0007190106046 | I9: 1.827985414e-10 | J9: 0 | K9: 0.03294626581 | L9: 0 | M9: 35.80750358 | N9: 0.08377318914 | O9: 87445 | Q9: 1121A0 | R9: 0.01659633266 | S9: 0.001592481 | T9: 0.0004118754542 | U9: 2.911778293 | V9: 2.774793476e-10 | W9: 0.0007190106046 | X9: 1.827985414e-10 | Y9: 0 | Z9: 0.03294626581 | AA9: 0 | AB9: 35.80750358 | AC9: 0.08377318914 | AD9: 1121A0 | AE9: Beef cattle ranching and farming, including feedlots and dual-purpose ranching and farming | AF9: 87445 | AG9: 1451.26631 | AH9: 139.254501 | AI9: 36.01644909 | AJ9: 254620.4529 | AK9: 2.426418155e-05 | AL9: 62.87388232 | AM9: 1.598481845e-05 | AN9: 0 | AO9: 2880.986213 | AP9: 0 | AQ9: 3131187.151 | AR9: 7325.546524 | AT9: 321 | AU9: =SUM(AG38:AG41)/SUM($AF$38:$AF$41) -> 0.0002895547809 | AV9: =SUM(AH38:AH41)/SUM($AF$38:$AF$41) -> 9.502861115e-05 | AW9: 0.003858172362 | AX9: 0.05888085064 | AY9: 2.583120676e-09 | AZ9: 0.000275492445 | BA9: 2.018801117e-10 | BB9: 8.747925674e-08 | BC9: 0.01098821844 | BD9: =SUM(AP38:AP41)/SUM($AF$38:$AF$41) -> 1.846061923 | BE9: 0.004228523896 | BF9: 0.003225181709 | BG9: 31G | BH9: 48TW | BI9: =SUM(AG290:AG298)/SUM($AF$290:$AF$298) -> 0.009657958298 | BJ9: =SUM(AH290:AH298)/SUM($AF$290:$AF$298) -> 0.0009094665131 | BK9: 0.002241313567 | BL9: 0.6566281614 | BM9: 3.601555945e-09 | BN9: 0.0007433296241 | BO9: 6.432276518e-10 | BP9: 1.641355007e-08 | BQ9: 0.2580554533 | BR9: 0.0006299753748 | BS9: 0.03987938386 | BT9: 0.001962052208
A10: 112300 | B10: 112300 | C10: 0.02410370669 | D10: 0.001557724093 | E10: 9.75206017e-05 | F10: 0.3083093621 | G10: 7.232867601e-11 | H10: 0.0008748523203 | I10: 4.198755809e-11 | J10: 8.669448735e-14 | K10: 0.007409349233 | L10: 0 | M10: 0.6593026415 | N10: 0.008426395162 | O10: 44165 | Q10: 112300 | R10: 0.02410370669 | S10: 0.001557724093 | T10: 9.75206017e-05 | U10: 0.3083093621 | V10: 7.232867601e-11 | W10: 0.0008748523203 | X10: 4.198755809e-11 | Y10: 8.669448735e-14 | Z10: 0.007409349233 | AA10: 0 | AB10: 0.6593026415 | AC10: 0.008426395162 | AD10: 112300 | AE10: Poultry and egg production | AF10: 44165 | AG10: 1064.540206 | AH10: 68.79688456 | AI10: 4.306997374 | AJ10: 13616.48298 | AK10: 3.194395976e-06 | AL10: 38.63785273 | AM10: 1.854380503e-06 | AN10: 3.828862034e-09 | AO10: 327.2339089 | AP10: 0 | AQ10: 29118.10116 | AR10: 372.1517423 | AT10: 327 | AU10: =SUM(AG42:AG53)/SUM($AF$42:$AF$53) -> 0.00282620163 | AV10: =SUM(AH42:AH53)/SUM($AF$42:$AF$53) -> 0.0002903123205 | AW10: 0.0005895230545 | AX10: 0.824073181 | AY10: 1.894632554e-11 | AZ10: 0.0004895578792 | BA10: 5.760207467e-11 | BB10: 4.040024907e-08 | BC10: 0.05628589834 | BD10: 1.339939644e-05 | BE10: 0.002118220436 | BF10: 0.002870380956 | BH10: 51 | BI10: =SUM(AG299:AG313)/SUM($AF$299:$AF$313) -> 1.915446688e-06 | BJ10: =SUM(AH299:AH313)/SUM($AF$299:$AF$313) -> 3.6212428e-07 | BK10: 2.264383143e-06 | BL10: 0.00316525015 | BM10: 7.265447446e-13 | BN10: 2.189566031e-07 | BO10: 3.569396656e-13 | BP10: 1.484294643e-09 | BQ10: 7.474357455e-05 | BR10: 0.0009845215194 | BS10: 0.0004591619441 | BT10: 0.0002927776311
A11: 112A00 | B11: 112A00 | C11: 0.03149132989 | D11: 0.002246841379 | E11: 0.0001403147184 | F11: 1.099256815 | G11: 9.390703858e-11 | H11: 0.001144325981 | I11: 6.092847878e-11 | J11: 3.399986173e-12 | K11: 0.01119647428 | L11: 5.039545885e-06 | M11: 11.97865892 | N11: 0.4569563716 | O11: 33237 | Q11: 112A00 | R11: 0.03149132989 | S11: 0.002246841379 | T11: 0.0001403147184 | U11: 1.099256815 | V11: 9.390703858e-11 | W11: 0.001144325981 | X11: 6.092847878e-11 | Y11: 3.399986173e-12 | Z11: 0.01119647428 | AA11: 5.039545885e-06 | AB11: 11.97865892 | AC11: 0.4569563716 | AD11: 112A00 | AE11: Animal production, except cattle and poultry and eggs | AF11: 33237 | AG11: 1046.677332 | AH11: 74.67826692 | AI11: 4.663640295 | AJ11: 36535.99877 | AK11: 3.121188241e-06 | AL11: 38.03396262 | AM11: 2.025079849e-06 | AN11: 1.130053404e-07 | AO11: 372.1372156 | AP11: 0.1674993866 | AQ11: 398134.6864 | AR11: 15187.85892 | AT11: 331 | AU11: =SUM(AG54:AG63)/SUM($AF$54:$AF$63) -> 0.000962609251 | AV11: =SUM(AH54:AH63)/SUM($AF$54:$AF$63) -> 0.001428872215 | AW11: 0.0008167166711 | AX11: 0.4237396909 | AY11: 2.902281454e-11 | AZ11: 0.0002467296337 | BA11: 4.371574303e-12 | BB11: 8.891348219e-09 | BC11: 0.007356263544 | BD11: 8.499117071e-05 | BE11: 0.001001195723 | BF11: 0.01390095428 | BH11: FIRE | BI11: =SUM(AG314:AG328)/SUM($AF$314:$AF$328) -> 1.134497116e-06 | BJ11: =SUM(AH314:AH328)/SUM($AF$314:$AF$328) -> 6.759008889e-06 | BK11: 9.130108161e-07 | BL11: 0.01366752557 | BM11: 7.002595511e-13 | BN11: 1.417675749e-07 | BO11: 3.562688133e-13 | BP11: 3.702840951e-12 | BQ11: 4.510895791e-05 | BR11: 0.0007526893261 | BS11: 0.0002225902114 | BT11: 0.0004836953098
A12: 113000 | B12: 113000 | C12: 0.0008090535354 | D12: 0.0002550795558 | E12: 0.8110226996 | F12: 0.1317157207 | G12: 4.70822103e-10 | H12: 0.000655572677 | I12: 2.100095044e-10 | J12: 3.351518469e-10 | K12: 0.0192626789 | L12: 0.0001999774842 | M12: 97.51599466 | N12: 0.1234958614 | O12: 21325 | Q12: 113000 | R12: 0.0008090535354 | S12: 0.0002550795558 | T12: 0.8110226996 | U12: 0.1317157207 | V12: 4.70822103e-10 | W12: 0.000655572677 | X12: 2.100095044e-10 | Y12: 3.351518469e-10 | Z12: 0.0192626789 | AA12: 0.0001999774842 | AB12: 97.51599466 | AC12: 0.1234958614 | AD12: 113000 | AE12: Forestry and logging | AF12: 21325 | AG12: 17.25306664 | AH12: 5.439571528 | AI12: 17295.05907 | AJ12: 2808.837745 | AK12: 1.004028135e-05 | AL12: 13.98008734 | AM12: 4.478452682e-06 | AN12: 7.147113134e-06 | AO12: 410.7766276 | AP12: 4.264519851 | AQ12: 2079528.586 | AR12: 2633.549244 | AT12: 332 | AU12: =SUM(AG64:AG83)/SUM($AF$64:$AF$83) -> 1.868462072e-05 | AV12: =SUM(AH64:AH83)/SUM($AF$64:$AF$83) -> 5.091743725e-05 | AW12: 4.576803954e-05 | AX12: 0.0284081124 | AY12: 1.308682332e-11 | AZ12: 1.133487535e-05 | BA12: 4.826952617e-12 | BB12: 3.11238561e-08 | BC12: 0.001400205952 | BD12: 0.004350670063 | BE12: 0.001703560817 | BF12: 0.0009876662316 | BH12: PROF | BI12: =SUM(AG329:AG352)/SUM($AF$329:$AF$352) -> 1.943350068e-05 | BJ12: =SUM(AH329:AH352)/SUM($AF$329:$AF$352) -> 2.500243502e-06 | BK12: 0.0002486904157 | BL12: 0.01874789752 | BM12: 1.757917506e-11 | BN12: 1.973250683e-05 | BO12: 1.874294476e-12 | BP12: 1.806398233e-09 | BQ12: 0.0004732437196 | BR12: 0.000428165382 | BS12: 0.0006477200075 | BT12: 0.0002830313305
A13: 114000 | B13: 114000 | C13: 1.900706659e-06 | D13: 1.276059929e-05 | E13: 0.003326726462 | F13: 0.1938593181 | G13: 1.364800075e-12 | H13: 2.398020562e-06 | I13: 4.517641017e-13 | J13: 1.076259843e-11 | K13: 4.290209365e-05 | L13: 3.469488801e-05 | M13: 0.002501180847 | N13: 0.0006865419956 | O13: 9239 | Q13: 114000 | R13: 1.900706659e-06 | S13: 1.276059929e-05 | T13: 0.003326726462 | U13: 0.1938593181 | V13: 1.364800075e-12 | W13: 2.398020562e-06 | X13: 4.517641017e-13 | Y13: 1.076259843e-11 | Z13: 4.290209365e-05 | AA13: 3.469488801e-05 | AB13: 0.002501180847 | AC13: 0.0006865419956 | AD13: 114000 | AE13: Fishing, hunting and trapping | AF13: 9239 | AG13: 0.01756062883 | AH13: 0.1178951768 | AI13: 30.73562578 | AJ13: 1791.06624 | AK13: 1.260938789e-08 | AL13: 0.02215531197 | AM13: 4.173848536e-09 | AN13: 9.943564686e-08 | AO13: 0.3963724432 | AP13: 0.3205460703 | AQ13: 23.10840985 | AR13: 6.342961498 | AT13: 333 | AU13: =SUM(AG84:AG111)/SUM($AF$84:$AF$111) -> 1.361151393e-05 | AV13: =SUM(AH84:AH111)/SUM($AF$84:$AF$111) -> 2.63028407e-06 | AW13: 3.835848711e-05 | AX13: 0.0249733855 | AY13: 1.116836751e-11 | AZ13: 3.521952895e-06 | BA13: 1.676242815e-12 | BB13: 1.709221221e-08 | BC13: 0.0005322984466 | BD13: 0.000206909647 | BE13: 0.001279633857 | BF13: 0.0004962439943 | BH13: 6 | BI13: =SUM(AG353:AG368)/SUM($AF$353:$AF$368) -> 7.077841096e-06 | BJ13: =SUM(AH353:AH368)/SUM($AF$353:$AF$368) -> 4.394593194e-05 | BK13: 5.808997273e-06 | BL13: 0.01971839913 | BM13: 2.111181215e-12 | BN13: 8.346032056e-07 | BO13: 1.003100029e-12 | BP13: 6.864538355e-11 | BQ13: 0.0001589293435 | BR13: 0.002743762867 | BS13: 0.004373853084 | BT13: 0.0007615459274
A14: 115000 | B14: 115000 | C14: 0.001856741205 | D14: 0.0009676384417 | E14: 1.123077907 | F14: 0.1864942128 | G14: 3.02687765e-10 | H14: 0.0005274673829 | I14: 5.089772174e-11 | J14: 6.518335339e-07 | K14: 0.00705118075 | L14: 0.003422621737 | M14: 1.280303527 | N14: 0.0539682886 | O14: 29718 | Q14: 115000 | R14: 0.001856741205 | S14: 0.0009676384417 | T14: 1.123077907 | U14: 0.1864942128 | V14: 3.02687765e-10 | W14: 0.0005274673829 | X14: 5.089772174e-11 | Y14: 6.518335339e-07 | Z14: 0.00705118075 | AA14: 0.003422621737 | AB14: 1.280303527 | AC14: 0.0539682886 | AD14: 115000 | AE14: Support activities for agriculture and forestry | AF14: 29718 | AG14: 55.17863513 | AH14: 28.75627921 | AI14: 33375.62925 | AJ14: 5542.235016 | AK14: 8.995275e-06 | AL14: 15.67527568 | AM14: 1.512578495e-06 | AN14: 0.01937118896 | AO14: 209.5469895 | AP14: 101.7134728 | AQ14: 38048.06021 | AR14: 1603.829601 | AT14: 334 | AU14: =SUM(AG112:AG131)/SUM($AF$112:$AF$131) -> 1.051415706e-05 | AV14: =SUM(AH112:AH131)/SUM($AF$112:$AF$131) -> 7.688845235e-06 | AW14: 0.001195273075 | AX14: 0.01367718289 | AY14: 2.903539549e-12 | AZ14: 1.765246127e-06 | BA14: 7.51791925e-13 | BB14: 4.666928842e-08 | BC14: 0.000198625263 | BD14: 0.0002536317739 | BE14: 0.000724551226 | BF14: 0.0005909922561 | BH14: 7 | BI14: =SUM(AG369:AG380)/SUM($AF$369:$AF$380) -> 8.354911002e-05 | BJ14: =SUM(AH369:AH380)/SUM($AF$369:$AF$380) -> 8.18398211e-05 | BK14: 0.03522680154 | BL14: 0.02384685839 | BM14: 2.775058734e-10 | BN14: 8.671226859e-05 | BO14: 8.088931955e-11 | BP14: 1.99830513e-09 | BQ14: 0.004578910284 | BR14: 0.0002403547263 | BS14: 0.04142080212 | BT14: =SUM(AR369:AR380)/SUM($AF$369:$AF$380) -> 0.00770988829
A15: 211000 | B15: 211000 | C15: 0.002182246416 | D15: 0.0003617964342 | E15: 0.001719625068 | F15: 0.4432375664 | G15: 3.736379985e-09 | H15: 0.0001035298054 | I15: 6.010560364e-10 | J15: 1.840569697e-08 | K15: 0.09768305914 | L15: 116.6669071 | M15: 0.6212425476 | N15: 0.003299332848 | O15: 212664 | Q15: 211000 | R15: 0.002182246416 | S15: 0.0003617964342 | T15: 0.001719625068 | U15: 0.4432375664 | V15: 3.736379985e-09 | W15: 0.0001035298054 | X15: 6.010560364e-10 | Y15: 1.840569697e-08 | Z15: 0.09768305914 | AA15: 116.6669071 | AB15: 0.6212425476 | AC15: 0.003299332848 | AD15: 211000 | AE15: Oil and gas extraction | AF15: 212664 | AG15: 464.0852519 | AH15: 76.94107689 | AI15: 365.7023454 | AJ15: 94260.67382 | AK15: 0.0007945935131 | AL15: 22.01706255 | AM15: 0.0001278229809 | AN15: 0.00391422914 | AO15: 20773.67009 | AP15: 24810851.13 | AQ15: 132115.9251 | AR15: 701.6493208 | AT15: 335 | AU15: =SUM(AG132:AG145)/SUM($AF$132:$AF$145) -> 7.757391499e-05 | AV15: =SUM(AH132:AH145)/SUM($AF$132:$AF$145) -> 9.388948182e-06 | AW15: 0.0009079990755 | AX15: 0.02660833294 | AY15: 1.526113777e-11 | AZ15: 2.101629078e-05 | BA15: 2.540607247e-12 | BB15: 4.459132207e-08 | BC15: 0.001197524995 | BD15: 0.0001299780312 | BE15: 0.001082661259 | BF15: 0.0006616142458 | BH15: 81 | BI15: =SUM(AG381:AG392)/SUM($AF$381:$AF$392) -> 2.154805987e-06 | BJ15: =SUM(AH381:AH392)/SUM($AF$381:$AF$392) -> 1.905531758e-06 | BK15: 2.433442407e-05 | BL15: 0.008625242831 | BM15: 3.017980097e-11 | BN15: 5.899986357e-07 | BO15: 7.815481949e-12 | BP15: 1.301950996e-08 | BQ15: 0.0004998110846 | BR15: 8.108632246e-08 | BS15: 0.001598717054 | BT15: 0.0003657688391
A16: 212100 | B16: 212100 | C16: 0.0003735030302 | D16: 4.513488906e-05 | E16: 9.396857175e-06 | F16: 1.449618429 | G16: 5.596734543e-12 | H16: 0.001240783687 | I16: 4.164719791e-12 | J16: 1.524453871e-12 | K16: 0.01296657061 | L16: 372.4405631 | M16: 0.06457963688 | N16: 0.0002936065368 | O16: 27801 | Q16: 212100 | R16: 0.0003735030302 | S16: 4.513488906e-05 | T16: 9.396857175e-06 | U16: 1.449618429 | V16: 5.596734543e-12 | W16: 0.001240783687 | X16: 4.164719791e-12 | Y16: 1.524453871e-12 | Z16: 0.01296657061 | AA16: 372.4405631 | AB16: 0.06457963688 | AC16: 0.0002936065368 | AD16: 212100 | AE16: Coal mining | AF16: 27801 | AG16: 10.38375774 | AH16: 1.254795051 | AI16: 0.2612420263 | AJ16: 40300.84195 | AK16: 1.55594817e-07 | AL16: 34.49502728 | AM16: 1.157833749e-07 | AN16: 4.238134205e-08 | AO16: 360.4836297 | AP16: 10354220.09 | AQ16: 1795.378485 | AR16: 8.16255533 | AT16: 3361MV | AU16: =SUM(AG146:AG159)/SUM($AF$146:$AF$159) -> 1.741227004e-05 | AV16: =SUM(AH146:AH159)/SUM($AF$146:$AF$159) -> 1.791488326e-06 | AW16: 2.679463383e-05 | AX16: 0.01706577088 | AY16: 7.972545942e-12 | AZ16: 5.4180705e-06 | BA16: 4.107913049e-12 | BB16: 4.08907467e-08 | BC16: 0.0009875319022 | BD16: 1.377319067e-05 | BE16: 0.0007784341634 | BF16: 0.001414341107 | BH16: G | BI16: =SUM(AG393:AG403)/SUM($AF$393:$AF$403) -> 0.006171515911 | BJ16: =SUM(AH393:AH403)/SUM($AF$393:$AF$403) -> 0.0005312206653 | BK16: 0.004475627077 | BL16: 2.24543846 | BM16: 2.101437871e-10 | BN16: 0.0005311668187 | BO16: 3.749215104e-11 | BP16: 4.009409581e-08 | BQ16: 0.0525329388 | BR16: 15.78772305 | BS16: 0.02858658851 | BT16: 0.1632918258
A17: 212230 | B17: 212230 | C17: 0.001424279265 | D17: 7.451691009e-05 | E17: 0.001509525579 | F17: 0.7444246828 | G17: 1.383173957e-11 | H17: 0.001238482924 | I17: 9.348842434e-12 | J17: 8.96836707e-10 | K17: 0.01737670396 | L17: 0.0002531722619 | M17: 0.001759713595 | N17: 0.0213942793 | O17: 11688 | Q17: 212230 | R17: 0.001424279265 | S17: 7.451691009e-05 | T17: 0.001509525579 | U17: 0.7444246828 | V17: 1.383173957e-11 | W17: 0.001238482924 | X17: 9.348842434e-12 | Y17: 8.96836707e-10 | Z17: 0.01737670396 | AA17: 0.0002531722619 | AB17: 0.001759713595 | AC17: 0.0213942793 | AD17: 212230 | AE17: Copper, nickel, lead, and zinc mining | AF17: 11688 | AG17: 16.64697604 | AH17: 0.8709536452 | AI17: 17.64333496 | AJ17: 8700.835692 | AK17: 1.616653722e-07 | AL17: 14.47538841 | AM17: 1.092692704e-07 | AN17: 1.048222743e-05 | AO17: 203.0989159 | AP17: 2.959077398 | AQ17: 20.5675325 | AR17: 250.0563365 | AT17: 3364OT | AU17: =SUM(AG160:AG170)/SUM($AF$160:$AF$170) -> 2.504214765e-05 | AV17: =SUM(AH160:AH170)/SUM($AF$160:$AF$170) -> 3.886878388e-06 | AW17: 1.391412119e-05 | AX17: 0.01152394289 | AY17: 8.880365919e-12 | AZ17: 6.456615642e-06 | BA17: 8.5908811e-12 | BB17: 3.08142609e-08 | BC17: 0.001179125589 | BD17: 4.55761991e-06 | BE17: 0.000962447486 | BF17: 0.000699413708
A18: 2122A0 | B18: 2122A0 | C18: 0.00150517503 | D18: 0.0002294137539 | E18: 0.002382596714 | F18: 0.4373556277 | G18: 1.376019988e-10 | H18: 0.001400060852 | I18: 9.051583615e-11 | J18: 1.604896135e-08 | K18: 0.03599613682 | L18: 0.004530366691 | M18: 0.001907732004 | N18: 0.02327735304 | O18: 15627 | Q18: 2122A0 | R18: 0.00150517503 | S18: 0.0002294137539 | T18: 0.002382596714 | U18: 0.4373556277 | V18: 1.376019988e-10 | W18: 0.001400060852 | X18: 9.051583615e-11 | Y18: 1.604896135e-08 | Z18: 0.03599613682 | AA18: 0.004530366691 | AB18: 0.001907732004 | AC18: 0.02327735304 | AD18: 2122A0 | AE18: Iron, gold, silver, and other metal ore mining | AF18: 15627 | AG18: 23.52137019 | AH18: 3.585048732 | AI18: 37.23283885 | AJ18: 6834.556394 | AK18: 2.150306436e-06 | AL18: 21.87875094 | AM18: 1.414490971e-06 | AN18: 0.000250797119 | AO18: 562.5116302 | AP18: 70.79604028 | AQ18: 29.81212802 | AR18: 363.755196 | AT18: 337 | AU18: =SUM(AG171:AG178)/SUM($AF$171:$AF$178) -> 1.425740584e-05 | AV18: =SUM(AH171:AH178)/SUM($AF$171:$AF$178) -> 1.663415049e-06 | AW18: 0.0001419932281 | AX18: 0.03859923784 | AY18: 1.069748481e-10 | AZ18: 1.637645724e-05 | BA18: 2.695695178e-11 | BB18: 6.030804201e-06 | BC18: 0.006393113365 | BD18: 0.002763843225 | BE18: 0.002786915565 | BF18: 0.0007997151556 | BI18: 21387.13799 | BJ18: 8383.409721 | BK18: 3984388.166 | BL18: 5756929.976 | BM18: 0.005948984122 | BN18: 4122.136448 | BO18: 0.00112991226 | BP18: 1.324436351 | BQ18: 298630.2645 | BR18: 78954706.16 | BS18: 7026568.819 | BT18: 409872.9902
A19: 212310 | B19: 212310 | C19: 0.0003944988944 | D19: 0.0002409902467 | E19: 4.704790236e-05 | F19: 0.4118470467 | G19: 1.696892926e-11 | H19: 0.001306260216 | I19: 1.546680992e-11 | J19: 1.620608385e-09 | K19: 0.0104226364 | L19: 0 | M19: 0.002970712777 | N19: 0.05236396412 | O19: 14477 | Q19: 212310 | R19: 0.0003944988944 | S19: 0.0002409902467 | T19: 4.704790236e-05 | U19: 0.4118470467 | V19: 1.696892926e-11 | W19: 0.001306260216 | X19: 1.546680992e-11 | Y19: 1.620608385e-09 | Z19: 0.0104226364 | AA19: 0 | AB19: 0.002970712777 | AC19: 0.05236396412 | AD19: 212310 | AE19: Stone mining and quarrying | AF19: 14477 | AG19: 5.711160494 | AH19: 3.488815802 | AI19: 0.6811124825 | AJ19: 5962.309695 | AK19: 2.456591888e-07 | AL19: 18.91072915 | AM19: 2.239130072e-07 | AN19: 2.346154759e-05 | AO19: 150.8885071 | AP19: 0 | AQ19: 43.00700887 | AR19: 758.0731086 | AT19: 339 | AU19: =SUM(AG179:AG189)/SUM($AF$179:$AF$189) -> 1.752733447e-05 | AV19: =SUM(AH179:AH189)/SUM($AF$179:$AF$189) -> 1.461407786e-06 | AW19: 3.893013545e-05 | AX19: 0.01253888993 | AY19: 9.521713109e-12 | AZ19: 4.051347425e-06 | BA19: 8.687369057e-12 | BB19: 3.476265158e-08 | BC19: 0.0004955093905 | BD19: 0.0004709825615 | BE19: 0.001115730553 | BF19: 0.000809104548
A20: 2123A0 | B20: 2123A0 | C20: 0.001243875706 | D20: 0.0004010576825 | E20: 0.0003073690133 | F20: 0.7473366945 | G20: 2.398759316e-10 | H20: 0.001532743666 | I20: 6.332674934e-11 | J20: 7.541708887e-10 | K20: 0.02587358634 | L20: 1.506554505 | M20: 0.07682977087 | N20: 0.04425592157 | O20: 14883 | Q20: 2123A0 | R20: 0.001243875706 | S20: 0.0004010576825 | T20: 0.0003073690133 | U20: 0.7473366945 | V20: 2.398759316e-10 | W20: 0.001532743666 | X20: 6.332674934e-11 | Y20: 7.541708887e-10 | Z20: 0.02587358634 | AA20: 1.506554505 | AB20: 0.07682977087 | AC20: 0.04425592157 | AD20: 2123A0 | AE20: Other nonmetallic mineral mining and quarrying | AF20: 14883 | AG20: 18.51260213 | AH20: 5.968941488 | AI20: 4.574573026 | AJ20: 11122.61202 | AK20: 3.57007349e-06 | AL20: 22.81182398 | AM20: 9.424920104e-07 | AN20: 1.122432534e-05 | AO20: 385.0765855 | AP20: 22422.05071 | AQ20: 1143.45748 | AR20: 658.6608808 | AT20: 311FT | AU20: =SUM(AG190:AG218)/SUM($AF$190:$AF$218) -> 0.0001450743669 | AV20: =SUM(AH190:AH218)/SUM($AF$190:$AF$218) -> 0.0002673776236 | AW20: 8.60289346e-05 | AX20: 0.06316015042 | AY20: 4.668270631e-11 | AZ20: 4.6586865e-05 | BA20: 3.274407244e-12 | BB20: 2.270994703e-08 | BC20: 0.002244615728 | BD20: 0.01008009134 | BE20: 0.0007373952622 | BF20: 0.002896741691
A21: 213111 | B21: 213111 | C21: 1.338445195e-05 | D21: 1.617262158e-06 | E21: 1.165235647e-05 | F21: 0.05740354308 | G21: 2.298115387e-11 | H21: 1.756260598e-06 | I21: 4.143596545e-12 | J21: 1.32829842e-11 | K21: 0.0004657318791 | L21: 0 | M21: 0.0001306187309 | N21: 0.001295974341 | O21: 28579 | Q21: 213111 | R21: 1.338445195e-05 | S21: 1.617262158e-06 | T21: 1.165235647e-05 | U21: 0.05740354308 | V21: 2.298115387e-11 | W21: 1.756260598e-06 | X21: 4.143596545e-12 | Y21: 1.32829842e-11 | Z21: 0.0004657318791 | AA21: 0 | AB21: 0.0001306187309 | AC21: 0.001295974341 | AD21: 213111 | AE21: Drilling oil and gas wells | AF21: 28579 | AG21: 0.3825142522 | AH21: 0.04621973522 | AI21: 0.3330126955 | AJ21: 1640.535858 | AK21: 6.567783966e-07 | AL21: 0.05019217162 | AM21: 1.184198457e-07 | AN21: 3.796144054e-07 | AO21: 13.31015137 | AP21: 0 | AQ21: 3.732952709 | AR21: 37.03765069 | AT21: 313TT | AU21: =SUM(AG219:AG224)/SUM($AF$219:$AF$224) -> 7.616583102e-05 | AV21: =SUM(AH219:AH224)/SUM($AF$219:$AF$224) -> 3.205290799e-05 | AW21: 6.433219621e-05 | AX21: 0.04878396331 | AY21: 1.93355572e-11 | AZ21: 1.419535989e-05 | BA21: 6.648959689e-12 | BB21: 2.679532942e-08 | BC21: 0.001952393055 | BD21: 0.03199737681 | BE21: 0.002608652251 | BF21: 0.0012798567
A22: 21311A | B22: 21311A | C22: 0.0001117490442 | D22: 1.187950638e-05 | E22: 0.0002500145407 | F22: 0.1179740962 | G22: 7.648830667e-10 | H22: 1.260870751e-05 | I22: 6.901622884e-11 | J22: 3.780408206e-11 | K22: 0.003359606726 | L22: 0.2837219446 | M22: 0.0003306017529 | N22: 0.003956555643 | O22: 89691 | Q22: 21311A | R22: 0.0001117490442 | S22: 1.187950638e-05 | T22: 0.0002500145407 | U22: 0.1179740962 | V22: 7.648830667e-10 | W22: 1.260870751e-05 | X22: 6.901622884e-11 | Y22: 3.780408206e-11 | Z22: 0.003359606726 | AA22: 0.2837219446 | AB22: 0.0003306017529 | AC22: 0.003956555643 | AD22: 21311A | AE22: Other support activities for mining | AF22: 89691 | AG22: 10.02288353 | AH22: 1.065484807 | AI22: 22.42405417 | AJ22: 10581.21466 | AK22: 6.860312714e-05 | AL22: 1.130887586 | AM22: 6.190134581e-06 | AN22: 3.390685924e-06 | AO22: 301.3264869 | AP22: 25447.30493 | AQ22: 29.65200182 | AR22: 354.8674322 | AT22: 315AL | AU22: =SUM(AG225:AG226)/SUM($AF$225:$AF$226) -> 1.232752122e-05 | AV22: =SUM(AH225:AH226)/SUM($AF$225:$AF$226) -> 1.792237629e-05 | AW22: 5.107230167e-06 | AX22: 0.00897068388 | AY22: 2.627756968e-12 | AZ22: 4.606232722e-06 | BA22: 3.184220915e-13 | BB22: 7.872602875e-09 | BC22: 0.0004344075621 | BD22: 2.383281879e-05 | BE22: 0.001326410482 | BF22: 0.0008886986388
A23: 221100 | B23: 221100 | C23: 0.01707275478 | D23: 0.001412869461 | E23: 0.01229518549 | F23: 6.163498695 | G23: 5.579312508e-10 | H23: 0.001466562994 | I23: 9.200491055e-11 | J23: 1.106878988e-07 | K23: 0.144198615 | L23: 43.77614503 | M23: 0.007599122425 | N23: 0.4490188786 | O23: 455762 | Q23: 221100 | R23: 0.01707275478 | S23: 0.001412869461 | T23: 0.01229518549 | U23: 6.163498695 | V23: 5.579312508e-10 | W23: 0.001466562994 | X23: 9.200491055e-11 | Y23: 1.106878988e-07 | Z23: 0.144198615 | AA23: 43.77614503 | AB23: 0.007599122425 | AC23: 0.4490188786 | AD23: 221100 | AE23: Electric power generation, transmission, and distribution | AF23: 455762 | AG23: 7781.112866 | AH23: 643.9322114 | AI23: 5603.678328 | AJ23: 2809088.492 | AK23: 0.0002542838627 | AL23: 668.4036831 | AM23: 4.193234204e-05 | AN23: 0.05044733815 | AO23: 65720.24919 | AP23: 19951503.41 | AQ23: 3463.391235 | AR23: 204645.7421 | AT23: 322 | AU23: =SUM(AG227:AG234)/SUM($AF$227:$AF$234) -> 0.002388270109 | AV23: =SUM(AH227:AH234)/SUM($AF$227:$AF$234) -> 0.0006208583762 | AW23: 0.002034013318 | AX23: 0.3656282136 | AY23: 1.7680083e-09 | AZ23: 0.0003914467842 | BA23: 1.237873875e-10 | BB23: 2.299386165e-07 | BC23: 0.03882175405 | BD23: 23.48117824 | BE23: 0.001364020558 | BF23: 0.03281457157
A24: 221200 | B24: 221200 | C24: 0.002789142906 | D24: 0.0002362415309 | E24: 0.002023861069 | F24: 1.514836236 | G24: 7.832654654e-10 | H24: 0.0002280486946 | I24: 6.569888376e-11 | J24: 1.802389008e-08 | K24: 0.02678174877 | L24: 6.460154434 | M24: 0.001209083347 | N24: 0.06622199417 | O24: 80214 | Q24: 221200 | R24: 0.002789142906 | S24: 0.0002362415309 | T24: 0.002023861069 | U24: 1.514836236 | V24: 7.832654654e-10 | W24: 0.0002280486946 | X24: 6.569888376e-11 | Y24: 1.802389008e-08 | Z24: 0.02678174877 | AA24: 6.460154434 | AB24: 0.001209083347 | AC24: 0.06622199417 | AD24: 221200 | AE24: Natural gas distribution | AF24: 80214 | AG24: 223.7283091 | AH24: 18.94987816 | AI24: 162.3419918 | AJ24: 121511.0738 | AK24: 6.282885604e-05 | AL24: 18.29269799 | AM24: 5.269970262e-06 | AN24: 0.001445768319 | AO24: 2148.271196 | AP24: 518194.8278 | AQ24: 96.98541162 | AR24: 5311.93104 | AT24: 323 | AU24: =SUM(AG235:AG236)/SUM($AF$235:$AF$236) -> 2.291283715e-05 | AV24: =SUM(AH235:AH236)/SUM($AF$235:$AF$236) -> 2.82385686e-06 | AW24: 2.376153747e-05 | AX24: 0.03668689177 | AY24: 3.744326714e-12 | AZ24: 2.235716312e-06 | BA24: 1.771638399e-12 | BB24: 3.310493416e-09 | BC24: 0.001122466251 | BD24: 2.972137866e-05 | BE24: 0.002594707484 | BF24: 0.001223681291
A25: 221300 | B25: 221300 | C25: 0.0006068690768 | D25: 0.05173336762 | E25: 0.0001950422205 | F25: 0.2853579703 | G25: 2.263768555e-10 | H25: 6.839777649e-05 | I25: 2.262316588e-11 | J25: 3.285196797e-08 | K25: 0.006872732647 | L25: 0.02652293106 | M25: 4.705650388e-05 | N25: 0.001101074933 | O25: 80967 | Q25: 221300 | R25: 0.0006068690768 | S25: 0.05173336762 | T25: 0.0001950422205 | U25: 0.2853579703 | V25: 2.263768555e-10 | W25: 6.839777649e-05 | X25: 2.262316588e-11 | Y25: 3.285196797e-08 | Z25: 0.006872732647 | AA25: 0.02652293106 | AB25: 4.705650388e-05 | AC25: 0.001101074933 | AD25: 221300 | AE25: Water, sewage and other systems | AF25: 80967 | AG25: 49.13636854 | AH25: 4188.695576 | AI25: 15.79198347 | AJ25: 23104.57878 | AK25: 1.832905486e-05 | AL25: 5.537962769 | AM25: 1.831729872e-06 | AN25: 0.002659925291 | AO25: 556.4645442 | AP25: 2147.482159 | AQ25: 3.81002395 | AR25: 89.15073411 | AT25: 324 | AU25: =SUM(AG237:AG240)/SUM($AF$237:$AF$240) -> 0.001786194338 | AV25: =SUM(AH237:AH240)/SUM($AF$237:$AF$240) -> 0.0001148842127 | AW25: 0.001820321306 | AX25: 0.3725169836 | AY25: 9.11528669e-11 | AZ25: 0.0002236872174 | BA25: 4.579490212e-11 | BB25: 1.296708578e-08 | BC25: 0.01405198728 | BD25: 0.5237303694 | BE25: 0.002959391797 | BF25: 0.02190201727
A26: 233210 | B26: 233210 | C26: 0.0002437490255 | D26: 3.668079312e-05 | E26: 0.000120369707 | F26: 0.1295254329 | G26: 7.845409116e-11 | H26: 0.00029889857 | I26: 5.265194203e-11 | J26: 2.110368424e-11 | K26: 0.008816303403 | L26: 0 | M26: 0.0002597995587 | N26: 0.0002374261648 | O26: 47123 | Q26: 233210 | R26: 0.0002437490255 | S26: 3.668079312e-05 | T26: 0.000120369707 | U26: 0.1295254329 | V26: 7.845409116e-11 | W26: 0.00029889857 | X26: 5.265194203e-11 | Y26: 2.110368424e-11 | Z26: 0.008816303403 | AA26: 0 | AB26: 0.0002597995587 | AC26: 0.0002374261648 | AD26: 233210 | AE26: Health care structures | AF26: 47123 | AG26: 11.48618533 | AH26: 1.728509014 | AI26: 5.672181702 | AJ26: 6103.626974 | AK26: 3.696992138e-06 | AL26: 14.08499731 | AM26: 2.481117464e-06 | AN26: 9.944689123e-07 | AO26: 415.4506652 | AP26: 0 | AQ26: 12.2425346 | AR26: 11.18823317 | AT26: 325 | AU26: =SUM(AG241:AG259)/SUM($AF$241:$AF$259) -> 0.0009504502724 | AV26: =SUM(AH241:AH259)/SUM($AF$241:$AF$259) -> 0.0004363796126 | AW26: 0.006040269452 | AX26: 0.3233786259 | AY26: 2.386236694e-10 | AZ26: 0.0001299980096 | BA26: 2.543788138e-11 | BB26: 7.188229906e-07 | BC26: 0.01153295162 | BD26: 0.07293708712 | BE26: 0.001413903052 | BF26: 0.007439229819
A27: 233262 | B27: 233262 | C27: 0.0002151053596 | D27: 3.307343551e-05 | E27: 0.0001062431189 | F27: 0.127651315 | G27: 6.923635362e-11 | H27: 0.0002951384296 | I27: 4.650261295e-11 | J27: 2.107971053e-11 | K27: 0.007780178145 | L27: 0 | M27: 0.0001732873332 | N27: 0.0001889607853 | O27: 101181 | Q27: 233262 | R27: 0.0002151053596 | S27: 3.307343551e-05 | T27: 0.0001062431189 | U27: 0.127651315 | V27: 6.923635362e-11 | W27: 0.0002951384296 | X27: 4.650261295e-11 | Y27: 2.107971053e-11 | Z27: 0.007780178145 | AA27: 0 | AB27: 0.0001732873332 | AC27: 0.0001889607853 | AD27: 233262 | AE27: Educational and vocational structures | AF27: 101181 | AG27: 21.76457539 | AH27: 3.346403279 | AI27: 10.74978501 | AJ27: 12915.8877 | AK27: 7.005403496e-06 | AL27: 29.86240145 | AM27: 4.705180881e-06 | AN27: 2.132866192e-06 | AO27: 787.2062049 | AP27: 0 | AQ27: 17.53338566 | AR27: 19.11924121 | AT27: 326 | AU27: =SUM(AG260:AG269)/SUM($AF$260:$AF$269) -> 3.171492132e-05 | AV27: =SUM(AH260:AH269)/SUM($AF$260:$AF$269) -> 1.131430125e-05 | AW27: 0.0003082442841 | AX27: 0.03945956983 | AY27: 2.185495622e-10 | AZ27: 1.328460174e-05 | BA27: 1.098024187e-11 | BB27: 1.913653053e-08 | BC27: 0.001463944129 | BD27: 0.002027159692 | BE27: 0.001532499311 | BF27: 0.001033316635
A28: 230301 | B28: 230301 | C28: 0.0002479665294 | D28: 3.72119679e-05 | E28: 0.0001224701331 | F28: 0.1154193806 | G28: 7.980761189e-11 | H28: 0.0002994516676 | I28: 5.349840337e-11 | J28: 6.951070532e-09 | K28: 0.008970545294 | L28: 0 | M28: 0.0001968063787 | N28: 0.0001657533467 | O28: 204428 | Q28: 230301 | R28: 0.0002479665294 | S28: 3.72119679e-05 | T28: 0.0001224701331 | U28: 0.1154193806 | V28: 7.980761189e-11 | W28: 0.0002994516676 | X28: 5.349840337e-11 | Y28: 6.951070532e-09 | Z28: 0.008970545294 | AA28: 0 | AB28: 0.0001968063787 | AC28: 0.0001657533467 | AD28: 230301 | AE28: Nonresidential maintenance and repair | AF28: 204428 | AG28: 50.69130167 | AH28: 7.607168174 | AI28: 25.03632436 | AJ28: 23594.95314 | AK28: 1.631491048e-05 | AL28: 61.2163055 | AM28: 1.09365716e-05 | AN28: 0.001420993447 | AO28: 1833.830633 | AP28: 0 | AQ28: 40.23273438 | AR28: 33.88462517 | AT28: 42 | AU28: =SUM(AG270:AG280)/SUM($AF$270:$AF$280) -> 4.147645873e-06 | AV28: =SUM(AH270:AH280)/SUM($AF$270:$AF$280) -> 1.460881906e-06 | AW28: 2.289941288e-05 | AX28: 0.004018865473 | AY28: 3.142962405e-12 | AZ28: 2.198913908e-06 | BA28: 1.035271508e-12 | BB28: 9.882707622e-09 | BC28: 0.0005263856427 | BD28: 0.0002345762464 | BE28: 0.0001895003043 | BF28: 0.0002989734924 | BG28: 42
A29: 230302 | B29: 230302 | C29: 0.0002785770702 | D29: 4.106699938e-05 | E29: 0.0001375674544 | F29: 0.1237063581 | G29: 8.967812354e-11 | H29: 0.0001018816073 | I29: 6.012521033e-11 | J29: 6.951175431e-09 | K29: 0.0100778194 | L29: 0 | M29: 0.0002256644449 | N29: 0.0003956600845 | O29: 84468 | Q29: 230302 | R29: 0.0002785770702 | S29: 4.106699938e-05 | T29: 0.0001375674544 | U29: 0.1237063581 | V29: 8.967812354e-11 | W29: 0.0001018816073 | X29: 6.012521033e-11 | Y29: 6.951175431e-09 | Z29: 0.0100778194 | AA29: 0 | AB29: 0.0002256644449 | AC29: 0.0003956600845 | AD29: 230302 | AE29: Residential maintenance and repair | AF29: 84468 | AG29: 23.53084797 | AH29: 3.468847304 | AI29: 11.62004774 | AJ29: 10449.22866 | AK29: 7.574931739e-06 | AL29: 8.605735606 | AM29: 5.078656266e-06 | AN29: 0.0005871518863 | AO29: 851.2532488 | AP29: 0 | AQ29: 19.06142433 | AR29: 33.42061602 | AT29: 441 | AU29: =AG281/$AF$281 -> 1.337566538e-06 | AV29: =AH281/$AF$281 -> 1.620663559e-07 | AW29: 1.230197705e-06 | AX29: 0.00501469678 | AY29: 9.645387849e-13 | AZ29: 2.062947223e-07 | BA29: 4.833657105e-13 | BB29: 4.361014854e-09 | BC29: 5.974589652e-05 | BD29: 0 | BE29: 0.001819439629 | BF29: 0.0003447435783 | BG29: 44RT
A30: 2332A0 | B30: 2332A0 | C30: 0.0003938652595 | D30: 5.558634898e-05 | E30: 0.0001944034611 | F30: 0.1877575656 | G30: 1.268186931e-10 | H30: 0.0003186036933 | I30: 8.503168095e-11 | J30: 2.11029558e-11 | K30: 0.01424646133 | L30: 0 | M30: 0.0005578535068 | N30: 0.0003569038604 | O30: 169386 | Q30: 2332A0 | R30: 0.0003938652595 | S30: 5.558634898e-05 | T30: 0.0001944034611 | U30: 0.1877575656 | V30: 1.268186931e-10 | W30: 0.0003186036933 | X30: 8.503168095e-11 | Y30: 2.11029558e-11 | Z30: 0.01424646133 | AA30: 0 | AB30: 0.0005578535068 | AC30: 0.0003569038604 | AD30: 2332A0 | AE30: Office and commercial structures | AF30: 169386 | AG30: 66.71526085 | AH30: 9.415549308 | AI30: 32.92922467 | AJ30: 31803.50301 | AK30: 2.148131115e-05 | AL30: 53.9670052 | AM30: 1.440317631e-05 | AN30: 3.574545271e-06 | AO30: 2413.151099 | AP30: 0 | AQ30: 94.4925741 | AR30: 60.4545173 | AT30: 445 | AU30: =AG282/$AF$282 -> 1.83092491e-06 | AV30: =AH282/$AF$282 -> 2.29657657e-07 | AW30: 3.880567975e-06 | AX30: 0.006092231886 | AY30: 1.931548756e-11 | AZ30: 2.500966172e-07 | BA30: 6.731762678e-13 | BB30: 9.633849261e-08 | BC30: 7.448624088e-05 | BD30: 0 | BE30: 0.003681574577 | BF30: 0.0008259423544
A31: 233412 | B31: 233412 | C31: 0.000431772554 | D31: 6.036037968e-05 | E31: 0.0002130982879 | F31: 0.1349051149 | G31: 1.389888626e-10 | H31: 0.0001219903988 | I31: 9.309065621e-11 | J31: 2.108598228e-11 | K31: 0.01561766118 | L31: 0 | M31: 0.0003918132025 | N31: 0.0003932567942 | O31: 79772 | Q31: 233412 | R31: 0.000431772554 | S31: 6.036037968e-05 | T31: 0.0002130982879 | U31: 0.1349051149 | V31: 1.389888626e-10 | W31: 0.0001219903988 | X31: 9.309065621e-11 | Y31: 2.108598228e-11 | Z31: 0.01561766118 | AA31: 0 | AB31: 0.0003918132025 | AC31: 0.0003932567942 | AD31: 233412 | AE31: Multifamily residential structures | AF31: 79772 | AG31: 34.44336018 | AH31: 4.815068208 | AI31: 16.99927662 | AJ31: 10761.65083 | AK31: 1.108741955e-05 | AL31: 9.73141809 | AM31: 7.426027827e-06 | AN31: 1.682070978e-06 | AO31: 1245.852068 | AP31: 0 | AQ31: 31.25572279 | AR31: 31.37088099 | AT31: 452 | AU31: =AG283/$AF$283 -> 1.084010678e-06 | AV31: =AH283/$AF$283 -> 1.361026313e-07 | AW31: 9.066230962e-07 | AX31: 0.005467533068 | AY31: 7.118674048e-13 | AZ31: 1.273387878e-07 | BA31: 3.528721189e-13 | BB31: 4.13967915e-09 | BC31: 4.888606806e-05 | BD31: 0 | BE31: 0.001618683419 | BF31: 0.0003175940943
A32: 2334A0 | B32: 2334A0 | C32: 0.0002796213619 | D32: 4.119852303e-05 | E32: 0.0001380613567 | F32: 0.1293903065 | G32: 8.999069308e-11 | H32: 0.0001020185588 | I32: 6.0332951e-11 | J32: 2.113364076e-11 | K32: 0.01011391 | L32: 0 | M32: 1.583863881e-05 | N32: 0.0003661939312 | O32: 252295 | Q32: 2334A0 | R32: 0.0002796213619 | S32: 4.119852303e-05 | T32: 0.0001380613567 | U32: 0.1293903065 | V32: 8.999069308e-11 | W32: 0.0001020185588 | X32: 6.0332951e-11 | Y32: 2.113364076e-11 | Z32: 0.01011391 | AA32: 0 | AB32: 1.583863881e-05 | AC32: 0.0003661939312 | AD32: 2334A0 | AE32: Other residential structures | AF32: 252295 | AG32: 70.5470715 | AH32: 10.39418137 | AI32: 34.83218998 | AJ32: 32644.52739 | AK32: 2.270420191e-05 | AL32: 25.73877229 | AM32: 1.522170187e-05 | AN32: 5.331911897e-06 | AO32: 2551.688923 | AP32: 0 | AQ32: 3.996009378 | AR32: 92.38889787 | AT32: 4A0 | AU32: =SUM(AG284:AG289)/SUM($AF$284:$AF$289) -> 1.230243525e-06 | AV32: =SUM(AH284:AH289)/SUM($AF$284:$AF$289) -> 1.510766467e-07 | AW32: 1.093237739e-06 | AX32: 0.005206369554 | AY32: 8.575901469e-13 | AZ32: 1.728749117e-07 | BA32: 4.281314696e-13 | BB32: 4.26732972e-09 | BC32: 5.514923875e-05 | BD32: 0 | BE32: 0.001734465212 | BF32: 0.0003332519708
A33: 233230 | B33: 233230 | C33: 0.0001986025349 | D33: 3.099508118e-05 | E33: 9.810426852e-05 | F33: 0.06342391832 | G33: 6.386627446e-11 | H33: 0.0002929721251 | I33: 4.279725332e-11 | J33: 2.107415572e-11 | K33: 0.007183204188 | L33: 0 | M33: 0.0003527651407 | N33: 0.0002047732034 | O33: 70668 | Q33: 233230 | R33: 0.0001986025349 | S33: 3.099508118e-05 | T33: 9.810426852e-05 | U33: 0.06342391832 | V33: 6.386627446e-11 | W33: 0.0002929721251 | X33: 4.279725332e-11 | Y33: 2.107415572e-11 | Z33: 0.007183204188 | AA33: 0 | AB33: 0.0003527651407 | AC33: 0.0002047732034 | AD33: 233230 | AE33: Manufacturing structures | AF33: 70668 | AG33: 14.03484394 | AH33: 2.190360397 | AI33: 6.932832448 | AJ33: 4482.04146 | AK33: 4.513301884e-06 | AL33: 20.70375414 | AM33: 3.024396297e-06 | AN33: 1.489268436e-06 | AO33: 507.6226736 | AP33: 0 | AQ33: 24.92920696 | AR33: 14.47091274 | AT33: 481 | AU33: =AG290/$AF$290 -> 1.297531423e-06 | AV33: =AH290/$AF$290 -> 1.503664765e-07 | AW33: 1.288630653e-06 | AX33: 0.7917276669 | AY33: 2.163541685e-12 | AZ33: 1.005457116e-06 | BA33: 7.287514002e-13 | BB33: 5.649590863e-09 | BC33: 0.0006593500737 | BD33: 0.0005992025499 | BE33: 0.06481070537 | BF33: 8.380397091e-05 | BG33: 48TW
A34: 2332D0 | B34: 2332D0 | C34: 0.0003234737473 | D34: 4.672128112e-05 | E34: 0.0001596880331 | F34: 0.1419958545 | G34: 1.04096626e-10 | H34: 0.0003101172635 | I34: 6.972988917e-11 | J34: 2.110224222e-11 | K34: 0.01170018461 | L34: 0 | M34: 0.0003339863458 | N34: 0.0002076975774 | O34: 123210 | Q34: 2332D0 | R34: 0.0003234737473 | S34: 4.672128112e-05 | T34: 0.0001596880331 | U34: 0.1419958545 | V34: 1.04096626e-10 | W34: 0.0003101172635 | X34: 6.972988917e-11 | Y34: 2.110224222e-11 | Z34: 0.01170018461 | AA34: 0 | AB34: 0.0003339863458 | AC34: 0.0002076975774 | AD34: 2332D0 | AE34: Other nonresidential structures | AF34: 123210 | AG34: 39.8552004 | AH34: 5.756529047 | AI34: 19.67516256 | AJ34: 17495.30923 | AK34: 1.282574529e-05 | AL34: 38.20954804 | AM34: 8.591419645e-06 | AN34: 2.600007264e-06 | AO34: 1441.579746 | AP34: 0 | AQ34: 41.15045766 | AR34: 25.59041851 | AT34: 482 | AU34: =AG291/$AF$291 -> 0.006260506197 | AV34: =AH291/$AF$291 -> 0.0007808527206 | AW34: 0.0009854552277 | AX34: 0.543105257 | AY34: 1.07670684e-09 | AZ34: 0.0003447431956 | BA34: 3.187593031e-10 | BB34: 5.589193221e-09 | BC34: 0.220387076 | BD34: 0 | BE34: 0.1867154212 | BF34: 7.576947934e-05
A35: 233240 | B35: 233240 | C35: 0.000254684053 | D35: 3.805794187e-05 | E35: 0.0001257626582 | F35: 0.07032989651 | G35: 8.192366998e-11 | H35: 0.0003003340191 | I35: 5.48641926e-11 | J35: 2.110993848e-11 | K35: 0.009211838959 | L35: 0 | M35: 0.0001853456027 | N35: 0.0001002129219 | O35: 123629 | Q35: 233240 | R35: 0.000254684053 | S35: 3.805794187e-05 | T35: 0.0001257626582 | U35: 0.07032989651 | V35: 8.192366998e-11 | W35: 0.0003003340191 | X35: 5.48641926e-11 | Y35: 2.110993848e-11 | Z35: 0.009211838959 | AA35: 0 | AB35: 0.0001853456027 | AC35: 0.0001002129219 | AD35: 233240 | AE35: Power and communication structures | AF35: 123629 | AG35: 31.48633479 | AH35: 4.705065296 | AI35: 15.54791167 | AJ35: 8694.814776 | AK35: 1.01281414e-05 | AL35: 37.12999445 | AM35: 6.782805267e-06 | AN35: 2.609800585e-06 | AO35: 1138.850439 | AP35: 0 | AQ35: 22.91409152 | AR35: 12.38922332 | AT35: 483 | AU35: =AG292/$AF$292 -> 0.02298812775 | AV35: =AH292/$AF$292 -> 0.001963671225 | AW35: 0.0008086078412 | AX35: 0.435125008 | AY35: 4.446418511e-10 | AZ35: 0.001880351295 | BA35: 3.314196881e-10 | BB35: 5.581101738e-09 | BC35: 0.5511236974 | BD35: 0.001258964523 | BE35: 6.684141292e-05 | BF35: 0.004873218772
A36: 233411 | B36: 233411 | C36: 0.0006279356239 | D36: 8.506504026e-05 | E36: 0.0003098414278 | F36: 0.1721173387 | G36: 2.021499606e-10 | H36: 0.0001477400723 | I36: 1.352962307e-10 | J36: 2.110557152e-11 | K36: 0.02271346094 | L36: 0 | M36: 0.0005074761955 | N36: 0.0009788546133 | O36: 270471 | Q36: 233411 | R36: 0.0006279356239 | S36: 8.506504026e-05 | T36: 0.0003098414278 | U36: 0.1721173387 | V36: 2.021499606e-10 | W36: 0.0001477400723 | X36: 1.352962307e-10 | Y36: 2.110557152e-11 | Z36: 0.02271346094 | AA36: 0 | AB36: 0.0005074761955 | AC36: 0.0009788546133 | AD36: 233411 | AE36: Single-family residential structures | AF36: 270471 | AG36: 169.8383761 | AH36: 23.0076265 | AI36: 83.80312081 | AJ36: 46552.74871 | AK36: 5.4675702e-05 | AL36: 39.95940509 | AM36: 3.659370682e-05 | AN36: 5.708445034e-06 | AO36: 6143.332493 | AP36: 0 | AQ36: 137.2575941 | AR36: 264.7517861 | AT36: 484 | AU36: =AG293/$AF$293 -> 0.006735331853 | AV36: =AH293/$AF$293 -> 0.000842215254 | AW36: 0.006039708911 | AX36: 1.306221232 | AY36: 3.932675931e-09 | AZ36: 0.0005100834038 | BA36: 9.925416463e-10 | BB36: 5.617749798e-09 | BC36: 0.2415156404 | BD36: 0.000130662049 | BE36: 0.1382362879 | BF36: 0.0001228082124
A37: 2332C0 | B37: 2332C0 | C37: 0.0004816638461 | D37: 6.664365347e-05 | E37: 0.0002402154519 | F37: 0.230571688 | G37: 1.55818129e-10 | H37: 0.003129337713 | I37: 1.03911459e-10 | J37: 8.54684268e-08 | K37: 0.01775283484 | L37: 0 | M37: 0.0002375367095 | N37: 0.0001647472855 | O37: 143054 | Q37: 2332C0 | R37: 0.0004816638461 | S37: 6.664365347e-05 | T37: 0.0002402154519 | U37: 0.230571688 | V37: 1.55818129e-10 | W37: 0.003129337713 | X37: 1.03911459e-10 | Y37: 8.54684268e-08 | Z37: 0.01775283484 | AA37: 0 | AB37: 0.0002375367095 | AC37: 0.0001647472855 | AD37: 2332C0 | AE37: Transportation structures and highways and streets | AF37: 143054 | AG37: 68.90393984 | AH37: 9.533641204 | AI37: 34.36378125 | AJ37: 32984.20225 | AK37: 2.229040663e-05 | AL37: 447.6642773 | AM37: 1.486494986e-05 | AN37: 0.01222660033 | AO37: 2539.614035 | AP37: 0 | AQ37: 33.98057644 | AR37: 23.56775818 | AT37: 485 | AU37: =AG294/$AF$294 -> 0.001094484214 | AV37: =AH294/$AF$294 -> 0.0001388919469 | AW37: 0.001247139226 | AX37: 0.2577702536 | AY37: 6.811497803e-10 | AZ37: 0.0001070061661 | BA37: 1.8512967e-10 | BB37: 4.485774101e-09 | BC37: 0.03949297935 | BD37: 0.001757258945 | BE37: 0.2299948127 | BF37: 0.004522888859
A38: 321100 | B38: 321100 | C38: 0.0002742244607 | D38: 0.0002051255399 | E38: 0.001237504576 | F38: 0.03219518624 | G38: 3.127569488e-09 | H38: 0.0002680732297 | I38: 1.516824184e-10 | J38: 7.738539526e-08 | K38: 0.01129347987 | L38: 4.785754087 | M38: 0.001549968878 | N38: 0.002077798209 | O38: 35953 | Q38: 321100 | R38: 0.0002742244607 | S38: 0.0002051255399 | T38: 0.001237504576 | U38: 0.03219518624 | V38: 3.127569488e-09 | W38: 0.0002680732297 | X38: 1.516824184e-10 | Y38: 7.738539526e-08 | Z38: 0.01129347987 | AA38: 4.785754087 | AB38: 0.001549968878 | AC38: 0.002077798209 | AD38: 321100 | AE38: Sawmills and wood preservation | AF38: 35953 | AG38: 9.859192036 | AH38: 7.374878535 | AI38: 44.49200203 | AJ38: 1157.513531 | AK38: 0.0001124455058 | AL38: 9.638036827 | AM38: 5.453437989e-06 | AN38: 0.002782237116 | AO38: 406.0344817 | AP38: 172062.2167 | AQ38: 55.72603109 | AR38: 74.70307899 | AT38: 486 | AU38: =AG295/$AF$295 -> 0.006087941118 | AV38: =AH295/$AF$295 -> 0.000766324558 | AW38: 0.007433162915 | AX38: 1.891787613 | AY38: 1.715454668e-08 | AZ38: 0.0002619247469 | BA38: 2.473695546e-09 | BB38: 7.591834668e-08 | BC38: 0.2341750456 | BD38: 0 | BE38: 0.0001046916084 | BF38: 0
A39: 321200 | B39: 321200 | C39: 0.0007247506542 | D39: 9.132469847e-05 | E39: 0.002233510553 | F39: 0.1079811455 | G39: 5.356299819e-09 | H39: 0.0006050093713 | I39: 6.040763026e-10 | J39: 1.4916479e-07 | K39: 0.02482410924 | L39: 0.9082761374 | M39: 0.002375445325 | N39: 0.003036442305 | O39: 23986 | Q39: 321200 | R39: 0.0007247506542 | S39: 9.132469847e-05 | T39: 0.002233510553 | U39: 0.1079811455 | V39: 5.356299819e-09 | W39: 0.0006050093713 | X39: 6.040763026e-10 | Y39: 1.4916479e-07 | Z39: 0.02482410924 | AA39: 0.9082761374 | AB39: 0.002375445325 | AC39: 0.003036442305 | AD39: 321200 | AE39: Veneer, plywood, and engineered wood product manufacturing | AF39: 23986 | AG39: 17.38386919 | AH39: 2.190514217 | AI39: 53.57298413 | AJ39: 2590.035755 | AK39: 0.0001284762075 | AL39: 14.51175478 | AM39: 1.448937419e-05 | AN39: 0.003577866652 | AO39: 595.4310841 | AP39: 21785.91143 | AQ39: 56.97743158 | AR39: 72.83210513 | AT39: 487OS | AU39: =SUM(AG296:AG297)/SUM($AF$296:$AF$297) -> 0.0005994719059 | AV39: =SUM(AH296:AH297)/SUM($AF$296:$AF$297) -> 7.995227239e-05 | AW39: 0.0007362213503 | AX39: 0.01319620949 | AY39: 1.694988961e-09 | AZ39: 5.170172468e-05 | BA39: 1.732610234e-10 | BB39: 5.58513212e-09 | BC39: 0.02013432098 | BD39: 2.669070126e-06 | BE39: 0.001709846694 | BF39: 0.0004480164996
A40: 321910 | B40: 321910 | C40: 7.843637921e-05 | D40: 1.067115904e-05 | E40: 0.0001903349003 | F40: 0.03362493341 | G40: 6.693962461e-10 | H40: 0.0001067989321 | I40: 4.090201679e-11 | J40: 1.003661107e-07 | K40: 0.003787029448 | L40: 0.0915507208 | M40: 0.00307387146 | N40: 0.00336081096 | O40: 21939 | Q40: 321910 | R40: 7.843637921e-05 | S40: 1.067115904e-05 | T40: 0.0001903349003 | U40: 0.03362493341 | V40: 6.693962461e-10 | W40: 0.0001067989321 | X40: 4.090201679e-11 | Y40: 1.003661107e-07 | Z40: 0.003787029448 | AA40: 0.0915507208 | AB40: 0.00307387146 | AC40: 0.00336081096 | AD40: 321910 | AE40: Millwork | AF40: 21939 | AG40: 1.720815724 | AH40: 0.2341145582 | AI40: 4.175757378 | AJ40: 737.697414 | AK40: 1.468588424e-05 | AL40: 2.343061772 | AM40: 8.973493464e-07 | AN40: 0.002201932102 | AO40: 83.08363906 | AP40: 2008.531264 | AQ40: 67.43766597 | AR40: 73.73283164 | AT40: 493 | AU40: =AG298/$AF$298 -> 1.219711895e-05 | AV40: =AH298/$AF$298 -> 4.752005636e-05 | AW40: 8.274994175e-06 | AX40: 0.01008071785 | AY40: 1.046988054e-11 | AZ40: 2.922359378e-06 | BA40: 2.996525949e-12 | BB40: 2.153466394e-08 | BC40: 0.0008326642611 | BD40: 0.005305717223 | BE40: 0.05578530467 | BF40: 0.0003806983901
A41: 3219A0 | B41: 3219A0 | C41: 8.112717128e-05 | D41: 1.497012898e-05 | E41: 0.01233131216 | F41: 0.07219777596 | G41: 8.33959713e-10 | H41: 0.0001193977844 | I41: 3.093223149e-11 | J41: 3.198237831e-08 | K41: 0.003657323162 | L41: 0.07318750706 | M41: 0.01081489568 | N41: 0.004922652055 | O41: 25216 | Q41: 3219A0 | R41: 8.112717128e-05 | S41: 1.497012898e-05 | T41: 0.01233131216 | U41: 0.07219777596 | V41: 8.33959713e-10 | W41: 0.0001193977844 | X41: 3.093223149e-11 | Y41: 3.198237831e-08 | Z41: 0.003657323162 | AA41: 0.07318750706 | AB41: 0.01081489568 | AC41: 0.004922652055 | AD41: 3219A0 | AE41: All other wood product manufacturing | AF41: 25216 | AG41: 2.045702751 | AH41: 0.3774867722 | AI41: 310.9463674 | AJ41: 1820.539118 | AK41: 2.102912812e-05 | AL41: 3.010734531 | AM41: 7.799871494e-07 | AN41: 0.0008064676514 | AO41: 92.22306086 | AP41: 1845.496178 | AQ41: 272.7084095 | AR41: 124.1295942 | AT41: 511 | AU41: =SUM(AG299:AG303)/SUM($AF$299:$AF$303) -> 6.967517248e-07 | AV41: =SUM(AH299:AH303)/SUM($AF$299:$AF$303) -> 9.010041077e-08 | AW41: 1.079319628e-06 | AX41: 0.001318870062 | AY41: 4.006009509e-13 | AZ41: 1.787036184e-07 | BA41: 1.961641574e-13 | BB41: 0 | BC41: 4.788209428e-05 | BD41: 0.0005390332763 | BE41: 0.0004575309579 | BF41: 0.0001019687322 | BG41: 51
A42: 327100 | B42: 327100 | C42: 0.002223084933 | D42: 0.0001166121308 | E42: 0.0003595774742 | F42: 0.3198140643 | G42: 2.676182575e-11 | H42: 0.0006023113485 | I42: 1.678404e-11 | J42: 8.286649598e-09 | K42: 0.03084731687 | L42: 3.158318005e-07 | M42: 0.002626353786 | N42: 0.003731070056 | O42: 8352 | Q42: 327100 | R42: 0.002223084933 | S42: 0.0001166121308 | T42: 0.0003595774742 | U42: 0.3198140643 | V42: 2.676182575e-11 | W42: 0.0006023113485 | X42: 1.678404e-11 | Y42: 8.286649598e-09 | Z42: 0.03084731687 | AA42: 3.158318005e-07 | AB42: 0.002626353786 | AC42: 0.003731070056 | AD42: 327100 | AE42: Clay product and refractory manufacturing | AF42: 8352 | AG42: 18.56720536 | AH42: 0.9739445168 | AI42: 3.003191064 | AJ42: 2671.087065 | AK42: 2.235147687e-07 | AL42: 5.030504383 | AM42: 1.401803021e-07 | AN42: 6.921009744e-05 | AO42: 257.6367905 | AP42: 0.002637827198 | AQ42: 21.93530682 | AR42: 31.16189711 | AT42: 512 | AU42: =SUM(AG304:AG305)/SUM($AF$304:$AF$305) -> 8.695161673e-07 | AV42: =SUM(AH304:AH305)/SUM($AF$304:$AF$305) -> 2.348923606e-07 | AW42: 7.39205192e-07 | AX42: 0.001707700785 | AY42: 5.410124869e-13 | AZ42: 1.124458802e-07 | BA42: 2.553642507e-13 | BB42: 2.709763193e-08 | BC42: 4.53922544e-05 | BD42: 1.590655369e-06 | BE42: 0.0002660398065 | BF42: 0.0003295344339
A43: 327200 | B43: 327200 | C43: 0.002254070265 | D43: 0.0002137865917 | E43: 0.0008990935581 | F43: 0.3272221595 | G43: 1.504736487e-11 | H43: 0.0003856145594 | I43: 1.969260697e-11 | J43: 7.579825038e-08 | K43: 0.05789042733 | L43: 8.578990601e-06 | M43: 0.003361961689 | N43: 0.002415618669 | O43: 26227 | Q43: 327200 | R43: 0.002254070265 | S43: 0.0002137865917 | T43: 0.0008990935581 | U43: 0.3272221595 | V43: 1.504736487e-11 | W43: 0.0003856145594 | X43: 1.969260697e-11 | Y43: 7.579825038e-08 | Z43: 0.05789042733 | AA43: 8.578990601e-06 | AB43: 0.003361961689 | AC43: 0.002415618669 | AD43: 327200 | AE43: Glass and glass product manufacturing | AF43: 26227 | AG43: 59.11750084 | AH43: 5.60698094 | AI43: 23.58052675 | AJ43: 8582.055577 | AK43: 3.946472384e-07 | AL43: 10.11351305 | AM43: 5.16478003e-07 | AN43: 0.001987960713 | AO43: 1518.292238 | AP43: 0.2250011865 | AQ43: 88.17416921 | AR43: 63.35443083 | AT43: 513 | AU43: =SUM(AG306:AG310)/SUM($AF$306:$AF$310) -> 1.823115727e-06 | AV43: =SUM(AH306:AH310)/SUM($AF$306:$AF$310) -> 2.174409357e-07 | AW43: 3.11177762e-07 | AX43: 0.002532073672 | AY43: 2.549659768e-13 | AZ43: 1.084920137e-07 | BA43: 1.278613797e-13 | BB43: 5.08241943e-15 | BC43: 6.278367081e-05 | BD43: 3.537677737e-05 | BE43: 0.0004161279118 | BF43: 0.0003356538137
A44: 327310 | B44: 327310 | C44: 0.02409272377 | D44: 0.002524362674 | E44: 0.003109733954 | F44: 7.213268383 | G44: 1.172269371e-10 | H44: 0.002656219812 | I44: 3.264267192e-10 | J44: 2.636637457e-07 | K44: 0.493164685 | L44: 0 | M44: 0.00293371311 | N44: 0.002420789408 | O44: 8070 | Q44: 327310 | R44: 0.02409272377 | S44: 0.002524362674 | T44: 0.003109733954 | U44: 7.213268383 | V44: 1.172269371e-10 | W44: 0.002656219812 | X44: 3.264267192e-10 | Y44: 2.636637457e-07 | Z44: 0.493164685 | AA44: 0 | AB44: 0.00293371311 | AC44: 0.002420789408 | AD44: 327310 | AE44: Cement manufacturing | AF44: 8070 | AG44: 194.4282808 | AH44: 20.37160678 | AI44: 25.095553 | AJ44: 58211.07585 | AK44: 9.460213823e-07 | AL44: 21.43569388 | AM44: 2.634263624e-06 | AN44: 0.002127766428 | AO44: 3979.839008 | AP44: 0 | AQ44: 23.6750648 | AR44: 19.53577052 | AT44: 514 | AU44: =SUM(AG311:AG313)/SUM($AF$311:$AF$313) -> 3.627105734e-06 | AV44: =SUM(AH311:AH313)/SUM($AF$311:$AF$313) -> 9.879660786e-07 | AW44: 8.100131751e-06 | AX44: 0.006799312519 | AY44: 2.132310496e-12 | AZ44: 5.262904906e-07 | BA44: 1.045112908e-12 | BB44: 2.999317388e-11 | BC44: 0.0001355583769 | BD44: 0.003744448019 | BE44: 0.0006011578377 | BF44: 0.0003876015012
A45: 327320 | B45: 327320 | C45: 8.511159032e-05 | D45: 9.694738416e-06 | E45: 1.181425032e-05 | F45: 0.106027955 | G45: 3.635691556e-12 | H45: 0.0001767378767 | I45: 3.968187043e-12 | J45: 1.736974814e-10 | K45: 0.002286552587 | L45: 0 | M45: 0.0014698576 | N45: 0.002801708594 | O45: 30655 | Q45: 327320 | R45: 8.511159032e-05 | S45: 9.694738416e-06 | T45: 1.181425032e-05 | U45: 0.106027955 | V45: 3.635691556e-12 | W45: 0.0001767378767 | X45: 3.968187043e-12 | Y45: 1.736974814e-10 | Z45: 0.002286552587 | AA45: 0 | AB45: 0.0014698576 | AC45: 0.002801708594 | AD45: 327320 | AE45: Ready-mix concrete manufacturing | AF45: 30655 | AG45: 2.609095801 | AH45: 0.2971922061 | AI45: 0.3621658437 | AJ45: 3250.28696 | AK45: 1.114521247e-07 | AL45: 5.41789961 | AM45: 1.216447738e-07 | AN45: 5.324696291e-06 | AO45: 70.09426954 | AP45: 0 | AQ45: 45.05848473 | AR45: 85.88637696 | AT45: 521CI | AU45: =SUM(AG314:AG315)/SUM($AF$314:$AF$315) -> 2.006391964e-06 | AV45: =SUM(AH314:AH315)/SUM($AF$314:$AF$315) -> 2.526376695e-07 | AW45: 1.87272083e-06 | AX45: 0.007733450989 | AY45: 1.462136685e-12 | AZ45: 2.525312306e-07 | BA45: 7.35429797e-13 | BB45: 1.231489712e-11 | BC45: 8.462799525e-05 | BD45: 0 | BE45: 0.0004041564319 | BF45: 0.0003564221127 | BG45: FIRE
A46: 327330 | B46: 327330 | C46: 0.0001224037377 | D46: 6.237881123e-06 | E46: 4.032642848e-06 | F46: 0.07783952513 | G46: 2.623890095e-12 | H46: 0.0001086368773 | I46: 1.739007538e-12 | J46: 3.597868387e-10 | K46: 0.001863177042 | L46: 0 | M46: 0.001270252203 | N46: 0.002737174277 | O46: 6104 | Q46: 327330 | R46: 0.0001224037377 | S46: 6.237881123e-06 | T46: 4.032642848e-06 | U46: 0.07783952513 | V46: 2.623890095e-12 | W46: 0.0001086368773 | X46: 1.739007538e-12 | Y46: 3.597868387e-10 | Z46: 0.001863177042 | AA46: 0 | AB46: 0.001270252203 | AC46: 0.002737174277 | AD46: 327330 | AE46: Concrete pipe, brick, and block manufacturing | AF46: 6104 | AG46: 0.747152415 | AH46: 0.03807602638 | AI46: 0.02461525194 | AJ46: 475.1324614 | AK46: 1.601622514e-08 | AL46: 0.6631194992 | AM46: 1.061490201e-08 | AN46: 2.196138863e-06 | AO46: 11.37283267 | AP46: 0 | AQ46: 7.753619445 | AR46: 16.70771179 | AT46: 523 | AU46: =SUM(AG316:AG317)/SUM($AF$316:$AF$317) -> 4.340567111e-07 | AV46: =SUM(AH316:AH317)/SUM($AF$316:$AF$317) -> 5.441920523e-08 | AW46: 3.906859049e-07 | AX46: 0.0009511883768 | AY46: 3.048578191e-13 | AZ46: 5.348918397e-08 | BA46: 1.536821375e-13 | BB46: 2.319188077e-12 | BC46: 1.822711836e-05 | BD46: 0 | BE46: 0.0005626985928 | BF46: 0.0003788215724
A47: 327390 | B47: 327390 | C47: 6.115696985e-05 | D47: 5.908429632e-06 | E47: 1.066094656e-05 | F47: 0.05057660819 | G47: 2.718315119e-12 | H47: 9.593579031e-05 | I47: 1.814887884e-12 | J47: 5.35919493e-11 | K47: 0.001803525905 | L47: 1.283473642e-06 | M47: 0.001490531548 | N47: 0.003414832229 | O47: 12480 | Q47: 327390 | R47: 6.115696985e-05 | S47: 5.908429632e-06 | T47: 1.066094656e-05 | U47: 0.05057660819 | V47: 2.718315119e-12 | W47: 9.593579031e-05 | X47: 1.814887884e-12 | Y47: 5.35919493e-11 | Z47: 0.001803525905 | AA47: 1.283473642e-06 | AB47: 0.001490531548 | AC47: 0.003414832229 | AD47: 327390 | AE47: Other concrete product manufacturing | AF47: 12480 | AG47: 0.7632389837 | AH47: 0.07373720181 | AI47: 0.133048613 | AJ47: 631.1960703 | AK47: 3.392457269e-08 | AL47: 1.197278663 | AM47: 2.264980079e-08 | AN47: 6.688275273e-07 | AO47: 22.5080033 | AP47: 0.01601775106 | AQ47: 18.60183372 | AR47: 42.61710622 | AT47: 524 | AU47: =SUM(AG318:AG320)/SUM($AF$318:$AF$320) -> 1.298167201e-07 | AV47: =SUM(AH318:AH320)/SUM($AF$318:$AF$320) -> 2.185899174e-08 | AW47: 1.130331247e-07 | AX47: 0.0004894608795 | AY47: 8.842555165e-14 | AZ47: 2.639305944e-08 | BA47: 4.53220138e-14 | BB47: 6.669275165e-17 | BC47: 5.377427767e-06 | BD47: 0.0004238315686 | BE47: 0.0005444170125 | BF47: 0.0002549195159
A48: 327400 | B48: 327400 | C48: 0.006900784065 | D48: 0.0008702218337 | E48: 0.001342429873 | F48: 3.140646448 | G48: 2.844575065e-11 | H48: 0.001126059089 | I48: 6.15564998e-11 | J48: 3.74535467e-09 | K48: 0.1178737045 | L48: 0.0001240672715 | M48: 0.002488727264 | N48: 0.0019010664 | O48: 8067 | Q48: 327400 | R48: 0.006900784065 | S48: 0.0008702218337 | T48: 0.001342429873 | U48: 3.140646448 | V48: 2.844575065e-11 | W48: 0.001126059089 | X48: 6.15564998e-11 | Y48: 3.74535467e-09 | Z48: 0.1178737045 | AA48: 0.0001240672715 | AB48: 0.002488727264 | AC48: 0.0019010664 | AD48: 327400 | AE48: Lime and gypsum product manufacturing | AF48: 8067 | AG48: 55.66862506 | AH48: 7.020079532 | AI48: 10.82938179 | AJ48: 25335.59489 | AK48: 2.294718705e-07 | AL48: 9.083918672 | AM48: 4.965762839e-07 | AN48: 3.021377612e-05 | AO48: 950.8871746 | AP48: 1.000850679 | AQ48: 20.07656284 | AR48: 15.33590265 | AT48: 525 | AU48: =AG321/$AF$321 -> 2.436910632e-07 | AV48: =AH321/$AF$321 -> 2.999620312e-08 | AW48: 4.871396319e-08 | AX48: 2.052491736e-05 | AY48: 3.555552566e-14 | AZ48: 2.164942656e-08 | BA48: 1.941133367e-14 | BB48: 0 | BC48: 8.603409376e-06 | BD48: 0 | BE48: 3.400967756e-06 | BF48: 0
A49: 327910 | B49: 327910 | C49: 0.0003028643169 | D49: 9.886624051e-06 | E49: 0.0001537695581 | F49: 0.03636818588 | G49: 1.74725342e-11 | H49: 6.600299391e-05 | I49: 2.57893268e-11 | J49: 4.670342699e-10 | K49: 0.002948928236 | L49: 5.370408891e-05 | M49: 0.000565956195 | N49: 0.003777911555 | O49: 4724 | Q49: 327910 | R49: 0.0003028643169 | S49: 9.886624051e-06 | T49: 0.0001537695581 | U49: 0.03636818588 | V49: 1.74725342e-11 | W49: 6.600299391e-05 | X49: 2.57893268e-11 | Y49: 4.670342699e-10 | Z49: 0.002948928236 | AA49: 5.370408891e-05 | AB49: 0.000565956195 | AC49: 0.003777911555 | AD49: 327910 | AE49: Abrasive product manufacturing | AF49: 4724 | AG49: 1.430731033 | AH49: 0.04670441202 | AI49: 0.7264073924 | AJ49: 171.8033101 | AK49: 8.254025158e-08 | AL49: 0.3117981432 | AM49: 1.218287798e-07 | AN49: 2.206269891e-06 | AO49: 13.93073699 | AP49: 0.253698116 | AQ49: 2.673577065 | AR49: 17.84685419 | AT49: HS | AU49: =SUM(AG322:AG323)/SUM($AF$322:$AF$323) -> 1.865978533e-06 | AV49: =SUM(AH322:AH323)/SUM($AF$322:$AF$323) -> 2.189636518e-05 | AW49: 1.36956532e-06 | AX49: 0.03935884427 | AY49: 1.029168908e-12 | AZ49: 2.221098204e-07 | BA49: 5.289870774e-13 | BB49: 5.592563223e-12 | BC49: 7.02544121e-05 | BD49: 1.873837658e-07 | BE49: 5.137652599e-05 | BF49: 0.001141736592
A50: 327991 | B50: 327991 | C50: 0.0004319937732 | D50: 2.697549909e-05 | E50: 2.859901428e-05 | F50: 0.05066185192 | G50: 2.507463268e-11 | H50: 0.0002567408095 | I50: 7.292568498e-12 | J50: 1.643790486e-07 | K50: 0.005414125995 | L50: 3.136418218e-05 | M50: 0.001934671159 | N50: 0.004670900197 | O50: 4943 | Q50: 327991 | R50: 0.0004319937732 | S50: 2.697549909e-05 | T50: 2.859901428e-05 | U50: 0.05066185192 | V50: 2.507463268e-11 | W50: 0.0002567408095 | X50: 7.292568498e-12 | Y50: 1.643790486e-07 | Z50: 0.005414125995 | AA50: 3.136418218e-05 | AB50: 0.001934671159 | AC50: 0.004670900197 | AD50: 327991 | AE50: Cut stone and stone product manufacturing | AF50: 4943 | AG50: 2.135345221 | AH50: 0.133339892 | AI50: 0.1413649276 | AJ50: 250.421534 | AK50: 1.239439093e-07 | AL50: 1.269069822 | AM50: 3.604716608e-08 | AN50: 0.0008125256373 | AO50: 26.7620248 | AP50: 0.1550331525 | AQ50: 9.563079538 | AR50: 23.08825967 | AT50: ORE | AU50: =AG324/$AF$324 -> 1.865978533e-06 | AV50: =AH324/$AF$324 -> 2.189636518e-05 | AW50: 1.36956532e-06 | AX50: 0.03935884427 | AY50: 1.029168908e-12 | AZ50: 2.221098204e-07 | BA50: 5.289870774e-13 | BB50: 5.592563223e-12 | BC50: 7.02544121e-05 | BD50: 1.873837658e-07 | BE50: 5.137652599e-05 | BF50: 0.001141736592
A51: 327992 | B51: 327992 | C51: 0.002526768013 | D51: 0.0003070018969 | E51: 3.902990055e-05 | F51: 0.1988243711 | G51: 2.16301663e-11 | H51: 0.0004472959244 | I51: 5.241202824e-12 | J51: 5.960330565e-10 | K51: 0.02083210233 | L51: 5.242618578e-06 | M51: 0.0007025067799 | N51: 0.001364042205 | O51: 4070 | Q51: 327992 | R51: 0.002526768013 | S51: 0.0003070018969 | T51: 3.902990055e-05 | U51: 0.1988243711 | V51: 2.16301663e-11 | W51: 0.0004472959244 | X51: 5.241202824e-12 | Y51: 5.960330565e-10 | Z51: 0.02083210233 | AA51: 5.242618578e-06 | AB51: 0.0007025067799 | AC51: 0.001364042205 | AD51: 327992 | AE51: Ground or treated mineral and earth manufacturing | AF51: 4070 | AG51: 10.28394581 | AH51: 1.24949772 | AI51: 0.1588516952 | AJ51: 809.2151903 | AK51: 8.803477683e-08 | AL51: 1.820494412 | AM51: 2.133169549e-08 | AN51: 2.42585454e-06 | AO51: 84.7866565 | AP51: 0.02133745761 | AQ51: 2.859202594 | AR51: 5.551651773 | AT51: 532RL | AU51: =SUM(AG325:AG328)/SUM($AF$325:$AF$328) -> 1.783724999e-06 | AV51: =SUM(AH325:AH328)/SUM($AF$325:$AF$328) -> 3.30395439e-06 | AW51: 1.734109335e-06 | AX51: 0.008657679304 | AY51: 1.350622056e-12 | AZ51: 2.555815134e-07 | BA51: 6.815925053e-13 | BB51: 5.39103339e-13 | BC51: 7.659130411e-05 | BD51: 0.006754405802 | BE51: 0.000263485577 | BF51: 0.0003601828171
A52: 327993 | B52: 327993 | C52: 0.0009449460658 | D52: 5.051068977e-05 | E52: 0.001466145787 | F52: 0.2747689665 | G52: 1.341836965e-11 | H52: 0.0006475746862 | I52: 4.780902225e-10 | J52: 2.953671466e-13 | K52: 0.009433423505 | L52: 0 | M52: 0.003107670626 | N52: 0.004059531564 | O52: 6179 | Q52: 327993 | R52: 0.0009449460658 | S52: 5.051068977e-05 | T52: 0.001466145787 | U52: 0.2747689665 | V52: 1.341836965e-11 | W52: 0.0006475746862 | X52: 4.780902225e-10 | Y52: 2.953671466e-13 | Z52: 0.009433423505 | AA52: 0 | AB52: 0.003107670626 | AC52: 0.004059531564 | AD52: 327993 | AE52: Mineral wool manufacturing | AF52: 6179 | AG52: 5.83882174 | AH52: 0.3121055521 | AI52: 9.05931482 | AJ52: 1697.797444 | AK52: 8.291210607e-08 | AL52: 4.001363986 | AM52: 2.954119485e-06 | AN52: 1.825073599e-09 | AO52: 58.28912384 | AP52: 0 | AQ52: 19.2022968 | AR52: 25.08384553 | AT52: 5411 | AU52: =AG329/$AF$329 -> 2.529251601e-06 | AV52: =AH329/$AF$329 -> 1.933774821e-07 | AW52: 3.648710049e-07 | AX52: 0.001042485977 | AY52: 5.777269096e-13 | AZ52: 4.592028955e-07 | BA52: 1.262030635e-13 | BB52: 7.668728111e-12 | BC52: 6.784220281e-05 | BD52: 0 | BE52: 0.0007804234702 | BF52: 6.662153757e-05 | BG52: PROF
A53: 327999 | B53: 327999 | C53: 0.0003158493858 | D53: 3.100669417e-05 | E53: 0.000109863426 | F53: 0.17676962 | G53: 6.921195791e-12 | H53: 0.0001640901969 | I53: 2.410873298e-11 | J53: 1.661858598e-09 | K53: 0.00781403115 | L53: 0 | M53: 0.001009069804 | N53: 0.002459961272 | O53: 5103 | Q53: 327999 | R53: 0.0003158493858 | S53: 3.100669417e-05 | T53: 0.000109863426 | U53: 0.17676962 | V53: 6.921195791e-12 | W53: 0.0001640901969 | X53: 2.410873298e-11 | Y53: 1.661858598e-09 | Z53: 0.00781403115 | AA53: 0 | AB53: 0.001009069804 | AC53: 0.002459961272 | AD53: 327999 | AE53: Miscellaneous nonmetallic mineral products | AF53: 5103 | AG53: 1.611779416 | AH53: 0.1582271604 | AI53: 0.5606330627 | AJ53: 902.0553708 | AK53: 3.531886212e-08 | AL53: 0.837352275 | AM53: 1.230268644e-07 | AN53: 8.480464423e-06 | AO53: 39.87500096 | AP53: 0 | AQ53: 5.149283211 | AR53: 12.55318237 | AT53: 5415 | AU53: =SUM(AG330:AG332)/SUM($AF$330:$AF$332) -> 1.064090211e-06 | AV53: =SUM(AH330:AH332)/SUM($AF$330:$AF$332) -> 1.320309833e-07 | AW53: 4.312453792e-07 | AX53: 0.0009105945979 | AY53: 3.343536505e-13 | AZ53: 1.348390671e-07 | BA53: 1.716810839e-13 | BB53: 1.910042797e-16 | BC53: 4.031865723e-05 | BD53: 0 | BE53: 0.0002659913157 | BF53: 6.493370966e-05
A54: 331110 | B54: 331110 | C54: 0.0007224601419 | D54: 0.002105615575 | E54: 0.0003809137458 | F54: 0.615378176 | G54: 1.003901991e-11 | H54: 0.0001867555087 | I54: 3.314240952e-12 | J54: 4.5724184e-09 | K54: 0.01070353386 | L54: 0.0001842999024 | M54: 0.000951978618 | N54: 0.01133230696 | O54: 101973 | Q54: 331110 | R54: 0.0007224601419 | S54: 0.002105615575 | T54: 0.0003809137458 | U54: 0.615378176 | V54: 1.003901991e-11 | W54: 0.0001867555087 | X54: 3.314240952e-12 | Y54: 4.5724184e-09 | Z54: 0.01070353386 | AA54: 0.0001842999024 | AB54: 0.000951978618 | AC54: 0.01133230696 | AD54: 331110 | AE54: Iron and steel mills and ferroalloy manufacturing | AF54: 101973 | AG54: 73.67142805 | AH54: 214.715937 | AI54: 38.8429174 | AJ54: 62751.95875 | AK54: 1.023708978e-06 | AL54: 19.04401949 | AM54: 3.379630926e-07 | AN54: 0.0004662632216 | AO54: 1091.471459 | AP54: 18.79361395 | AQ54: 97.07611561 | AR54: 1155.589338 | AT54: 5412OP | AU54: =SUM(AG333:AG342)/SUM($AF$333:$AF$342) -> 1.568210223e-06 | AV54: =SUM(AH333:AH342)/SUM($AF$333:$AF$342) -> 9.405241856e-07 | AW54: 1.213214067e-06 | AX54: 0.002493687909 | AY54: 6.622750688e-13 | AZ54: 2.364860076e-07 | BA54: 2.970101102e-13 | BB54: 2.776589565e-10 | BC54: 9.029840343e-05 | BD54: 0.0003305341217 | BE54: 0.0007026034634 | BF54: 0.000271117299
A55: 331200 | B55: 331200 | C55: 0.0002221983664 | D55: 0.008339381286 | E55: 0.000125361845 | F55: 0.1482776965 | G55: 9.982223477e-12 | H55: 7.344049725e-05 | I55: 1.781485192e-12 | J55: 1.700888672e-08 | K55: 0.004669676595 | L55: 2.871605962e-05 | M55: 0.001540698817 | N55: 0.01186100147 | O55: 9247 | Q55: 331200 | R55: 0.0002221983664 | S55: 0.008339381286 | T55: 0.000125361845 | U55: 0.1482776965 | V55: 9.982223477e-12 | W55: 7.344049725e-05 | X55: 1.781485192e-12 | Y55: 1.700888672e-08 | Z55: 0.004669676595 | AA55: 2.871605962e-05 | AB55: 0.001540698817 | AC55: 0.01186100147 | AD55: 331200 | AE55: Steel product manufacturing from purchased steel | AF55: 9247 | AG55: 2.054668294 | AH55: 77.11425875 | AI55: 1.159220981 | AJ55: 1371.123859 | AK55: 9.230562049e-08 | AL55: 0.6791042781 | AM55: 1.647339357e-08 | AN55: 0.0001572811755 | AO55: 43.18049948 | AP55: 0.2655374033 | AQ55: 14.24684196 | AR55: 109.6786806 | AT55: 55 | AU55: =AG343/$AF$343 -> 2.110512913e-06 | AV55: =AH343/$AF$343 -> 2.608257214e-07 | AW55: 2.035497183e-06 | AX55: 0.007197174755 | AY55: 1.583961051e-12 | AZ55: 2.770274511e-07 | BA55: 8.004021179e-13 | BB55: 1.60979622e-13 | BC55: 8.86156175e-05 | BD55: 0.0001160432161 | BE55: 0.0002637780075 | BF55: 0.0001180040093
A56: 331314 | B56: 331314 | C56: 0.003161003901 | D56: 0.0009101789719 | E56: 0.003637042575 | F56: 0.7077447796 | G56: 4.807599859e-11 | H56: 0.0006723056309 | I56: 8.019638682e-12 | J56: 2.228363967e-08 | K56: 0.008311821319 | L56: 5.816370794e-06 | M56: 0.0009451872562 | N56: 0.01716300535 | O56: 8816 | Q56: 331314 | R56: 0.003161003901 | S56: 0.0009101789719 | T56: 0.003637042575 | U56: 0.7077447796 | V56: 4.807599859e-11 | W56: 0.0006723056309 | X56: 8.019638682e-12 | Y56: 2.228363967e-08 | Z56: 0.008311821319 | AA56: 5.816370794e-06 | AB56: 0.0009451872562 | AC56: 0.01716300535 | AD56: 331314 | AE56: Secondary smelting and alloying of aluminum | AF56: 8816 | AG56: 27.86741039 | AH56: 8.024137816 | AI56: 32.06416734 | AJ56: 6239.477977 | AK56: 4.238380036e-07 | AL56: 5.927046442 | AM56: 7.070113462e-08 | AN56: 0.0001964525674 | AO56: 73.27701675 | AP56: 0.05127712492 | AQ56: 8.332770851 | AR56: 151.3090552 | AT56: 561 | AU56: =SUM(AG344:AG351)/SUM($AF$344:$AF$351) -> 1.655164511e-06 | AV56: =SUM(AH344:AH351)/SUM($AF$344:$AF$351) -> 1.860805192e-06 | AW56: 1.650958346e-06 | AX56: 0.004182087801 | AY56: 1.703721185e-12 | AZ56: 4.04382518e-07 | BA56: 5.695594774e-13 | BB56: 2.630312103e-09 | BC56: 7.155586157e-05 | BD56: 0.000937609299 | BE56: 0.0006990888516 | BF56: 0.0005978700019
A57: 331313 | B57: 331313 | C57: 0.003161003901 | D57: 0.0009101789719 | E57: 0.003637042575 | F57: 0.7077447796 | G57: 4.807599859e-11 | H57: 0.0006723056309 | I57: 8.019638682e-12 | J57: 2.228363967e-08 | K57: 0.008311821319 | L57: 5.816370794e-06 | M57: 0.0009451872562 | N57: 0.01716300535 | O57: 25546 | Q57: 331313 | R57: 0.003161003901 | S57: 0.0009101789719 | T57: 0.003637042575 | U57: 0.7077447796 | V57: 4.807599859e-11 | W57: 0.0006723056309 | X57: 8.019638682e-12 | Y57: 2.228363967e-08 | Z57: 0.008311821319 | AA57: 5.816370794e-06 | AB57: 0.0009451872562 | AC57: 0.01716300535 | AD57: 331313 | AE57: Alumina refining and primary aluminum production | AF57: 25546 | AG57: 80.75100566 | AH57: 23.25143202 | AI57: 92.91188961 | AJ57: 18080.04814 | AK57: 1.22814946e-06 | AL57: 17.17471965 | AM57: 2.048696898e-07 | AN57: 0.0005692578591 | AO57: 212.3337874 | AP57: 0.1485850083 | AQ57: 24.14575365 | AR57: 438.4461347 | AT57: 562 | AU57: =AG352/$AF$352 -> 0.001393802701 | AV57: =AH352/$AF$352 -> 0.0001271285765 | AW57: 0.01936638568 | AX57: 1.240133312 | AY57: 1.308151895e-09 | AZ57: 0.001523194475 | BA57: 1.186448908e-10 | BB57: 9.677310096e-08 | BC57: 0.03082479932 | BD57: 0.006503688368 | BE57: 0.002824797506 | BF57: 0.001055791636
A58: 33131B | B58: 33131B | C58: 0.0001397739242 | D58: 3.977281095e-05 | E58: 0.0001810567248 | F58: 0.1249827834 | G58: 3.795582475e-12 | H58: 8.992877632e-05 | I58: 3.661072416e-12 | J58: 1.107970404e-09 | K58: 0.003635504098 | L58: 7.840110863e-07 | M58: 0.001459105891 | N58: 0.01429729953 | O58: 15472 | Q58: 33131B | R58: 0.0001397739242 | S58: 3.977281095e-05 | T58: 0.0001810567248 | U58: 0.1249827834 | V58: 3.795582475e-12 | W58: 8.992877632e-05 | X58: 3.661072416e-12 | Y58: 1.107970404e-09 | Z58: 0.003635504098 | AA58: 7.840110863e-07 | AB58: 0.001459105891 | AC58: 0.01429729953 | AD58: 33131B | AE58: Aluminum product manufacturing from purchased aluminum | AF58: 15472 | AG58: 2.162582155 | AH58: 0.615364931 | AI58: 2.801309646 | AJ58: 1933.733624 | AK58: 5.872525206e-08 | AL58: 1.391378027 | AM58: 5.664411242e-08 | AN58: 1.71425181e-05 | AO58: 56.24851941 | AP58: 0.01213021953 | AQ58: 22.57528635 | AR58: 221.2078183 | AT58: 61 | AU58: =SUM(AG353:AG355)/SUM($AF$353:$AF$355) -> 1.697366429e-05 | AV58: =SUM(AH353:AH355)/SUM($AF$353:$AF$355) -> 0.0001582054109 | AW58: 9.491226704e-06 | AX58: 0.04991992587 | AY58: 3.641127453e-12 | AZ58: 1.840180618e-06 | BA58: 1.58455634e-12 | BB58: 2.102074398e-10 | BC58: 0.000301250957 | BD58: 0.002774040316 | BE58: 0.01235084617 | BF58: 0.001733735078 | BG58: 6
A59: 331490 | B59: 331410 | C59: 0.0008035335012 | D59: 1.346239035e-05 | E59: 0.0001321826956 | F59: 0.1088170697 | G59: 7.463911829e-11 | H59: 0.0001234597589 | I59: 1.752768328e-12 | J59: 1.570928706e-08 | K59: 0.002926085323 | L59: 7.130127853e-07 | M59: 0.00053697018 | N59: 0.009789151423 | O59: 19930 | Q59: 331410 | R59: 0.0008035335012 | S59: 1.346239035e-05 | T59: 0.0001321826956 | U59: 0.1088170697 | V59: 7.463911829e-11 | W59: 0.0001234597589 | X59: 1.752768328e-12 | Y59: 1.570928706e-08 | Z59: 0.002926085323 | AA59: 7.130127853e-07 | AB59: 0.00053697018 | AC59: 0.009789151423 | AD59: 331410 | AE59: Nonferrous metal (except aluminum) smelting and refining | AF59: 19930 | AG59: 16.01442268 | AH59: 0.2683054398 | AI59: 2.634401124 | AJ59: 2168.7242 | AK59: 1.487557627e-06 | AL59: 2.460552995 | AM59: 3.493267278e-08 | AN59: 0.000313086091 | AO59: 58.31688049 | AP59: 0.01421034481 | AQ59: 10.70181569 | AR59: 195.0977879 | AT59: 621 | AU59: =SUM(AG356:AG362)/SUM($AF$356:$AF$362) -> 1.651842068e-06 | AV59: =SUM(AH356:AH362)/SUM($AF$356:$AF$362) -> 4.463815938e-07 | AW59: 3.430199222e-06 | AX59: 0.006643303384 | AY59: 1.091222285e-12 | AZ59: 2.397806151e-07 | BA59: 5.593989335e-13 | BB59: 1.131360951e-11 | BC59: 6.379424207e-05 | BD59: 0.003568914465 | BE59: 0.000832763129 | BF59: 0.0002834704656
A60: 331420 | B60: 331420 | C60: 1.22766817e-05 | D60: 2.386334023e-06 | E60: 2.710625576e-05 | F60: 0.03608358547 | G60: 2.291788034e-12 | H60: 1.598662151e-05 | I60: 4.261234123e-13 | J60: 1.229911331e-09 | K60: 0.0005638482537 | L60: 0 | M60: 0.0006590777219 | N60: 0.01254570919 | O60: 10561 | Q60: 331420 | R60: 1.22766817e-05 | S60: 2.386334023e-06 | T60: 2.710625576e-05 | U60: 0.03608358547 | V60: 2.291788034e-12 | W60: 1.598662151e-05 | X60: 4.261234123e-13 | Y60: 1.229911331e-09 | Z60: 0.0005638482537 | AA60: 0 | AB60: 0.0006590777219 | AC60: 0.01254570919 | AD60: 331420 | AE60: Copper rolling, drawing, extruding and alloying | AF60: 10561 | AG60: 0.1296540354 | AH60: 0.02520207362 | AI60: 0.2862691671 | AJ60: 381.0787461 | AK60: 2.420357343e-08 | AL60: 0.1688347098 | AM60: 4.500289357e-09 | AN60: 1.298909357e-05 | AO60: 5.954801407 | AP60: 0 | AQ60: 6.960519821 | AR60: 132.4952347 | AT60: 622 | AU60: =AG363/$AF$363 -> 1.60892011e-05 | AV60: =AH363/$AF$363 -> 2.617949463e-06 | AW60: 1.644335179e-05 | AX60: 0.01686139692 | AY60: 5.289335546e-12 | AZ60: 2.219355252e-06 | BA60: 2.6928591e-12 | BB60: 6.907758425e-11 | BC60: 0.0004510222527 | BD60: 0.0001810236381 | BE60: 0.001182822559 | BF60: 0.0009509079662
A61: 331490 | B61: 331490 | C61: 0.0008035335012 | D61: 1.346239035e-05 | E61: 0.0001321826956 | F61: 0.1088170697 | G61: 7.463911829e-11 | H61: 0.0001234597589 | I61: 1.752768328e-12 | J61: 1.570928706e-08 | K61: 0.002926085323 | L61: 7.130127853e-07 | M61: 0.00053697018 | N61: 0.009789151423 | O61: 16493 | Q61: 331490 | R61: 0.0008035335012 | S61: 1.346239035e-05 | T61: 0.0001321826956 | U61: 0.1088170697 | V61: 7.463911829e-11 | W61: 0.0001234597589 | X61: 1.752768328e-12 | Y61: 1.570928706e-08 | Z61: 0.002926085323 | AA61: 7.130127853e-07 | AB61: 0.00053697018 | AC61: 0.009789151423 | AD61: 331490 | AE61: Nonferrous metal (except copper and aluminum) rolling, drawing, extruding and alloying | AF61: 16493 | AG61: 13.25267803 | AH61: 0.2220352041 | AI61: 2.180089199 | AJ61: 1794.719931 | AK61: 1.231022978e-06 | AL61: 2.036221804 | AM61: 2.890840803e-08 | AN61: 0.0002590932714 | AO61: 48.25992524 | AP61: 0.01175971987 | AQ61: 8.856249178 | AR61: 161.4524744 | AT61: 623 | AU61: =SUM(AG364:AG365)/SUM($AF$364:$AF$365) -> 6.789329862e-06 | AV61: =SUM(AH364:AH365)/SUM($AF$364:$AF$365) -> 6.490254179e-07 | AW61: 2.432087307e-06 | AX61: 0.0142808503 | AY61: 1.849415999e-12 | AZ61: 7.560396096e-07 | BA61: 9.425152546e-13 | BB61: 5.600410042e-13 | BC61: 0.0001477209466 | BD61: 2.767365956e-09 | BE61: 0.002797009597 | BF61: 0.0007415595999
A62: 331510 | B62: 331510 | C62: 0.0001869997512 | D62: 1.478946225e-05 | E62: 0.0009132334947 | F62: 0.05296893419 | G62: 7.959179798e-11 | H62: 0.0005171645889 | I62: 1.732989203e-11 | J62: 1.600298443e-09 | K62: 0.005548144526 | L62: 0 | M62: 0.001735454212 | N62: 0.03079062577 | O62: 12324 | Q62: 331510 | R62: 0.0001869997512 | S62: 1.478946225e-05 | T62: 0.0009132334947 | U62: 0.05296893419 | V62: 7.959179798e-11 | W62: 0.0005171645889 | X62: 1.732989203e-11 | Y62: 1.600298443e-09 | Z62: 0.005548144526 | AA62: 0 | AB62: 0.001735454212 | AC62: 0.03079062577 | AD62: 331510 | AE62: Ferrous metal foundries | AF62: 12324 | AG62: 2.304584934 | AH62: 0.1822653327 | AI62: 11.25468959 | AJ62: 652.7891449 | AK62: 9.808893183e-07 | AL62: 6.373536394 | AM62: 2.135735894e-07 | AN62: 1.972207801e-05 | AO62: 68.37533314 | AP62: 0 | AQ62: 21.38773771 | AR62: 379.463672 | AT62: 624 | AU62: =SUM(AG366:AG368)/SUM($AF$366:$AF$368) -> 1.793578295e-06 | AV62: =SUM(AH366:AH368)/SUM($AF$366:$AF$368) -> 2.964532781e-07 | AW62: 2.310557437e-06 | AX62: 0.00855222641 | AY62: 1.263477682e-12 | AZ62: 2.389975273e-07 | BA62: 6.447379315e-13 | BB62: 3.692074476e-12 | BC62: 7.320221929e-05 | BD62: 1.250316203e-05 | BE62: 0.005360528695 | BF62: 0.0004942485461
A63: 331520 | B63: 331520 | C63: 5.588480941e-05 | D63: 6.077286934e-06 | E63: 0.0001966876206 | F63: 0.1261341198 | G63: 5.948417615e-12 | H63: 0.0001147900871 | I63: 3.591251594e-12 | J63: 1.148112295e-09 | K63: 0.001936526489 | L63: 3.234995329e-07 | M63: 0.001946130317 | N63: 0.03155618253 | O63: 6712 | Q63: 331520 | R63: 5.588480941e-05 | S63: 6.077286934e-06 | T63: 0.0001966876206 | U63: 0.1261341198 | V63: 5.948417615e-12 | W63: 0.0001147900871 | X63: 3.591251594e-12 | Y63: 1.148112295e-09 | Z63: 0.001936526489 | AA63: 3.234995329e-07 | AB63: 0.001946130317 | AC63: 0.03155618253 | AD63: 331520 | AE63: Nonferrous metal foundries | AF63: 6712 | AG63: 0.3750988407 | AH63: 0.0407907499 | AI63: 1.32016731 | AJ63: 846.6122122 | AK63: 3.992577903e-08 | AL63: 0.7704710646 | AM63: 2.41044807e-08 | AN63: 7.706129724e-06 | AO63: 12.99796579 | AP63: 0.002171328865 | AQ63: 13.06242669 | AR63: 211.8050971 | AT63: 711AS | AU63: =SUM(AG369:AG373)/SUM($AF$369:$AF$373) -> 2.302574307e-05 | AV63: =SUM(AH369:AH373)/SUM($AF$369:$AF$373) -> 1.946475961e-05 | AW63: 0.0002316333609 | AX63: 0.005424518338 | AY63: 2.84554045e-10 | AZ63: 2.71093074e-05 | BA63: 7.459552368e-11 | BB63: 3.978611182e-12 | BC63: 0.004510126296 | BD63: 0.001177647554 | BE63: 0.0004488671006 | BF63: 0.0004134073356 | BG63: 7
A64: 332114 | B64: 332114 | C64: 4.540012667e-06 | D64: 5.684625229e-07 | E64: 2.306781311e-06 | F64: 0.03913200915 | G64: 4.529708814e-12 | H64: 2.138731725e-06 | I64: 7.293792876e-13 | J64: 7.58800111e-09 | K64: 0.000650357755 | L64: 1.014237693e-06 | M64: 0.0003903006056 | N64: 0.0006486409209 | O64: 13042 | Q64: 332114 | R64: 4.540012667e-06 | S64: 5.684625229e-07 | T64: 2.306781311e-06 | U64: 0.03913200915 | V64: 4.529708814e-12 | W64: 2.138731725e-06 | X64: 7.293792876e-13 | Y64: 7.58800111e-09 | Z64: 0.000650357755 | AA64: 1.014237693e-06 | AB64: 0.0003903006056 | AC64: 0.0006486409209 | AD64: 332114 | AE64: Custom roll forming | AF64: 13042 | AG64: 0.05921084521 | AH64: 0.007413888223 | AI64: 0.03008504186 | AJ64: 510.3596633 | AK64: 5.907646235e-08 | AL64: 0.02789333916 | AM64: 9.512564668e-09 | AN64: 9.896271048e-05 | AO64: 8.481965841 | AP64: 0.01322768799 | AQ64: 5.090300498 | AR64: 8.45957489 | AT64: 713 | AU64: =SUM(AG374:AG376)/SUM($AF$374:$AF$376) -> 0.0002977624627 | AV64: =SUM(AH374:AH376)/SUM($AF$374:$AF$376) -> 0.0001656910717 | AW64: 0.1400200998 | AX64: 0.03785480104 | AY64: 9.927806975e-10 | AZ64: 0.0001525425405 | BA64: 2.589273373e-10 | BB64: 7.953747518e-09 | BC64: 0.01590833474 | BD64: 0.0005266100259 | BE64: 0.1594623915 | BF64: 0.02731278649
A65: 33211A | B65: 33211A | C65: 0.0001261836501 | D65: 3.161179611e-05 | E65: 8.491447296e-05 | F65: 0.1187711989 | G65: 7.693587905e-12 | H65: 3.129765434e-05 | I65: 1.83490383e-12 | J65: 6.972288697e-09 | K65: 0.003102287852 | L65: 0.1301478712 | M65: 0.001462094831 | N65: 0.001726604309 | O65: 10943 | Q65: 33211A | R65: 0.0001261836501 | S65: 3.161179611e-05 | T65: 8.491447296e-05 | U65: 0.1187711989 | V65: 7.693587905e-12 | W65: 3.129765434e-05 | X65: 1.83490383e-12 | Y65: 6.972288697e-09 | Z65: 0.003102287852 | AA65: 0.1301478712 | AB65: 0.001462094831 | AC65: 0.001726604309 | AD65: 33211A | AE65: All other forging, stamping, and sintering | AF65: 10943 | AG65: 1.380827683 | AH65: 0.3459278848 | AI65: 0.9292190776 | AJ65: 1299.71323 | AK65: 8.419093244e-08 | AL65: 0.3424902314 | AM65: 2.007935262e-08 | AN65: 7.629775521e-05 | AO65: 33.94833597 | AP65: 1424.208155 | AQ65: 15.99970374 | AR65: 18.89423095 | AT65: 721 | AU65: =AG377/$AF$377 -> 6.544376682e-06 | AV65: =AH377/$AF$377 -> 0.0001743371166 | AW65: 4.576526711e-06 | AX65: 0.02485976677 | AY65: 3.352809706e-12 | AZ65: 9.989245635e-07 | BA65: 1.700542429e-12 | BB65: 1.507328039e-12 | BC65: 0.0002508198411 | BD65: 5.132403682e-06 | BE65: 0.003819742468 | BF65: 0.00175498076
A66: 332119 | B66: 332119 | C66: 7.971539147e-06 | D66: 1.266383176e-06 | E66: 4.211951947e-05 | F66: 0.02710721015 | G66: 8.72285965e-12 | H66: 3.45902002e-06 | I66: 6.293229942e-12 | J66: 7.565701542e-09 | K66: 0.0009246215214 | L66: 9.423556204e-06 | M66: 0.001531895766 | N66: 0.0008003655973 | O66: 8756 | Q66: 332119 | R66: 7.971539147e-06 | S66: 1.266383176e-06 | T66: 4.211951947e-05 | U66: 0.02710721015 | V66: 8.72285965e-12 | W66: 3.45902002e-06 | X66: 6.293229942e-12 | Y66: 7.565701542e-09 | Z66: 0.0009246215214 | AA66: 9.423556204e-06 | AB66: 0.001531895766 | AC66: 0.0008003655973 | AD66: 332119 | AE66: Metal crown, closure, and other metal stamping (except automotive) | AF66: 8756 | AG66: =R66*$AF66 -> 0.06979879677 | AH66: =S66*$AF66 -> 0.01108845109 | AI66: =T66*$AF66 -> 0.3687985125 | AJ66: =U66*$AF66 -> 237.3507321 | AK66: =V66*$AF66 -> 7.637735909e-08 | AL66: =W66*$AF66 -> 0.0302871793 | AM66: =X66*$AF66 -> 5.510352137e-08 | AN66: =Y66*$AF66 -> 6.62452827e-05 | AO66: =Z66*$AF66 -> 8.095986042 | AP66: =AA66*$AF66 -> 0.08251265812 | AQ66: =AB66*$AF66 -> 13.41327933 | AR66: =AC66*$AF66 -> 7.00800117 | AT66: 722 | AU66: =SUM(AG378:AG380)/SUM($AF$378:$AF$380) -> 1.199005133e-05 | AV66: =SUM(AH378:AH380)/SUM($AF$378:$AF$380) -> 2.065225419e-06 | AW66: 0.0001345601154 | AX66: 0.01919392363 | AY66: 3.893678197e-12 | AZ66: 0.0001033542307 | BA66: 1.976929511e-11 | BB66: 2.754553855e-12 | BC66: 0.0002751995533 | BD66: 0 | BE66: 0.001201212269 | BF66: 0.0009909457482
A67: 332200 | B67: 332200 | C67: 1.36127076e-05 | D67: 4.133711951e-05 | E67: 2.813622323e-05 | F67: 0.03295485964 | G67: 7.8256283e-12 | H67: 1.765375844e-05 | I67: 1.075764441e-11 | J67: 4.64066749e-08 | K67: 0.001140337967 | L67: 7.031917801e-06 | M67: 0.001814541707 | N67: 0.0009246002277 | O67: 43306 | Q67: 332200 | R67: 1.36127076e-05 | S67: 4.133711951e-05 | T67: 2.813622323e-05 | U67: 0.03295485964 | V67: 7.8256283e-12 | W67: 1.765375844e-05 | X67: 1.075764441e-11 | Y67: 4.64066749e-08 | Z67: 0.001140337967 | AA67: 7.031917801e-06 | AB67: 0.001814541707 | AC67: 0.0009246002277 | AD67: 332200 | AE67: Cutlery and handtool manufacturing | AF67: 43306 | AG67: 0.5895119154 | AH67: 1.790145297 | AI67: 1.218467283 | AJ67: 1427.143152 | AK67: 3.388966591e-07 | AL67: 0.764513663 | AM67: 4.65870549e-07 | AN67: 0.002009687463 | AO67: 49.38347598 | AP67: 0.3045242323 | AQ67: 78.58054316 | AR67: 40.04073746 | AT67: 81 | AU67: =SUM(AG381:AG392)/SUM($AF$381:$AF$392) -> 2.154805987e-06 | AV67: =SUM(AH381:AH392)/SUM($AF$381:$AF$392) -> 1.905531758e-06 | AW67: 2.433442407e-05 | AX67: 0.008625242831 | AY67: 3.017980097e-11 | AZ67: 5.899986357e-07 | BA67: 7.815481949e-12 | BB67: 1.301950996e-08 | BC67: 0.0004998110846 | BD67: 8.108632246e-08 | BE67: 0.001598717054 | BF67: 0.0003657688391 | BG67: 81
A68: 332310 | B68: 332310 | C68: 1.137622352e-05 | D68: 1.289852697e-06 | E68: 2.737036741e-05 | F68: 0.01885546992 | G68: 1.680830364e-11 | H68: 1.412127966e-05 | I68: 2.442538318e-12 | J68: 2.496238448e-08 | K68: 0.001204455748 | L68: 0.002006240587 | M68: 0.001892989894 | N68: 0.000719851317 | O68: 41400 | Q68: 332310 | R68: 1.137622352e-05 | S68: 1.289852697e-06 | T68: 2.737036741e-05 | U68: 0.01885546992 | V68: 1.680830364e-11 | W68: 1.412127966e-05 | X68: 2.442538318e-12 | Y68: 2.496238448e-08 | Z68: 0.001204455748 | AA68: 0.002006240587 | AB68: 0.001892989894 | AC68: 0.000719851317 | AD68: 332310 | AE68: Plate work and fabricated structural product manufacturing | AF68: 41400 | AG68: 0.4709756538 | AH68: 0.05339990166 | AI68: 1.133133211 | AJ68: 780.6164548 | AK68: 6.958637705e-07 | AL68: 0.5846209778 | AM68: 1.011210864e-07 | AN68: 0.001033442718 | AO68: 49.86446796 | AP68: 83.05836031 | AQ68: 78.36978161 | AR68: 29.80184453 | AT68: GFGD | AU68: =AG393/$AF$393 -> 2.315636007e-05 | AV68: =AH393/$AF$393 -> 7.591491048e-06 | AW68: 6.563115541e-05 | AX68: 0.03232318426 | AY68: 1.413189596e-11 | AZ68: 3.607697e-06 | BA68: 6.839936593e-12 | BB68: 2.654917724e-10 | BC68: 0.0008416279318 | BD68: 0.004670277154 | BE68: 0.1539376441 | BF68: 0.0008857776444 | BG68: G
A69: 332320 | B69: 332320 | C69: 1.228191353e-05 | D69: 1.578031059e-06 | E69: 1.558636966e-05 | F69: 0.02455781071 | G69: 2.06510623e-11 | H69: 5.901496302e-06 | I69: 2.446402498e-12 | J69: 2.514917414e-08 | K69: 0.001078217658 | L69: 0.0002032732244 | M69: 0.002029902702 | N69: 0.0008794227176 | O69: 6971 | Q69: 332320 | R69: 1.228191353e-05 | S69: 1.578031059e-06 | T69: 1.558636966e-05 | U69: 0.02455781071 | V69: 2.06510623e-11 | W69: 5.901496302e-06 | X69: 2.446402498e-12 | Y69: 2.514917414e-08 | Z69: 0.001078217658 | AA69: 0.0002032732244 | AB69: 0.002029902702 | AC69: 0.0008794227176 | AD69: 332320 | AE69: Ornamental and architectural metal products manufacturing | AF69: 6971 | AG69: 0.08561721924 | AH69: 0.01100045451 | AI69: 0.1086525829 | AJ69: 171.1924985 | AK69: 1.439585553e-07 | AL69: 0.04113933072 | AM69: 1.705387181e-08 | AN69: 0.0001753148929 | AO69: 7.516255291 | AP69: 1.417017648 | AQ69: 14.15045174 | AR69: 6.130455764 | AT69: GFGN | AU69: =AG394/$AF$394 -> 8.982035064e-06 | AV69: =AH394/$AF$394 -> 5.811396797e-06 | AW69: 5.146613477e-05 | AX69: 0.008059570459 | AY69: 3.066595117e-12 | AZ69: 1.762871267e-06 | BA69: 1.275497766e-12 | BB69: 2.657779845e-10 | BC69: 0.0002352190904 | BD69: 0 | BE69: 0.0003462972832 | BF69: 0.0005779300659
A70: 332410 | B70: 332410 | C70: 6.264707886e-06 | D70: 8.565928016e-07 | E70: 6.607311376e-06 | F70: 0.0125267353 | G70: 4.550969516e-12 | H70: 5.585119724e-06 | I70: 7.016161169e-13 | J70: 7.34450629e-09 | K70: 0.0007773971935 | L70: 0 | M70: 0.001562405031 | N70: 0.0004736888308 | O70: 8055 | Q70: 332410 | R70: 6.264707886e-06 | S70: 8.565928016e-07 | T70: 6.607311376e-06 | U70: 0.0125267353 | V70: 4.550969516e-12 | W70: 5.585119724e-06 | X70: 7.016161169e-13 | Y70: 7.34450629e-09 | Z70: 0.0007773971935 | AA70: 0 | AB70: 0.001562405031 | AC70: 0.0004736888308 | AD70: 332410 | AE70: Power boiler and heat exchanger manufacturing | AF70: 8055 | AG70: 0.05046222202 | AH70: 0.006899855017 | AI70: 0.05322189313 | AJ70: 100.9028528 | AK70: 3.665805945e-08 | AL70: 0.04498813938 | AM70: 5.651517821e-09 | AN70: 5.915999816e-05 | AO70: 6.261934394 | AP70: 0 | AQ70: 12.58517253 | AR70: 3.815563532 | AT70: GFE | AU70: =SUM(AG395:AG397)/SUM($AF$395:$AF$397) -> 0.01575020271 | AV70: =SUM(AH395:AH397)/SUM($AF$395:$AF$397) -> 0.001325036125 | AW70: 0.01134610105 | AX70: 5.688595154 | AY70: 5.147743721e-10 | AZ70: 0.001353021596 | BA70: 8.489465868e-11 | BB70: 1.021381548e-07 | BC70: 0.1330335593 | BD70: 40.38374762 | BE70: 0.007019696751 | BF70: 0.4147688139
A71: 332420 | B71: 332420 | C71: 4.294955805e-06 | D71: 5.389332476e-07 | E71: 5.527587554e-06 | F71: 0.02196519493 | G71: 2.126579212e-11 | H71: 5.760110677e-06 | I71: 4.516159744e-12 | J71: 7.605510021e-09 | K71: 0.000857500434 | L71: 2.654122031e-05 | M71: 0.001810332627 | N71: 0.000848174711 | O71: 17580 | Q71: 332420 | R71: 4.294955805e-06 | S71: 5.389332476e-07 | T71: 5.527587554e-06 | U71: 0.02196519493 | V71: 2.126579212e-11 | W71: 5.760110677e-06 | X71: 4.516159744e-12 | Y71: 7.605510021e-09 | Z71: 0.000857500434 | AA71: 2.654122031e-05 | AB71: 0.001810332627 | AC71: 0.000848174711 | AD71: 332420 | AE71: Metal tank (heavy gauge) manufacturing | AF71: 17580 | AG71: 0.07550532305 | AH71: 0.009474446493 | AI71: 0.09717498919 | AJ71: 386.1481269 | AK71: 3.738526255e-07 | AL71: 0.1012627457 | AM71: 7.93940883e-08 | AN71: 0.0001337048662 | AO71: 15.07485763 | AP71: 0.4665946531 | AQ71: 31.82564758 | AR71: 14.91091142 | AT71: GSLG | AU71: =SUM(AG398:AG400)/SUM($AF$398:$AF$400) -> 2.508298067e-05 | AV71: =SUM(AH398:AH400)/SUM($AF$398:$AF$400) -> 7.833123781e-06 | AW71: 6.755290152e-05 | AX71: 0.03893269331 | AY71: 1.563434497e-11 | AZ71: 3.858965733e-06 | BA71: 7.599231419e-12 | BB71: 2.656814028e-10 | BC71: 0.0009239513458 | BD71: 0.0009046366647 | BE71: 0.001328737291 | BF71: 0.002395313421
A72: 332430 | B72: 332430 | C72: 2.593788213e-05 | D72: 3.800594006e-06 | E72: 0.0002717531028 | F72: 0.03318575389 | G72: 3.919243153e-11 | H72: 7.797219952e-06 | I72: 5.925712948e-11 | J72: 5.512329647e-08 | K72: 0.01001721598 | L72: 0.0002687653574 | M72: 0.0009569796528 | N72: 0.0006811753075 | O72: 8728 | Q72: 332430 | R72: 2.593788213e-05 | S72: 3.800594006e-06 | T72: 0.0002717531028 | U72: 0.03318575389 | V72: 3.919243153e-11 | W72: 7.797219952e-06 | X72: 5.925712948e-11 | Y72: 5.512329647e-08 | Z72: 0.01001721598 | AA72: 0.0002687653574 | AB72: 0.0009569796528 | AC72: 0.0006811753075 | AD72: 332430 | AE72: Metal can, box, and other metal container (light gauge) manufacturing | AF72: 8728 | AG72: 0.2263858352 | AH72: 0.03317158448 | AI72: 2.371861081 | AJ72: 289.6452599 | AK72: 3.420715424e-07 | AL72: 0.06805413574 | AM72: 5.171962261e-07 | AN72: 0.0004811161316 | AO72: 87.43026108 | AP72: 2.345784039 | AQ72: 8.352518409 | AR72: 5.945298084 | AT72: GSLE | AU72: =SUM(AG401:AG403)/SUM($AF$401:$AF$403) -> 6.699750724e-05 | AV72: =SUM(AH401:AH403)/SUM($AF$401:$AF$403) -> 0.005715624114 | AW72: 2.140767113e-05 | AX72: 0.03144874561 | AY72: 2.49792732e-11 | AZ72: 7.54886917e-06 | BA72: 2.484212735e-12 | BB72: 3.62900937e-09 | BC72: 0.000757452067 | BD72: 0.002928529005 | BE72: 2.514658313e-06 | BF72: 0.000116817123
A73: 332500 | B73: 332500 | C73: 6.311294317e-06 | D73: 8.57340619e-07 | E73: 5.945073017e-05 | F73: 0.02588958485 | G73: 6.691293329e-12 | H73: 3.609169443e-06 | I73: 1.060756981e-12 | J73: 3.685058109e-08 | K73: 0.0008007983878 | L73: 7.03631329e-05 | M73: 0.001782934471 | N73: 0.001192384383 | O73: 5645 | Q73: 332500 | R73: 6.311294317e-06 | S73: 8.57340619e-07 | T73: 5.945073017e-05 | U73: 0.02588958485 | V73: 6.691293329e-12 | W73: 3.609169443e-06 | X73: 1.060756981e-12 | Y73: 3.685058109e-08 | Z73: 0.0008007983878 | AA73: 7.03631329e-05 | AB73: 0.001782934471 | AC73: 0.001192384383 | AD73: 332500 | AE73: Hardware manufacturing | AF73: 5645 | AG73: 0.03562725642 | AH73: 0.004839687795 | AI73: 0.3355993718 | AJ73: 146.1467065 | AK73: 3.777235084e-08 | AL73: 0.02037376151 | AM73: 5.987973159e-09 | AN73: 0.0002080215303 | AO73: 4.520506899 | AP73: 0.3971998852 | AQ73: 10.06466509 | AR73: 6.73100984
A74: 332600 | B74: 332600 | C74: 1.910709099e-05 | D74: 0.0004014331722 | E74: 0.0001048031764 | F74: 0.03782203099 | G74: 1.061268179e-11 | H74: 1.110270527e-05 | I74: 1.497257095e-12 | J74: 1.154029986e-07 | K74: 0.001153789945 | L74: 1.343155398e-05 | M74: 0.002005263655 | N74: 0.001339350833 | O74: 37044 | Q74: 332600 | R74: 1.910709099e-05 | S74: 0.0004014331722 | T74: 0.0001048031764 | U74: 0.03782203099 | V74: 1.061268179e-11 | W74: 1.110270527e-05 | X74: 1.497257095e-12 | Y74: 1.154029986e-07 | Z74: 0.001153789945 | AA74: 1.343155398e-05 | AB74: 0.002005263655 | AC74: 0.001339350833 | AD74: 332600 | AE74: Spring and wire product manufacturing | AF74: 37044 | AG74: 0.7078030787 | AH74: 14.87069043 | AI74: 3.882328868 | AJ74: 1401.079316 | AK74: 3.931361844e-07 | AL74: 0.4112886138 | AM74: 5.546439183e-08 | AN74: 0.00427498868 | AO74: 42.74099473 | AP74: 0.4975584856 | AQ74: 74.28298685 | AR74: 49.61491227 | AU74: 21387.13799 | AV74: 8383.409721 | AW74: 3984388.166 | AX74: 5756929.976 | AY74: 0.005948984122 | AZ74: 4122.136448 | BA74: 0.00112991226 | BB74: 1.324436351 | BC74: 298630.2645 | BD74: 78954706.16 | BE74: 7026568.819 | BF74: 409872.9902
A75: 332710 | B75: 332710 | C75: 6.179725808e-06 | D75: 1.551640095e-06 | E75: 9.948074946e-06 | F75: 0.0211334479 | G75: 1.772327621e-11 | H75: 2.599707978e-06 | I75: 2.973534154e-12 | J75: 8.069127638e-09 | K75: 0.0006707657129 | L75: 1.984184022e-05 | M75: 0.002436297167 | N75: 0.001196809889 | O75: 29110 | Q75: 332710 | R75: 6.179725808e-06 | S75: 1.551640095e-06 | T75: 9.948074946e-06 | U75: 0.0211334479 | V75: 1.772327621e-11 | W75: 2.599707978e-06 | X75: 2.973534154e-12 | Y75: 8.069127638e-09 | Z75: 0.0006707657129 | AA75: 1.984184022e-05 | AB75: 0.002436297167 | AC75: 0.001196809889 | AD75: 332710 | AE75: Machine shops | AF75: 29110 | AG75: 0.1798918183 | AH75: 0.04516824317 | AI75: 0.2895884617 | AJ75: 615.1946683 | AK75: 5.159245704e-07 | AL75: 0.07567749925 | AM75: 8.655957922e-08 | AN75: 0.0002348923055 | AO75: 19.5259899 | AP75: 0.5775959688 | AQ75: 70.92061054 | AR75: 34.83913588
A76: 332720 | B76: 332720 | C76: 4.983357444e-06 | D76: 6.038927949e-07 | E76: 7.646103396e-06 | F76: 0.01750537156 | G76: 5.507385254e-12 | H76: 2.378681164e-06 | I76: 7.535244729e-13 | J76: 7.35114411e-09 | K76: 0.0006653200277 | L76: 3.746687861e-05 | M76: 0.001344393705 | N76: 0.0007969967859 | O76: 26122 | Q76: 332720 | R76: 4.983357444e-06 | S76: 6.038927949e-07 | T76: 7.646103396e-06 | U76: 0.01750537156 | V76: 5.507385254e-12 | W76: 2.378681164e-06 | X76: 7.535244729e-13 | Y76: 7.35114411e-09 | Z76: 0.0006653200277 | AA76: 3.746687861e-05 | AB76: 0.001344393705 | AC76: 0.0007969967859 | AD76: 332720 | AE76: Turned product and screw, nut, and bolt manufacturing | AF76: 26122 | AG76: 0.1301752632 | AH76: 0.01577488759 | AI76: 0.1997315129 | AJ76: 457.275316 | AK76: 1.438639176e-07 | AL76: 0.06213590937 | AM76: 1.968356628e-08 | AN76: 0.0001920265864 | AO76: 17.37948976 | AP76: 0.9787098031 | AQ76: 35.11825237 | AR76: 20.81915004
A77: 332800 | B77: 332800 | C77: 8.062132023e-05 | D77: 2.851323099e-05 | E77: 0.0003554786483 | F77: 0.1095210601 | G77: 9.608776803e-11 | H77: 3.838041701e-05 | I77: 1.237946127e-11 | J77: 2.121801138e-08 | K77: 0.003446862603 | L77: 1.968070953e-07 | M77: 0.001717991617 | N77: 0.0019422254 | O77: 4470 | Q77: 332800 | R77: 8.062132023e-05 | S77: 2.851323099e-05 | T77: 0.0003554786483 | U77: 0.1095210601 | V77: 9.608776803e-11 | W77: 3.838041701e-05 | X77: 1.237946127e-11 | Y77: 2.121801138e-08 | Z77: 0.003446862603 | AA77: 1.968070953e-07 | AB77: 0.001717991617 | AC77: 0.0019422254 | AD77: 332800 | AE77: Coating, engraving, heat treating and allied activities | AF77: 4470 | AG77: 0.3603773014 | AH77: 0.1274541425 | AI77: 1.588989558 | AJ77: 489.5591388 | AK77: 4.295123231e-07 | AL77: 0.1715604641 | AM77: 5.533619186e-08 | AN77: 9.484451086e-05 | AO77: 15.40747583 | AP77: 0.0008797277161 | AQ77: 7.679422527 | AR77: 8.681747537
A78: 332913 | B78: 332913 | C78: 4.131296471e-06 | D78: 4.803229291e-07 | E78: 2.791063623e-05 | F78: 0.01146255557 | G78: 5.954866666e-12 | H78: 1.792743813e-06 | I78: 1.116520578e-12 | J78: 1.022229569e-08 | K78: 0.0006427420677 | L78: 3.814033616e-06 | M78: 0.001238518067 | N78: 0.0008264383184 | O78: 24115 | Q78: 332913 | R78: 4.131296471e-06 | S78: 4.803229291e-07 | T78: 2.791063623e-05 | U78: 0.01146255557 | V78: 5.954866666e-12 | W78: 1.792743813e-06 | X78: 1.116520578e-12 | Y78: 1.022229569e-08 | Z78: 0.0006427420677 | AA78: 3.814033616e-06 | AB78: 0.001238518067 | AC78: 0.0008264383184 | AD78: 332913 | AE78: Plumbing fixture fitting and trim manufacturing | AF78: 24115 | AG78: 0.0996262144 | AH78: 0.01158298744 | AI78: 0.6730649926 | AJ78: 276.4195275 | AK78: 1.436016097e-07 | AL78: 0.04323201705 | AM78: 2.692489374e-08 | AN78: 0.0002465106606 | AO78: 15.49972496 | AP78: 0.09197542065 | AQ78: 29.86686319 | AR78: 19.92956005
A79: 33291A | B79: 33291A | C79: 4.140635849e-06 | D79: 4.43177895e-07 | E79: 3.856475089e-06 | F79: 0.0120233443 | G79: 7.188171927e-12 | H79: 3.382584951e-06 | I79: 5.088252097e-13 | J79: 8.731054308e-09 | K79: 0.0005535525389 | L79: 2.723921341e-05 | M79: 0.001295051095 | N79: 0.000767444632 | O79: 5983 | Q79: 33291A | R79: 4.140635849e-06 | S79: 4.43177895e-07 | T79: 3.856475089e-06 | U79: 0.0120233443 | V79: 7.188171927e-12 | W79: 3.382584951e-06 | X79: 5.088252097e-13 | Y79: 8.731054308e-09 | Z79: 0.0005535525389 | AA79: 2.723921341e-05 | AB79: 0.001295051095 | AC79: 0.000767444632 | AD79: 33291A | AE79: Valve and fittings other than plumbing | AF79: 5983 | AG79: 0.02477342429 | AH79: 0.002651533346 | AI79: 0.02307329046 | AJ79: 71.93566894 | AK79: 4.300683264e-08 | AL79: 0.02023800576 | AM79: 3.04430123e-09 | AN79: 5.223789793e-05 | AO79: 3.31190484 | AP79: 0.1629722138 | AQ79: 7.748290704 | AR79: 4.591621233
A80: 332991 | B80: 332991 | C80: 1.14551409e-05 | D80: 8.890713271e-06 | E80: 2.423352021e-05 | F80: 0.0385242102 | G80: 4.74126996e-12 | H80: 8.483159799e-06 | I80: 1.477805514e-12 | J80: 7.210778507e-09 | K80: 0.0009414905051 | L80: 1.208813529e-06 | M80: 0.001766136833 | N80: 0.0006921476275 | O80: 5949 | Q80: 332991 | R80: 1.14551409e-05 | S80: 8.890713271e-06 | T80: 2.423352021e-05 | U80: 0.0385242102 | V80: 4.74126996e-12 | W80: 8.483159799e-06 | X80: 1.477805514e-12 | Y80: 7.210778507e-09 | Z80: 0.0009414905051 | AA80: 1.208813529e-06 | AB80: 0.001766136833 | AC80: 0.0006921476275 | AD80: 332991 | AE80: Ball and roller bearing manufacturing | AF80: 5949 | AG80: 0.06814663324 | AH80: 0.05289085325 | AI80: 0.1441652118 | AJ80: 229.1805265 | AK80: 2.820581499e-08 | AL80: 0.05046631764 | AM80: 8.791465001e-09 | AN80: 4.289692134e-05 | AO80: 5.600927015 | AP80: 0.007191231682 | AQ80: 10.50674802 | AR80: 4.117586236
A81: 332996 | B81: 332996 | C81: 3.345023753e-05 | D81: 3.761556979e-06 | E81: 8.29203151e-06 | F81: 0.019562324 | G81: 1.2089594e-11 | H81: 1.428348625e-05 | I81: 2.527714011e-12 | J81: 3.629239869e-08 | K81: 0.002289129548 | L81: 1.083373492e-05 | M81: 0.001632937805 | N81: 0.0009029683911 | O81: 13063 | Q81: 332996 | R81: 3.345023753e-05 | S81: 3.761556979e-06 | T81: 8.29203151e-06 | U81: 0.019562324 | V81: 1.2089594e-11 | W81: 1.428348625e-05 | X81: 2.527714011e-12 | Y81: 3.629239869e-08 | Z81: 0.002289129548 | AA81: 1.083373492e-05 | AB81: 0.001632937805 | AC81: 0.0009029683911 | AD81: 332996 | AE81: Fabricated pipe and pipe fitting manufacturing | AF81: 13063 | AG81: 0.4369604528 | AH81: 0.04913721882 | AI81: 0.1083188076 | AJ81: 255.5426384 | AK81: 1.579263665e-07 | AL81: 0.1865851809 | AM81: 3.301952813e-08 | AN81: 0.000474087604 | AO81: 29.90289928 | AP81: 0.1415210793 | AQ81: 21.33106654 | AR81: 11.79547609
A82: 33299A | B82: 33299A | C82: 4.927328589e-05 | D82: 1.532162369e-05 | E82: 9.976742435e-05 | F82: 0.01097266004 | G82: 6.307406379e-12 | H82: 1.576639331e-05 | I82: 1.30729999e-12 | J82: 8.277620526e-09 | K82: 0.001062671997 | L82: 2.449074401e-05 | M82: 0.001555384126 | N82: 0.0005935666217 | O82: 13901 | Q82: 33299A | R82: 4.927328589e-05 | S82: 1.532162369e-05 | T82: 9.976742435e-05 | U82: 0.01097266004 | V82: 6.307406379e-12 | W82: 1.576639331e-05 | X82: 1.30729999e-12 | Y82: 8.277620526e-09 | Z82: 0.001062671997 | AA82: 2.449074401e-05 | AB82: 0.001555384126 | AC82: 0.0005935666217 | AD82: 33299A | AE82: Ammunition, arms, ordnance, and accessories manufacturing | AF82: 13901 | AG82: 0.6849479471 | AH82: 0.212985891 | AI82: 1.386866966 | AJ82: 152.5309471 | AK82: 8.767925607e-08 | AL82: 0.2191686334 | AM82: 1.817277716e-08 | AN82: 0.0001150672029 | AO82: 14.77220343 | AP82: 0.3404458324 | AQ82: 21.62139474 | AR82: 8.251169608
A83: 332999 | B83: 332999 | C83: 3.166957541e-05 | D83: 4.133990624e-06 | E83: 4.15106036e-05 | F83: 0.02482343293 | G83: 1.758038173e-11 | H83: 2.788332418e-05 | I83: 4.051307021e-12 | J83: 3.194680058e-08 | K83: 0.002177951255 | L83: 0.000111111025 | M83: 0.001896252781 | N83: 0.001627843436 | O83: 24691 | Q83: 332999 | R83: 3.166957541e-05 | S83: 4.133990624e-06 | T83: 4.15106036e-05 | U83: 0.02482343293 | V83: 1.758038173e-11 | W83: 2.788332418e-05 | X83: 4.051307021e-12 | Y83: 3.194680058e-08 | Z83: 0.002177951255 | AA83: 0.000111111025 | AB83: 0.001896252781 | AC83: 0.001627843436 | AD83: 332999 | AE83: Other fabricated metal manufacturing | AF83: 24691 | AG83: 0.7819534865 | AH83: 0.1020723625 | AI83: 1.024938313 | AJ83: 612.9153824 | AK83: 4.340772052e-07 | AL83: 0.6884671573 | AM83: 1.000308217e-07 | AN83: 0.000788798453 | AO83: 53.77579444 | AP83: 2.743442318 | AQ83: 46.82037742 | AR83: 40.19308229
A84: 333111 | B84: 333111 | C84: 3.870748785e-05 | D84: 1.696511835e-06 | E84: 5.379996899e-05 | F84: 0.008402686101 | G84: 2.761511455e-12 | H84: 6.114141546e-06 | I84: 1.45025625e-12 | J84: 4.909166853e-09 | K84: 0.000754441509 | L84: 0 | M84: 0.0006542000785 | N84: 0.0003271285559 | O84: 7392 | Q84: 333111 | R84: 3.870748785e-05 | S84: 1.696511835e-06 | T84: 5.379996899e-05 | U84: 0.008402686101 | V84: 2.761511455e-12 | W84: 6.114141546e-06 | X84: 1.45025625e-12 | Y84: 4.909166853e-09 | Z84: 0.000754441509 | AA84: 0 | AB84: 0.0006542000785 | AC84: 0.0003271285559 | AD84: 333111 | AE84: Farm machinery and equipment manufacturing | AF84: 7392 | AG84: 0.2861257502 | AH84: 0.01254061549 | AI84: 0.3976893708 | AJ84: 62.11265566 | AK84: 2.041309267e-08 | AL84: 0.04519573431 | AM84: 1.07202942e-08 | AN84: 3.628856138e-05 | AO84: 5.576831635 | AP84: 0 | AQ84: 4.83584698 | AR84: 2.418134285
A85: 333112 | B85: 333112 | C85: 6.697635116e-06 | D85: 7.13787985e-07 | E85: 9.100158295e-06 | F85: 0.01233871941 | G85: 2.29903655e-12 | H85: 1.721818228e-06 | I85: 3.277846756e-13 | J85: 5.155670059e-09 | K85: 0.0003661814598 | L85: 5.983461899e-05 | M85: 0.0004902294369 | N85: 0.0001498290472 | O85: 32074 | Q85: 333112 | R85: 6.697635116e-06 | S85: 7.13787985e-07 | T85: 9.100158295e-06 | U85: 0.01233871941 | V85: 2.29903655e-12 | W85: 1.721818228e-06 | X85: 3.277846756e-13 | Y85: 5.155670059e-09 | Z85: 0.0003661814598 | AA85: 5.983461899e-05 | AB85: 0.0004902294369 | AC85: 0.0001498290472 | AD85: 333112 | AE85: Lawn and garden equipment manufacturing | AF85: 32074 | AG85: 0.2148199487 | AH85: 0.02289403583 | AI85: 0.2918784771 | AJ85: 395.7520863 | AK85: 7.373929832e-08 | AL85: 0.05522559785 | AM85: 1.051336569e-08 | AN85: 0.0001653629615 | AO85: 11.74490414 | AP85: 1.919135569 | AQ85: 15.72361896 | AR85: 4.805616861
A86: 333120 | B86: 333120 | C86: 2.375581477e-05 | D86: 2.091267475e-06 | E86: 4.823899333e-06 | F86: 0.02522873002 | G86: 2.470081873e-12 | H86: 3.884757726e-06 | I86: 1.001919226e-12 | J86: 4.604791048e-09 | K86: 0.0007779239205 | L86: 0 | M86: 0.0009085384781 | N86: 0.0002938123085 | O86: 16946 | Q86: 333120 | R86: 2.375581477e-05 | S86: 2.091267475e-06 | T86: 4.823899333e-06 | U86: 0.02522873002 | V86: 2.470081873e-12 | W86: 3.884757726e-06 | X86: 1.001919226e-12 | Y86: 4.604791048e-09 | Z86: 0.0007779239205 | AA86: 0 | AB86: 0.0009085384781 | AC86: 0.0002938123085 | AD86: 333120 | AE86: Construction machinery manufacturing | AF86: 16946 | AG86: 0.4025660371 | AH86: 0.03543861863 | AI86: 0.08174579809 | AJ86: 427.5260589 | AK86: 4.185800742e-08 | AL86: 0.06583110443 | AM86: 1.69785232e-08 | AN86: 7.80327891e-05 | AO86: 13.18269876 | AP86: 0 | AQ86: 15.39609305 | AR86: 4.97894338
A87: 333130 | B87: 333130 | C87: 5.095539404e-06 | D87: 1.750443794e-06 | E87: 2.143103491e-06 | F87: 0.01306214654 | G87: 2.324413096e-12 | H87: 1.957054362e-06 | I87: 7.813689369e-13 | J87: 4.742794366e-09 | K87: 0.0003214400445 | L87: 0 | M87: 0.001139519382 | N87: 0.0002785422532 | O87: 14325 | Q87: 333130 | R87: 5.095539404e-06 | S87: 1.750443794e-06 | T87: 2.143103491e-06 | U87: 0.01306214654 | V87: 2.324413096e-12 | W87: 1.957054362e-06 | X87: 7.813689369e-13 | Y87: 4.742794366e-09 | Z87: 0.0003214400445 | AA87: 0 | AB87: 0.001139519382 | AC87: 0.0002785422532 | AD87: 333130 | AE87: Mining and oil and gas field machinery manufacturing | AF87: 14325 | AG87: 0.07299360196 | AH87: 0.02507510735 | AI87: 0.03069995751 | AJ87: 187.1152492 | AK87: 3.32972176e-08 | AL87: 0.02803480374 | AM87: 1.119311002e-08 | AN87: 6.794052929e-05 | AO87: 4.604628637 | AP87: 0 | AQ87: 16.32361514 | AR87: 3.990117777
A88: 333242 | B88: 333242 | C88: 1.265619065e-06 | D88: 1.555785003e-07 | E88: 4.217329209e-05 | F88: 0.007263268697 | G88: 3.306327206e-12 | H88: 1.520764029e-07 | I88: 1.891553205e-13 | J88: 4.874773622e-09 | K88: 0.0001563268073 | L88: 1.661883213e-07 | M88: 0.001392091626 | N88: 0.0005855613717 | O88: 24425 | Q88: 333242 | R88: 1.265619065e-06 | S88: 1.555785003e-07 | T88: 4.217329209e-05 | U88: 0.007263268697 | V88: 3.306327206e-12 | W88: 1.520764029e-07 | X88: 1.891553205e-13 | Y88: 4.874773622e-09 | Z88: 0.0001563268073 | AA88: 1.661883213e-07 | AB88: 0.001392091626 | AC88: 0.0005855613717 | AD88: 333242 | AE88: Semiconductor machinery manufacturing | AF88: 24425 | AG88: 0.03091274566 | AH88: 0.003800004869 | AI88: 1.030082659 | AJ88: 177.4053379 | AK88: 8.0757042e-08 | AL88: 0.003714466141 | AM88: 4.620118704e-09 | AN88: 0.0001190663457 | AO88: 3.818282269 | AP88: 0.004059149747 | AQ88: 34.00183797 | AR88: 14.3023365
A89: 33329A | B89: 33329A | C89: 1.652629806e-05 | D89: 6.626437968e-06 | E89: 1.45036231e-05 | F89: 0.01673831519 | G89: 5.651188372e-12 | H89: 8.461550655e-06 | I89: 9.10796375e-13 | J89: 4.583754519e-08 | K89: 0.0004382333224 | L89: 2.612461378e-05 | M89: 0.001544764697 | N89: 0.0006199010875 | O89: 4553 | Q89: 33329A | R89: 1.652629806e-05 | S89: 6.626437968e-06 | T89: 1.45036231e-05 | U89: 0.01673831519 | V89: 5.651188372e-12 | W89: 8.461550655e-06 | X89: 9.10796375e-13 | Y89: 4.583754519e-08 | Z89: 0.0004382333224 | AA89: 2.612461378e-05 | AB89: 0.001544764697 | AC89: 0.0006199010875 | AD89: 33329A | AE89: Other industrial machinery manufacturing | AF89: 4553 | AG89: 0.07524423508 | AH89: 0.03017017207 | AI89: 0.06603499599 | AJ89: 76.20954905 | AK89: 2.572986066e-08 | AL89: 0.03852544013 | AM89: 4.146855895e-09 | AN89: 0.0002086983433 | AO89: 1.995276317 | AP89: 0.1189453665 | AQ89: 7.033313667 | AR89: 2.822409652
A90: 333314 | B90: 333314 | C90: 1.610430217e-06 | D90: 3.038245803e-07 | E90: 5.425062759e-06 | F90: 0.007249643661 | G90: 1.199641336e-12 | H90: 3.218285153e-07 | I90: 3.218453846e-13 | J90: 7.412523135e-08 | K90: 0.0001950208454 | L90: 0 | M90: 0.001748002986 | N90: 0.0004962938397 | O90: 1179 | Q90: 333314 | R90: 1.610430217e-06 | S90: 3.038245803e-07 | T90: 5.425062759e-06 | U90: 0.007249643661 | V90: 1.199641336e-12 | W90: 3.218285153e-07 | X90: 3.218453846e-13 | Y90: 7.412523135e-08 | Z90: 0.0001950208454 | AA90: 0 | AB90: 0.001748002986 | AC90: 0.0004962938397 | AD90: 333314 | AE90: Optical instrument and lens manufacturing | AF90: 1179 | AG90: 0.001898697226 | AH90: 0.0003582091801 | AI90: 0.006396148993 | AJ90: 8.547329877 | AK90: 1.414377135e-09 | AL90: 0.0003794358195 | AM90: 3.794557084e-10 | AN90: 8.739364776e-05 | AO90: 0.2299295767 | AP90: 0 | AQ90: 2.060895521 | AR90: 0.585130437
A91: 333316 | B91: 333316 | C91: 7.679752438e-05 | D91: 2.063684398e-05 | E91: 0.0004897943849 | F91: 0.04556345147 | G91: 2.536163095e-11 | H91: 9.885768604e-06 | I91: 3.079108173e-12 | J91: 9.505855595e-08 | K91: 0.001905654704 | L91: 0.001800175607 | M91: 0.003101319462 | N91: 0.000866623609 | O91: 18358 | Q91: 333316 | R91: 7.679752438e-05 | S91: 2.063684398e-05 | T91: 0.0004897943849 | U91: 0.04556345147 | V91: 2.536163095e-11 | W91: 9.885768604e-06 | X91: 3.079108173e-12 | Y91: 9.505855595e-08 | Z91: 0.001905654704 | AA91: 0.001800175607 | AB91: 0.003101319462 | AC91: 0.000866623609 | AD91: 333316 | AE91: Photographic and photocopying equipment manufacturing | AF91: 18358 | AG91: 1.409848953 | AH91: 0.3788511818 | AI91: 8.991645317 | AJ91: 836.4538421 | AK91: 4.65588821e-07 | AL91: 0.18148294 | AM91: 5.652626783e-08 | AN91: 0.00174508497 | AO91: 34.98400905 | AP91: 33.04762379 | AQ91: 56.93402268 | AR91: 15.90947621
A92: 33331A | B92: 333318 | C92: 9.406670188e-05 | D92: 1.192544183e-05 | E92: 2.61544526e-05 | F92: 0.1906300315 | G92: 3.003910414e-11 | H92: 8.371715882e-06 | I92: 1.12326372e-11 | J92: 3.883222965e-08 | K92: 0.003542536648 | L92: 2.667342104e-05 | M92: 0.001695014985 | N92: 0.0003764701213 | O92: 4384 | Q92: 333318 | R92: 9.406670188e-05 | S92: 1.192544183e-05 | T92: 2.61544526e-05 | U92: 0.1906300315 | V92: 3.003910414e-11 | W92: 8.371715882e-06 | X92: 1.12326372e-11 | Y92: 3.883222965e-08 | Z92: 0.003542536648 | AA92: 2.667342104e-05 | AB92: 0.001695014985 | AC92: 0.0003764701213 | AD92: 333318 | AE92: Other commercial and service industry machinery manufacturing | AF92: 4384 | AG92: 0.4123884211 | AH92: 0.05228113696 | AI92: 0.1146611202 | AJ92: 835.7220579 | AK92: 1.316914326e-07 | AL92: 0.03670160243 | AM92: 4.92438815e-08 | AN92: 0.0001702404948 | AO92: 15.53048066 | AP92: 0.1169362778 | AQ92: 7.430945694 | AR92: 1.650445012
A93: 333414 | B93: 333414 | C93: 9.486559649e-06 | D93: 1.239097161e-06 | E93: 5.041266928e-06 | F93: 0.02478134714 | G93: 2.949606465e-11 | H93: 2.51994436e-06 | I93: 1.28300492e-12 | J93: 3.686037527e-08 | K93: 0.0005266295843 | L93: 4.679522592e-05 | M93: 0.001182320097 | N93: 0.0005696533004 | O93: 32793 | Q93: 333414 | R93: 9.486559649e-06 | S93: 1.239097161e-06 | T93: 5.041266928e-06 | U93: 0.02478134714 | V93: 2.949606465e-11 | W93: 2.51994436e-06 | X93: 1.28300492e-12 | Y93: 3.686037527e-08 | Z93: 0.0005266295843 | AA93: 4.679522592e-05 | AB93: 0.001182320097 | AC93: 0.0005696533004 | AD93: 333414 | AE93: Heating equipment (except warm air furnaces) manufacturing | AF93: 32793 | AG93: 0.3110927506 | AH93: 0.04063371321 | AI93: 0.1653182664 | AJ93: 812.6547169 | AK93: 9.67264448e-07 | AL93: 0.08263653539 | AM93: 4.207358034e-08 | AN93: 0.001208762286 | AO93: 17.26976396 | AP93: 1.534555844 | AQ93: 38.77182294 | AR93: 18.68064068
A94: 333415 | B94: 333415 | C94: 3.500253519e-06 | D94: 1.001250978e-05 | E94: 1.711787858e-06 | F94: 0.2808159189 | G94: 3.253161635e-12 | H94: 1.229029009e-06 | I94: 1.835417595e-12 | J94: 2.766912852e-08 | K94: 0.0003406409953 | L94: 4.928826148e-06 | M94: 0.0009221417415 | N94: 0.0002847093021 | O94: 5836 | Q94: 333415 | R94: 3.500253519e-06 | S94: 1.001250978e-05 | T94: 1.711787858e-06 | U94: 0.2808159189 | V94: 3.253161635e-12 | W94: 1.229029009e-06 | X94: 1.835417595e-12 | Y94: 2.766912852e-08 | Z94: 0.0003406409953 | AA94: 4.928826148e-06 | AB94: 0.0009221417415 | AC94: 0.0002847093021 | AD94: 333415 | AE94: Air conditioning, refrigeration, and warm air heating equipment manufacturing | AF94: 5836 | AG94: 0.02042747954 | AH94: 0.05843300708 | AI94: 0.00998999394 | AJ94: 1638.841703 | AK94: 1.89854513e-08 | AL94: 0.007172613294 | AM94: 1.071149708e-08 | AN94: 0.000161477034 | AO94: 1.987980849 | AP94: 0.0287646294 | AQ94: 5.381619203 | AR94: 1.661563487
A95: 333413 | B95: 333413 | C95: 2.860797348e-06 | D95: 3.681320944e-07 | E95: 5.911556291e-05 | F95: 0.02074529184 | G95: 2.018185842e-12 | H95: 4.176683207e-06 | I95: 2.976143925e-11 | J95: 5.74238119e-09 | K95: 0.0003362377995 | L95: 0 | M95: 0.001341628816 | N95: 0.000455205651 | O95: 6385 | Q95: 333413 | R95: 2.860797348e-06 | S95: 3.681320944e-07 | T95: 5.911556291e-05 | U95: 0.02074529184 | V95: 2.018185842e-12 | W95: 4.176683207e-06 | X95: 2.976143925e-11 | Y95: 5.74238119e-09 | Z95: 0.0003362377995 | AA95: 0 | AB95: 0.001341628816 | AC95: 0.000455205651 | AD95: 333413 | AE95: Industrial and commercial fan and blower and air purification equipment manufacturing | AF95: 6385 | AG95: 0.01826619107 | AH95: 0.002350523423 | AI95: 0.3774528692 | AJ95: 132.4586884 | AK95: 1.28861166e-08 | AL95: 0.02666812228 | AM95: 1.900267896e-07 | AN95: 3.66651039e-05 | AO95: 2.14687835 | AP95: 0 | AQ95: 8.56629999 | AR95: 2.906488082
A96: 333511 | B96: 333511 | C96: 7.258603216e-06 | D96: 1.31775645e-06 | E96: 2.252681341e-05 | F96: 0.01970736104 | G96: 1.172889293e-10 | H96: 7.393780052e-06 | I96: 3.220912561e-12 | J96: 5.826705684e-09 | K96: 0.0004387830976 | L96: 0.0001759057342 | M96: 0.002286815523 | N96: 0.001199171636 | O96: 10307 | Q96: 333511 | R96: 7.258603216e-06 | S96: 1.31775645e-06 | T96: 2.252681341e-05 | U96: 0.01970736104 | V96: 1.172889293e-10 | W96: 7.393780052e-06 | X96: 3.220912561e-12 | Y96: 5.826705684e-09 | Z96: 0.0004387830976 | AA96: 0.0001759057342 | AB96: 0.002286815523 | AC96: 0.001199171636 | AD96: 333511 | AE96: Industrial mold manufacturing | AF96: 10307 | AG96: 0.07481442335 | AH96: 0.01358211573 | AI96: 0.2321838659 | AJ96: 203.1237702 | AK96: 1.208896994e-06 | AL96: 0.076207691 | AM96: 3.319794576e-08 | AN96: 6.005585549e-05 | AO96: 4.522537387 | AP96: 1.813060403 | AQ96: 23.5702076 | AR96: 12.35986205
A97: 333514 | B97: 333514 | C97: 5.3775568e-06 | D97: 9.278599119e-07 | E97: 3.502580661e-06 | F97: 0.01682998098 | G97: 1.107253044e-11 | H97: 1.659940506e-06 | I97: 7.299095622e-13 | J97: 6.194274336e-09 | K97: 0.0002772898208 | L97: 0.0005691478972 | M97: 0.002003988329 | N97: 0.0007692968353 | O97: 7601 | Q97: 333514 | R97: 5.3775568e-06 | S97: 9.278599119e-07 | T97: 3.502580661e-06 | U97: 0.01682998098 | V97: 1.107253044e-11 | W97: 1.659940506e-06 | X97: 7.299095622e-13 | Y97: 6.194274336e-09 | Z97: 0.0002772898208 | AA97: 0.0005691478972 | AB97: 0.002003988329 | AC97: 0.0007692968353 | AD97: 333514 | AE97: Special tool, die, jig, and fixture manufacturing | AF97: 7601 | AG97: 0.04087480924 | AH97: 0.00705266319 | AI97: 0.02662311561 | AJ97: 127.9246855 | AK97: 8.416230389e-08 | AL97: 0.01261720779 | AM97: 5.548042582e-09 | AN97: 4.708267923e-05 | AO97: 2.107679928 | AP97: 4.326093167 | AQ97: 15.23231528 | AR97: 5.847425245
A98: 333517 | B98: 333517 | C98: 1.241182996e-05 | D98: 1.195412722e-06 | E98: 3.491857632e-06 | F98: 0.01217504763 | G98: 4.147170966e-12 | H98: 1.411610837e-06 | I98: 7.115693226e-13 | J98: 5.041559744e-09 | K98: 0.0003578506941 | L98: 0 | M98: 0.002017134635 | N98: 0.000665308128 | O98: 8384 | Q98: 333517 | R98: 1.241182996e-05 | S98: 1.195412722e-06 | T98: 3.491857632e-06 | U98: 0.01217504763 | V98: 4.147170966e-12 | W98: 1.411610837e-06 | X98: 7.115693226e-13 | Y98: 5.041559744e-09 | Z98: 0.0003578506941 | AA98: 0 | AB98: 0.002017134635 | AC98: 0.000665308128 | AD98: 333517 | AE98: Machine tool manufacturing | AF98: 8384 | AG98: 0.1040607824 | AH98: 0.01002234026 | AI98: 0.02927573439 | AJ98: 102.0755993 | AK98: 3.476988138e-08 | AL98: 0.01183494526 | AM98: 5.965797201e-09 | AN98: 4.226843689e-05 | AO98: 3.00022022 | AP98: 0 | AQ98: 16.91165678 | AR98: 5.577943345
A99: 33351B | B99: 33351B | C99: 7.502198081e-06 | D99: 6.075159153e-07 | E99: 3.484629112e-06 | F99: 0.0152926474 | G99: 2.009396485e-12 | H99: 9.743449176e-07 | I99: 4.195900169e-13 | J99: 4.918560694e-09 | K99: 0.0003259717194 | L99: 6.144790677e-07 | M99: 0.001666324327 | N99: 0.0006262603902 | O99: 12065 | Q99: 33351B | R99: 7.502198081e-06 | S99: 6.075159153e-07 | T99: 3.484629112e-06 | U99: 0.0152926474 | V99: 2.009396485e-12 | W99: 9.743449176e-07 | X99: 4.195900169e-13 | Y99: 4.918560694e-09 | Z99: 0.0003259717194 | AA99: 6.144790677e-07 | AB99: 0.001666324327 | AC99: 0.0006262603902 | AD99: 33351B | AE99: Cutting and machine tool accessory, rolling mill, and other metalworking machinery manufacturing | AF99: 12065 | AG99: 0.09051401985 | AH99: 0.007329679519 | AI99: 0.04204205023 | AJ99: 184.5057908 | AK99: 2.424336859e-08 | AL99: 0.01175547143 | AM99: 5.062353554e-09 | AN99: 5.934243477e-05 | AO99: 3.932848795 | AP99: 0.007413689952 | AQ99: 20.10420301 | AR99: 7.555831608
A100: 333611 | B100: 333611 | C100: 2.920314131e-05 | D100: 7.695410354e-06 | E100: 3.940932826e-06 | F100: 0.008810016787 | G100: 3.701737215e-12 | H100: 3.747658951e-06 | I100: 3.165945567e-12 | J100: 2.26555409e-08 | K100: 0.001180516899 | L100: 1.897753184e-05 | M100: 0.000876428202 | N100: 0.0005632706048 | O100: 3031 | Q100: 333611 | R100: 2.920314131e-05 | S100: 7.695410354e-06 | T100: 3.940932826e-06 | U100: 0.008810016787 | V100: 3.701737215e-12 | W100: 3.747658951e-06 | X100: 3.165945567e-12 | Y100: 2.26555409e-08 | Z100: 0.001180516899 | AA100: 1.897753184e-05 | AB100: 0.000876428202 | AC100: 0.0005632706048 | AD100: 333611 | AE100: Turbine and turbine generator set units manufacturing | AF100: 3031 | AG100: 0.0885147213 | AH100: 0.02332478878 | AI100: 0.0119449674 | AJ100: 26.70316088 | AK100: 1.12199655e-08 | AL100: 0.01135915428 | AM100: 9.595981013e-09 | AN100: 6.866894447e-05 | AO100: 3.57814672 | AP100: 0.05752089901 | AQ100: 2.65645388 | AR100: 1.707273203
A101: 333612 | B101: 333612 | C101: 6.631782088e-06 | D101: 7.776073266e-07 | E101: 1.352283333e-06 | F101: 0.02174909518 | G101: 1.472228917e-12 | H101: 1.045583052e-06 | I101: 3.781999472e-13 | J101: 4.350463864e-09 | K101: 0.0003389652468 | L101: 0 | M101: 0.001257796393 | N101: 0.0003635643077 | O101: 4936 | Q101: 333612 | R101: 6.631782088e-06 | S101: 7.776073266e-07 | T101: 1.352283333e-06 | U101: 0.02174909518 | V101: 1.472228917e-12 | W101: 1.045583052e-06 | X101: 3.781999472e-13 | Y101: 4.350463864e-09 | Z101: 0.0003389652468 | AA101: 0 | AB101: 0.001257796393 | AC101: 0.0003635643077 | AD101: 333612 | AE101: Speed changer, industrial high-speed drive, and gear manufacturing | AF101: 4936 | AG101: 0.03273447639 | AH101: 0.003838269764 | AI101: 0.006674870534 | AJ101: 107.3535338 | AK101: 7.266921936e-09 | AL101: 0.005160997945 | AM101: 1.866794939e-09 | AN101: 2.147388963e-05 | AO101: 1.673132458 | AP101: 0 | AQ101: 6.208482994 | AR101: 1.794553423
A102: 333613 | B102: 333613 | C102: 1.010017636e-05 | D102: 1.170077373e-06 | E102: 1.826602703e-06 | F102: 0.03143431689 | G102: 1.386002181e-12 | H102: 1.110203219e-05 | I102: 5.594802937e-13 | J102: 4.528114698e-09 | K102: 0.0004748629473 | L102: 0.0001767512716 | M102: 0.001182903887 | N102: 0.0005621827032 | O102: 26159 | Q102: 333613 | R102: 1.010017636e-05 | S102: 1.170077373e-06 | T102: 1.826602703e-06 | U102: 0.03143431689 | V102: 1.386002181e-12 | W102: 1.110203219e-05 | X102: 5.594802937e-13 | Y102: 4.528114698e-09 | Z102: 0.0004748629473 | AA102: 0.0001767512716 | AB102: 0.001182903887 | AC102: 0.0005621827032 | AD102: 333613 | AE102: Mechanical power transmission equipment manufacturing | AF102: 26159 | AG102: 0.2642105135 | AH102: 0.03060805401 | AI102: 0.0477821001 | AJ102: 822.2902956 | AK102: 3.625643106e-08 | AL102: 0.2904180601 | AM102: 1.4635445e-08 | AN102: 0.0001184509524 | AO102: 12.42193984 | AP102: 4.623636514 | AQ102: 30.94358279 | AR102: 14.70613733
A103: 333618 | B103: 333618 | C103: 4.33729145e-05 | D103: 5.106735654e-06 | E103: 1.246387074e-05 | F103: 0.0345205365 | G103: 1.623941277e-11 | H103: 5.341721445e-06 | I103: 3.398176613e-12 | J103: 3.900646971e-08 | K103: 0.001629108225 | L103: 0.002755993622 | M103: 0.0008439097731 | N103: 0.0005981801506 | O103: 8892 | Q103: 333618 | R103: 4.33729145e-05 | S103: 5.106735654e-06 | T103: 1.246387074e-05 | U103: 0.0345205365 | V103: 1.623941277e-11 | W103: 5.341721445e-06 | X103: 3.398176613e-12 | Y103: 3.900646971e-08 | Z103: 0.001629108225 | AA103: 0.002755993622 | AB103: 0.0008439097731 | AC103: 0.0005981801506 | AD103: 333618 | AE103: Other engine equipment manufacturing | AF103: 8892 | AG103: 0.3856719558 | AH103: 0.04540909344 | AI103: 0.1108287386 | AJ103: 306.9566106 | AK103: 1.444008583e-07 | AL103: 0.04749858709 | AM103: 3.021658645e-08 | AN103: 0.0003468455287 | AO103: 14.48603034 | AP103: 24.50629529 | AQ103: 7.504045702 | AR103: 5.319017899
A104: 333912 | B104: 333912 | C104: 4.839805181e-06 | D104: 1.363981839e-06 | E104: 5.187415524e-05 | F104: 0.0135142966 | G104: 1.375732232e-12 | H104: 1.42719726e-06 | I104: 3.807527787e-13 | J104: 5.020429328e-09 | K104: 0.0002927810113 | L104: 1.277442658e-06 | M104: 0.0008937146423 | N104: 0.0003957469737 | O104: 17400 | Q104: 333912 | R104: 4.839805181e-06 | S104: 1.363981839e-06 | T104: 5.187415524e-05 | U104: 0.0135142966 | V104: 1.375732232e-12 | W104: 1.42719726e-06 | X104: 3.807527787e-13 | Y104: 5.020429328e-09 | Z104: 0.0002927810113 | AA104: 1.277442658e-06 | AB104: 0.0008937146423 | AC104: 0.0003957469737 | AD104: 333912 | AE104: Air and gas compressor manufacturing | AF104: 17400 | AG104: 0.08421261015 | AH104: 0.02373328399 | AI104: 0.9026103011 | AJ104: 235.1487608 | AK104: 2.393774084e-08 | AL104: 0.02483323232 | AM104: 6.625098349e-09 | AN104: 8.73554703e-05 | AO104: 5.094389596 | AP104: 0.02222750225 | AQ104: 15.55063478 | AR104: 6.885997343
A105: 33391A | B105: 333914 | C105: 3.100072932e-06 | D105: 8.032897478e-07 | E105: 9.276603978e-07 | F105: 0.00980293331 | G105: 2.243695808e-12 | H105: 2.556735231e-06 | I105: 3.249760236e-13 | J105: 4.949459326e-09 | K105: 0.0002442426396 | L105: 1.903961373e-06 | M105: 0.0008110777118 | N105: 0.0004760265678 | O105: 28500 | Q105: 333914 | R105: 3.100072932e-06 | S105: 8.032897478e-07 | T105: 9.276603978e-07 | U105: 0.00980293331 | V105: 2.243695808e-12 | W105: 2.556735231e-06 | X105: 3.249760236e-13 | Y105: 4.949459326e-09 | Z105: 0.0002442426396 | AA105: 1.903961373e-06 | AB105: 0.0008110777118 | AC105: 0.0004760265678 | AD105: 333914 | AE105: Measuring, dispensing, and other pumping equipment manufacturing | AF105: 28500 | AG105: 0.08835207855 | AH105: 0.02289375781 | AI105: 0.02643832134 | AJ105: 279.3835993 | AK105: 6.394533053e-08 | AL105: 0.07286695408 | AM105: 9.261816672e-09 | AN105: 0.0001410595908 | AO105: 6.96091523 | AP105: 0.05426289912 | AQ105: 23.11571479 | AR105: 13.56675718
A106: 333920 | B106: 333920 | C106: 3.230636117e-06 | D106: 8.522439908e-07 | E106: 4.400111406e-06 | F106: 0.01445442985 | G106: 4.03716316e-12 | H106: 1.517588594e-06 | I106: 1.079580532e-12 | J106: 9.174327153e-09 | K106: 0.0003276270592 | L106: 2.068724379e-06 | M106: 0.0008144011511 | N106: 0.0003564616188 | O106: 3001 | Q106: 333920 | R106: 3.230636117e-06 | S106: 8.522439908e-07 | T106: 4.400111406e-06 | U106: 0.01445442985 | V106: 4.03716316e-12 | W106: 1.517588594e-06 | X106: 1.079580532e-12 | Y106: 9.174327153e-09 | Z106: 0.0003276270592 | AA106: 2.068724379e-06 | AB106: 0.0008144011511 | AC106: 0.0003564616188 | AD106: 333920 | AE106: Material handling equipment manufacturing | AF106: 3001 | AG106: 0.009695138988 | AH106: 0.002557584216 | AI106: 0.01320473433 | AJ106: 43.37774398 | AK106: 1.211552664e-08 | AL106: 0.00455428337 | AM106: 3.239821177e-09 | AN106: 2.753215579e-05 | AO106: 0.9832088047 | AP106: 0.006208241862 | AQ106: 2.444017854 | AR106: 1.069741318
A107: 333991 | B107: 333991 | C107: 3.245651798e-06 | D107: 5.828299115e-07 | E107: 4.173156284e-06 | F107: 0.009452242074 | G107: 1.775951708e-12 | H107: 1.299699566e-06 | I107: 7.549712172e-13 | J107: 6.188736142e-09 | K107: 0.0003228362083 | L107: 0 | M107: 0.001497944602 | N107: 0.0001596821039 | O107: 6731 | Q107: 333991 | R107: 3.245651798e-06 | S107: 5.828299115e-07 | T107: 4.173156284e-06 | U107: 0.009452242074 | V107: 1.775951708e-12 | W107: 1.299699566e-06 | X107: 7.549712172e-13 | Y107: 6.188736142e-09 | Z107: 0.0003228362083 | AA107: 0 | AB107: 0.001497944602 | AC107: 0.0001596821039 | AD107: 333991 | AE107: Power-driven handtool manufacturing | AF107: 6731 | AG107: 0.02184648225 | AH107: 0.003923028135 | AI107: 0.02808951495 | AJ107: 63.6230414 | AK107: 1.195393094e-08 | AL107: 0.008748277781 | AM107: 5.081711263e-09 | AN107: 4.165638297e-05 | AO107: 2.173010518 | AP107: 0 | AQ107: 10.08266512 | AR107: 1.074820241
A108: 333993 | B108: 333993 | C108: 1.660606721e-06 | D108: 2.031402751e-07 | E108: 6.628291676e-07 | F108: 0.007688223101 | G108: 1.946754899e-12 | H108: 2.396858265e-07 | I108: 2.33655892e-13 | J108: 4.823433799e-09 | K108: 0.0001773736193 | L108: 1.585982398e-06 | M108: 0.001244703409 | N108: 0.0002912045783 | O108: 2561 | Q108: 333993 | R108: 1.660606721e-06 | S108: 2.031402751e-07 | T108: 6.628291676e-07 | U108: 0.007688223101 | V108: 1.946754899e-12 | W108: 2.396858265e-07 | X108: 2.33655892e-13 | Y108: 4.823433799e-09 | Z108: 0.0001773736193 | AA108: 1.585982398e-06 | AB108: 0.001244703409 | AC108: 0.0002912045783 | AD108: 333993 | AE108: Packaging machinery manufacturing | AF108: 2561 | AG108: 0.004252813813 | AH108: 0.0005202422446 | AI108: 0.001697505498 | AJ108: 19.68953936 | AK108: 4.985639295e-09 | AL108: 0.0006138354016 | AM108: 5.983927394e-10 | AN108: 1.235281396e-05 | AO108: 0.4542538391 | AP108: 0.00406170092 | AQ108: 3.18768543 | AR108: 0.745774925
A109: 333994 | B109: 333994 | C109: 2.18776858e-06 | D109: 4.195098007e-07 | E109: 1.951214286e-06 | F109: 0.01449287347 | G109: 4.557472689e-12 | H109: 7.57639502e-07 | I109: 6.566877071e-13 | J109: 1.172173369e-08 | K109: 0.0002132863375 | L109: 4.786804223e-06 | M109: 0.001558465098 | N109: 0.000479722827 | O109: 22650 | Q109: 333994 | R109: 2.18776858e-06 | S109: 4.195098007e-07 | T109: 1.951214286e-06 | U109: 0.01449287347 | V109: 4.557472689e-12 | W109: 7.57639502e-07 | X109: 6.566877071e-13 | Y109: 1.172173369e-08 | Z109: 0.0002132863375 | AA109: 4.786804223e-06 | AB109: 0.001558465098 | AC109: 0.000479722827 | AD109: 333994 | AE109: Industrial process furnace and oven manufacturing | AF109: 22650 | AG109: 0.04955295834 | AH109: 0.009501896986 | AI109: 0.04419500357 | AJ109: 328.2635841 | AK109: 1.032267564e-07 | AL109: 0.01716053472 | AM109: 1.487397657e-08 | AN109: 0.0002654972681 | AO109: 4.830935543 | AP109: 0.1084211157 | AQ109: 35.29923448 | AR109: 10.86572203
A110: 33399A | B110: 33399A | C110: 1.340329927e-05 | D110: 4.71414057e-06 | E110: 2.960761421e-05 | F110: 0.01766978572 | G110: 4.737102645e-12 | H110: 5.656602358e-06 | I110: 2.887191644e-12 | J110: 4.636310556e-08 | K110: 0.0004584978646 | L110: 4.949452074e-06 | M110: 0.001079977624 | N110: 0.0005847756766 | O110: 10655 | Q110: 33399A | R110: 1.340329927e-05 | S110: 4.71414057e-06 | T110: 2.960761421e-05 | U110: 0.01766978572 | V110: 4.737102645e-12 | W110: 5.656602358e-06 | X110: 2.887191644e-12 | Y110: 4.636310556e-08 | Z110: 0.0004584978646 | AA110: 4.949452074e-06 | AB110: 0.001079977624 | AC110: 0.0005847756766 | AD110: 33399A | AE110: Other general purpose machinery manufacturing | AF110: 10655 | AG110: 0.1428121537 | AH110: 0.05022916777 | AI110: 0.3154691294 | AJ110: 188.2715668 | AK110: 5.047382869e-08 | AL110: 0.06027109812 | AM110: 3.076302696e-08 | AN110: 0.0004939988897 | AO110: 4.885294747 | AP110: 0.05273641185 | AQ110: 11.50716159 | AR110: 6.230784834
A111: 33399B | B111: 33399B | C111: 2.569376054e-06 | D111: 2.946066229e-07 | E111: 1.287700553e-06 | F111: 0.01265055297 | G111: 2.573111063e-11 | H111: 5.007650635e-07 | I111: 3.041173697e-13 | J111: 7.127674457e-09 | K111: 0.0002399926855 | L111: 0 | M111: 0.001309844737 | N111: 0.000430009728 | O111: 8156 | Q111: 33399B | R111: 2.569376054e-06 | S111: 2.946066229e-07 | T111: 1.287700553e-06 | U111: 0.01265055297 | V111: 2.573111063e-11 | W111: 5.007650635e-07 | X111: 3.041173697e-13 | Y111: 7.127674457e-09 | Z111: 0.0002399926855 | AA111: 0 | AB111: 0.001309844737 | AC111: 0.000430009728 | AD111: 33399B | AE111: Fluid power process machinery | AF111: 8156 | AG111: 0.0209558311 | AH111: 0.002402811616 | AI111: 0.01050248571 | AJ111: 103.17791 | AK111: 2.098629383e-07 | AL111: 0.004084239858 | AM111: 2.480381267e-09 | AN111: 5.813331287e-05 | AO111: 1.957380343 | AP111: 0 | AQ111: 10.68309368 | AR111: 3.507159341
A112: 334111 | B112: 334111 | C112: 5.719635857e-06 | D112: 9.174688189e-07 | E112: 4.089962209e-06 | F112: 0.002004935866 | G112: 1.937019317e-13 | H112: 5.252542885e-07 | I112: 1.729155445e-12 | J112: 1.161839192e-08 | K112: 0.0001811194973 | L112: 0 | M112: 0.001954319685 | N112: 0.0006853651584 | O112: 4119 | Q112: 334111 | R112: 5.719635857e-06 | S112: 9.174688189e-07 | T112: 4.089962209e-06 | U112: 0.002004935866 | V112: 1.937019317e-13 | W112: 5.252542885e-07 | X112: 1.729155445e-12 | Y112: 1.161839192e-08 | Z112: 0.0001811194973 | AA112: 0 | AB112: 0.001954319685 | AC112: 0.0006853651584 | AD112: 334111 | AE112: Electronic computer manufacturing | AF112: 4119 | AG112: 0.02355918009 | AH112: 0.003779054065 | AI112: 0.01684655434 | AJ112: 8.258330834 | AK112: 7.978582567e-10 | AL112: 0.002163522414 | AM112: 7.122391279e-09 | AN112: 4.78561563e-05 | AO112: 0.7460312096 | AP112: 0 | AQ112: 8.049842782 | AR112: 2.823019087
A113: 334112 | B113: 334112 | C113: 3.073339842e-06 | D113: 3.435140292e-07 | E113: 9.626637116e-07 | F113: 0.002255719861 | G113: 1.141001746e-13 | H113: 3.783570192e-07 | I113: 3.398686856e-13 | J113: 1.072755671e-08 | K113: 0.0001176209907 | L113: 0 | M113: 0.0008498577827 | N113: 0.0004074014193 | O113: 8074 | Q113: 334112 | R113: 3.073339842e-06 | S113: 3.435140292e-07 | T113: 9.626637116e-07 | U113: 0.002255719861 | V113: 1.141001746e-13 | W113: 3.783570192e-07 | X113: 3.398686856e-13 | Y113: 1.072755671e-08 | Z113: 0.0001176209907 | AA113: 0 | AB113: 0.0008498577827 | AC113: 0.0004074014193 | AD113: 334112 | AE113: Computer storage device manufacturing | AF113: 8074 | AG113: 0.02481414589 | AH113: 0.002773532272 | AI113: 0.007772546807 | AJ113: 18.21268216 | AK113: 9.212448101e-10 | AL113: 0.003054854573 | AM113: 2.744099767e-09 | AN113: 8.661429288e-05 | AO113: 0.9496718786 | AP113: 0 | AQ113: 6.861751737 | AR113: 3.28935906
A114: 334118 | B114: 334118 | C114: 1.586051118e-05 | D114: 3.250595545e-06 | E114: 1.789496302e-05 | F114: 0.01991549685 | G114: 3.258649327e-12 | H114: 1.776930784e-06 | I114: 1.710663949e-12 | J114: 1.053678482e-08 | K114: 0.0004127905425 | L114: 0.000262445991 | M114: 0.0008872209885 | N114: 0.0005623936496 | O114: 5265 | Q114: 334118 | R114: 1.586051118e-05 | S114: 3.250595545e-06 | T114: 1.789496302e-05 | U114: 0.01991549685 | V114: 3.258649327e-12 | W114: 1.776930784e-06 | X114: 1.710663949e-12 | Y114: 1.053678482e-08 | Z114: 0.0004127905425 | AA114: 0.000262445991 | AB114: 0.0008872209885 | AC114: 0.0005623936496 | AD114: 334118 | AE114: Computer terminals and other computer peripheral equipment manufacturing | AF114: 5265 | AG114: 0.08350559139 | AH114: 0.01711438555 | AI114: 0.09421698028 | AJ114: 104.8550909 | AK114: 1.71567887e-08 | AL114: 0.009355540576 | AM114: 9.00664569e-09 | AN114: 5.547617206e-05 | AO114: 2.173342206 | AP114: 1.381778143 | AQ114: 4.671218504 | AR114: 2.961002565
A115: 334210 | B115: 334210 | C115: 4.008297331e-06 | D115: 6.571887906e-07 | E115: 1.034825223e-06 | F115: 0.03114548109 | G115: 7.232609676e-13 | H115: 4.512061424e-07 | I115: 3.717923964e-13 | J115: 4.376477028e-08 | K115: 0.0001788357822 | L115: 0 | M115: 0.0009747644919 | N115: 0.00058851939 | O115: 25918 | Q115: 334210 | R115: 4.008297331e-06 | S115: 6.571887906e-07 | T115: 1.034825223e-06 | U115: 0.03114548109 | V115: 7.232609676e-13 | W115: 4.512061424e-07 | X115: 3.717923964e-13 | Y115: 4.376477028e-08 | Z115: 0.0001788357822 | AA115: 0 | AB115: 0.0009747644919 | AC115: 0.00058851939 | AD115: 334210 | AE115: Telephone apparatus manufacturing | AF115: 25918 | AG115: 0.1038870502 | AH115: 0.01703301907 | AI115: 0.02682060012 | AJ115: 807.2285789 | AK115: 1.874547776e-08 | AL115: 0.0116943608 | AM115: 9.63611533e-09 | AN115: 0.001134295316 | AO115: 4.635065803 | AP115: 0 | AQ115: 25.2639461 | AR115: 15.25324555
A116: 334220 | B116: 334220 | C116: 1.04109144e-06 | D116: 2.733147474e-07 | E116: 1.320753992e-05 | F116: 0.004230169455 | G116: 2.790380346e-13 | H116: 3.4505181e-07 | I116: 2.586710237e-13 | J116: 4.363217577e-08 | K116: 7.059059852e-05 | L116: 0 | M116: 0.0005611418127 | N116: 0.0003928497891 | O116: 4617 | Q116: 334220 | R116: 1.04109144e-06 | S116: 2.733147474e-07 | T116: 1.320753992e-05 | U116: 0.004230169455 | V116: 2.790380346e-13 | W116: 3.4505181e-07 | X116: 2.586710237e-13 | Y116: 4.363217577e-08 | Z116: 7.059059852e-05 | AA116: 0 | AB116: 0.0005611418127 | AC116: 0.0003928497891 | AD116: 334220 | AE116: Broadcast and wireless communications equipment | AF116: 4617 | AG116: 0.004806719178 | AH116: 0.001261894189 | AI116: 0.06097921183 | AJ116: 19.53069237 | AK116: 1.288318606e-09 | AL116: 0.001593104207 | AM116: 1.194284117e-09 | AN116: 0.0002014497555 | AO116: 0.3259167934 | AP116: 0 | AQ116: 2.590791749 | AR116: 1.813787476
A117: 334290 | B117: 334290 | C117: 2.342831329e-06 | D117: 2.589763903e-07 | E117: 2.204775838e-06 | F117: 0.008625899787 | G117: 5.820654108e-13 | H117: 8.314434591e-07 | I117: 5.000061895e-13 | J117: 4.459195567e-08 | K117: 0.0001333751772 | L117: 7.767379019e-05 | M117: 0.0007611694784 | N117: 0.0004881577037 | O117: 50455 | Q117: 334290 | R117: 2.342831329e-06 | S117: 2.589763903e-07 | T117: 2.204775838e-06 | U117: 0.008625899787 | V117: 5.820654108e-13 | W117: 8.314434591e-07 | X117: 5.000061895e-13 | Y117: 4.459195567e-08 | Z117: 0.0001333751772 | AA117: 7.767379019e-05 | AB117: 0.0007611694784 | AC117: 0.0004881577037 | AD117: 334290 | AE117: Other communications equipment manufacturing | AF117: 50455 | AG117: 0.1182075547 | AH117: 0.01306665377 | AI117: 0.1112419649 | AJ117: 435.2197738 | AK117: 2.93681103e-08 | AL117: 0.04195047973 | AM117: 2.522781229e-08 | AN117: 0.002249887123 | AO117: 6.729444565 | AP117: 3.919031084 | AQ117: 38.40480603 | AR117: 24.62999694
A118: 334413 | B118: 334413 | C118: 1.29652818e-05 | D118: 1.602875592e-06 | E118: 0.01765077978 | F118: 0.07793481697 | G118: 1.194710687e-12 | H118: 1.787562896e-06 | I118: 5.407723911e-13 | J118: 4.593856051e-08 | K118: 0.0003430588402 | L118: 3.787220147e-05 | M118: 0.001080687775 | N118: 0.0007914580953 | O118: 18510 | Q118: 334413 | R118: 1.29652818e-05 | S118: 1.602875592e-06 | T118: 0.01765077978 | U118: 0.07793481697 | V118: 1.194710687e-12 | W118: 1.787562896e-06 | X118: 5.407723911e-13 | Y118: 4.593856051e-08 | Z118: 0.0003430588402 | AA118: 3.787220147e-05 | AB118: 0.001080687775 | AC118: 0.0007914580953 | AD118: 334413 | AE118: Semiconductor and related device manufacturing | AF118: 18510 | AG118: 0.2399873661 | AH118: 0.02966922721 | AI118: 326.7159336 | AJ118: 1442.573462 | AK118: 2.211409481e-08 | AL118: 0.0330877892 | AM118: 1.000969696e-08 | AN118: 0.000850322755 | AO118: 6.350019132 | AP118: 0.7010144492 | AQ118: 20.00353072 | AR118: 14.64988934
A119: 334418 | B119: 334418 | C119: 2.103358004e-06 | D119: 1.27911242e-06 | E119: 0.0004908687021 | F119: 0.008026852059 | G119: 3.997629897e-13 | H119: 2.96681873e-07 | I119: 1.515660675e-13 | J119: 4.642895281e-08 | K119: 9.741432002e-05 | L119: 6.744537637e-07 | M119: 0.0004038052039 | N119: 0.000518306145 | O119: 25321 | Q119: 334418 | R119: 2.103358004e-06 | S119: 1.27911242e-06 | T119: 0.0004908687021 | U119: 0.008026852059 | V119: 3.997629897e-13 | W119: 2.96681873e-07 | X119: 1.515660675e-13 | Y119: 4.642895281e-08 | Z119: 9.741432002e-05 | AA119: 6.744537637e-07 | AB119: 0.0004038052039 | AC119: 0.000518306145 | AD119: 334418 | AE119: Printed circuit assembly (electronic assembly) manufacturing | AF119: 25321 | AG119: 0.05325912801 | AH119: 0.03238840558 | AI119: 12.42928641 | AJ119: 203.247921 | AK119: 1.012239866e-08 | AL119: 0.007512281707 | AM119: 3.837804396e-09 | AN119: 0.001175627514 | AO119: 2.466627997 | AP119: 0.01707784375 | AQ119: 10.22475157 | AR119: 13.1240299
A120: 33441A | B120: 33441A | C120: 1.148946267e-05 | D120: 4.991429009e-05 | E120: 0.0002984463059 | F120: 0.0082946064 | G120: 1.378779421e-11 | H120: 1.259742773e-06 | I120: 2.213078106e-12 | J120: 1.802646703e-07 | K120: 0.000268966738 | L120: 8.429870167e-08 | M120: 0.0008248583177 | N120: 0.0008220550766 | O120: 31310 | Q120: 33441A | R120: 1.148946267e-05 | S120: 4.991429009e-05 | T120: 0.0002984463059 | U120: 0.0082946064 | V120: 1.378779421e-11 | W120: 1.259742773e-06 | X120: 2.213078106e-12 | Y120: 1.802646703e-07 | Z120: 0.000268966738 | AA120: 8.429870167e-08 | AB120: 0.0008248583177 | AC120: 0.0008220550766 | AD120: 33441A | AE120: Other electronic component manufacturing | AF120: 31310 | AG120: 0.3597350763 | AH120: 1.562816423 | AI120: 9.344353837 | AJ120: 259.7041264 | AK120: 4.316958366e-07 | AL120: 0.03944254623 | AM120: 6.929147549e-08 | AN120: 0.005644086826 | AO120: 8.421348567 | AP120: 0.002639392349 | AQ120: 25.82631393 | AR120: 25.73854445
A121: 334510 | B121: 334510 | C121: 2.294633065e-06 | D121: 3.558881091e-07 | E121: 1.128171906e-06 | F121: 0.003001269976 | G121: 3.746465562e-13 | H121: 2.016549015e-07 | I121: 1.652770559e-13 | J121: 1.543185449e-08 | K121: 5.375065309e-05 | L121: 5.520875677e-06 | M121: 0.00047374155 | N121: 0.0003948604001 | O121: 49918 | Q121: 334510 | R121: 2.294633065e-06 | S121: 3.558881091e-07 | T121: 1.128171906e-06 | U121: 0.003001269976 | V121: 3.746465562e-13 | W121: 2.016549015e-07 | X121: 1.652770559e-13 | Y121: 1.543185449e-08 | Z121: 5.375065309e-05 | AA121: 5.520875677e-06 | AB121: 0.00047374155 | AC121: 0.0003948604001 | AD121: 334510 | AE121: Electromedical and electrotherapeutic apparatus manufacturing | AF121: 49918 | AG121: 0.1145434934 | AH121: 0.01776522263 | AI121: 0.05631608523 | AJ121: 149.8173946 | AK121: 1.870160679e-08 | AL121: 0.01006620937 | AM121: 8.250300074e-09 | AN121: 0.0007703273124 | AO121: 2.683125101 | AP121: 0.2755910721 | AQ121: 23.64823069 | AR121: 19.71064145
A122: 334511 | B122: 334511 | C122: 1.584893292e-06 | D122: 2.586188663e-07 | E122: 1.762090545e-05 | F122: 0.004518793764 | G122: 3.977482022e-13 | H122: 2.200730083e-07 | I122: 1.159925645e-13 | J122: 1.232393602e-08 | K122: 6.830338751e-05 | L122: 0 | M122: 0.0005810579889 | N122: 0.0006107538576 | O122: 2857 | Q122: 334511 | R122: 1.584893292e-06 | S122: 2.586188663e-07 | T122: 1.762090545e-05 | U122: 0.004518793764 | V122: 3.977482022e-13 | W122: 2.200730083e-07 | X122: 1.159925645e-13 | Y122: 1.232393602e-08 | Z122: 6.830338751e-05 | AA122: 0 | AB122: 0.0005810579889 | AC122: 0.0006107538576 | AD122: 334511 | AE122: Search, detection, and navigation instruments manufacturing | AF122: 2857 | AG122: 0.004528040134 | AH122: 0.0007388741009 | AI122: 0.05034292686 | AJ122: 12.91019378 | AK122: 1.136366614e-09 | AL122: 0.0006287485846 | AM122: 3.313907569e-10 | AN122: 3.520948521e-05 | AO122: 0.1951427781 | AP122: 0 | AQ122: 1.660082674 | AR122: 1.744923771
A123: 334512 | B123: 334512 | C123: 2.504290827e-06 | D123: 3.322362271e-07 | E123: 1.083287244e-05 | F123: 0.007779516231 | G123: 4.46057682e-13 | H123: 3.479407753e-06 | I123: 2.625945702e-13 | J123: 1.315593705e-08 | K123: 0.0001248317112 | L123: 0 | M123: 0.001007135885 | N123: 0.0007962655259 | O123: 10342 | Q123: 334512 | R123: 2.504290827e-06 | S123: 3.322362271e-07 | T123: 1.083287244e-05 | U123: 0.007779516231 | V123: 4.46057682e-13 | W123: 3.479407753e-06 | X123: 2.625945702e-13 | Y123: 1.315593705e-08 | Z123: 0.0001248317112 | AA123: 0 | AB123: 0.001007135885 | AC123: 0.0007962655259 | AD123: 334512 | AE123: Automatic environmental control manufacturing | AF123: 10342 | AG123: 0.02589937574 | AH123: 0.003435987061 | AI123: 0.1120335667 | AJ123: 80.45575686 | AK123: 4.613128547e-09 | AL123: 0.03598403498 | AM123: 2.715753045e-09 | AN123: 0.000136058701 | AO123: 1.291009558 | AP123: 0 | AQ123: 10.41579932 | AR123: 8.234978069
A124: 334513 | B124: 334513 | C124: 1.918643889e-06 | D124: 4.878130337e-07 | E124: 3.064797755e-06 | F124: 0.004814750809 | G124: 1.073221642e-11 | H124: 3.886683475e-07 | I124: 3.301409973e-13 | J124: 1.196093565e-08 | K124: 9.965851986e-05 | L124: 1.797595009e-05 | M124: 0.0009249060889 | N124: 0.0006092603169 | O124: 5136 | Q124: 334513 | R124: 1.918643889e-06 | S124: 4.878130337e-07 | T124: 3.064797755e-06 | U124: 0.004814750809 | V124: 1.073221642e-11 | W124: 3.886683475e-07 | X124: 3.301409973e-13 | Y124: 1.196093565e-08 | Z124: 9.965851986e-05 | AA124: 1.797595009e-05 | AB124: 0.0009249060889 | AC124: 0.0006092603169 | AD124: 334513 | AE124: Industrial process variable instruments manufacturing | AF124: 5136 | AG124: 0.009854155015 | AH124: 0.002505407741 | AI124: 0.01574080127 | AJ124: 24.72856015 | AK124: 5.512066355e-08 | AL124: 0.001996200633 | AM124: 1.695604162e-09 | AN124: 6.143136549e-05 | AO124: 0.511846158 | AP124: 0.09232447968 | AQ124: 4.750317673 | AR124: 3.129160988
A125: 334514 | B125: 334514 | C125: 1.101373788e-05 | D125: 7.782770077e-07 | E125: 1.582705225e-06 | F125: 0.004251450074 | G125: 1.219472243e-12 | H125: 3.635288063e-06 | I125: 1.12954008e-13 | J125: 1.252968832e-08 | K125: 0.0001068524121 | L125: 1.636697525e-06 | M125: 0.0002997866518 | N125: 0.0001090914544 | O125: 11229 | Q125: 334514 | R125: 1.101373788e-05 | S125: 7.782770077e-07 | T125: 1.582705225e-06 | U125: 0.004251450074 | V125: 1.219472243e-12 | W125: 3.635288063e-06 | X125: 1.12954008e-13 | Y125: 1.252968832e-08 | Z125: 0.0001068524121 | AA125: 1.636697525e-06 | AB125: 0.0002997866518 | AC125: 0.0001090914544 | AD125: 334514 | AE125: Totalizing fluid meter and counting device manufacturing | AF125: 11229 | AG125: 0.1236732627 | AH125: 0.00873927252 | AI125: 0.01777219697 | AJ125: 47.73953288 | AK125: 1.369345382e-08 | AL125: 0.04082064966 | AM125: 1.268360556e-09 | AN125: 0.0001406958701 | AO125: 1.199845735 | AP125: 0.0183784765 | AQ125: 3.366304313 | AR125: 1.224987941
A126: 334515 | B126: 334515 | C126: 7.844111906e-07 | D126: 2.783267952e-07 | E126: 4.979849289e-05 | F126: 0.003421284576 | G126: 2.345947594e-13 | H126: 1.43801971e-07 | I126: 7.551510624e-14 | J126: 4.501103282e-08 | K126: 4.844674193e-05 | L126: 2.398148702e-07 | M126: 0.0008609267248 | N126: 0.0007677068241 | O126: 15534 | Q126: 334515 | R126: 7.844111906e-07 | S126: 2.783267952e-07 | T126: 4.979849289e-05 | U126: 0.003421284576 | V126: 2.345947594e-13 | W126: 1.43801971e-07 | X126: 7.551510624e-14 | Y126: 4.501103282e-08 | Z126: 4.844674193e-05 | AA126: 2.398148702e-07 | AB126: 0.0008609267248 | AC126: 0.0007677068241 | AD126: 334515 | AE126: Electricity and signal testing instruments manufacturing | AF126: 15534 | AG126: 0.01218504343 | AH126: 0.004323528437 | AI126: 0.7735697886 | AJ126: 53.1462346 | AK126: 3.644194993e-09 | AL126: 0.002233819817 | AM126: 1.17305166e-09 | AN126: 0.0006992013839 | AO126: 0.7525716891 | AP126: 0.003725284194 | AQ126: 13.37363574 | AR126: 11.92555781
A127: 334516 | B127: 334516 | C127: 8.434073857e-07 | D127: 1.075755585e-07 | E127: 1.272689215e-06 | F127: 0.003622578867 | G127: 5.246780399e-13 | H127: 8.325565837e-08 | I127: 1.203757197e-13 | J127: 1.192263342e-08 | K127: 4.257304102e-05 | L127: 0 | M127: 0.0004510063371 | N127: 0.000431234243 | O127: 8962 | Q127: 334516 | R127: 8.434073857e-07 | S127: 1.075755585e-07 | T127: 1.272689215e-06 | U127: 0.003622578867 | V127: 5.246780399e-13 | W127: 8.325565837e-08 | X127: 1.203757197e-13 | Y127: 1.192263342e-08 | Z127: 4.257304102e-05 | AA127: 0 | AB127: 0.0004510063371 | AC127: 0.000431234243 | AD127: 334516 | AE127: Analytical laboratory instrument manufacturing | AF127: 8962 | AG127: 0.007558616991 | AH127: 0.0009640921552 | AI127: 0.01140584074 | AJ127: 32.46555181 | AK127: 4.702164594e-09 | AL127: 0.0007461372103 | AM127: 1.0788072e-09 | AN127: 0.0001068506408 | AO127: 0.3815395936 | AP127: 0 | AQ127: 4.041918793 | AR127: 3.864721286
A128: 334517 | B128: 334517 | C128: 0.000149031485 | D128: 4.629595301e-05 | E128: 0.0003259945406 | F128: 0.02303100051 | G128: 1.850785238e-11 | H128: 2.298418475e-05 | I128: 5.459797472e-12 | J128: 1.545214094e-08 | K128: 0.001505468325 | L128: 0.005717367748 | M128: 0.0005314520191 | N128: 0.00145921163 | O128: 12002 | Q128: 334517 | R128: 0.000149031485 | S128: 4.629595301e-05 | T128: 0.0003259945406 | U128: 0.02303100051 | V128: 1.850785238e-11 | W128: 2.298418475e-05 | X128: 5.459797472e-12 | Y128: 1.545214094e-08 | Z128: 0.001505468325 | AA128: 0.005717367748 | AB128: 0.0005314520191 | AC128: 0.00145921163 | AD128: 334517 | AE128: Irradiation apparatus manufacturing | AF128: 12002 | AG128: 1.788675883 | AH128: 0.555644028 | AI128: 3.912586477 | AJ128: 276.4180682 | AK128: 2.221312442e-07 | AL128: 0.2758561854 | AM128: 6.552848926e-08 | AN128: 0.0001854565955 | AO128: 18.06863084 | AP128: 68.61984771 | AQ128: 6.378487133 | AR128: 17.51345798
A129: 33451A | B129: 33451A | C129: 1.889345695e-06 | D129: 2.274011482e-07 | E129: 5.397734766e-07 | F129: 0.003344574889 | G129: 2.889622713e-13 | H129: 8.775560798e-07 | I129: 1.528507658e-13 | J129: 1.379595402e-08 | K129: 9.526607713e-05 | L129: 3.567142538e-06 | M129: 0.0005571495944 | N129: 0.0004489314343 | O129: 3097 | Q129: 33451A | R129: 1.889345695e-06 | S129: 2.274011482e-07 | T129: 5.397734766e-07 | U129: 0.003344574889 | V129: 2.889622713e-13 | W129: 8.775560798e-07 | X129: 1.528507658e-13 | Y129: 1.379595402e-08 | Z129: 9.526607713e-05 | AA129: 3.567142538e-06 | AB129: 0.0005571495944 | AC129: 0.0004489314343 | AD129: 33451A | AE129: Watch, clock, and other measuring and controlling device manufacturing | AF129: 3097 | AG129: 0.005851303617 | AH129: 0.000704261356 | AI129: 0.001671678457 | AJ129: 10.35814843 | AK129: 8.949161541e-10 | AL129: 0.002717791179 | AM129: 4.733788216e-10 | AN129: 4.272606959e-05 | AO129: 0.2950390409 | AP129: 0.01104744044 | AQ129: 1.725492294 | AR129: 1.390340652
A130: 334300 | B130: 334300 | C130: 2.302997231e-06 | D130: 2.97341551e-07 | E130: 4.827720265e-06 | F130: 0.01827701542 | G130: 8.627680348e-13 | H130: 6.736261509e-07 | I130: 8.309836937e-13 | J130: 4.378965717e-08 | K130: 0.0002261524386 | L130: 9.601047047e-06 | M130: 0.001000713134 | N130: 0.0006824963499 | O130: 1927 | Q130: 334300 | R130: 2.302997231e-06 | S130: 2.97341551e-07 | T130: 4.827720265e-06 | U130: 0.01827701542 | V130: 8.627680348e-13 | W130: 6.736261509e-07 | X130: 8.309836937e-13 | Y130: 4.378965717e-08 | Z130: 0.0002261524386 | AA130: 9.601047047e-06 | AB130: 0.001000713134 | AC130: 0.0006824963499 | AD130: 334300 | AE130: Audio and video equipment manufacturing | AF130: 1927 | AG130: =R130*$AF130 -> 0.004437875664 | AH130: =S130*$AF130 -> 0.0005729771687 | AI130: =T130*$AF130 -> 0.009303016951 | AJ130: =U130*$AF130 -> 35.21980871 | AK130: =V130*$AF130 -> 1.662554003e-09 | AL130: =W130*$AF130 -> 0.001298077593 | AM130: =X130*$AF130 -> 1.601305578e-09 | AN130: =Y130*$AF130 -> 8.438266938e-05 | AO130: =Z130*$AF130 -> 0.4357957493 | AP130: =AA130*$AF130 -> 0.01850121766 | AQ130: =AB130*$AF130 -> 1.928374209 | AR130: =AC130*$AF130 -> 1.315170466
A131: 334610 | B131: 334610 | C131: 2.134872574e-06 | D131: 2.911180611e-07 | E131: 1.128865544e-06 | F131: 0.01882738651 | G131: 6.240351017e-13 | H131: 1.916172815e-07 | I131: 2.346826729e-13 | J131: 7.59883901e-08 | K131: 0.0001273708964 | L131: 5.39756989e-06 | M131: 0.000914358143 | N131: 0.0004210914019 | O131: 1381 | Q131: 334610 | R131: 2.134872574e-06 | S131: 2.911180611e-07 | T131: 1.128865544e-06 | U131: 0.01882738651 | V131: 6.240351017e-13 | W131: 1.916172815e-07 | X131: 2.346826729e-13 | Y131: 7.59883901e-08 | Z131: 0.0001273708964 | AA131: 5.39756989e-06 | AB131: 0.000914358143 | AC131: 0.0004210914019 | AD131: 334610 | AE131: Manufacturing and reproducing magnetic and optical media | AF131: 1381 | AG131: 0.002948259025 | AH131: 0.0004020340424 | AI131: 0.001558963316 | AJ131: 26.00062077 | AK131: 8.617924754e-10 | AL131: 0.0002646234657 | AM131: 3.240967713e-10 | AN131: 0.0001049399667 | AO131: 0.175899208 | AP131: 0.007454044019 | AQ131: 1.262728595 | AR131: 0.581527226
A132: 335110 | B132: 335110 | C132: 0.0001457925095 | D132: 9.004286666e-06 | E132: 0.0001243525693 | F132: 0.06922235158 | G132: 1.538230428e-11 | H132: 4.408066753e-05 | I132: 9.046083591e-12 | J132: 4.585599953e-08 | K132: 0.004189044562 | L132: 0.0001039971468 | M132: 0.001365239034 | N132: 0.0008004698883 | O132: 11520 | Q132: 335110 | R132: 0.0001457925095 | S132: 9.004286666e-06 | T132: 0.0001243525693 | U132: 0.06922235158 | V132: 1.538230428e-11 | W132: 4.408066753e-05 | X132: 9.046083591e-12 | Y132: 4.585599953e-08 | Z132: 0.004189044562 | AA132: 0.0001039971468 | AB132: 0.001365239034 | AC132: 0.0008004698883 | AD132: 335110 | AE132: Electric lamp bulb and part manufacturing | AF132: 11520 | AG132: 1.679529709 | AH132: 0.1037293824 | AI132: 1.432541599 | AJ132: 797.4414902 | AK132: 1.772041453e-07 | AL132: 0.5078092899 | AM132: 1.04210883e-07 | AN132: 0.0005282611146 | AO132: 48.25779336 | AP132: 1.198047132 | AQ132: 15.72755367 | AR132: 9.221413113
A133: 335120 | B133: 335120 | C133: 8.477736906e-06 | D133: 1.069891636e-06 | E133: 3.373994032e-05 | F133: 0.02770113999 | G133: 9.194496814e-12 | H133: 3.654106484e-06 | I133: 7.133114344e-13 | J133: 1.116149413e-07 | K133: 0.0003345935255 | L133: 0.003688976883 | M133: 0.001230908029 | N133: 0.0007953518338 | O133: 3311 | Q133: 335120 | R133: 8.477736906e-06 | S133: 1.069891636e-06 | T133: 3.373994032e-05 | U133: 0.02770113999 | V133: 9.194496814e-12 | W133: 3.654106484e-06 | X133: 7.133114344e-13 | Y133: 1.116149413e-07 | Z133: 0.0003345935255 | AA133: 0.003688976883 | AB133: 0.001230908029 | AC133: 0.0007953518338 | AD133: 335120 | AE133: Lighting fixture manufacturing | AF133: 3311 | AG133: 0.0280697869 | AH133: 0.003542411206 | AI133: 0.1117129424 | AJ133: 91.7184745 | AK133: 3.044297895e-08 | AL133: 0.01209874657 | AM133: 2.361774159e-09 | AN133: 0.0003695570705 | AO133: 1.107839163 | AP133: 12.21420246 | AQ133: 4.075536486 | AR133: 2.633409922
A134: 335210 | B134: 335210 | C134: 2.540060465e-06 | D134: 3.327309771e-07 | E134: 8.945014287e-06 | F134: 0.01362172016 | G134: 5.763851418e-12 | H134: 6.016024522e-07 | I134: 1.898109891e-12 | J134: 4.863859906e-08 | K134: 0.0005348368506 | L134: 3.360448091e-06 | M134: 0.001389775551 | N134: 0.0006244179621 | O134: 20478 | Q134: 335210 | R134: 2.540060465e-06 | S134: 3.327309771e-07 | T134: 8.945014287e-06 | U134: 0.01362172016 | V134: 5.763851418e-12 | W134: 6.016024522e-07 | X134: 1.898109891e-12 | Y134: 4.863859906e-08 | Z134: 0.0005348368506 | AA134: 3.360448091e-06 | AB134: 0.001389775551 | AC134: 0.0006244179621 | AD134: 335210 | AE134: Small electrical appliance manufacturing | AF134: 20478 | AG134: 0.0520153582 | AH134: 0.006813664949 | AI134: 0.1831760026 | AJ134: 278.9455854 | AK134: 1.180321493e-07 | AL134: 0.01231961502 | AM134: 3.886949435e-08 | AN134: 0.0009960212316 | AO134: 10.95238903 | AP134: 0.068815256 | AQ134: 28.45982373 | AR134: 12.78683103
A135: 335221 | B135: 335220 | C135: 6.383531649e-06 | D135: 7.985063804e-07 | E135: 0.0002443624649 | F135: 0.02738415527 | G135: 3.309605844e-12 | H135: 5.53658236e-06 | I135: 7.572055443e-13 | J135: 4.7456701e-08 | K135: 0.000610068099 | L135: 0 | M135: 0.0008678400346 | N135: 0.0006815118262 | O135: 5205 | Q135: 335220 | R135: =AVERAGE(C135:C138) -> 8.269049541e-06 | S135: 1.038652181e-06 | T135: 8.435203933e-05 | U135: 0.06480082043 | V135: 4.674475335e-12 | W135: 3.54622686e-06 | X135: 1.238622129e-12 | Y135: 4.815262341e-08 | Z135: 0.0009080189352 | AA135: 0 | AB135: 0.0009688107892 | AC135: 0.0008434277744 | AD135: 335220 | AE135: Major household appliance manufacturing | AF135: 5205 | AG135: 0.04304040286 | AH135: 0.005406184604 | AI135: 0.4390523647 | AJ135: 337.2882704 | AK135: 2.433064412e-08 | AL135: 0.01845811081 | AM135: 6.447028182e-09 | AN135: 0.0002506344049 | AO135: 4.726238558 | AP135: 0 | AQ135: 5.042660158 | AR135: 4.390041566
A136: 335222 | B136: 335220 | C136: 3.53185464e-06 | D136: 4.177577426e-07 | E136: 7.578969401e-06 | F136: 0.1851476274 | G136: 3.534308524e-12 | H136: 3.9056863e-07 | I136: 1.473191238e-12 | J136: 4.752314389e-08 | K136: 0.0006146330435 | L136: 0 | M136: 0.0009984465474 | N136: 0.0004680401398 | O136: 8965 | Q136: 335311 | R136: 3.71572264e-05 | S136: 6.25669515e-06 | T136: 8.817407396e-06 | U136: 0.06817502084 | V136: 5.464416904e-12 | W136: 4.203701387e-06 | X136: 4.10432212e-12 | Y136: 4.372570384e-08 | Z136: 0.001490051435 | AA136: 6.709749317e-06 | AB136: 0.001373467361 | AC136: 0.0004660949724 | AD136: 335311 | AE136: Power, distribution, and specialty transformer manufacturing | AF136: 8965 | AG136: 0.3331145347 | AH136: 0.05609127202 | AI136: 0.0790480573 | AJ136: 611.1890618 | AK136: 4.898849755e-08 | AL136: 0.03768618293 | AM136: 3.679524781e-08 | AN136: 0.0003920009349 | AO136: 13.35831112 | AP136: 0.06015290263 | AQ136: 12.31313489 | AR136: 4.178541428
A137: 335224 | B137: 335220 | C137: 1.638066089e-05 | D137: 2.010166645e-06 | E137: 5.578229624e-05 | F137: 0.03413746778 | G137: 5.395996442e-12 | H137: 5.211073615e-06 | I137: 1.123312332e-12 | J137: 4.70145695e-08 | K137: 0.00128119353 | L137: 0 | M137: 0.001300961551 | N137: 0.001397770441 | O137: 11163 | Q137: 335312 | R137: 2.116022427e-05 | S137: 2.406411868e-06 | T137: 2.646553466e-05 | U137: 0.01899746454 | V137: 2.447315594e-12 | W137: 6.386115726e-06 | X137: 1.337142186e-12 | Y137: 4.245903215e-08 | Z137: 0.000883345493 | AA137: 1.213189294e-06 | AB137: 0.001006657898 | AC137: 0.0004222975625 | AD137: 335312 | AE137: Motor and generator manufacturing | AF137: 11163 | AG137: 0.2362115836 | AH137: 0.02686277569 | AI137: 0.2954347634 | AJ137: 212.0686967 | AK137: 2.731938398e-08 | AL137: 0.07128820985 | AM137: 1.492651822e-08 | AN137: 0.0004739701759 | AO137: 9.860785738 | AP137: 0.01354283209 | AQ137: 11.23732211 | AR137: 4.71410769
A138: 335228 | B138: 335220 | C138: 6.780150983e-06 | D138: 9.281779568e-07 | E138: 2.968442683e-05 | F138: 0.01253403133 | G138: 6.45799053e-12 | H138: 3.046682835e-06 | I138: 1.600779402e-12 | J138: 5.061607926e-08 | K138: 0.001126181068 | L138: 0 | M138: 0.0007079950241 | N138: 0.0008263886909 | O138: 10662 | Q138: 335313 | R138: 4.806613648e-06 | S138: 1.192284593e-06 | T138: 3.7963888e-06 | U138: 0.01220113583 | V138: 8.578774313e-13 | W138: 1.011144968e-06 | X138: 1.115876968e-12 | Y138: 4.432862789e-08 | Z138: 0.000237962246 | AA138: 0 | AB138: 0.0009872174973 | AC138: 0.0005935828146 | AD138: 335313 | AE138: Switchgear and switchboard apparatus manufacturing | AF138: 10662 | AG138: 0.05124811471 | AH138: 0.01271213833 | AI138: 0.04047709739 | AJ138: 130.0885103 | AK138: 9.146689173e-09 | AL138: 0.01078082765 | AM138: 1.189748024e-08 | AN138: 0.0004726318305 | AO138: 2.537153467 | AP138: 0 | AQ138: 10.52571296 | AR138: 6.32877997
A139: 335311 | B139: 335311 | C139: 3.71572264e-05 | D139: 6.25669515e-06 | E139: 8.817407396e-06 | F139: 0.06817502084 | G139: 5.464416904e-12 | H139: 4.203701387e-06 | I139: 4.10432212e-12 | J139: 4.372570384e-08 | K139: 0.001490051435 | L139: 6.709749317e-06 | M139: 0.001373467361 | N139: 0.0004660949724 | O139: 7434 | Q139: 335314 | R139: 2.81583369e-06 | S139: 5.256091795e-07 | T139: 1.268377936e-06 | U139: 0.01044003466 | V139: 5.916575694e-13 | W139: 6.006905115e-07 | X139: 2.631366204e-13 | Y139: 4.413892649e-08 | Z139: 0.0001338262722 | AA139: 4.589135582e-06 | AB139: 0.001621415803 | AC139: 0.0005612593878 | AD139: 335314 | AE139: Relay and industrial control manufacturing | AF139: 7434 | AG139: 0.02093290765 | AH139: 0.00390737864 | AI139: 0.009429121579 | AJ139: 77.61121766 | AK139: 4.398382371e-09 | AL139: 0.004465533262 | AM139: 1.956157636e-09 | AN139: 0.0003281287795 | AO139: 0.9948645075 | AP139: 0.03411563391 | AQ139: 12.05360508 | AR139: 4.172402289
A140: 335312 | B140: 335312 | C140: 2.116022427e-05 | D140: 2.406411868e-06 | E140: 2.646553466e-05 | F140: 0.01899746454 | G140: 2.447315594e-12 | H140: 6.386115726e-06 | I140: 1.337142186e-12 | J140: 4.245903215e-08 | K140: 0.000883345493 | L140: 1.213189294e-06 | M140: 0.001006657898 | N140: 0.0004222975625 | O140: 1982 | Q140: 335911 | R140: 1.268888113e-05 | S140: 1.542196452e-06 | T140: 4.510988216e-06 | U140: 0.04140317453 | V140: 1.07811952e-12 | W140: 2.703063238e-05 | X140: 3.707717344e-13 | Y140: 4.392634604e-08 | Z140: 0.0004890406477 | AA140: 0 | AB140: 0.0006827008191 | AC140: 0.0004429903858 | AD140: 335911 | AE140: Storage battery manufacturing | AF140: 1982 | AG140: 0.02514936239 | AH140: 0.003056633368 | AI140: 0.008940778645 | AJ140: 82.06109193 | AK140: 2.136832889e-09 | AL140: 0.05357471337 | AM140: 7.348695775e-10 | AN140: 8.706201784e-05 | AO140: 0.9692785637 | AP140: 0 | AQ140: 1.353113023 | AR140: 0.8780069446
A141: 335313 | B141: 335313 | C141: 4.806613648e-06 | D141: 1.192284593e-06 | E141: 3.7963888e-06 | F141: 0.01220113583 | G141: 8.578774313e-13 | H141: 1.011144968e-06 | I141: 1.115876968e-12 | J141: 4.432862789e-08 | K141: 0.000237962246 | L141: 0 | M141: 0.0009872174973 | N141: 0.0005935828146 | O141: 11261 | Q141: 335912 | R141: 1.48181685e-05 | S141: 4.321981118e-06 | T141: 2.671756333e-05 | U141: 0.008044122843 | V141: 1.918600358e-12 | W141: 5.221968087e-06 | X141: 5.448691744e-13 | Y141: 4.379994776e-08 | Z141: 0.0003550627756 | AA141: 0.0005130323047 | AB141: 0.0006623543635 | AC141: 0.0002412010684 | AD141: 335912 | AE141: Primary battery manufacturing | AF141: 11261 | AG141: 0.1668673955 | AH141: 0.04866982937 | AI141: 0.3008664806 | AJ141: 90.58486734 | AK141: 2.160535863e-08 | AL141: 0.05880458263 | AM141: 6.135771773e-09 | AN141: 0.0004932312118 | AO141: 3.998361916 | AP141: 5.777256783 | AQ141: 7.458772487 | AR141: 2.716165231
A142: 335314 | B142: 335314 | C142: 2.81583369e-06 | D142: 5.256091795e-07 | E142: 1.268377936e-06 | F142: 0.01044003466 | G142: 5.916575694e-13 | H142: 6.006905115e-07 | I142: 2.631366204e-13 | J142: 4.413892649e-08 | K142: 0.0001338262722 | L142: 4.589135582e-06 | M142: 0.001621415803 | N142: 0.0005612593878 | O142: 12979 | Q142: 335920 | R142: 3.878681924e-06 | S142: 6.450957609e-07 | T142: 3.794991712e-05 | U142: 0.01266721714 | V142: 4.717971603e-12 | W142: 2.237402932e-06 | X142: 2.395591074e-13 | Y142: 1.086159665e-08 | Z142: 0.0001936858431 | AA142: 1.086125922e-05 | AB142: 0.0005313995681 | AC142: 0.0005561646305 | AD142: 335920 | AE142: Communication and energy wire and cable manufacturing | AF142: 12979 | AG142: 0.05034141269 | AH142: 0.008372697881 | AI142: 0.4925519743 | AJ142: 164.4078112 | AK142: 6.123455344e-08 | AL142: 0.02903925266 | AM142: 3.109237655e-09 | AN142: 0.0001409726629 | AO142: 2.513848558 | AP142: 0.1409682834 | AQ142: 6.897034994 | AR142: 7.21846074
A143: 335911 | B143: 335911 | C143: 1.268888113e-05 | D143: 1.542196452e-06 | E143: 4.510988216e-06 | F143: 0.04140317453 | G143: 1.07811952e-12 | H143: 2.703063238e-05 | I143: 3.707717344e-13 | J143: 4.392634604e-08 | K143: 0.0004890406477 | L143: 0 | M143: 0.0006827008191 | N143: 0.0004429903858 | O143: 3299 | Q143: 335930 | R143: 7.082164207e-06 | S143: 0.0002594437336 | T143: 1.637133542e-05 | U143: 0.01424851944 | V143: 1.270488365e-11 | W143: 2.482034091e-06 | X143: 1.749856905e-12 | Y143: 8.484139967e-08 | Z143: 0.001020793984 | AA143: 8.94987142e-06 | AB143: 0.001226612787 | AC143: 0.001804130808 | AD143: 335930 | AE143: Wiring device manufacturing | AF143: 3299 | AG143: 0.02336405972 | AH143: 0.8559048772 | AI143: 0.05400903557 | AJ143: 47.00586565 | AK143: 4.191341115e-08 | AL143: 0.008188230466 | AM143: 5.772777929e-09 | AN143: 0.0002798917775 | AO143: 3.367599354 | AP143: 0.02952562581 | AQ143: 4.046595586 | AR143: 5.951827534
A144: 335912 | B144: 335912 | C144: 1.48181685e-05 | D144: 4.321981118e-06 | E144: 2.671756333e-05 | F144: 0.008044122843 | G144: 1.918600358e-12 | H144: 5.221968087e-06 | I144: 5.448691744e-13 | J144: 4.379994776e-08 | K144: 0.0003550627756 | L144: 0.0005130323047 | M144: 0.0006623543635 | N144: 0.0002412010684 | O144: 10755 | Q144: 335991 | R144: 0.0008052339533 | S144: 2.336854696e-05 | T144: 0.0124783932 | U144: 0.08305298304 | V144: 1.57561397e-10 | W144: 0.0002177835639 | X144: 1.350831401e-11 | Y144: 4.722423283e-08 | Z144: 0.006950794966 | AA144: 1.026576916e-06 | AB144: 0.0008127122418 | AC144: 0.0008957493216 | AD144: 335991 | AE144: Carbon and graphite product manufacturing | AF144: 10755 | AG144: 8.660291168 | AH144: 0.2513287226 | AI144: 134.2051188 | AJ144: 893.2348326 | AK144: 1.694572824e-06 | AL144: 2.342262229 | AM144: 1.452819172e-07 | AN144: 0.0005078966241 | AO144: 74.75579986 | AP144: 0.01104083474 | AQ144: 8.74072016 | AR144: 9.633783953
A145: 335920 | B145: 335920 | C145: 3.878681924e-06 | D145: 6.450957609e-07 | E145: 3.794991712e-05 | F145: 0.01266721714 | G145: 4.717971603e-12 | H145: 2.237402932e-06 | I145: 2.395591074e-13 | J145: 1.086159665e-08 | K145: 0.0001936858431 | L145: 1.086125922e-05 | M145: 0.0005313995681 | N145: 0.0005561646305 | O145: 32781 | Q145: 335999 | R145: 1.235949573e-05 | S145: 1.183533788e-06 | T145: 5.410470446e-06 | U145: 0.006874900809 | V145: 1.685078463e-12 | W145: 7.13594288e-07 | X145: 2.181849042e-13 | Y145: 4.418656836e-08 | Z145: 0.0001335542962 | AA145: 5.562597292e-06 | AB145: 0.00111073428 | AC145: 0.0007811220837 | AD145: 335999 | AE145: All other miscellaneous electrical equipment and component manufacturing | AF145: 32781 | AG145: 0.4051566294 | AH145: 0.0387974211 | AI145: 0.1773606317 | AJ145: 225.3661234 | AK145: 5.52385571e-08 | AL145: 0.02339233436 | AM145: 7.152319345e-09 | AN145: 0.001448479897 | AO145: 4.378043384 | AP145: 0.1823475018 | AQ145: 36.41098044 | AR145: 25.60596303
A146: 335930 | B146: 335930 | C146: 7.082164207e-06 | D146: 0.0002594437336 | E146: 1.637133542e-05 | F146: 0.01424851944 | G146: 1.270488365e-11 | H146: 2.482034091e-06 | I146: 1.749856905e-12 | J146: 8.484139967e-08 | K146: 0.001020793984 | L146: 8.94987142e-06 | M146: 0.001226612787 | N146: 0.001804130808 | O146: 215421 | Q146: 336111 | R146: 2.550531759e-05 | S146: 2.294060112e-06 | T146: 3.592812012e-05 | U146: 0.01544686244 | V146: 5.116955967e-12 | W146: 6.209806602e-06 | X146: 5.749758416e-12 | Y146: 1.711640064e-09 | Z146: 0.001467527772 | AA146: 0 | AB146: 0.0008601981649 | AC146: 0.0004279403206 | AD146: 336111 | AE146: Automobile manufacturing | AF146: 215421 | AG146: 5.49438102 | AH146: 0.4941887235 | AI146: 7.739671565 | AJ146: 3327.578553 | AK146: 1.102299771e-06 | AL146: 1.337722748 | AM146: 1.238618708e-06 | AN146: 0.0003687232142 | AO146: 316.1363001 | AP146: 0 | AQ146: 185.3047489 | AR146: 92.18733181
A147: 335991 | B147: 335991 | C147: 0.0008052339533 | D147: 2.336854696e-05 | E147: 0.0124783932 | F147: 0.08305298304 | G147: 1.57561397e-10 | H147: 0.0002177835639 | I147: 1.350831401e-11 | J147: 4.722423283e-08 | K147: 0.006950794966 | L147: 1.026576916e-06 | M147: 0.0008127122418 | N147: 0.0008957493216 | O147: 29382 | Q147: 336112 | R147: 3.487233867e-06 | S147: 8.181575393e-07 | T147: 4.824492709e-06 | U147: 0.01932404727 | V147: 3.089489646e-12 | W147: 2.186313234e-06 | X147: 1.051609785e-12 | Y147: 1.577749914e-09 | Z147: 0.0006145601304 | AA147: 0 | AB147: 0.0001515769793 | AC147: 0.0001891157309 | AD147: 336112 | AE147: Light truck and utility vehicle manufacturing | AF147: 29382 | AG147: 0.1024619055 | AH147: 0.02403910482 | AI147: 0.1417532448 | AJ147: 567.7791569 | AK147: 9.077538477e-08 | AL147: 0.06423825543 | AM147: 3.089839871e-08 | AN147: 4.635744798e-05 | AO147: 18.05700575 | AP147: 0 | AQ147: 4.453634805 | AR147: 5.556598405
A148: 335999 | B148: 335999 | C148: 1.235949573e-05 | D148: 1.183533788e-06 | E148: 5.410470446e-06 | F148: 0.006874900809 | G148: 1.685078463e-12 | H148: 7.13594288e-07 | I148: 2.181849042e-13 | J148: 4.418656836e-08 | K148: 0.0001335542962 | L148: 5.562597292e-06 | M148: 0.00111073428 | N148: 0.0007811220837 | O148: 10556 | Q148: 336120 | R148: 6.834516079e-06 | S148: 1.2685461e-06 | T148: 1.93772741e-05 | U148: 0.01905607247 | V148: 4.064510198e-12 | W148: 3.27566747e-06 | X148: 3.702108177e-12 | Y148: 2.024984103e-09 | Z148: 0.000855944654 | AA148: 0 | AB148: 0.0003707561931 | AC148: 0.0002484642717 | AD148: 336120 | AE148: Heavy duty truck manufacturing | AF148: 10556 | AG148: 0.07214515173 | AH148: 0.01339077263 | AI148: 0.2045465054 | AJ148: 201.155901 | AK148: 4.290496965e-08 | AL148: 0.03457794581 | AM148: 3.907945391e-08 | AN148: 2.137573219e-05 | AO148: 9.035351767 | AP148: 0 | AQ148: 3.913702374 | AR148: 2.622788852
A149: 336111 | B149: 336111 | C149: 2.550531759e-05 | D149: 2.294060112e-06 | E149: 3.592812012e-05 | F149: 0.01544686244 | G149: 5.116955967e-12 | H149: 6.209806602e-06 | I149: 5.749758416e-12 | J149: 1.711640064e-09 | K149: 0.001467527772 | L149: 0 | M149: 0.0008601981649 | N149: 0.0004279403206 | O149: 10606 | Q149: 336211 | R149: 2.583924755e-05 | S149: 3.787970202e-06 | T149: 8.916507539e-05 | U149: 0.01097670446 | V149: 9.377813167e-12 | W149: 1.182163883e-05 | X149: 1.887898423e-11 | Y149: 2.798710956e-09 | Z149: 0.002295981274 | AA149: 0 | AB149: 0.0007411919279 | AC149: 0.0004130767473 | AD149: 336211 | AE149: Motor vehicle body manufacturing | AF149: 10606 | AG149: 0.2740510595 | AH149: 0.04017521196 | AI149: 0.9456847896 | AJ149: 116.4189275 | AK149: 9.946108645e-08 | AL149: 0.1253803015 | AM149: 2.002305067e-07 | AN149: 2.96831284e-05 | AO149: 24.35117739 | AP149: 0 | AQ149: 7.861081587 | AR149: 4.381091982
A150: 336112 | B150: 336112 | C150: 3.487233867e-06 | D150: 8.181575393e-07 | E150: 4.824492709e-06 | F150: 0.01932404727 | G150: 3.089489646e-12 | H150: 2.186313234e-06 | I150: 1.051609785e-12 | J150: 1.577749914e-09 | K150: 0.0006145601304 | L150: 0 | M150: 0.0001515769793 | N150: 0.0001891157309 | O150: 6185 | Q150: 336212 | R150: 6.5588318e-06 | S150: 9.24714801e-07 | T150: 1.087260517e-05 | U150: 0.03297669601 | V150: 4.468558734e-12 | W150: 7.994494365e-06 | X150: 2.215136204e-12 | Y150: 1.609336516e-09 | Z150: 0.001345615496 | AA150: 5.799972051e-05 | AB150: 0.006391379666 | AC150: 0.0006080445229 | AD150: 336212 | AE150: Truck trailer manufacturing | AF150: 6185 | AG150: 0.04056637468 | AH150: 0.005719361044 | AI150: 0.067247063 | AJ150: 203.9608648 | AK150: 2.763803577e-08 | AL150: 0.04944594765 | AM150: 1.370061742e-08 | AN150: 9.953746352e-06 | AO150: 8.32263184 | AP150: 0.3587282713 | AQ150: 39.53068323 | AR150: 3.760755374
A151: 336120 | B151: 336120 | C151: 6.834516079e-06 | D151: 1.2685461e-06 | E151: 1.93772741e-05 | F151: 0.01905607247 | G151: 4.064510198e-12 | H151: 3.27566747e-06 | I151: 3.702108177e-12 | J151: 2.024984103e-09 | K151: 0.000855944654 | L151: 0 | M151: 0.0003707561931 | N151: 0.0002484642717 | O151: 16179 | Q151: 336213 | R151: 1.144825102e-05 | S151: 1.318927575e-06 | T151: 7.161502797e-05 | U151: 0.06519590542 | V151: 7.170454995e-12 | W151: 1.671824906e-05 | X151: 6.207620449e-12 | Y151: 4.219479008e-09 | Z151: 0.001726678706 | AA151: 0 | AB151: 0.001240099603 | AC151: 0.0130880581 | AD151: 336213 | AE151: Motor home manufacturing | AF151: 16179 | AG151: 0.1852212532 | AH151: 0.02133892923 | AI151: 1.158659538 | AJ151: 1054.804554 | AK151: 1.160107914e-07 | AL151: 0.2704845516 | AM151: 1.004330912e-07 | AN151: 6.826695086e-05 | AO151: 27.93593478 | AP151: 0 | AQ151: 20.06357147 | AR151: 211.7516919
A152: 336211 | B152: 336211 | C152: 2.583924755e-05 | D152: 3.787970202e-06 | E152: 8.916507539e-05 | F152: 0.01097670446 | G152: 9.377813167e-12 | H152: 1.182163883e-05 | I152: 1.887898423e-11 | J152: 2.798710956e-09 | K152: 0.002295981274 | L152: 0 | M152: 0.0007411919279 | N152: 0.0004130767473 | O152: 38178 | Q152: 336214 | R152: 3.362983071e-06 | S152: 4.46007256e-07 | T152: 1.078261425e-05 | U152: 0.02745476435 | V152: 6.849653702e-12 | W152: 3.766355008e-06 | X152: 1.617546479e-11 | Y152: 1.966265521e-09 | Z152: 0.0007716648312 | AA152: 0 | AB152: 0.0007087251116 | AC152: 0.0116460569 | AD152: 336214 | AE152: Travel trailer and camper manufacturing | AF152: 38178 | AG152: 0.1283919677 | AH152: 0.01702766502 | AI152: 0.4116586468 | AJ152: 1048.167994 | AK152: 2.61506079e-07 | AL152: 0.1437919015 | AM152: 6.175468949e-07 | AN152: 7.506808506e-05 | AO152: 29.46061992 | AP152: 0 | AQ152: 27.05770731 | AR152: 444.6231604
A153: 336212 | B153: 336212 | C153: 6.5588318e-06 | D153: 9.24714801e-07 | E153: 1.087260517e-05 | F153: 0.03297669601 | G153: 4.468558734e-12 | H153: 7.994494365e-06 | I153: 2.215136204e-12 | J153: 1.609336516e-09 | K153: 0.001345615496 | L153: 5.799972051e-05 | M153: 0.006391379666 | N153: 0.0006080445229 | O153: 23963 | Q153: 336310 | R153: 1.121285195e-05 | S153: 1.216988804e-06 | T153: 1.426703062e-05 | U153: 0.01198989664 | V153: 3.599340357e-12 | W153: 4.444200366e-06 | X153: 1.07215497e-12 | Y153: 2.268504832e-09 | Z153: 0.0006808875094 | AA153: 2.702986222e-05 | AB153: 0.0006551400621 | AC153: 0.0004679008045 | AD153: 336310 | AE153: Motor vehicle gasoline engine and engine parts manufacturing | AF153: 23963 | AG153: 0.2686935713 | AH153: 0.0291627027 | AI153: 0.3418808548 | AJ153: 287.3138933 | AK153: 8.625099297e-08 | AL153: 0.1064963734 | AM153: 2.569204955e-08 | AN153: 5.43601813e-05 | AO153: 16.31610739 | AP153: 0.6477165883 | AQ153: 15.69912131 | AR153: 11.21230698
A154: 336213 | B154: 336213 | C154: 1.144825102e-05 | D154: 1.318927575e-06 | E154: 7.161502797e-05 | F154: 0.06519590542 | G154: 7.170454995e-12 | H154: 1.671824906e-05 | I154: 6.207620449e-12 | J154: 4.219479008e-09 | K154: 0.001726678706 | L154: 0 | M154: 0.001240099603 | N154: 0.0130880581 | O154: 41482 | Q154: 336320 | R154: 6.562916803e-06 | S154: 8.163870126e-07 | T154: 1.989099658e-05 | U154: 0.009307878753 | V154: 3.835718065e-12 | W154: 4.893899685e-06 | X154: 8.958064071e-13 | Y154: 3.602953833e-08 | Z154: 0.0006748383074 | AA154: 0 | AB154: 0.0008551174703 | AC154: 0.000752601811 | AD154: 336320 | AE154: Motor vehicle electrical and electronic equipment manufacturing | AF154: 41482 | AG154: 0.2722429148 | AH154: 0.03386536606 | AI154: 0.8251183203 | AJ154: 386.1094264 | AK154: 1.591132568e-07 | AL154: 0.2030087467 | AM154: 3.715984138e-08 | AN154: 0.001494577309 | AO154: 27.99364267 | AP154: 0 | AQ154: 35.4719829 | AR154: 31.21942832
A155: 336214 | B155: 336214 | C155: 3.362983071e-06 | D155: 4.46007256e-07 | E155: 1.078261425e-05 | F155: 0.02745476435 | G155: 6.849653702e-12 | H155: 3.766355008e-06 | I155: 1.617546479e-11 | J155: 1.966265521e-09 | K155: 0.0007716648312 | L155: 0 | M155: 0.0007087251116 | N155: 0.0116460569 | O155: 30523 | Q155: 336350 | R155: 1.248830968e-05 | S155: 1.485016151e-06 | T155: 1.058285399e-05 | U155: 0.01606589117 | V155: 3.431880294e-12 | W155: 3.196360008e-06 | X155: 1.135170902e-12 | Y155: 4.444787727e-09 | Z155: 0.0007395347061 | AA155: 6.14718975e-06 | AB155: 0.0006553532151 | AC155: 0.0005688316433 | AD155: 336350 | AE155: Motor vehicle transmission and power train parts manufacturing | AF155: 30523 | AG155: 0.3811806763 | AH155: 0.04532714797 | AI155: 0.3230204525 | AJ155: 490.3791962 | AK155: 1.047512822e-07 | AL155: 0.09756249652 | AM155: 3.464882143e-08 | AN155: 0.0001356682558 | AO155: 22.57281784 | AP155: 0.1876306727 | AQ155: 20.00334618 | AR155: 17.36244825
A156: 336310 | B156: 336310 | C156: 1.121285195e-05 | D156: 1.216988804e-06 | E156: 1.426703062e-05 | F156: 0.01198989664 | G156: 3.599340357e-12 | H156: 4.444200366e-06 | I156: 1.07215497e-12 | J156: 2.268504832e-09 | K156: 0.0006808875094 | L156: 2.702986222e-05 | M156: 0.0006551400621 | N156: 0.0004679008045 | O156: 35554 | Q156: 336360 | R156: 2.010687201e-06 | S156: 3.004092959e-07 | T156: 4.513634944e-06 | U156: 0.01997485947 | V156: 1.077436408e-11 | W156: 8.803093866e-07 | X156: 4.311817506e-13 | Y156: 4.221810218e-09 | Z156: 0.0004537548278 | AA156: 1.164427171e-05 | AB156: 0.0005650268609 | AC156: 0.0003425323618 | AD156: 336360 | AE156: Motor vehicle seating and interior trim manufacturing | AF156: 35554 | AG156: 0.07148797275 | AH156: 0.01068075211 | AI156: 0.1604777768 | AJ156: 710.1861534 | AK156: 3.830717405e-07 | AL156: 0.03129851993 | AM156: 1.533023596e-08 | AN156: 0.0001501022405 | AO156: 16.13279915 | AP156: 0.4140004363 | AQ156: 20.08896501 | AR156: 12.17839559
A157: 336320 | B157: 336320 | C157: 6.562916803e-06 | D157: 8.163870126e-07 | E157: 1.989099658e-05 | F157: 0.009307878753 | G157: 3.835718065e-12 | H157: 4.893899685e-06 | I157: 8.958064071e-13 | J157: 3.602953833e-08 | K157: 0.0006748383074 | L157: 0 | M157: 0.0008551174703 | N157: 0.000752601811 | O157: 61210 | Q157: 336370 | R157: 3.296003171e-06 | S157: 4.158250871e-07 | T157: 5.64840718e-06 | U157: 0.01434448955 | V157: 3.294225878e-12 | W157: 8.839264218e-07 | X157: 5.077323393e-13 | Y157: 1.659236289e-09 | Z157: 0.000455546091 | AA157: 7.859880021e-08 | AB157: 0.0007017149909 | AC157: 0.0005422711962 | AD157: 336370 | AE157: Motor vehicle metal stamping | AF157: 61210 | AG157: 0.2017483541 | AH157: 0.02545265358 | AI157: 0.3457390035 | AJ157: 878.0262056 | AK157: 2.01639566e-07 | AL157: 0.05410513628 | AM157: 3.107829649e-08 | AN157: 0.0001015618533 | AO157: 27.88397623 | AP157: 0.004811032561 | AQ157: 42.95197459 | AR157: 33.19241992
A158: 336350 | B158: 336350 | C158: 1.248830968e-05 | D158: 1.485016151e-06 | E158: 1.058285399e-05 | F158: 0.01606589117 | G158: 3.431880294e-12 | H158: 3.196360008e-06 | I158: 1.135170902e-12 | J158: 4.444787727e-09 | K158: 0.0007395347061 | L158: 6.14718975e-06 | M158: 0.0006553532151 | N158: 0.0005688316433 | O158: 25339 | Q158: 336390 | R158: 1.063724247e-05 | S158: 9.660720309e-06 | T158: 6.349473638e-05 | U158: 0.01854566658 | V158: 2.452974218e-11 | W158: 5.932435795e-06 | X158: 8.58215324e-12 | Y158: 3.967298715e-09 | Z158: 0.0008392803656 | AA158: 1.151502029e-05 | AB158: 0.0006521532275 | AC158: 0.0006265836031 | AD158: 336390 | AE158: Other motor vehicle parts manufacturing | AF158: 25339 | AG158: 0.269537087 | AH158: 0.2447929919 | AI158: 1.608893125 | AJ158: 469.9286455 | AK158: 6.215591371e-07 | AL158: 0.1503219906 | AM158: 2.17463181e-07 | AN158: 0.0001005273822 | AO158: 21.26652518 | AP158: 0.2917790991 | AQ158: 16.52491063 | AR158: 15.87700192
A159: 336360 | B159: 336360 | C159: 2.010687201e-06 | D159: 3.004092959e-07 | E159: 4.513634944e-06 | F159: 0.01997485947 | G159: 1.077436408e-11 | H159: 8.803093866e-07 | I159: 4.311817506e-13 | J159: 4.221810218e-09 | K159: 0.0004537548278 | L159: 1.164427171e-05 | M159: 0.0005650268609 | N159: 0.0003425323618 | O159: 134840 | Q159: 3363A0 | R159: 3.016983373e-05 | S159: 1.572293334e-06 | T159: 2.914866243e-05 | U159: 0.01374208283 | V159: 1.57201804e-11 | W159: 7.510380509e-06 | X159: 1.402476797e-12 | Y159: 1.863370203e-07 | Z159: 0.0007822757337 | AA159: 5.527356538e-05 | AB159: 0.0006671369931 | AC159: 0.000556239886 | AD159: 3363A0 | AE159: Motor vehicle steering, suspension component (except spring), and brake systems manufacturing | AF159: 134840 | AG159: 4.06810038 | AH159: 0.2120080332 | AI159: 3.930405642 | AJ159: 1852.982449 | AK159: 2.119709125e-06 | AL159: 1.012699708 | AM159: 1.891099714e-07 | AN159: 0.02512568381 | AO159: 105.4820599 | AP159: 7.453087555 | AQ159: 89.95675215 | AR159: 75.00338623
A160: 336370 | B160: 336370 | C160: 3.296003171e-06 | D160: 4.158250871e-07 | E160: 5.64840718e-06 | F160: 0.01434448955 | G160: 3.294225878e-12 | H160: 8.839264218e-07 | I160: 5.077323393e-13 | J160: 1.659236289e-09 | K160: 0.000455546091 | L160: 7.859880021e-08 | M160: 0.0007017149909 | N160: 0.0005422711962 | O160: 43359 | Q160: 336411 | R160: 7.225577392e-06 | S160: 3.440039896e-06 | T160: 5.012744491e-06 | U160: 0.005037429021 | V160: 3.600155885e-12 | W160: 2.380474288e-06 | X160: 1.179302781e-12 | Y160: 1.273502294e-08 | Z160: 0.0003778998236 | AA160: 0 | AB160: 0.001324442043 | AC160: 0.0003549798485 | AD160: 336411 | AE160: Aircraft manufacturing | AF160: 43359 | AG160: 0.3132938101 | AH160: 0.1491566899 | AI160: 0.2173475884 | AJ160: 218.4178849 | AK160: 1.56099159e-07 | AL160: 0.1032149847 | AM160: 5.113338926e-08 | AN160: 0.0005521778599 | AO160: 16.38535845 | AP160: 0 | AQ160: 57.42648254 | AR160: 15.39157125
A161: 336390 | B161: 336390 | C161: 1.063724247e-05 | D161: 9.660720309e-06 | E161: 6.349473638e-05 | F161: 0.01854566658 | G161: 2.452974218e-11 | H161: 5.932435795e-06 | I161: 8.58215324e-12 | J161: 3.967298715e-09 | K161: 0.0008392803656 | L161: 1.151502029e-05 | M161: 0.0006521532275 | N161: 0.0006265836031 | O161: 40746 | Q161: 336412 | R161: 4.262718614e-05 | S161: 5.596804421e-06 | T161: 7.221612013e-06 | U161: 0.01206947465 | V161: 1.05760676e-11 | W161: 3.407070239e-06 | X161: 2.12891771e-12 | Y161: 3.938201591e-09 | Z161: 0.001397217014 | AA161: 9.904382074e-06 | AB161: 0.001044690745 | AC161: 0.000810999095 | AD161: 336412 | AE161: Aircraft engine and engine parts manufacturing | AF161: 40746 | AG161: 1.736887326 | AH161: 0.2280473929 | AI161: 0.2942518031 | AJ161: 491.7828143 | AK161: 4.309324504e-07 | AL161: 0.1388244839 | AM161: 8.674488103e-08 | AN161: 0.000160465962 | AO161: 56.93100445 | AP161: 0.403563952 | AQ161: 42.56696912 | AR161: 33.04496912
A162: 3363A0 | B162: 3363A0 | C162: 3.016983373e-05 | D162: 1.572293334e-06 | E162: 2.914866243e-05 | F162: 0.01374208283 | G162: 1.57201804e-11 | H162: 7.510380509e-06 | I162: 1.402476797e-12 | J162: 1.863370203e-07 | K162: 0.0007822757337 | L162: 5.527356538e-05 | M162: 0.0006671369931 | N162: 0.000556239886 | O162: 17616 | Q162: 336413 | R162: 1.293759448e-05 | S162: 1.840984127e-06 | T162: 2.367773472e-05 | U162: 0.01854947065 | V162: 7.861306976e-12 | W162: 2.525375132e-06 | X162: 1.402815145e-12 | Y162: 1.776932923e-07 | Z162: 0.0005606511435 | AA162: 8.622557913e-08 | AB162: 0.001087459748 | AC162: 0.001145444385 | AD162: 336413 | AE162: Other aircraft parts and auxiliary equipment manufacturing | AF162: 17616 | AG162: 0.2279086643 | AH162: 0.03243077638 | AI162: 0.4171069748 | AJ162: 326.767475 | AK162: 1.384847837e-07 | AL162: 0.04448700832 | AM162: 2.471199159e-08 | AN162: 0.003130245037 | AO162: 9.876430544 | AP162: 0.001518949802 | AQ162: 19.15669092 | AR162: 20.17814829
A163: 336411 | B163: 336411 | C163: 7.225577392e-06 | D163: 3.440039896e-06 | E163: 5.012744491e-06 | F163: 0.005037429021 | G163: 3.600155885e-12 | H163: 2.380474288e-06 | I163: 1.179302781e-12 | J163: 1.273502294e-08 | K163: 0.0003778998236 | L163: 0 | M163: 0.001324442043 | N163: 0.0003549798485 | O163: 7324 | Q163: 336414 | R163: 1.288848218e-05 | S163: 6.589916829e-07 | T163: 1.044935094e-06 | U163: 0.002212868873 | V163: 6.1388108e-13 | W163: 2.699533687e-06 | X163: 2.798007446e-13 | Y163: 7.658969437e-09 | Z163: 0.0001786002533 | AA163: 0 | AB163: 0.001300221513 | AC163: 0.0004379887097 | AD163: 336414 | AE163: Guided missile and space vehicle manufacturing | AF163: 7324 | AG163: 0.09439524352 | AH163: 0.004826455086 | AI163: 0.007653104626 | AJ163: 16.20705162 | AK163: 4.49606503e-09 | AL163: 0.01977138473 | AM163: 2.049260654e-09 | AN163: 5.609429215e-05 | AO163: 1.308068255 | AP163: 0 | AQ163: 9.522822359 | AR163: 3.20782931
A164: 336412 | B164: 336412 | C164: 4.262718614e-05 | D164: 5.596804421e-06 | E164: 7.221612013e-06 | F164: 0.01206947465 | G164: 1.05760676e-11 | H164: 3.407070239e-06 | I164: 2.12891771e-12 | J164: 3.938201591e-09 | K164: 0.001397217014 | L164: 9.904382074e-06 | M164: 0.001044690745 | N164: 0.000810999095 | O164: 12655 | Q164: 33641A | R164: 4.268610172e-05 | S164: 1.898113273e-06 | T164: 6.850992364e-06 | U164: 0.01927301193 | V164: 1.608009316e-12 | W164: 4.364668256e-06 | X164: 5.374491065e-13 | Y164: 7.398621357e-09 | Z164: 0.0005233592623 | AA164: 0 | AB164: 0.001403635741 | AC164: 0.0006805037235 | AD164: 33641A | AE164: Propulsion units and parts for space vehicles and guided missiles | AF164: 12655 | AG164: 0.5401926173 | AH164: 0.02402062347 | AI164: 0.08669930837 | AJ164: 243.8999659 | AK164: 2.034935789e-08 | AL164: 0.05523487678 | AM164: 6.801418443e-09 | AN164: 9.362955327e-05 | AO164: 6.623111465 | AP164: 0 | AQ164: 17.7630103 | AR164: 8.611774622
A165: 336413 | B165: 336413 | C165: 1.293759448e-05 | D165: 1.840984127e-06 | E165: 2.367773472e-05 | F165: 0.01854947065 | G165: 7.861306976e-12 | H165: 2.525375132e-06 | I165: 1.402815145e-12 | J165: 1.776932923e-07 | K165: 0.0005606511435 | L165: 8.622557913e-08 | M165: 0.001087459748 | N165: 0.001145444385 | O165: 24878 | Q165: 336500 | R165: 3.74216563e-05 | S165: 5.203274862e-06 | T165: 1.585374427e-05 | U165: 0.01456284905 | V165: 1.239860395e-11 | W165: 1.294520771e-05 | X165: 5.364248019e-12 | Y165: 2.320832103e-08 | Z165: 0.002486379423 | AA165: 0 | AB165: 0.0003748782749 | AC165: 0.001259025948 | AD165: 336500 | AE165: Railroad rolling stock manufacturing | AF165: 24878 | AG165: 0.9309759655 | AH165: 0.129447072 | AI165: 0.39440945 | AJ165: 362.2945587 | AK165: 3.084524691e-07 | AL165: 0.3220508774 | AM165: 1.334517622e-07 | AN165: 0.0005773766106 | AO165: 61.85614728 | AP165: 0 | AQ165: 9.326221722 | AR165: 31.32204755
A166: 336414 | B166: 336414 | C166: 1.288848218e-05 | D166: 6.589916829e-07 | E166: 1.044935094e-06 | F166: 0.002212868873 | G166: 6.1388108e-13 | H166: 2.699533687e-06 | I166: 2.798007446e-13 | J166: 7.658969437e-09 | K166: 0.0001786002533 | L166: 0 | M166: 0.001300221513 | N166: 0.0004379887097 | O166: 10214 | Q166: 336611 | R166: 5.633607002e-05 | S166: 7.096790291e-06 | T166: 5.944328819e-05 | U166: 0.006794597507 | V166: 4.92490348e-12 | W166: 3.097636824e-05 | X166: 9.985137882e-12 | Y166: 7.093767368e-08 | Z166: 0.002565127935 | AA166: 0 | AB166: 0.0006519165557 | AC166: 0.0004280951431 | AD166: 336611 | AE166: Ship building and repairing | AF166: 10214 | AG166: 0.5754166192 | AH166: 0.07248661604 | AI166: 0.6071537456 | AJ166: 69.40001894 | AK166: 5.030296415e-08 | AL166: 0.3163926252 | AM166: 1.019881983e-07 | AN166: 0.000724557399 | AO166: 26.20021672 | AP166: 0 | AQ166: 6.6586757 | AR166: 4.372563792
A167: 33641A | B167: 33641A | C167: 4.268610172e-05 | D167: 1.898113273e-06 | E167: 6.850992364e-06 | F167: 0.01927301193 | G167: 1.608009316e-12 | H167: 4.364668256e-06 | I167: 5.374491065e-13 | J167: 7.398621357e-09 | K167: 0.0005233592623 | L167: 0 | M167: 0.001403635741 | N167: 0.0006805037235 | O167: 7230 | Q167: 336612 | R167: 7.620424051e-06 | S167: 1.183861454e-06 | T167: 5.542328829e-05 | U167: 0.01496268332 | V167: 7.701214273e-11 | W167: 1.814874746e-05 | X167: 1.693763388e-10 | Y167: 7.845814649e-08 | Z167: 0.004636601382 | AA167: 8.453605143e-06 | AB167: 0.001045789896 | AC167: 0.0008055104416 | AD167: 336612 | AE167: Boat building | AF167: 7230 | AG167: 0.05509566589 | AH167: 0.008559318309 | AI167: 0.4007103743 | AJ167: 108.1802004 | AK167: 5.567977919e-07 | AL167: 0.1312154441 | AM167: 1.22459093e-06 | AN167: 0.0005672523991 | AO167: 33.52262799 | AP167: 0.06111956518 | AQ167: 7.561060947 | AR167: 5.823840492
A168: 336500 | B168: 336500 | C168: 3.74216563e-05 | D168: 5.203274862e-06 | E168: 1.585374427e-05 | F168: 0.01456284905 | G168: 1.239860395e-11 | H168: 1.294520771e-05 | I168: 5.364248019e-12 | J168: 2.320832103e-08 | K168: 0.002486379423 | L168: 0 | M168: 0.0003748782749 | N168: 0.001259025948 | O168: 5876 | Q168: 336991 | R168: 4.201153957e-06 | S168: 1.206592044e-05 | T168: 9.02332198e-07 | U168: 0.003443230001 | V168: 3.91407937e-13 | W168: 1.497482013e-06 | X168: 4.570777086e-13 | Y168: 3.045702246e-09 | Z168: 0.0002757617726 | AA168: 0 | AB168: 0.0008829592138 | AC168: 0.0006948147433 | AD168: 336991 | AE168: Motorcycle, bicycle, and parts manufacturing | AF168: 5876 | AG168: 0.02468598065 | AH168: 0.07089934853 | AI168: 0.005302103996 | AJ168: 20.23241949 | AK168: 2.299913038e-09 | AL168: 0.00879920431 | AM168: 2.685788615e-09 | AN168: 1.78965464e-05 | AO168: 1.620376176 | AP168: 0 | AQ168: 5.18826834 | AR168: 4.082731432
A169: 336611 | B169: 336611 | C169: 5.633607002e-05 | D169: 7.096790291e-06 | E169: 5.944328819e-05 | F169: 0.006794597507 | G169: 4.92490348e-12 | H169: 3.097636824e-05 | I169: 9.985137882e-12 | J169: 7.093767368e-08 | K169: 0.002565127935 | L169: 0 | M169: 0.0006519165557 | N169: 0.0004280951431 | O169: 7917 | Q169: 336992 | R169: 2.8105602e-05 | S169: 1.814181207e-06 | T169: 2.022700114e-06 | U169: 0.03326628737 | V169: 1.067748766e-12 | W169: 7.490993517e-06 | X169: 4.098807841e-13 | Y169: 2.026646197e-09 | Z169: 0.000513946148 | AA169: 3.803277392e-05 | AB169: 0.0002839922869 | AC169: 0.0004361976167 | AD169: 336992 | AE169: Military armored vehicle, tank, and tank component manufacturing | AF169: 7917 | AG169: 0.222512051 | AH169: 0.01436287262 | AI169: 0.0160137168 | AJ169: 263.3691971 | AK169: 8.453366978e-09 | AL169: 0.05930619567 | AM169: 3.245026168e-09 | AN169: 1.604495794e-05 | AO169: 4.068911654 | AP169: 0.3011054711 | AQ169: 2.248366936 | AR169: 3.453376531
A170: 336612 | B170: 336612 | C170: 7.620424051e-06 | D170: 1.183861454e-06 | E170: 5.542328829e-05 | F170: 0.01496268332 | G170: 7.701214273e-11 | H170: 1.814874746e-05 | I170: 1.693763388e-10 | J170: 7.845814649e-08 | K170: 0.004636601382 | L170: 8.453605143e-06 | M170: 0.001045789896 | N170: 0.0008055104416 | O170: 14403 | Q170: 336999 | R170: 6.400582684e-06 | S170: 8.950096971e-07 | T170: 1.58228409e-05 | U170: 0.006565136986 | V170: 2.103579463e-12 | W170: 2.900830404e-06 | X170: 9.664192985e-13 | Y170: 1.896478859e-09 | Z170: 0.0005732770613 | AA170: 7.550416289e-06 | AB170: 0.0005263599237 | AC170: 0.0003437514229 | AD170: 336999 | AE170: All other transportation equipment manufacturing | AF170: 14403 | AG170: 0.0921875924 | AH170: 0.01289082467 | AI170: 0.2278963774 | AJ170: 94.557668 | AK170: 3.029785501e-08 | AL170: 0.04178066031 | AM170: 1.391933716e-08 | AN170: 2.7314985e-05 | AO170: 8.256909514 | AP170: 0.1087486458 | AQ170: 7.58116198 | AR170: 4.951051744
A171: 336991 | B171: 336991 | C171: 4.201153957e-06 | D171: 1.206592044e-05 | E171: 9.02332198e-07 | F171: 0.003443230001 | G171: 3.91407937e-13 | H171: 1.497482013e-06 | I171: 4.570777086e-13 | J171: 3.045702246e-09 | K171: 0.0002757617726 | L171: 0 | M171: 0.0008829592138 | N171: 0.0006948147433 | O171: 11814 | Q171: 337110 | R171: 1.746204635e-05 | S171: 1.919866651e-06 | T171: 0.0001627158871 | U171: 0.02961902255 | V171: 9.032108975e-11 | W171: 4.062956469e-05 | X171: 3.505783039e-11 | Y171: 6.115641563e-06 | Z171: 0.007313135953 | AA171: 0.0005082833854 | AB171: 0.004229940096 | AC171: 0.001291269772 | AD171: 337110 | AE171: Wood kitchen cabinet and countertop manufacturing | AF171: 11814 | AG171: 0.2062966156 | AH171: 0.02268130461 | AI171: 1.92232549 | AJ171: 349.9191324 | AK171: 1.067053354e-06 | AL171: 0.4799976773 | AM171: 4.141732083e-07 | AN171: 0.07225018942 | AO171: 86.39738815 | AP171: 6.004859916 | AQ171: 49.9725123 | AR171: 15.25506109
A172: 336992 | B172: 336992 | C172: 2.8105602e-05 | D172: 1.814181207e-06 | E172: 2.022700114e-06 | F172: 0.03326628737 | G172: 1.067748766e-12 | H172: 7.490993517e-06 | I172: 4.098807841e-13 | J172: 2.026646197e-09 | K172: 0.000513946148 | L172: 3.803277392e-05 | M172: 0.0002839922869 | N172: 0.0004361976167 | O172: 3829 | Q172: 337121 | R172: 1.038584891e-05 | S172: 1.031366384e-06 | T172: 0.000144418812 | U172: 0.05280229897 | V172: 1.585312392e-10 | W172: 1.142476746e-05 | X172: 2.798386778e-11 | Y172: 6.238075487e-06 | Z172: 0.01000079066 | AA172: 0 | AB172: 0.002585900251 | AC172: 0.0005622649203 | AD172: 337121 | AE172: Upholstered household furniture manufacturing | AF172: 3829 | AG172: 0.03976741548 | AH172: 0.003949101884 | AI172: 0.5529796311 | AJ172: 202.1800027 | AK172: 6.070161148e-07 | AL172: 0.0437454346 | AM172: 1.071502297e-07 | AN172: 0.02388559104 | AO172: 38.29302746 | AP172: 0 | AQ172: 9.901412061 | AR172: 2.15291238
A173: 336999 | B173: 336999 | C173: 6.400582684e-06 | D173: 8.950096971e-07 | E173: 1.58228409e-05 | F173: 0.006565136986 | G173: 2.103579463e-12 | H173: 2.900830404e-06 | I173: 9.664192985e-13 | J173: 1.896478859e-09 | K173: 0.0005732770613 | L173: 7.550416289e-06 | M173: 0.0005263599237 | N173: 0.0003437514229 | O173: 4646 | Q173: 337122 | R173: 7.931732558e-05 | S173: 7.645472841e-06 | T173: 0.0002104202837 | U173: 0.03716560763 | V173: 4.575922324e-10 | W173: 6.777586434e-05 | X173: 3.512563204e-11 | Y173: 6.184711744e-06 | Z173: 0.009641262028 | AA173: 0 | AB173: 0.004288574672 | AC173: 0.001396512715 | AD173: 337122 | AE173: Nonupholstered wood household furniture manufacturing | AF173: 4646 | AG173: 0.3685082946 | AH173: 0.03552086682 | AI173: 0.9776126379 | AJ173: 172.6714131 | AK173: 2.125973512e-06 | AL173: 0.3148866657 | AM173: 1.631936864e-07 | AN173: 0.02873417076 | AO173: 44.79330338 | AP173: 0 | AQ173: 19.92471793 | AR173: 6.488198076
A174: 337110 | B174: 337110 | C174: 1.746204635e-05 | D174: 1.919866651e-06 | E174: 0.0001627158871 | F174: 0.02961902255 | G174: 9.032108975e-11 | H174: 4.062956469e-05 | I174: 3.505783039e-11 | J174: 6.115641563e-06 | K174: 0.007313135953 | L174: 0.0005082833854 | M174: 0.004229940096 | N174: 0.001291269772 | O174: 3256 | Q174: 337127 | R174: 1.236412749e-05 | S174: 1.639326172e-06 | T174: 0.0002121154828 | U174: 0.03094309497 | V174: 7.850320627e-11 | W174: 3.03946273e-05 | X174: 2.857979811e-11 | Y174: 5.946587536e-06 | Z174: 0.00475379523 | AA174: 0.009329383761 | AB174: 0.002352575058 | AC174: 0.0008766468086 | AD174: 337127 | AE174: Institutional furniture manufacturing | AF174: 3256 | AG174: 0.0402575991 | AH174: 0.005337646017 | AI174: 0.690648012 | AJ174: 100.7507172 | AK174: 2.556064396e-07 | AL174: 0.09896490648 | AM174: 9.305582266e-08 | AN174: 0.01936208902 | AO174: 15.47835727 | AP174: 30.37647353 | AQ174: 7.659984389 | AR174: 2.854362009
A175: 337121 | B175: 337121 | C175: 1.038584891e-05 | D175: 1.031366384e-06 | E175: 0.000144418812 | F175: 0.05280229897 | G175: 1.585312392e-10 | H175: 1.142476746e-05 | I175: 2.798386778e-11 | J175: 6.238075487e-06 | K175: 0.01000079066 | L175: 0 | M175: 0.002585900251 | N175: 0.0005622649203 | O175: 7305 | Q175: 33712N | R175: 1.201436939e-05 | S175: 1.882716163e-06 | T175: 0.0001382478193 | U175: 0.03280365164 | V175: 1.586285344e-10 | W175: 2.276670438e-05 | X175: 2.754720797e-11 | Y175: 5.854108126e-06 | Z175: 0.009395946279 | AA175: 4.840183661e-05 | AB175: 0.002307689649 | AC175: 0.001149338411 | AD175: 33712N | AE175: Other household nonupholstered furniture | AF175: 7305 | AG175: 0.08776496836 | AH175: 0.01375324157 | AI175: 1.00990032 | AJ175: 239.6306752 | AK175: 1.158781443e-06 | AL175: 0.1663107755 | AM175: 2.012323542e-07 | AN175: 0.04276425986 | AO175: 68.63738757 | AP175: 0.3535754164 | AQ175: 16.85767289 | AR175: 8.395917092
A176: 337122 | B176: 337122 | C176: 7.931732558e-05 | D176: 7.645472841e-06 | E176: 0.0002104202837 | F176: 0.03716560763 | G176: 4.575922324e-10 | H176: 6.777586434e-05 | I176: 3.512563204e-11 | J176: 6.184711744e-06 | K176: 0.009641262028 | L176: 0 | M176: 0.004288574672 | N176: 0.001396512715 | O176: 18714 | Q176: 337215 | R176: 1.673525394e-05 | S176: 2.58687487e-06 | T176: 0.0001488310123 | U176: 0.03326048232 | V176: 2.070897985e-10 | W176: 2.10107727e-05 | X176: 2.811974227e-11 | Y176: 5.763850452e-06 | Z176: 0.009393309325 | AA176: 0.01234598048 | AB176: 0.003535784066 | AC176: 0.0008389777692 | AD176: 337215 | AE176: Showcase, partition, shelving, and locker manufacturing | AF176: 18714 | AG176: 0.3131835422 | AH176: 0.04841077632 | AI176: 2.785223564 | AJ176: 622.4366661 | AK176: 3.875478489e-06 | AL176: 0.3931956003 | AM176: 5.262328568e-07 | AN176: 0.1078646974 | AO176: 175.7863907 | AP176: 231.0426787 | AQ176: 66.16866301 | AR176: 15.70062997
A177: 337127 | B177: 337127 | C177: 1.236412749e-05 | D177: 1.639326172e-06 | E177: 0.0002121154828 | F177: 0.03094309497 | G177: 7.850320627e-11 | H177: 3.03946273e-05 | I177: 2.857979811e-11 | J177: 5.946587536e-06 | K177: 0.00475379523 | L177: 0.009329383761 | M177: 0.002352575058 | N177: 0.0008766468086 | O177: 10062 | Q177: 33721A | R177: 2.359851153e-05 | S177: 1.572049457e-06 | T177: 0.0001319803007 | U177: 0.0273675408 | V177: 4.008377944e-11 | W177: 8.790066351e-06 | X177: 2.647739927e-11 | Y177: 6.165066857e-06 | Z177: 0.005164243835 | AA177: 0.0002461380933 | AB177: 0.002323571468 | AC177: 0.001184174411 | AD177: 33721A | AE177: Office furniture and custom architectural woodwork and millwork manufacturing | AF177: 10062 | AG177: 0.237448223 | AH177: 0.01581796163 | AI177: 1.327985785 | AJ177: 275.3721955 | AK177: 4.033229888e-07 | AL177: 0.08844564763 | AM177: 2.664155914e-07 | AN177: 0.06203290271 | AO177: 51.96262147 | AP177: 2.476641495 | AQ177: 23.37977611 | AR177: 11.91516292
A178: 33712N | B178: 33712N | C178: 1.201436939e-05 | D178: 1.882716163e-06 | E178: 0.0001382478193 | F178: 0.03280365164 | G178: 1.586285344e-10 | H178: 2.276670438e-05 | I178: 2.754720797e-11 | J178: 5.854108126e-06 | K178: 0.009395946279 | L178: 4.840183661e-05 | M178: 0.002307689649 | N178: 0.001149338411 | O178: 39162 | Q178: 337900 | R178: 2.942493994e-06 | S178: 4.814500534e-07 | T178: 0.0001215604816 | U178: 0.04724428541 | V178: 2.74398384e-11 | W178: 8.235215232e-07 | X178: 2.276619179e-11 | Y178: 6.09971874e-06 | Z178: 0.00383571848 | AA178: 7.099523545e-05 | AB178: 0.002079798686 | AC178: 0.0004146881482 | AD178: 337900 | AE178: Other furniture related product manufacturing | AF178: 39162 | AG178: 0.1152339498 | AH178: 0.01885454699 | AI178: 4.760551579 | AJ178: 1850.180705 | AK178: 1.074598951e-06 | AL178: 0.03225074989 | AM178: 8.915696028e-07 | AN178: 0.2388771853 | AO178: 150.2144071 | AP178: 2.780315411 | AQ178: 81.44907614 | AR178: 16.24001726
A179: 337215 | B179: 337215 | C179: 1.673525394e-05 | D179: 2.58687487e-06 | E179: 0.0001488310123 | F179: 0.03326048232 | G179: 2.070897985e-10 | H179: 2.10107727e-05 | I179: 2.811974227e-11 | J179: 5.763850452e-06 | K179: 0.009393309325 | L179: 0.01234598048 | M179: 0.003535784066 | N179: 0.0008389777692 | O179: 28837 | Q179: 339112 | R179: 4.023158617e-06 | S179: 4.344861342e-07 | T179: 1.017004758e-05 | U179: 0.006016719766 | V179: 6.577731603e-12 | W179: 6.541685262e-07 | X179: 1.338546935e-12 | Y179: 3.209290954e-08 | Z179: 0.0001658305928 | AA179: 1.07756183e-05 | AB179: 0.0009914879283 | AC179: 0.0005861181216 | AD179: 339112 | AE179: Surgical and medical instrument manufacturing | AF179: 28837 | AG179: 0.116015825 | AH179: 0.01252927665 | AI179: 0.2932736619 | AJ179: 173.5041479 | AK179: 1.896820462e-07 | AL179: 0.01886425779 | AM179: 3.859967798e-08 | AN179: 0.0009254632324 | AO179: 4.782056804 | AP179: 0.3107365049 | AQ179: 28.59153739 | AR179: 16.90188827
A180: 33721A | B180: 33721A | C180: 2.359851153e-05 | D180: 1.572049457e-06 | E180: 0.0001319803007 | F180: 0.0273675408 | G180: 4.008377944e-11 | H180: 8.790066351e-06 | I180: 2.647739927e-11 | J180: 6.165066857e-06 | K180: 0.005164243835 | L180: 0.0002461380933 | M180: 0.002323571468 | N180: 0.001184174411 | O180: 4291 | Q180: 339113 | R180: 3.341238652e-06 | S180: 2.062524382e-06 | T180: 1.161006741e-05 | U180: 0.01859325901 | V180: 2.076157392e-12 | W180: 7.901016598e-07 | X180: 9.741505779e-13 | Y180: 6.868860681e-09 | Z180: 0.0001371667096 | AA180: 4.175513623e-05 | AB180: 0.0008256924494 | AC180: 0.0005719164794 | AD180: 339113 | AE180: Surgical appliance and supplies manufacturing | AF180: 4291 | AG180: 0.01433725505 | AH180: 0.008850292124 | AI180: 0.04981879927 | AJ180: 79.78367443 | AK180: 8.908791368e-09 | AL180: 0.003390326222 | AM180: 4.18008013e-09 | AN180: 2.947428118e-05 | AO180: 0.5885823508 | AP180: 0.1791712896 | AQ180: 3.543046301 | AR180: 2.454093613
A181: 337900 | B181: 337900 | C181: 2.942493994e-06 | D181: 4.814500534e-07 | E181: 0.0001215604816 | F181: 0.04724428541 | G181: 2.74398384e-11 | H181: 8.235215232e-07 | I181: 2.276619179e-11 | J181: 6.09971874e-06 | K181: 0.00383571848 | L181: 7.099523545e-05 | M181: 0.002079798686 | N181: 0.0004146881482 | O181: 6785 | Q181: 339114 | R181: 3.240268243e-06 | S181: 7.058007942e-07 | T181: 1.650650574e-05 | U181: 0.01421788717 | V181: 2.737166933e-12 | W181: 9.799017378e-07 | X181: 7.849414371e-13 | Y181: 9.699846706e-08 | Z181: 0.0001882904329 | AA181: 9.857035326e-06 | AB181: 0.000836202263 | AC181: 0.0006191261073 | AD181: 339114 | AE181: Dental equipment and supplies manufacturing | AF181: 6785 | AG181: 0.02198522003 | AH181: 0.004788858389 | AI181: 0.1119966414 | AJ181: 96.46836443 | AK181: 1.857167764e-08 | AL181: 0.006648633291 | AM181: 5.325827651e-09 | AN181: 0.000658134599 | AO181: 1.277550588 | AP181: 0.06687998469 | AQ181: 5.673632354 | AR181: 4.200770638
A182: 339112 | B182: 339112 | C182: 4.023158617e-06 | D182: 4.344861342e-07 | E182: 1.017004758e-05 | F182: 0.006016719766 | G182: 6.577731603e-12 | H182: 6.541685262e-07 | I182: 1.338546935e-12 | J182: 3.209290954e-08 | K182: 0.0001658305928 | L182: 1.07756183e-05 | M182: 0.0009914879283 | N182: 0.0005861181216 | O182: 4866 | Q182: 339115 | R182: 2.721697675e-06 | S182: 3.785370677e-07 | T182: 8.297375439e-06 | U182: 0.005219501177 | V182: 3.660190337e-13 | W182: 1.992765833e-06 | X182: 2.560313288e-13 | Y182: 2.05749409e-08 | Z182: 0.0001517940279 | AA182: 0 | AB182: 0.001469422434 | AC182: 0.0008655236549 | AD182: 339115 | AE182: Ophthalmic goods manufacturing | AF182: 4866 | AG182: 0.01324378089 | AH182: 0.001841961371 | AI182: 0.04037502889 | AJ182: 25.39809273 | AK182: 1.781048618e-09 | AL182: 0.009696798542 | AM182: 1.245848446e-09 | AN182: 0.0001001176624 | AO182: 0.7386297398 | AP182: 0 | AQ182: 7.150209565 | AR182: 4.211638105
A183: 339113 | B183: 339113 | C183: 3.341238652e-06 | D183: 2.062524382e-06 | E183: 1.161006741e-05 | F183: 0.01859325901 | G183: 2.076157392e-12 | H183: 7.901016598e-07 | I183: 9.741505779e-13 | J183: 6.868860681e-09 | K183: 0.0001371667096 | L183: 4.175513623e-05 | M183: 0.0008256924494 | N183: 0.0005719164794 | O183: 9378 | Q183: 339116 | R183: 8.217858064e-07 | S183: 1.15576761e-07 | T183: 7.867127505e-06 | U183: 0.003415704764 | V183: 1.444239044e-13 | W183: 2.260533912e-07 | X183: 1.808872974e-13 | Y183: 3.597691245e-12 | Z183: 4.286521044e-05 | AA183: 0 | AB183: 0.001551982536 | AC183: 0.0006520626096 | AD183: 339116 | AE183: Dental laboratories | AF183: 9378 | AG183: 0.007706707293 | AH183: 0.001083878864 | AI183: 0.07377792174 | AJ183: 32.03247928 | AK183: 1.354407375e-09 | AL183: 0.002119928703 | AM183: 1.696361075e-09 | AN183: 3.373914849e-08 | AO183: 0.4019899435 | AP183: 0 | AQ183: 14.55449223 | AR183: 6.115043153
A184: 339114 | B184: 339114 | C184: 3.240268243e-06 | D184: 7.058007942e-07 | E184: 1.650650574e-05 | F184: 0.01421788717 | G184: 2.737166933e-12 | H184: 9.799017378e-07 | I184: 7.849414371e-13 | J184: 9.699846706e-08 | K184: 0.0001882904329 | L184: 9.857035326e-06 | M184: 0.000836202263 | N184: 0.0006191261073 | O184: 9648 | Q184: 339910 | R184: 6.832012713e-06 | S184: 2.092306602e-06 | T184: 1.921738035e-06 | U184: 0.00623285189 | V184: 7.537152757e-13 | W184: 9.773070547e-07 | X184: 3.265017167e-13 | Y184: 1.649964144e-08 | Z184: 9.197837229e-05 | AA184: 0 | AB184: 0.0008086539 | AC184: 0.0002596040923 | AD184: 339910 | AE184: Jewelry and silverware manufacturing | AF184: 9648 | AG184: 0.06591525866 | AH184: 0.02018657409 | AI184: 0.01854092856 | AJ184: 60.13455503 | AK184: 7.27184498e-09 | AL184: 0.009429058464 | AM184: 3.150088563e-09 | AN184: 0.0001591885406 | AO184: 0.8874073359 | AP184: 0 | AQ184: 7.801892828 | AR184: 2.504660283
A185: 339115 | B185: 339115 | C185: 2.721697675e-06 | D185: 3.785370677e-07 | E185: 8.297375439e-06 | F185: 0.005219501177 | G185: 3.660190337e-13 | H185: 1.992765833e-06 | I185: 2.560313288e-13 | J185: 2.05749409e-08 | K185: 0.0001517940279 | L185: 0 | M185: 0.001469422434 | N185: 0.0008655236549 | O185: 2207 | Q185: 339920 | R185: 8.752330144e-06 | S185: 7.61855471e-07 | T185: 3.834213163e-05 | U185: 0.01456331479 | V185: 1.24752949e-11 | W185: 2.591130949e-06 | X185: 1.573402184e-12 | Y185: 9.427127004e-08 | Z185: 0.0004123959746 | AA185: 2.983945632e-05 | AB185: 0.001172572482 | AC185: 0.0007504981129 | AD185: 339920 | AE185: Sporting and athletic goods manufacturing | AF185: 2207 | AG185: 0.01931639263 | AH185: 0.001681415025 | AI185: 0.08462108451 | AJ185: 32.14123574 | AK185: 2.753297584e-08 | AL185: 0.005718626005 | AM185: 3.47249862e-09 | AN185: 0.000208056693 | AO185: 0.9101579159 | AP185: 0.0658556801 | AQ185: 2.587867468 | AR185: 1.656349335
A186: 339116 | B186: 339116 | C186: 8.217858064e-07 | D186: 1.15576761e-07 | E186: 7.867127505e-06 | F186: 0.003415704764 | G186: 1.444239044e-13 | H186: 2.260533912e-07 | I186: 1.808872974e-13 | J186: 3.597691245e-12 | K186: 4.286521044e-05 | L186: 0 | M186: 0.001551982536 | N186: 0.0006520626096 | O186: 3169 | Q186: 339930 | R186: 1.178724982e-05 | S186: 9.551570057e-07 | T186: 7.541227464e-06 | U186: 0.03020232355 | V186: 6.415765376e-12 | W186: 1.361892258e-06 | X186: 1.573220099e-12 | Y186: 6.860648156e-09 | Z186: 0.0005820758665 | AA186: 5.826969274e-05 | AB186: 0.0008342707365 | AC186: 0.0005388956677 | AD186: 339930 | AE186: Doll, toy, and game manufacturing | AF186: 3169 | AG186: 0.03735379469 | AH186: 0.003026892551 | AI186: 0.02389814983 | AJ186: 95.71116334 | AK186: 2.033156048e-08 | AL186: 0.004315836564 | AM186: 4.985534493e-09 | AN186: 2.174139401e-05 | AO186: 1.844598421 | AP186: 0.1846566563 | AQ186: 2.643803964 | AR186: 1.707760371
A187: 339910 | B187: 339910 | C187: 6.832012713e-06 | D187: 2.092306602e-06 | E187: 1.921738035e-06 | F187: 0.00623285189 | G187: 7.537152757e-13 | H187: 9.773070547e-07 | I187: 3.265017167e-13 | J187: 1.649964144e-08 | K187: 9.197837229e-05 | L187: 0 | M187: 0.0008086539 | N187: 0.0002596040923 | O187: 10202 | Q187: 339940 | R187: 9.837153906e-06 | S187: 9.110219364e-07 | T187: 3.952581527e-06 | U187: 0.0185940428 | V187: 1.558698993e-12 | W187: 1.184140978e-06 | X187: 5.310691727e-13 | Y187: 2.273096064e-09 | Z187: 0.0003223054719 | AA187: 7.701761118e-07 | AB187: 0.001060798425 | AC187: 0.001397585617 | AD187: 339940 | AE187: Office supplies (except paper) manufacturing | AF187: 10202 | AG187: 0.1003586441 | AH187: 0.009294245796 | AI187: 0.04032423673 | AJ187: 189.6964246 | AK187: 1.590184712e-08 | AL187: 0.01208060626 | AM187: 5.4179677e-09 | AN187: 2.319012605e-05 | AO187: 3.288160424 | AP187: 0.007857336693 | AQ187: 10.82226553 | AR187: 14.25816847
A188: 339920 | B188: 339920 | C188: 8.752330144e-06 | D188: 7.61855471e-07 | E188: 3.834213163e-05 | F188: 0.01456331479 | G188: 1.24752949e-11 | H188: 2.591130949e-06 | I188: 1.573402184e-12 | J188: 9.427127004e-08 | K188: 0.0004123959746 | L188: 2.983945632e-05 | M188: 0.001172572482 | N188: 0.0007504981129 | O188: 25864 | Q188: 339950 | R188: 1.034418618e-05 | S188: 9.353433671e-07 | T188: 5.112003088e-06 | U188: 0.01898860055 | V188: 8.128044953e-12 | W188: 1.438191217e-06 | X188: 1.326122069e-12 | Y188: 5.01161569e-08 | Z188: 0.0003417829744 | AA188: 3.225590861e-05 | AB188: 0.001397143994 | AC188: 0.001025577761 | AD188: 339950 | AE188: Sign manufacturing | AF188: 25864 | AG188: 0.2675420314 | AH188: 0.02419172085 | AI188: 0.1322168479 | AJ188: 491.1211647 | AK188: 2.102237547e-07 | AL188: 0.03719737763 | AM188: 3.42988212e-08 | AN188: 0.001296204282 | AO188: 8.83987485 | AP188: 0.8342668202 | AQ188: 36.13573225 | AR188: 26.52554322
A189: 339930 | B189: 339930 | C189: 1.178724982e-05 | D189: 9.551570057e-07 | E189: 7.541227464e-06 | F189: 0.03020232355 | G189: 6.415765376e-12 | H189: 1.361892258e-06 | I189: 1.573220099e-12 | J189: 6.860648156e-09 | K189: 0.0005820758665 | L189: 5.826969274e-05 | M189: 0.0008342707365 | N189: 0.0005388956677 | O189: 23089 | Q189: 339990 | R189: 6.867396105e-05 | S189: 4.334363288e-06 | T189: 0.0001787558821 | U189: 0.01443110036 | V189: 3.120181122e-11 | W189: 1.777782813e-05 | X189: 4.385332797e-11 | Y189: 4.502988882e-08 | Z189: 0.001733842296 | AA189: 0.002546433095 | AB189: 0.001025766226 | AC189: 0.001009195973 | AD189: 339990 | AE189: All other miscellaneous manufacturing | AF189: 23089 | AG189: 1.585613087 | AH189: 0.100076114 | AI189: 4.127294562 | AJ189: 333.1996762 | AK189: 7.204186192e-07 | AL189: 0.4104722736 | AM189: 1.01252949e-06 | AN189: 0.001039695103 | AO189: 40.03268477 | AP189: 58.79459374 | AQ189: 23.68391639 | AR189: 23.30132582
A190: 339940 | B190: 339940 | C190: 9.837153906e-06 | D190: 9.110219364e-07 | E190: 3.952581527e-06 | F190: 0.0185940428 | G190: 1.558698993e-12 | H190: 1.184140978e-06 | I190: 5.310691727e-13 | J190: 2.273096064e-09 | K190: 0.0003223054719 | L190: 7.701761118e-07 | M190: 0.001060798425 | N190: 0.001397585617 | O190: 30795 | Q190: 311111 | R190: 2.348118715e-05 | S190: 1.90680297e-05 | T190: 2.539891372e-06 | U190: 0.0430576839 | V190: 3.040338888e-12 | W190: 1.769747964e-05 | X190: 7.25377695e-13 | Y190: 1.386414191e-10 | Z190: 0.00058135851 | AA190: 0 | AB190: 0.0001850745701 | AC190: 0.001614626782 | AD190: 311111 | AE190: Dog and cat food manufacturing | AF190: 30795 | AG190: 0.7231031584 | AH190: 0.5871999745 | AI190: 0.07821595481 | AJ190: 1325.961376 | AK190: 9.362723606e-08 | AL190: 0.5449938855 | AM190: 2.233800612e-08 | AN190: 4.269462501e-06 | AO190: 17.90293532 | AP190: 0 | AQ190: 5.699371386 | AR190: 49.72243175
A191: 339950 | B191: 339950 | C191: 1.034418618e-05 | D191: 9.353433671e-07 | E191: 5.112003088e-06 | F191: 0.01898860055 | G191: 8.128044953e-12 | H191: 1.438191217e-06 | I191: 1.326122069e-12 | J191: 5.01161569e-08 | K191: 0.0003417829744 | L191: 3.225590861e-05 | M191: 0.001397143994 | N191: 0.001025577761 | O191: 15154 | Q191: 311119 | R191: 3.929484004e-05 | S191: 4.499739411e-05 | T191: 0.000144306016 | U191: 0.0299571041 | V191: 6.376523866e-11 | W191: 3.158406293e-05 | X191: 2.839694297e-12 | Y191: 1.135097457e-08 | Z191: 0.000755169882 | AA191: 1.881056915e-05 | AB191: 0.0001488513454 | AC191: 0.00103010237 | AD191: 311119 | AE191: Other animal food manufacturing | AF191: 15154 | AG191: 0.5954740059 | AH191: 0.6818905104 | AI191: 2.186813366 | AJ191: 453.9699556 | AK191: 9.662984266e-07 | AL191: 0.4786248896 | AM191: 4.303272738e-08 | AN191: 0.0001720126686 | AO191: 11.44384439 | AP191: 0.2850553649 | AQ191: 2.255693288 | AR191: 15.61017132
A192: 339990 | B192: 339990 | C192: 6.867396105e-05 | D192: 4.334363288e-06 | E192: 0.0001787558821 | F192: 0.01443110036 | G192: 3.120181122e-11 | H192: 1.777782813e-05 | I192: 4.385332797e-11 | J192: 4.502988882e-08 | K192: 0.001733842296 | L192: 0.002546433095 | M192: 0.001025766226 | N192: 0.001009195973 | O192: 13236 | Q192: 311210 | R192: 0.0006130668693 | S192: 9.616177438e-06 | T192: 7.095751992e-05 | U192: 0.09106571715 | V192: 6.215221889e-11 | W192: 9.902710726e-05 | X192: 1.139560429e-12 | Y192: 2.878182201e-07 | Z192: 0.002325382857 | AA192: 2.512539388e-07 | AB192: 0.0006585291634 | AC192: 0.001496626012 | AD192: 311210 | AE192: Flour milling and malt manufacturing | AF192: 13236 | AG192: 8.114553082 | AH192: 0.1272797246 | AI192: 0.9391937337 | AJ192: 1205.345832 | AK192: 8.226467693e-07 | AL192: 1.310722792 | AM192: 1.508322184e-08 | AN192: 0.003809561962 | AO192: 30.7787675 | AP192: 0.003325597134 | AQ192: 8.716292007 | AR192: 19.80934189
A193: 311111 | B193: 311111 | C193: 2.348118715e-05 | D193: 1.90680297e-05 | E193: 2.539891372e-06 | F193: 0.0430576839 | G193: 3.040338888e-12 | H193: 1.769747964e-05 | I193: 7.25377695e-13 | J193: 1.386414191e-10 | K193: 0.00058135851 | L193: 0 | M193: 0.0001850745701 | N193: 0.001614626782 | O193: 9946 | Q193: 311221 | R193: 0.002074865248 | S193: 0.000251459137 | T193: 0.00176446829 | U193: 0.9296885504 | V193: 5.802286278e-10 | W193: 0.0003159247238 | X193: 3.802945531e-11 | Y193: 7.888487213e-08 | Z193: 0.01794306309 | AA193: 0 | AB193: 0.0007696925946 | AC193: 0.002817743772 | AD193: 311221 | AE193: Wet corn milling | AF193: 9946 | AG193: 20.63660975 | AH193: 2.501012577 | AI193: 17.54940162 | AJ193: 9246.682322 | AK193: 5.770953932e-06 | AL193: 3.142187303 | AM193: 3.782409626e-07 | AN193: 0.0007845889382 | AO193: 178.4617055 | AP193: 0 | AQ193: 7.655362546 | AR193: 28.02527955
A194: 311119 | B194: 311119 | C194: 3.929484004e-05 | D194: 4.499739411e-05 | E194: 0.000144306016 | F194: 0.0299571041 | G194: 6.376523866e-11 | H194: 3.158406293e-05 | I194: 2.839694297e-12 | J194: 1.135097457e-08 | K194: 0.000755169882 | L194: 1.881056915e-05 | M194: 0.0001488513454 | N194: 0.00103010237 | O194: 30215 | Q194: 311225 | R194: 7.267372994e-05 | S194: 0.0001663999993 | T194: 2.836610789e-05 | U194: 0.05592733522 | V194: 3.233183003e-11 | W194: 2.406880587e-05 | X194: 7.01619379e-13 | Y194: 6.033377954e-10 | Z194: 0.001543940416 | AA194: 2.4688136e-06 | AB194: 0.0002954658047 | AC194: 0.0008104473256 | AD194: 311225 | AE194: Fats and oils refining and blending | AF194: 30215 | AG194: =R194*$AF194 -> 2.19583675 | AH194: =S194*$AF194 -> 5.027775978 | AI194: =T194*$AF194 -> 0.85708195 | AJ194: =U194*$AF194 -> 1689.844434 | AK194: =V194*$AF194 -> 9.769062444e-07 | AL194: =W194*$AF194 -> 0.7272389693 | AM194: =X194*$AF194 -> 2.119942954e-08 | AN194: =Y194*$AF194 -> 1.822985149e-05 | AO194: =Z194*$AF194 -> 46.65015967 | AP194: =AA194*$AF194 -> 0.07459520293 | AQ194: =AB194*$AF194 -> 8.927499288 | AR194: =AC194*$AF194 -> 24.48766594
A195: 311210 | B195: 311210 | C195: 0.0006130668693 | D195: 9.616177438e-06 | E195: 7.095751992e-05 | F195: 0.09106571715 | G195: 6.215221889e-11 | H195: 9.902710726e-05 | I195: 1.139560429e-12 | J195: 2.878182201e-07 | K195: 0.002325382857 | L195: 2.512539388e-07 | M195: 0.0006585291634 | N195: 0.001496626012 | O195: 9529 | Q195: 311224 | R195: 0.0002012057514 | S195: 3.572969389e-05 | T195: 0.0001122587185 | U195: 0.05008550432 | V195: 7.986361267e-11 | W195: 7.673904117e-05 | X195: 2.015584041e-12 | Y195: 1.42832281e-09 | Z195: 0.004276603474 | AA195: 3.636676334e-06 | AB195: 0.0003630082796 | AC195: 0.0007175787747 | AD195: 311224 | AE195: Soybean and other oilseed processing | AF195: 9529 | AG195: 1.917289605 | AH195: 0.3404682531 | AI195: 1.069713329 | AJ195: 477.2647706 | AK195: 7.610203651e-07 | AL195: 0.7312463233 | AM195: 1.920650032e-08 | AN195: 1.361048806e-05 | AO195: 40.75175451 | AP195: 0.03465388879 | AQ195: 3.459105897 | AR195: 6.837808144
A196: 311221 | B196: 311221 | C196: 0.002074865248 | D196: 0.000251459137 | E196: 0.00176446829 | F196: 0.9296885504 | G196: 5.802286278e-10 | H196: 0.0003159247238 | I196: 3.802945531e-11 | J196: 7.888487213e-08 | K196: 0.01794306309 | L196: 0 | M196: 0.0007696925946 | N196: 0.002817743772 | O196: 38002 | Q196: 311230 | R196: 3.822172145e-05 | S196: 7.299319161e-06 | T196: 7.710730608e-06 | U196: 0.1100090998 | V196: 6.973599043e-12 | W196: 5.977756796e-05 | X196: 9.198050671e-13 | Y196: 2.735565295e-09 | Z196: 0.00118493351 | AA196: 0.00540381168 | AB196: 0.001148383506 | AC196: 0.002371439236 | AD196: 311230 | AE196: Breakfast cereal manufacturing | AF196: 38002 | AG196: 1.452501858 | AH196: 0.2773887267 | AI196: 0.2930231846 | AJ196: 4180.565812 | AK196: 2.650107108e-07 | AL196: 2.271667138 | AM196: 3.495443216e-08 | AN196: 0.0001039569523 | AO196: 45.02984326 | AP196: 205.3556514 | AQ196: 43.64086999 | AR196: 90.11943384
A197: 311225 | B197: 311225 | C197: 7.267372994e-05 | D197: 0.0001663999993 | E197: 2.836610789e-05 | F197: 0.05592733522 | G197: 3.233183003e-11 | H197: 2.406880587e-05 | I197: 7.01619379e-13 | J197: 6.033377954e-10 | K197: 0.001543940416 | L197: 2.4688136e-06 | M197: 0.0002954658047 | N197: 0.0008104473256 | O197: 32322 | Q197: 311300 | R197: 0.0007287613272 | S197: 5.799228514e-05 | T197: 0.0001799247767 | U197: 0.1494854298 | V197: 8.486733041e-11 | W197: 0.0005977915483 | X197: 3.27134154e-11 | Y197: 2.432641771e-09 | Z197: 0.01246521365 | AA197: 0.0005856812052 | AB197: 0.0007776779697 | AC197: 0.003234409295 | AD197: 311300 | AE197: Sugar and confectionery product manufacturing | AF197: 32322 | AG197: 23.55502362 | AH197: 1.87442664 | AI197: 5.815528632 | AJ197: 4831.668063 | AK197: 2.743081853e-06 | AL197: 19.32181842 | AM197: 1.057363013e-06 | AN197: 7.862784732e-05 | AO197: 402.9006355 | AP197: 18.93038791 | AQ197: 25.13610734 | AR197: 104.5425772
A198: 311224 | B198: 311224 | C198: 0.0002012057514 | D198: 3.572969389e-05 | E198: 0.0001122587185 | F198: 0.05008550432 | G198: 7.986361267e-11 | H198: 7.673904117e-05 | I198: 2.015584041e-12 | J198: 1.42832281e-09 | K198: 0.004276603474 | L198: 3.636676334e-06 | M198: 0.0003630082796 | N198: 0.0007175787747 | O198: 39658 | Q198: 311410 | R198: 4.153902552e-05 | S198: 7.626498863e-05 | T198: 2.493962913e-05 | U198: 0.06528711093 | V198: 8.554607683e-11 | W198: 1.817526077e-05 | X198: 1.191412709e-12 | Y198: 7.019731187e-10 | Z198: 0.001037208412 | AA198: 0.0002302728557 | AB198: 0.001438473286 | AC198: 0.003652320707 | AD198: 311410 | AE198: Frozen food manufacturing | AF198: 39658 | AG198: 1.647354674 | AH198: 3.024516919 | AI198: 0.9890558122 | AJ198: 2589.156245 | AK198: 3.392586315e-06 | AL198: 0.7207944917 | AM198: 4.724904523e-08 | AN198: 2.783884994e-05 | AO198: 41.13361119 | AP198: 9.132160911 | AQ198: 57.04697359 | AR198: 144.8437346
A199: 311230 | B199: 311230 | C199: 3.822172145e-05 | D199: 7.299319161e-06 | E199: 7.710730608e-06 | F199: 0.1100090998 | G199: 6.973599043e-12 | H199: 5.977756796e-05 | I199: 9.198050671e-13 | J199: 2.735565295e-09 | K199: 0.00118493351 | L199: 0.00540381168 | M199: 0.001148383506 | N199: 0.002371439236 | O199: 42587 | Q199: 311420 | R199: 7.305839099e-05 | S199: 1.095453154e-05 | T199: 1.18591115e-05 | U199: 0.1215786559 | V199: 3.184642372e-11 | W199: 1.740836987e-05 | X199: 2.30886845e-12 | Y199: 6.839391732e-08 | Z199: 0.001180584627 | AA199: 0.004450884665 | AB199: 0.00127404219 | AC199: 0.003126514759 | AD199: 311420 | AE199: Fruit and vegetable canning, pickling, and drying | AF199: 42587 | AG199: 3.111337697 | AH199: 0.4665206347 | AI199: 0.5050439816 | AJ199: 5177.67022 | AK199: 1.356243647e-06 | AL199: 0.7413702477 | AM199: 9.832778067e-08 | AN199: 0.002912691757 | AO199: 50.27755753 | AP199: 189.5498252 | AQ199: 54.25763473 | AR199: 133.148884
A200: 311300 | B200: 311300 | C200: 0.0007287613272 | D200: 5.799228514e-05 | E200: 0.0001799247767 | F200: 0.1494854298 | G200: 8.486733041e-11 | H200: 0.0005977915483 | I200: 3.27134154e-11 | J200: 2.432641771e-09 | K200: 0.01246521365 | L200: 0.0005856812052 | M200: 0.0007776779697 | N200: 0.003234409295 | O200: 21566 | Q200: 311513 | R200: 1.830716858e-05 | S200: 1.233982087e-05 | T200: 2.510212865e-06 | U200: 0.02738564334 | V200: 4.14410259e-13 | W200: 8.788604443e-06 | X200: 3.771121866e-13 | Y200: 2.606626792e-11 | Z200: 0.0002813950778 | AA200: 2.101900385e-05 | AB200: 0.0005126197297 | AC200: 0.001325690435 | AD200: 311513 | AE200: Cheese manufacturing | AF200: 21566 | AG200: 0.3948123976 | AH200: 0.2661205769 | AI200: 0.05413525064 | AJ200: 590.5987843 | AK200: 8.937171647e-09 | AL200: 0.1895350434 | AM200: 8.132801417e-09 | AN200: 5.62145134e-07 | AO200: 6.068566249 | AP200: 0.453295837 | AQ200: 11.05515709 | AR200: 28.58983992
... 207 more rows

Sheet Inflation (hidden)
A1: Consumer Price Index for All Urban Consumers (CPI-U)
A2: Original Data Value
A4: Series Id: | B4: CUUR0000SA0,CUUS0000SA0
A5: Not Seasonally Adjusted
A6: Series Title: | B6: All items in U.S. city average, all urban consumers, not seasonally adjusted
A7: Area: | B7: U.S. city average
A8: Item: | B8: All items
A9: Base Period: | B9: 1982-84=100
A10: Years: | B10: 2000 to 2024
A12: Year | B12: Annual
A13: 2000 | B13: 172.2
A14: 2001 | B14: 177.1
A15: 2002 | B15: 179.9
A16: 2003 | B16: 184
A17: 2004 | B17: 188.9
A18: 2005 | B18: 195.3
A19: 2006 | B19: 201.6
A20: 2007 | B20: 207.342
A21: 2008 | B21: 215.303
A22: 2009 | B22: 214.537
A23: 2010 | B23: 218.056
A24: 2011 | B24: 224.939
A25: 2012 | B25: 229.594 | D25: =B25/$B$25 -> 1
A26: 2013 | B26: 232.957 | D26: 1.014647595
A27: 2014 | B27: 236.736 | D27: 1.031107085
A28: 2015 | B28: 237.017 | D28: 1.032330984
A29: 2016 | B29: 240.007 | D29: 1.045353973
A30: 2017 | B30: 245.12 | D30: =B30/$B$25 -> 1.067623718
A31: 2018 | B31: 251.107 | D31: =B31/$B$25 -> 1.093700184
A32: 2019 | B32: 255.657 | D32: 1.113517775
A33: 2020 | B33: 258.811 | D33: 1.127255068
A34: 2021 | B34: 270.97 | D34: 1.180213769
A35: 2022 | B35: 292.655 | D35: 1.274663101
A36: 2023 | B36: 304.702 | D36: 1.327133984
A37: 2024 | B37: 313.689 | D37: 1.366276993

Sheet 402 Neg Ext Data (hidden)
A1: NAICS | B1: USEEIO Output | C1: Acidification Potential | D1: Commercial Construction and Demolition Debris | E1: Commercial Municipal Solid Waste | F1: Commercial RCRA Hazardous Waste | G1: Energy Use | H1: Eutrophication Potential | I1: Freshwater Ecotoxicity Potential | J1: Freshwater withdrawals | K1: Greenhouse Gases | L1: Hazardous Air Pollutants | M1: Human Health - Cancer | N1: Human Health - Noncancer | O1: Human Health - Respiratory Effects | P1: Human Health Toxicity | Q1: Jobs Supported | R1: Land use | S1: Minerals and Metals Use | T1: Nonrenewable Energy Use | U1: Ozone Depletion | V1: Pesticides | W1: Renewable Energy Use | X1: Smog Formation Potential | Y1: Value Added
A2: 1111A0 | B2: 42656016000 | C2: 0.003481972337 | D2: 0.0001300814583 | E2: 0.001902812483 | F2: 2.491261655e-06 | G2: 0 | H2: 0.009322235228 | I2: 32.93472031 | J2: 33.46886637 | K2: 0.6697480912 | L2: 3.80645417e-05 | M2: 1.931083757e-10 | N2: 2.908559557e-09 | O2: 0.00476838097 | P2: 3.101667933e-09 | Q2: 8.505731313e-08 | R2: 8.394766579 | S2: 0 | T2: 0 | U2: 0 | V2: 0.0004504905905 | W2: 0 | X2: 0.01247641723 | Y2: 0.5367718905
A3: 1111B0 | B3: 92356030000 | C3: 0.01169399703 | D3: 0.0001125203696 | E3: 0.001645931455 | F3: 1.383332737e-06 | G3: 0 | H3: 0.02599013513 | I3: 9.179924198 | J3: 345.5963308 | K3: 1.707773835 | L3: 8.128850998e-05 | M3: 6.417980681e-10 | N3: 1.727370115e-09 | O3: 0.00479161382 | P3: 2.369168183e-09 | Q3: 4.713413841e-07 | R3: 8.40771025 | S3: 0 | T3: 0 | U3: 0 | V3: 0.0005368323254 | W3: 0 | X3: 0.02297342724 | Y3: 0.2387067435
A4: 111200 | B4: 14756003000 | C4: 0.005754443779 | D4: 0.0002327943778 | E4: 0.003405281997 | F4: 4.66568931e-06 | G4: 0.004246366182 | H4: 0.009582616311 | I4: 34.19091572 | J4: 526.9984039 | K4: 0.6059015553 | L4: 5.922166833e-05 | M4: 2.149154297e-10 | N4: 3.611520203e-09 | O4: 0.0009202812121 | P4: 3.826435632e-09 | Q4: 6.337916854e-06 | R4: 1.465240758 | S4: 0 | T4: 0 | U4: 1.187575913e-05 | V4: 0.001591737858 | W4: 0.004246366182 | X4: 0.01400401143 | Y4: 0.5140920196
A5: 111300 | B5: 25766004500 | C5: 0.002947370747 | D5: 0.0002364382413 | E5: 0.003458583898 | F5: 4.285617466e-06 | G5: 0 | H5: 0.0002139022979 | I5: 22.16205548 | J5: 664.7655274 | K5: 0.4563429773 | L5: 3.052843713e-05 | M5: 1.3881879e-10 | N5: 1.532189506e-09 | O5: 0.0001301431634 | P5: 1.671008296e-09 | Q5: 6.537154184e-06 | R5: 1.035847882 | S5: 0 | T5: 0 | U5: 1.62246396e-06 | V5: 0.0005658175874 | W5: 0 | X5: 0.009021869593 | Y5: 0.6716742778
A6: 111400 | B6: 18653004500 | C6: 0.002530880365 | D6: 0.0001294973319 | E6: 0.001800149455 | F6: 1.401862213e-06 | G6: 5.519791804e-06 | H6: 0.0001595149431 | I6: 0.0007125442428 | J6: 1.088728148 | K6: 0.5388120995 | L6: 3.694289011e-05 | M6: 2.267000333e-10 | N6: 1.211099179e-09 | O6: 0.0001345152606 | P6: 1.437799212e-09 | Q6: 4.876148802e-06 | R6: 0.2111851754 | S6: 0 | T6: 0 | U6: 1.232607933e-09 | V6: 0 | W6: 5.519791804e-06 | X6: 0.01397326463 | Y6: 0.5199105369
A7: 111900 | B7: 18747004500 | C7: 0.003397514387 | D7: 0.0001332538111 | E7: 0.001949217194 | F7: 4.080830172e-06 | G7: 0.005630764761 | H7: 0.003887637201 | I7: 20.90611821 | J7: 1540.913603 | K7: 0.9203361228 | L7: 0.0001099035251 | M7: 4.542700531e-10 | N7: 4.840117904e-09 | O7: 0.007425422519 | P7: 5.294387957e-09 | Q7: 1.642207258e-06 | R7: 18.63458414 | S7: 0 | T7: 0 | U7: 0 | V7: 0.0002971670348 | W7: 0.005630764761 | X7: 0.01311476962 | Y7: 0.4889877646
A8: 112120 | B8: 36983014500 | C8: 0.02026912472 | D8: 7.57618476e-05 | E8: 0.001108233189 | F8: 6.322739324e-07 | G8: 0 | H8: 0.001723882694 | I8: 0.0008720789508 | J8: 11.73548979 | K8: 2.272995207 | L8: 0.0003508081604 | M8: 2.112304416e-10 | N8: 9.793974795e-10 | O8: 0.001374105818 | P8: 1.190627921e-09 | Q8: 2.572872694e-06 | R8: 2.386041001 | S8: 0 | T8: 0 | U8: 0 | V8: 0 | W8: 0 | X8: 0.0168573192 | Y8: 0.1966795608
A9: 1121A0 | B9: 78411023000 | C9: 0.01514725163 | D9: 8.832620826e-05 | E9: 0.001292022813 | F9: 7.371303737e-07 | G9: 0 | H9: 0.001405665271 | I9: 0.000640908772 | J9: 119.8302365 | K9: 2.651174687 | L9: 4.490102443e-05 | M9: 2.084590492e-10 | N9: 9.637594345e-10 | O9: 0.004565011955 | P9: 1.172218484e-09 | Q9: 6.314583135e-07 | R9: 30.94829452 | S9: 0 | T9: 0 | U9: 0 | V9: 0 | W9: 0 | X9: 0.01616380415 | Y9: 0.3038937665
A10: 112300 | B10: 37695015000 | C10: 0.01768490523 | D10: 9.528420002e-05 | E10: 0.001393803296 | F10: 8.703274819e-07 | G10: 0 | H10: 0.001138437353 | I10: 0.0005484323018 | J10: 19.95434176 | K10: 0.4241373933 | L10: 0.0001306757461 | M10: 1.528034424e-10 | N10: 8.525385366e-10 | O10: 0.001122349609 | P10: 1.005341979e-09 | Q10: 9.685734069e-07 | R10: 0.7450445563 | S10: 0 | T10: 0 | U10: 3.9853301e-12 | V10: 0 | W10: 0 | X10: 0.01195028475 | Y10: 0.09847194902
A11: 112A00 | B11: 39700005000 | C11: 0.04366045562 | D11: 8.590509124e-05 | E11: 0.001251168074 | F11: 1.230995973e-06 | G11: 1.094737722e-05 | H11: 0.002925213409 | I11: 0.04088703199 | J11: 443.8305178 | K11: 1.471817458 | L11: 0.0001189006968 | M11: 1.035942171e-10 | N11: 4.874609444e-10 | O11: 0.001920958962 | P11: 5.910551615e-10 | Q11: 1.80931177e-06 | R11: 16.92868248 | S11: 0 | T11: 0 | U11: 9.597464459e-12 | V11: 0 | W11: 1.094737722e-05 | X11: 0.01357626566 | Y11: 0.6405245989
A12: 113000 | B12: 15878001500 | C12: 0.000647261752 | D12: 0.0001834085654 | E12: 0.002649739437 | F12: 3.870366584e-06 | G12: 0.0004164188818 | H12: 0.0002730950826 | I12: 1.315222558 | J12: 102.1376643 | K12: 0.1781017912 | L12: 5.476039387e-05 | M12: 8.652488695e-11 | N12: 6.768162447e-10 | O12: 0.0005042081944 | P12: 7.633411316e-10 | Q12: 2.659899208e-06 | R12: 111.1513482 | S12: 0 | T12: 0 | U12: 5.256574211e-11 | V12: 1.868633425e-05 | W12: 0.0004164188818 | X12: 0.004491231444 | Y12: 0.5375016875
A13: 114000 | B13: 8492002500 | C13: 5.865034412e-06 | D13: 6.16311584e-05 | E13: 0.0008869244605 | F13: 1.472920825e-06 | G13: 2.940051277e-05 | H13: 3.945797054e-05 | I13: 4.760549633e-05 | J13: 0 | K13: 0.2282560831 | L13: 2.1448694e-07 | M13: 7.856192339e-13 | N13: 1.949595632e-11 | O13: 2.501860021e-06 | P13: 2.028157556e-11 | Q13: 1.049296072e-06 | R13: 1.640706557e-05 | S13: 0 | T13: 0 | U13: 2.343149715e-11 | V13: 0 | W13: 2.940051277e-05 | X13: 9.716053946e-05 | Y13: 0.7078041059
A14: 115000 | B14: 22526002500 | C14: 0.001601214405 | D14: 0.0009813413263 | E14: 0.01430943581 | F14: 1.254081688e-05 | G14: 0.003755725373 | H14: 0.0007298188065 | I14: 0.9237329623 | J14: 27.79223759 | K14: 0.1973474904 | L14: 4.644639452e-05 | M14: 1.123889961e-10 | N14: 4.177898923e-10 | O14: 0.000414625419 | P14: 5.301788884e-10 | Q14: 1.497519014e-05 | R14: 1.043666277 | S14: 0 | T14: 0 | U14: 4.8893633e-07 | V14: 2.921351379e-05 | W14: 0.003755725373 | X14: 0.004126300717 | Y14: 0.66542863
A15: 211000 | B15: 362657671500 | C15: 0.0009406544357 | D15: 2.921925452e-05 | E15: 0.0004269323879 | F15: 4.558883081e-05 | G15: 114.8170341 | H15: 5.427429765e-05 | I15: 0.001934253604 | J15: 1.471222 | K15: 0.6057706451 | L15: 0.0002244246556 | M15: 7.349839336e-10 | N15: 3.093683607e-09 | O15: 3.984805631e-05 | P15: 3.828667541e-09 | Q15: 3.164305312e-07 | R15: 0.4148931542 | S15: 0 | T15: 114.8170322 | U15: 8.066002467e-09 | V15: 0 | W15: 1.870255221e-06 | X15: 0.03922656972 | Y15: 0.6146053789
A16: 212100 | B16: 54436073000 | C16: 0.000786448636 | D16: 0.0001141303292 | E16: 0.001669481708 | F16: 2.775325897e-06 | G16: 412.6204559 | H16: 3.699706468e-05 | I16: 0.02579885907 | J16: 4.783214398 | K16: 1.940374584 | L16: 4.396386154e-06 | M16: 1.467979864e-10 | N16: 1.432455731e-08 | O16: 0.0003255195296 | P16: 1.447135529e-08 | Q16: 1.369850265e-06 | R16: 0.0728292327 | S16: 0 | T16: 412.6204559 | U16: 3.91151084e-09 | V16: 0 | W16: 0 | X16: 0.01505038389 | Y16: 0.5645289801
A17: 212230 | B17: 14013011500 | C17: 0.001420585224 | D17: 8.16466778e-05 | E17: 0.001194315622 | F17: 3.469610928e-05 | G17: 0.0002668558851 | H17: 1.305183062e-05 | I17: 0.07451444632 | J17: 3.784982058 | K17: 1.066990123 | L17: 5.455698287e-06 | M17: 2.651829772e-10 | N17: 2.146818238e-08 | O17: 0.001740750358 | P17: 2.173336536e-08 | Q17: 1.095728086e-06 | R17: 0.001553296213 | S17: 0.1997486422 | T17: 0 | U17: 7.702716709e-11 | V17: 0 | W17: 0.0002668558851 | X17: 0.003428451956 | Y17: 0.5261635922
A18: 2122A0 | B18: 22380022000 | C18: 0.00149087399 | D18: 9.238794767e-05 | E18: 0.001351437341 | F18: 9.882027969e-05 | G18: 0.004492020243 | H18: 7.180542827e-05 | I18: 0.01353674771 | J18: 4.320299608 | K18: 0.8764462082 | L18: 3.7386657e-05 | M18: 5.745389005e-10 | N18: 4.847854785e-08 | O18: 0.001714162594 | P18: 4.905308676e-08 | Q18: 1.168085645e-06 | R18: 0.001563695895 | S18: 0.7742792634 | T18: 0 | U18: 1.186564746e-09 | V18: 0 | W18: 0.004492020243 | X18: 0.02607892123 | Y18: 0.482089551
A19: 212310 | B19: 16249038500 | C19: 0.0007116673263 | D19: 0.0001257866876 | E19: 0.001807408732 | F19: 3.256470898e-05 | G19: 0 | H19: 2.544769354e-05 | I19: 0.0007529841774 | J19: 7.616954304 | K19: 0.2179334713 | L19: 2.163252172e-05 | M19: 1.741081206e-10 | N19: 4.953796561e-09 | O19: 0.002323206226 | P19: 5.127904682e-09 | Q19: 2.374901273e-06 | R19: 0.003875714556 | S19: 74.05601628 | T19: 0 | U19: 2.433349146e-09 | V19: 0 | W19: 0 | X19: 0.009607318059 | Y19: 0.5387954522
A20: 2123A0 | B20: 17584027000 | C20: 0.001336393143 | D20: 0.0001313059615 | E20: 0.001850827774 | F20: 0.0008614693222 | G20: 0.3656890057 | H20: 9.841019883e-05 | I20: 0.008153553728 | J20: 7.321598304 | K20: 0.512351751 | L20: 4.338278533e-05 | M20: 2.733067777e-10 | N20: 6.813493165e-09 | O20: 0.002073653069 | P20: 7.086799943e-09 | Q20: 2.317463003e-06 | R20: 0.09687226943 | S20: 46.37259427 | T20: 0.3656770727 | U20: 2.765483018e-09 | V20: 0 | W20: 1.193302039e-05 | X20: 0.01724563062 | Y20: 0.4661358391
A21: 213111 | B21: 32688041500 | C21: 0.0003903179198 | D21: 0.0001803725131 | E21: 0.002638462653 | F21: 8.852909321e-06 | G21: 46.95355248 | H21: 2.25466422e-05 | I21: 0.0007978576589 | J21: 5.515358027 | K21: 0.3469427413 | L21: 9.226846319e-05 | M21: 3.027504069e-10 | N21: 1.286601539e-09 | O21: 1.642812996e-05 | P21: 1.589351946e-09 | Q21: 1.890296535e-06 | R21: 0.1696672483 | S21: 0 | T21: 46.95355248 | U21: 3.303414736e-09 | V21: 0 | W21: 0 | X21: 0.01620089625 | Y21: 0.5689785355
A22: 21311A | B22: 93043203500 | C22: 0.0003109466957 | D22: 0.0001463246844 | E22: 0.00214039773 | F22: 3.425721005e-05 | G22: 42.16495097 | H22: 1.721262333e-05 | I22: 0.002121664122 | J22: 8.663123811 | K22: 0.4022157296 | L22: 5.840554337e-05 | M22: 2.116377608e-10 | N22: 2.387603502e-09 | O22: 0.0001027444115 | P22: 2.599241263e-09 | Q22: 2.736292155e-06 | R22: 0.09488800597 | S22: 1.517087127 | T22: 42.16490055 | U22: 2.204039303e-09 | V22: 0 | W22: 5.042251307e-05 | X22: 0.01055617413 | Y22: 0.5614746859
A23: 221100 | B23: 366949232000 | C23: 0.004466325304 | D23: 8.694761565e-05 | E23: 0.001271856963 | F23: 5.807896037e-05 | G23: 33.28961183 | H23: 0.0002569401449 | I23: 0.03806530031 | J23: 279.940898 | K23: 4.026765821 | L23: 2.771618299e-05 | M23: 2.495033136e-10 | N23: 1.219402384e-08 | O23: 0.0004293803747 | P23: 1.244352716e-08 | Q23: 1.109765191e-06 | R23: 0.01379564975 | S23: 0 | T23: 19.35289787 | U23: 2.983264483e-08 | V23: 0 | W23: 13.93671396 | X23: 0.03807587788 | Y23: 0.5799845642
A24: 221200 | B24: 81643083000 | C24: 0.0006090073481 | D24: 0.000123927829 | E24: 0.001812798097 | F24: 6.329185417e-05 | G24: 3.31716719 | H24: 0.0002017077028 | I24: 0.009261761432 | J24: 29.02704895 | K24: 0.4866161262 | L24: 1.182037453e-05 | M24: 5.721269159e-11 | N24: 1.645907103e-09 | O24: 5.615270101e-05 | P24: 1.703119795e-09 | Q24: 1.417506149e-06 | R24: 0.00137782798 | S24: 0 | T24: 1.928359805 | U24: 4.038315195e-09 | V24: 0 | W24: 1.388807385 | X24: 0.005925019619 | Y24: 0.5862263339
A25: 221300 | B25: 12891032000 | C25: 0.0003234355389 | D25: 2.660023739e-05 | E25: 0.0003811452368 | F25: 8.018583244e-05 | G25: 0.6160342245 | H25: 0.03915275465 | I25: 1.21676184 | J25: 267.5068645 | K25: 0.4640635686 | L25: 2.200383765e-05 | M25: 1.011825707e-09 | N25: 4.765452962e-08 | O25: 3.439675378e-05 | P25: 4.866635533e-08 | Q25: 3.613646365e-06 | R25: 0.0002873340289 | S25: 0 | T25: 0.3444306012 | U25: 7.099354113e-08 | V25: 0 | W25: 0.2716036233 | X25: 0.003989967684 | Y25: 0.5024345254
A26: 233210 | B26: 43895040500 | C26: 0.000135159224 | D26: 0.1506458006 | E26: 0.0237429761 | F26: 1.936128836e-05 | G26: 1.044686244e-05 | H26: 8.955247711e-06 | I26: 0.001365934077 | J26: 4.482353991 | K26: 0.08930873499 | L26: 1.291683287e-05 | M26: 1.133251032e-10 | N26: 3.278418369e-10 | O26: 1.788496546e-05 | P26: 4.411669401e-10 | Q26: 4.898168951e-06 | R26: 2.04995654e-05 | S26: 0 | T26: 0 | U26: 5.688352765e-11 | V26: 0 | W26: 1.044686244e-05 | X26: 0.0034323627 | Y26: 0.5996568597
A27: 233262 | B27: 68222063000 | C27: 0.0001218689852 | D27: 0.1336437232 | E27: 0.02103454691 | F27: 1.677418684e-05 | G27: 0.0001587590713 | H27: 8.072917165e-06 | I27: 0.0012214913 | J27: 3.971239672 | K27: 0.07415348964 | L27: 1.206904181e-05 | M27: 1.02082211e-10 | N27: 2.949367472e-10 | O27: 1.613900062e-05 | P27: 3.970189582e-10 | Q27: 4.612521727e-06 | R27: 0.0003287332166 | S27: 0 | T27: 0 | U27: 4.939808358e-11 | V27: 0 | W27: 0.0001587590713 | X27: 0.00310452823 | Y27: 0.6116123337
A28: 230301 | B28: 174831229500 | C28: 0.0001468660348 | D28: 0.2320407175 | E28: 0.02281551715 | F28: 4.764330143e-05 | G28: 1.954313978e-06 | H28: 4.167683303e-05 | I28: 0.002213085644 | J28: 5.264996406 | K28: 0.1523169128 | L28: 1.39612612e-05 | M28: 1.219891187e-10 | N28: 3.751425037e-10 | O28: 0.000911670043 | P28: 4.971316224e-10 | Q28: 5.437288465e-06 | R28: 4.171977434e-06 | S28: 0 | T28: 0 | U28: 5.827141086e-11 | V28: 0 | W28: 1.954313978e-06 | X28: 0.003729195748 | Y28: 0.4313774813
A29: 230302 | B29: 68101112000 | C29: 0.0001223801132 | D29: 0.1710578521 | E29: 0.02735774444 | F29: 1.116134223e-05 | G29: 3.295907469e-05 | H29: 8.05755606e-06 | I29: 0.00133375145 | J29: 6.675470388 | K29: 0.09255300096 | L29: 1.153693594e-05 | M29: 1.06058594e-10 | N29: 2.715981165e-10 | O29: 5.625366208e-05 | P29: 3.776567105e-10 | Q29: 7.758892775e-06 | R29: 0.00012649817 | S29: 0 | T29: 0 | U29: 5.293565328e-13 | V29: 0 | W29: 3.295907469e-05 | X29: 0.003106038791 | Y29: 0.4358485695
A30: 2332A0 | B30: 73719070500 | C30: 0.0001349938009 | D30: 0.1352190914 | E30: 0.02234700514 | F30: 2.504746972e-05 | G30: 1.525783458e-05 | H30: 8.937081205e-06 | I30: 0.001377699094 | J30: 4.373268443 | K30: 0.06082399633 | L30: 1.356570054e-05 | M30: 1.12792967e-10 | N30: 3.276635929e-10 | O30: 1.983440368e-05 | P30: 4.404565599e-10 | Q30: 5.3544338e-06 | R30: 0.0001115503228 | S30: 0 | T30: 0 | U30: 2.930203548e-10 | V30: 0 | W30: 1.525783458e-05 | X30: 0.003438202484 | Y30: 0.5563393704
A31: 233412 | B31: 26124012000 | C31: 0.0001408569599 | D31: 0.1744766044 | E31: 0.02690083996 | F31: 0.0001427906321 | G31: 3.682210363e-06 | H31: 9.38132239e-06 | I31: 0.001636484204 | J31: 4.169227359 | K31: 0.01656006944 | L31: 1.349443529e-05 | M31: 1.262660649e-10 | N31: 3.235281007e-10 | O31: 6.86073013e-05 | P31: 4.497941656e-10 | Q31: 4.70891507e-06 | R31: 1.850139259e-05 | S31: 0 | T31: 0 | U31: 8.0151867e-12 | V31: 0 | W31: 3.682210363e-06 | X31: 0.00358372465 | Y31: 0.7893134624
A32: 2334A0 | B32: 166508132500 | C32: 0.0001276050979 | D32: 0.1956925174 | E32: 0.03023759314 | F32: 1.4597894e-05 | G32: 7.321137487e-05 | H32: 8.489895303e-06 | I32: 0.001465966325 | J32: 3.419357398 | K32: 0.08306032979 | L32: 1.219925458e-05 | M32: 1.144776394e-10 | N32: 2.889097576e-10 | O32: 4.056792746e-05 | P32: 4.03387397e-10 | Q32: 3.627819923e-06 | R32: 1.321474918e-05 | S32: 0 | T32: 0 | U32: 6.146943185e-13 | V32: 0 | W32: 7.321137487e-05 | X32: 0.003245359461 | Y32: 0.4639235835
A33: 233230 | B33: 37262035000 | C33: 0.0001925097354 | D33: 0.05618884013 | E33: 0.0008324006653 | F33: 0.0004469383302 | G33: 0.1035045199 | H33: 3.57964286e-05 | I33: 0.00286074273 | J33: 3.91485955 | K33: 0.08487676051 | L33: 2.024772555e-05 | M33: 1.167392197e-10 | N33: 1.735034434e-09 | O33: 0.0007347774469 | P33: 1.851773654e-09 | Q33: 4.036277503e-06 | R33: 0.0002704944001 | S33: 0 | T33: 0 | U33: 1.029955367e-08 | V33: 0 | W33: 0.1035045199 | X33: 0.00388615539 | Y33: 0.5125745115
A34: 2332D0 | B34: 85735110000 | C34: 0.0001307891596 | D34: 0.2647387606 | E34: 0.0004888721273 | F34: 5.775093531e-05 | G34: 7.909924118e-05 | H34: 4.092902646e-05 | I34: 0.002392206077 | J34: 4.439897963 | K34: 0.1110294526 | L34: 1.304785258e-05 | M34: 1.147775662e-10 | N34: 4.109411879e-10 | O34: 1.751711487e-05 | P34: 5.257187541e-10 | Q34: 4.889002965e-06 | R34: 0.9820701285 | S34: 0 | T34: 0 | U34: 7.233810799e-10 | V34: 0 | W34: 7.909924118e-05 | X34: 0.003321376232 | Y34: 0.4461961679
A35: 233240 | B35: 93989035500 | C35: 0.0002949890973 | D35: 0.6154707411 | E35: 0.0003589359279 | F35: 5.666258314e-05 | G35: 20.03979339 | H35: 3.606999616e-05 | I35: 0.004801883211 | J35: 12.54417219 | K35: 0.258266748 | L35: 1.507930164e-05 | M35: 1.291002208e-10 | N35: 1.994292193e-09 | O35: 0.0001342198192 | P35: 2.123392414e-09 | Q35: 7.323045949e-06 | R35: 0.00739215267 | S35: 1.915023081 | T35: 19.79007349 | U35: 8.229463369e-10 | V35: 0 | W35: 0.2497199036 | X35: 0.005325141485 | Y35: 0.6133400799
A36: 233411 | B36: 122106134000 | C36: 0.0001336489701 | D36: 0.1829847854 | E36: 0.02827765967 | F36: 1.94977778e-05 | G36: 0 | H36: 8.891241796e-06 | I36: 0.001499692187 | J36: 5.041988079 | K36: 0.03076088385 | L36: 1.274441459e-05 | M36: 1.184301065e-10 | N36: 2.993010582e-10 | O36: 8.370807852e-05 | P36: 4.177311647e-10 | Q36: 5.278034108e-06 | R36: 2.113806639e-06 | S36: 0 | T36: 0 | U36: 9.059179231e-14 | V36: 0 | W36: 0 | X36: 0.00339938611 | Y36: 0.6052484139
A37: 2332C0 | B37: 114097092500 | C37: 0.0003031499053 | D37: 1.869494366 | E37: 7.899622332e-05 | F37: 8.799710998e-05 | G37: 4.952512276e-05 | H37: 2.145785063e-05 | I37: 0.0007170400586 | J37: 4.003650889 | K37: 0.1705533484 | L37: 2.626324206e-05 | M37: 1.305375123e-10 | N37: 7.09213303e-10 | O37: 0.0006631345157 | P37: 8.397508153e-10 | Q37: 3.86040901e-06 | R37: 0.001606708813 | S37: 0 | T37: 0 | U37: 4.370585651e-10 | V37: 0 | W37: 4.952512276e-05 | X37: 0.007659149811 | Y37: 0.5267129498
A38: 321100 | B38: 23461018000 | C38: 0.0004087587098 | D38: 0.0005311374754 | E38: 0.004995007373 | F38: 0.0002963679721 | G38: 5.135516376 | H38: 2.341249998e-05 | I38: 0.002441518185 | J38: 3.541912511 | K38: 0.03482169978 | L38: 0.000131809489 | M38: 2.681336899e-10 | N38: 6.755180634e-09 | O38: 0.0003355458133 | P38: 7.023314324e-09 | Q38: 3.443775111e-06 | R38: 0.001344113781 | S38: 0 | T38: 0 | U38: 1.179195443e-07 | V38: 0 | W38: 5.135516376 | X38: 0.01197264089 | Y38: 0.2884441581
A39: 321200 | B39: 17236011500 | C39: 0.0005624163068 | D39: 0.0005020005223 | E39: 0.00472103282 | F39: 6.418513655e-05 | G39: 1.029497395 | H39: 3.540375769e-05 | I39: 0.002520329561 | J39: 3.61150794 | K39: 0.107674365 | L39: 0.0002117414837 | M39: 6.057011611e-10 | N39: 6.514232613e-09 | O39: 0.0005080416705 | P39: 7.119933774e-09 | Q39: 3.939924583e-06 | R39: 0.001357762315 | S39: 0 | T39: 0 | U39: 1.054482037e-07 | V39: 0 | W39: 1.029497395 | X39: 0.0148146664 | Y39: 0.3150459211
A40: 321910 | B40: 20613022000 | C40: 7.896176811e-05 | D40: 0.000545738687 | E40: 0.005132365681 | F40: 9.585993958e-05 | G40: 0.1324372156 | H40: 4.517234651e-06 | I40: 0.000345314751 | J40: 4.146015544 | K40: 0.03089994178 | L40: 2.220118335e-05 | M40: 4.592028328e-11 | N40: 1.085163884e-09 | O40: 0.000124029512 | P40: 1.131084167e-09 | Q40: 4.435059888e-06 | R40: 0.001938086253 | S40: 0 | T40: 0 | U40: 8.941945384e-09 | V40: 0 | W40: 0.1324372156 | X40: 0.002327453568 | Y40: 0.3418314804
A41: 3219A0 | B41: 19455014000 | C41: 0.0001126132571 | D41: 0.0004499028083 | E41: 0.004231302275 | F41: 4.95999167e-05 | G41: 0.08336971116 | H41: 8.617289273e-06 | I41: 0.01278214748 | J41: 5.706186019 | K41: 0.04345123362 | L41: 3.45187967e-05 | M41: 8.967408439e-11 | N41: 1.357912277e-09 | O41: 0.0001183075773 | P41: 1.447586361e-09 | Q41: 4.52876018e-06 | R41: 0.01323010898 | S41: 0 | T41: 0 | U41: 1.093208077e-08 | V41: 1.724509124e-07 | W41: 0.08336971116 | X41: 0.003080360949 | Y41: 0.3462384629
A42: 327100 | B42: 7281009500 | C42: 0.0003340915205 | D42: 0.0004387547998 | E42: 0.004126660618 | F42: 5.229334385e-05 | G42: 3.582484187e-07 | H42: 1.256684105e-05 | I42: 0.0008086182556 | J42: 4.641846832 | K42: 0.2750102348 | L42: 7.34567669e-06 | M42: 7.845899134e-11 | N42: 3.645541063e-09 | O42: 5.413847547e-05 | P42: 3.724000054e-09 | Q42: 3.991006908e-06 | R42: 0.00273246804 | S42: 0.03145655939 | T42: 0 | U42: 1.507241363e-09 | V42: 0 | W42: 3.582484187e-07 | X42: 0.003942414091 | Y42: 0.4651876514
A43: 327200 | B43: 23571043500 | C43: 0.001658903823 | D43: 0.0004424507411 | E43: 0.004160418338 | F43: 0.0006511871517 | G43: 1.592516687e-06 | H43: 7.521407462e-05 | I43: 0.0065143965 | J43: 3.276072401 | K43: 0.3366825092 | L43: 2.545576198e-05 | M43: 2.250171793e-10 | N43: 3.599686784e-09 | O43: 0.0002750144671 | P43: 3.824703963e-09 | Q43: 3.463440493e-06 | R43: 0.001862629816 | S43: 0 | T43: 0 | U43: 5.27260247e-11 | V43: 0 | W43: 1.592516687e-06 | X43: 0.02878429497 | Y43: 0.4257582791
A44: 327310 | B44: 5924005500 | C44: 0.01887904435 | D44: 0.0004543730304 | E44: 0.004273123022 | F44: 0.005087460039 | G44: 0 | H44: 0.0007469780314 | I44: 0.02486225142 | J44: 1.838473702 | K44: 7.77545865 | L44: 0.0002865016476 | M44: 3.326464768e-09 | N44: 2.768179644e-07 | O44: 0.002849533024 | P44: 2.801444292e-07 | Q44: 2.017468223e-06 | R44: 0.001035220591 | S44: 0 | T44: 0 | U44: 2.485727736e-07 | V44: 0 | W44: 0 | X44: 0.2763065476 | Y44: 0.4116282541
A45: 327320 | B45: 20862024000 | C45: 3.179544697e-05 | D45: 0.000442384121 | E45: 0.004161850835 | F45: 1.673380676e-05 | G45: 0 | H45: 1.584342436e-06 | I45: 0.000199774721 | J45: 3.524140549 | K45: 0.1296245809 | L45: 1.174031716e-06 | M45: 1.841064089e-11 | N45: 3.190621872e-09 | O45: 4.306463048e-05 | P45: 3.209032513e-09 | Q45: 3.703241894e-06 | R45: 0.001231672183 | S45: 0.1363909258 | T45: 0 | U45: 7.832027685e-10 | V45: 0 | W45: 0 | X45: 0.0005745523234 | Y45: 0.334907188
A46: 327330 | B46: 5712006000 | C46: 6.73818053e-05 | D46: 0.0004520182493 | E46: 0.004250977629 | F46: 2.783616564e-05 | G46: 0 | H46: 8.275196721e-07 | I46: 0.0006612046284 | J46: 4.286735021 | K46: 0.07668674894 | L46: 3.101542519e-05 | M46: 1.015370898e-11 | N46: 1.038243706e-09 | O46: 2.892107175e-05 | P46: 1.048397415e-09 | Q46: 4.246178496e-06 | R46: 0.00119146602 | S46: 0 | T46: 0 | U46: 4.363832942e-10 | V46: 0 | W46: 0 | X46: 0.0003563254665 | Y46: 0.4269105528
A47: 327390 | B47: 8739017500 | C47: 1.641020731e-05 | D47: 0.0004520513148 | E47: 0.004251288592 | F47: 3.259760463e-05 | G47: 2.715974544e-07 | H47: 8.127249981e-07 | I47: 0.0001023263428 | J47: 5.062833928 | K47: 0.07366925073 | L47: 1.160239695e-05 | M47: 8.372912102e-12 | N47: 1.167679765e-10 | O47: 2.630989339e-05 | P47: 1.251408886e-10 | Q47: 5.555842238e-06 | R47: 0.00154139571 | S47: 0 | T47: 0 | U47: 1.523590049e-11 | V47: 0 | W47: 2.715974544e-07 | X47: 0.0004490314714 | Y47: 0.4279445871
A48: 327400 | B48: 5984005500 | C48: 0.01015465277 | D48: 0.0005062601387 | E48: 0.004771731336 | F48: 0.000183876931 | G48: 0 | H48: 0.0002594448505 | I48: 0.004759754909 | J48: 2.280716768 | K48: 3.311572347 | L48: 0.000207537716 | M48: 1.004593661e-09 | N48: 1.20386581e-07 | O48: 0.001458298839 | P48: 1.213911746e-07 | Q48: 2.316081248e-06 | R48: 0.001562135809 | S48: 1.375355024 | T48: 0 | U48: 3.480252154e-09 | V48: 0 | W48: 0 | X48: 0.09825584931 | Y48: 0.4308455146
A49: 327910 | B49: 5295004000 | C49: 0.000141305822 | D49: 0.0004646099976 | E49: 0.004369395946 | F49: 0.0001986614479 | G49: 2.696115814e-06 | H49: 6.602877327e-07 | I49: 0.0006034927077 | J49: 1.956647193 | K49: 0.06229089174 | L49: 1.686072741e-05 | M49: 3.07823569e-11 | N49: 5.071332478e-11 | O49: 1.997577657e-05 | P49: 8.149568168e-11 | Q49: 2.061009296e-06 | R49: 0.0005280107872 | S49: 0 | T49: 0 | U49: 4.45852454e-11 | V49: 0 | W49: 2.696115814e-06 | X49: 0.0003707477378 | Y49: 0.5931376847
A50: 327991 | B50: 3662003000 | C50: 0.0004087326081 | D50: 0.0004464265109 | E50: 0.004212270815 | F50: 0.0001314792288 | G50: 3.730651877e-05 | H50: 7.299813043e-06 | I50: 0.0001030437945 | J50: 6.479811618 | K50: 0.06070253176 | L50: 1.89998825e-05 | M50: 2.485954096e-11 | N50: 1.156526692e-09 | O50: 8.547248172e-05 | P50: 1.181386233e-09 | Q50: 7.38932932e-06 | R50: 0.002023911911 | S50: 1.643964934 | T50: 0 | U50: 3.747301113e-10 | V50: 0 | W50: 3.730651877e-05 | X50: 0.002891433655 | Y50: 0.4515488335
A51: 327992 | B51: 3548010000 | C51: 0.002883135311 | D51: 0.0005174753606 | E51: 0.004880201157 | F51: 2.744886762e-05 | G51: 4.750839866e-06 | H51: 0.0001007129673 | I51: 0.0106106502 | J51: 1.987089441 | K51: 0.309846498 | L51: 1.422641498e-05 | M51: 1.401833173e-09 | N51: 5.277768094e-08 | O51: 0.0004994098487 | P51: 5.417951411e-08 | Q51: 1.794379112e-06 | R51: 0.0026688297 | S51: 1.025505749 | T51: 0 | U51: 2.879597716e-08 | V51: 0 | W51: 4.750839866e-06 | X51: 0.01985152165 | Y51: 0.4896281522
A52: 327993 | B52: 4928011000 | C52: 0.001006397416 | D52: 0.0004686000215 | E52: 0.004406919878 | F52: 0.0002587790027 | G52: 0 | H52: 4.683242468e-05 | I52: 0.002338728388 | J52: 2.969804583 | K52: 0.23085364 | L52: 0.000110343414 | M52: 6.296614774e-10 | N52: 1.050567937e-09 | O52: 0.0006126370072 | P52: 1.680229415e-09 | Q52: 3.050603855e-06 | R52: 0.002393908406 | S52: 0 | T52: 0 | U52: 3.912186062e-11 | V52: 0 | W52: 0 | X52: 0.007096199356 | Y52: 0.4707064266
A53: 327999 | B53: 4131003500 | C53: 0.0002044117153 | D53: 0.0004880731183 | E53: 0.004589793682 | F53: 5.40145023e-05 | G53: 0 | H53: 8.200478525e-06 | I53: 0.0002680345825 | J53: 2.947386499 | K53: 0.1774256108 | L53: 2.98565462e-05 | M53: 3.758462063e-11 | N53: 1.564981691e-09 | O53: 9.905396318e-05 | P53: 1.602566312e-09 | Q53: 2.991143662e-06 | R53: 0.0007446927878 | S53: 0 | T53: 0 | U53: 2.162546874e-09 | V53: 0 | W53: 0 | X53: 0.003179249775 | Y53: 0.4857850271
A54: 331110 | B54: 112974103500 | C54: 0.000155366366 | D54: 0.0001777525952 | E54: 0.00167072935 | F54: 0.01116921844 | G54: 1.156741373e-06 | H54: 7.180148643e-06 | I54: 0.01507261283 | J54: 1.027558557 | K54: 0.3842682248 | L54: 3.971585647e-06 | M54: 5.663145459e-11 | N54: 7.822686293e-09 | O54: 6.721111776e-05 | P54: 7.879317748e-09 | Q54: 1.035825026e-06 | R54: 0.0006554719818 | S54: 0 | T54: 0 | U54: 6.680690063e-10 | V54: 0 | W54: 1.156741373e-06 | X54: 0.00261812505 | Y54: 0.2107856116
A55: 331200 | B55: 25904020000 | C55: 0.0001082592438 | D55: 0.000265206764 | E55: 0.002494120586 | F55: 0.004871179159 | G55: 5.20340227e-06 | H55: 5.546785124e-06 | I55: 0.05457793823 | J55: 2.681982059 | K55: 0.1248852007 | L55: 7.637002022e-06 | M55: 1.703732313e-10 | N55: 2.544338757e-08 | O55: 4.85164775e-05 | P55: 2.56137608e-08 | Q55: 2.721698661e-06 | R55: 0.0009955323739 | S55: 0 | T55: 0 | U55: 1.849450342e-10 | V55: 0 | W55: 5.20340227e-06 | X55: 0.001954259275 | Y55: 0.2871936082
A56: 331314 | B56: 5779005000 | C56: 0.0004124165775 | D56: 0.0002056250988 | E56: 0.001933787925 | F56: 0.01794988866 | G56: 6.650736416e-05 | H56: 5.161635675e-06 | I56: 0.4801942838 | J56: 0.8585748118 | K56: 0.09889884675 | L56: 5.16992273e-06 | M56: 1.851343993e-10 | N56: 2.108103724e-08 | O56: 5.460533026e-05 | P56: 2.126617163e-08 | Q56: 8.871959487e-07 | R56: 0.00032372049 | S56: 0 | T56: 0 | U56: 2.027232626e-09 | V56: 0 | W56: 6.650736416e-05 | X56: 0.001132166861 | Y56: 0.3141360648
A57: 331313 | B57: 6508004500 | C57: 0.0002714171966 | D57: 0.0001684470115 | E57: 0.001584149486 | F57: 0.002726301297 | G57: 4.794196539e-06 | H57: 9.059130139e-06 | I57: 0.01257597859 | J57: 1.093153368 | K57: 0.4994993005 | L57: 5.129396645e-05 | M57: 9.226354652e-11 | N57: 7.257974464e-09 | O57: 0.0001370561718 | P57: 7.35023801e-09 | Q57: 1.151156067e-06 | R57: 0.0008143378884 | S57: 0 | T57: 0 | U57: 1.681774858e-10 | V57: 0 | W57: 4.794196539e-06 | X57: 0.003256301594 | Y57: 0.1861347981
A58: 33131B | B58: 25349017000 | C58: 0.0001091698368 | D58: 0.0002012235699 | E58: 0.001886329925 | F58: 0.001346842348 | G58: 9.253609872e-08 | H58: 4.496432589e-06 | I58: 0.001159503774 | J58: 1.596839354 | K58: 0.09741632117 | L58: 1.437722314e-05 | M58: 2.096570802e-11 | N58: 4.75660637e-10 | O58: 3.257779011e-05 | P58: 4.96626345e-10 | Q58: 1.707317422e-06 | R58: 0.0009066910823 | S58: 0 | T58: 0 | U58: 5.298204998e-11 | V58: 0 | W58: 9.253609872e-08 | X58: 0.001924512064 | Y58: 0.2284297269
A59: 331410 | B59: 14841006000 | C59: 0.0004124165775 | D59: 0.0002056250988 | E59: 0.001933787925 | F59: 0.01794988866 | G59: 6.650736416e-05 | H59: 5.161635675e-06 | I59: 0.4801942838 | J59: 0.8585748118 | K59: 0.09889884675 | L59: 5.16992273e-06 | M59: 1.851343993e-10 | N59: 2.108103724e-08 | O59: 5.460533026e-05 | P59: 2.126617163e-08 | Q59: 8.871959487e-07 | R59: 0.00032372049 | S59: 0 | T59: 0 | U59: 2.027232626e-09 | V59: 0 | W59: 6.650736416e-05 | X59: 0.001132166861 | Y59: 0.3141360648
A60: 331420 | B60: 23345013000 | C60: 7.258771992e-06 | D60: 0.0001902007475 | E60: 0.001757957882 | F60: 0.0001727458664 | G60: 0 | H60: 3.934347161e-07 | I60: 0.004548729568 | J60: 1.193060252 | K60: 0.06622137776 | L60: 4.977985817e-07 | M60: 4.071845473e-12 | N60: 2.969017222e-10 | O60: 1.316331557e-05 | P60: 3.009735676e-10 | Q60: 1.371893958e-06 | R60: 0.0004538956321 | S60: 0 | T60: 0 | U60: 2.252780792e-11 | V60: 0 | W60: 0 | X60: 0.0001507817429 | Y60: 0.1384550404
A61: 331490 | B61: 22788012500 | C61: 0.000509699604 | D61: 0.0001872749452 | E61: 0.001729290597 | F61: 0.02612033686 | G61: 0.0001392180869 | H61: 4.135825296e-06 | I61: 0.04832429881 | J61: 1.095722152 | K61: 0.09437915501 | L61: 9.877189341e-06 | M61: 2.358515345e-10 | N61: 2.481205874e-08 | O61: 6.624162235e-05 | P61: 2.504791028e-08 | Q61: 1.050573191e-06 | R61: 0.0003894774181 | S61: 0 | T61: 0 | U61: 4.903369286e-09 | V61: 0 | W61: 0.0001392180869 | X61: 0.001522373293 | Y61: 0.2465779206
A62: 331510 | B62: 18894020500 | C62: 0.0001572545972 | D62: 0.0002235459628 | E62: 0.002102324161 | F62: 0.00119956985 | G62: 0 | H62: 6.805636762e-06 | I62: 0.02045573685 | J62: 3.666697978 | K62: 0.05610154413 | L62: 4.482169827e-05 | M62: 2.837098788e-10 | N62: 2.281978492e-08 | O62: 0.0003988286417 | P62: 2.31034948e-08 | Q62: 3.815313379e-06 | R62: 0.001077762166 | S62: 0 | T62: 0 | U62: 4.943533598e-13 | V62: 0 | W62: 0 | X62: 0.003709233349 | Y62: 0.448656014
A63: 331520 | B63: 12820018000 | C63: 4.399804371e-05 | D63: 0.0002207117543 | E63: 0.002075670023 | F63: 0.0008415185685 | G63: 1.818507942e-07 | H63: 2.58775974e-06 | I63: 0.007325317208 | J63: 3.794774524 | K63: 0.057971961 | L63: 4.639114281e-06 | M63: 1.710682212e-11 | N63: 1.251176648e-09 | O63: 3.718692368e-05 | P63: 1.26828347e-09 | Q63: 4.041402637e-06 | R63: 0.001274179693 | S63: 0 | T63: 0 | U63: 9.388741465e-14 | V63: 0 | W63: 1.818507942e-07 | X63: 0.001114093657 | Y63: 0.3921178791
A64: 332114 | B64: 8345006000 | C64: 2.457378927e-06 | D64: 0.0004163394795 | E64: 0.003915302225 | F64: 6.666552896e-05 | G64: 4.68560663e-07 | H64: 1.485360117e-07 | I64: 0.0004582963622 | J64: 0.8265030369 | K64: 0.03436281483 | L64: 1.136111827e-06 | M64: 6.501628156e-12 | N64: 3.091042445e-10 | O64: 1.355202771e-06 | P64: 3.156058727e-10 | Q64: 8.350386515e-07 | R64: 0.0002626171238 | S64: 0 | T64: 0 | U64: 3.933086893e-11 | V64: 0 | W64: 4.68560663e-07 | X64: 7.883481208e-05 | Y64: 0.2393445781
A65: 33211A | B65: 14311011500 | C65: 6.801141503e-05 | D65: 0.0004662434403 | E65: 0.004384757558 | F65: 0.00133243664 | G65: 0.1350113637 | H65: 3.384231914e-06 | I65: 0.02282641232 | J65: 2.712356509 | K65: 0.1226399493 | L65: 2.771705095e-06 | M65: 4.462221695e-11 | N65: 9.049802066e-10 | O65: 2.108772582e-05 | P65: 9.496024236e-10 | Q65: 2.727716264e-06 | R65: 0.0008131370514 | S65: 0 | T65: 0 | U65: 1.176242948e-10 | V65: 0 | W65: 0.1350113637 | X65: 0.001165571997 | Y65: 0.3250852468
A66: 332119 | B66: 11898008500 | C66: 3.677538166e-06 | D66: 0.0004403660488 | E66: 0.004134062357 | F66: 0.0001254127553 | G66: 3.864449212e-06 | H66: 1.630385806e-07 | I66: 0.0001945222578 | J66: 4.342346904 | K66: 0.03326280354 | L66: 9.469831408e-07 | M66: 5.003765843e-12 | N66: 8.014367788e-11 | O66: 1.405536697e-06 | P66: 8.514744372e-11 | Q66: 4.4159727e-06 | R66: 0.001306949271 | S66: 0 | T66: 0 | U66: 5.23594412e-11 | V66: 0 | W66: 3.864449212e-06 | X66: 7.533150111e-05 | Y66: 0.3671427486
A67: 332200 | B67: 9628010000 | C67: 4.130831552e-06 | D67: 0.0004996206832 | E67: 0.004692552286 | F67: 0.000137957506 | G67: 1.348767098e-06 | H67: 2.569749302e-07 | I67: 0.0005336885568 | J67: 3.810074127 | K67: 0.03987079804 | L67: 6.019982614e-06 | M67: 1.906166863e-11 | N67: 8.826365771e-11 | O67: 9.721401849e-06 | P67: 1.073253263e-10 | Q67: 4.014188182e-06 | R67: 0.001180938097 | S67: 0 | T67: 0 | U67: 1.604938602e-12 | V67: 0 | W67: 1.348767098e-06 | X67: 0.000132082086 | Y67: 0.5009881334
A68: 332310 | B68: 40664016500 | C68: 1.091370115e-05 | D68: 0.000483369453 | E68: 0.004545423228 | F68: 0.0005182319415 | G68: 0.0003930905459 | H68: 5.052341366e-07 | I68: 0.00990838835 | J68: 3.568499074 | K68: 0.01713529834 | L68: 1.532773724e-05 | M68: 8.629343484e-11 | N68: 9.358730495e-09 | O68: 1.343290431e-05 | P68: 9.445023929e-09 | Q68: 3.587330565e-06 | R68: 0.001217297199 | S68: 0 | T68: 0 | U68: 1.370928029e-09 | V68: 0 | W68: 0.0003930905459 | X68: 0.0004954086885 | Y68: 0.345881235
A69: 332320 | B69: 36594024000 | C69: 1.11574514e-05 | D69: 0.0004903801028 | E69: 0.004611264603 | F69: 0.0001433474369 | G69: 0.0002229019971 | H69: 5.463303279e-07 | I69: 0.0007700069682 | J69: 4.795371095 | K69: 0.02328751305 | L69: 1.171866453e-05 | M69: 2.237037247e-11 | N69: 4.363496961e-10 | O69: 5.155551079e-06 | P69: 4.587200686e-10 | Q69: 4.865385123e-06 | R69: 0.001530837472 | S69: 0 | T69: 0 | U69: 4.97482936e-10 | V69: 0 | W69: 0.0002229019971 | X69: 0.0003836112288 | Y69: 0.3908721674
A70: 332410 | B70: 7032003000 | C70: 7.252293442e-06 | D70: 0.0005068264756 | E70: 0.004766418198 | F70: 6.295371079e-05 | G70: 0 | H70: 4.541559262e-07 | I70: 0.0005611992511 | J70: 3.23509814 | K70: 0.02082270081 | L70: 3.043067327e-06 | M70: 5.308908872e-12 | N70: 1.292176862e-11 | O70: 1.495556087e-06 | P70: 1.823067749e-11 | Q70: 3.036477428e-06 | R70: 0.001028402546 | S70: 0 | T70: 0 | U70: 7.42183276e-11 | V70: 0 | W70: 0 | X70: 0.0002149987003 | Y70: 0.4212759142
A71: 332420 | B71: 9454006500 | C71: 3.530962654e-06 | D71: 0.000529980413 | E71: 0.004984167969 | F71: 7.111560212e-05 | G71: 5.317021617e-06 | H71: 2.009570815e-07 | I71: 0.0007773951692 | J71: 3.959163373 | K71: 0.03043567519 | L71: 9.588106356e-06 | M71: 4.041843219e-11 | N71: 1.37243385e-10 | O71: 5.873809873e-06 | P71: 1.776618171e-10 | Q71: 3.820606724e-06 | R71: 0.001202731076 | S71: 0 | T71: 0 | U71: 1.767453675e-11 | V71: 0 | W71: 5.317021617e-06 | X71: 0.0003003979044 | Y71: 0.360417416
